Workbook

Sheet Program
A1: Обрасци за припрему програмског буџета | X1: =COUNT(#REF!) -> 0 | Y1: 0 | AB1: Kontrole | AC1: p/r | AD1: =D193-D452 -> 0 | AE1: =E193-E452 -> 0 | AF1: 0 | AG1: 0 | AH1: 0 | AI1: 0 | AJ1: 0 | AK1: 0 | AL1: 0 | AM1: 0 | AN1: =N193-N452 -> 0 | AO1: =O193-O452 -> 0
A2: 1. ПРОГРАМ | AC2: p+r/i | AD2: =D452+E452-D474 -> 0 | AE2: =F452+G452-F474 -> 0 | AF2: =H452+I452-H474 -> 0 | AG2: =J452+K452-J474 -> 0 | AH2: =L452+M452-L474 -> 0 | AI2: =N452+O452-N474 -> 0
V3: =VLOOKUP($D$4,Uputstvo!$C$38:$D$54,2,FALSE) -> п8
A4: Назив програма: | D4: Програм 8. Предшколско васпитање и образовање | V4: =VLOOKUP($D$5,Uputstvo!$B$76:$C$92,2,FALSE) -> ПГ_8 | AD4: =D127-D457 -> 0 | AE4: =F127-F457 -> 0 | AF4: =H127-H457 -> 0 | AG4: =J127-J457 -> 0 | AH4: =L127-L457 -> 0 | AI4: =N127-N457 -> 0
A5: Шифра програма: | D5: =IF(D4="","",VLOOKUP(D4,Uputstvo!B2:C20,2,FALSE)) -> 2001 | V5: =VLOOKUP($B$15,Uputstvo!$B$93:$C$133,2,FALSE) -> ПГЦ_21
A6: Сектор: | D6: =IF(D4="","",VLOOKUP(D4,Uputstvo!$B$357:$C$373,2,FALSE)) -> Образовање | V6: =VLOOKUP($B$21,Uputstvo!$B$93:$C$133,2,FALSE) -> ПГЦ_22
A7: Сврха: | D7: =IF(D5="","",VLOOKUP(D5,Uputstvo!$C$2:$D$20,2,FALSE)) -> Омогућавање обухвата предшколске деце у вртићима. | V7: =VLOOKUP($B$27,Uputstvo!$B$93:$C$133,2,FALSE) -> 
A8: Основ: | V8: =VLOOKUP($B$33,Uputstvo!$B$93:$C$133,2,FALSE) -> 
A9: Опис: | V9: =VLOOKUP($B$39,Uputstvo!$B$93:$C$133,2,FALSE) -> 
A10: Назив организационе јединице/Буџетски корисник: | AA10: приходи из буџета | AB10: =D127-D457 -> 0 | AC10: =F127-F457 -> 0 | AD10: =H127-H457 -> 0 | AE10: =J127-J457 -> 0 | AF10: =L127-L457 -> 0 | AG10: =N127-N457 -> 0
A11: Одговорно лице за спровођење програмa: | AA11: transferi | AB11: =D123-$D$458 -> 0 | AC11: =F123-$F$458 -> 0 | AD11: =H123-$H$458 -> 0 | AE11: =J123-$J$458 -> 0 | AF11: =L123-$L$458 -> 0 | AG11: =N123-$N$458 -> 0
B13: Циљ* | D13: Индикатори** | Z13: 781111 | AA13: =D123+F123+H123+J123+L123+N123 -> 0
D14: Назив индикатора | G14: Вредност у базној години (2018) | H14: Очекивана вредност у 2019. години | I14: Циљана вредност у 2020. години | J14: Циљана вредност у 2021. години | K14: Циљана вредност у 2022. години | L14: Извор верификације | Z14: 791111 | AA14: =D127+F127+H127+J127+L127+N127 -> 1461381000
A15: 1 | B15: Повећање обухвата деце предшколским васпитањем и образовањем | D15: Проценат деце која су уписана у предшколске установе (Број деце која су уписана у предшколске установе у односу на укупан број деце у граду/општини (јаслена група, предшколска група и ППП)
D16: Проценат уписане деце у односу на број укупно пријављене деце
B19: Циљ | D19: Индикатори
D20: Назив индикатора | G20: Вредност у базној години (2018) | H20: Очекивана вредност у 2019. години | I20: Циљана вредност у 2020. години | J20: Циљана вредност у 2021. години | K20: Циљана вредност у 2022. години | L20: Извор верификације
A21: 2 | B21: Унапређење доступности предшколског васпитања за децу из осетљивих група | D21: Проценат деце са додатним образовним потребама која су укључена у редовне програме ПОВ у односу на укупан број деце
D22: Проценат објеката који су прилагодили простор за децу са инвалидитетом у односу на укупан број објеката ПУ
D23: Проценат Рома који похађају предшколски програм у односу на укупан број ромске деце
B25: Циљ | D25: Индикатори
D26: Назив индикатора | G26: Вредност у базној години (2018) | H26: Очекивана вредност у 2019. години | I26: Циљана вредност у 2020. години | J26: Циљана вредност у 2021. години | K26: Циљана вредност у 2022. години | L26: Извор верификације
A27: 3
Q29: Између 30. и 42. реда се налазе још 2 циља уколико је потребно . Активирају се маркирањем целог 30. и 42. реда > десни клик> опција "Unhide". Графичку илустрацију поступка видети у Упутству.
B31: Циљ | D31: Индикатори
D32: Назив индикатора | G32: Вредност у базној години (2018) | H32: Очекивана вредност у 2019. години | I32: Циљана вредност у 2020. години | J32: Циљана вредност у 2021. години | K32: Циљана вредност у 2022. години | L32: Извор верификације
A33: 4
B37: Циљ | D37: Индикатори
D38: Назив индикатора | G38: Вредност у базној години (2018) | H38: Очекивана вредност у 2019. години | I38: Циљана вредност у 2020. години | J38: Циљана вредност у 2021. години | K38: Циљана вредност у 2022. години | L38: Извор верификације
A39: 5
A44: ПЛАНИРАНА СРЕДСТВА ЗА ПРОГРАМ
A45: Рбр. | B45: Конто | C45: ОПИС | D45: Вредност у базној години (2018) | F45: Очекивана вредност у 2019. години | H45: Вредност у 2020. години | J45: Вредност у 2021. години | L45: Вредност у 2022. години | N45: Укупно (2020-2022) | Y45: 1
D46: Приходи из буџета | E46: Приходи из осталих извора | F46: Приходи из буџета | G46: Приходи из осталих извора | H46: Приходи из буџета | I46: Приходи из осталих извора | J46: Приходи из буџета | K46: Приходи из осталих извора | L46: Приходи из буџета | M46: Приходи из осталих извора | N46: Приходи из буџета | O46: Приходи из осталих извора | Y46: 1
A47: 1 | B47: 2 | C47: 3 | D47: 4 | E47: 5 | F47: 6 | G47: 7 | H47: 8 | I47: 9 | J47: 10 | K47: 11 | L47: 12 | M47: 13 | N47: 14=(8+10+12) | O47: 15=(9+11+13) | Y47: 1
A48: 1 | B48: 300000 | C48: КАПИТАЛ, УТВРЂИВАЊЕ РЕЗУЛТАТА ПОСЛОВАЊА И ВАНБИЛАНСНА ЕВИДЕНЦИЈА (2 + 5) | D48: =SUM(D49,D52) -> 0 | E48: =SUM(E49,E52) -> 0 | F48: 0 | G48: 0 | H48: 0 | I48: 0 | J48: 0 | K48: 0 | L48: 0 | M48: 0 | N48: =SUM(H48,J48,L48) -> 0 | O48: 0 | Y48: =SUM(D48:O48) -> 0
A49: 2 | B49: 310000 | C49: КАПИТАЛ (3) | D49: =SUM(D50) -> 0 | E49: =SUM(E50) -> 0 | F49: 0 | G49: 0 | H49: 0 | I49: 0 | J49: 0 | K49: 0 | L49: 0 | M49: 0 | N49: 0 | O49: 0 | Y49: 0
A50: 3 | B50: 311000 | C50: КАПИТАЛ (4) | D50: =SUM(D51) -> 0 | E50: 0 | F50: 0 | G50: 0 | H50: 0 | I50: 0 | J50: 0 | K50: 0 | L50: 0 | M50: 0 | N50: 0 | O50: 0 | Y50: 0
A51: 4 | B51: 311700 | C51: Пренета неутрошена средства из ранијих година | D51: =+Programska_aktivnost!D51+Sheet1!D51+'Захтев за додатна сред.'!D51+Projekat!D51+Sheet2!D51 -> 0 | E51: =+Programska_aktivnost!E51+Sheet1!E51+'Захтев за додатна сред.'!E51+Projekat!E51+Sheet2!E51 -> 0 | F51: =+Programska_aktivnost!F51+Sheet1!F51+'Захтев за додатна сред.'!F51+Projekat!F51+Sheet2!F51 -> 0 | G51: =+Programska_aktivnost!G51+Sheet1!G51+'Захтев за додатна сред.'!G51+Projekat!G51+Sheet2!G51 -> 0 | H51: =+Programska_aktivnost!H51+Sheet1!H51+'Захтев за додатна сред.'!H51+Projekat!H51+Sheet2!H51 -> 0 | I51: =+Programska_aktivnost!I51+Sheet1!I51+'Захтев за додатна сред.'!I51+Projekat!I51+Sheet2!I51 -> 0 | J51: =+Programska_aktivnost!J51+Sheet1!J51+'Захтев за додатна сред.'!J51+Projekat!J51+Sheet2!J51 -> 0 | K51: =+Programska_aktivnost!K51+Sheet1!K51+'Захтев за додатна сред.'!K51+Projekat!K51+Sheet2!K51 -> 0 | L51: =+Programska_aktivnost!L51+Sheet1!L51+'Захтев за додатна сред.'!L51+Projekat!L51+Sheet2!L51 -> 0 | M51: =+Programska_aktivnost!M51+Sheet1!M51+'Захтев за додатна сред.'!M51+Projekat!M51+Sheet2!M51 -> 0 | N51: =+Programska_aktivnost!N51+Sheet1!N51+'Захтев за додатна сред.'!N51+Projekat!N51+Sheet2!N51 -> 0 | O51: =+Programska_aktivnost!O51+Sheet1!O51+'Захтев за додатна сред.'!O51+Projekat!O51+Sheet2!O51 -> 0 | Y51: 0
A52: 5 | B52: 320000 | C52: УТВРЂИВАЊЕ РЕЗУЛТАТА ПОСЛОВАЊА (6) | D52: =+Programska_aktivnost!D52+Sheet1!D52+'Захтев за додатна сред.'!D52+Projekat!D52+Sheet2!D52 -> 0 | E52: =+Programska_aktivnost!E52+Sheet1!E52+'Захтев за додатна сред.'!E52+Projekat!E52+Sheet2!E52 -> 0 | F52: =+Programska_aktivnost!F52+Sheet1!F52+'Захтев за додатна сред.'!F52+Projekat!F52+Sheet2!F52 -> 0 | G52: =+Programska_aktivnost!G52+Sheet1!G52+'Захтев за додатна сред.'!G52+Projekat!G52+Sheet2!G52 -> 0 | H52: =+Programska_aktivnost!H52+Sheet1!H52+'Захтев за додатна сред.'!H52+Projekat!H52+Sheet2!H52 -> 0 | I52: =+Programska_aktivnost!I52+Sheet1!I52+'Захтев за додатна сред.'!I52+Projekat!I52+Sheet2!I52 -> 0 | J52: =+Programska_aktivnost!J52+Sheet1!J52+'Захтев за додатна сред.'!J52+Projekat!J52+Sheet2!J52 -> 0 | K52: =+Programska_aktivnost!K52+Sheet1!K52+'Захтев за додатна сред.'!K52+Projekat!K52+Sheet2!K52 -> 0 | L52: =+Programska_aktivnost!L52+Sheet1!L52+'Захтев за додатна сред.'!L52+Projekat!L52+Sheet2!L52 -> 0 | M52: =+Programska_aktivnost!M52+Sheet1!M52+'Захтев за додатна сред.'!M52+Projekat!M52+Sheet2!M52 -> 0 | N52: =SUM(N53) -> 0 | O52: =SUM(O53) -> 0 | Y52: 0
A53: 6 | B53: 321000 | C53: УТВРЂИВАЊЕ РЕЗУЛТАТА ПОСЛОВАЊА (7) | D53: =+Programska_aktivnost!D53+Sheet1!D53+'Захтев за додатна сред.'!D53+Projekat!D53+Sheet2!D53 -> 0 | E53: =+Programska_aktivnost!E53+Sheet1!E53+'Захтев за додатна сред.'!E53+Projekat!E53+Sheet2!E53 -> 0 | F53: =+Programska_aktivnost!F53+Sheet1!F53+'Захтев за додатна сред.'!F53+Projekat!F53+Sheet2!F53 -> 0 | G53: =+Programska_aktivnost!G53+Sheet1!G53+'Захтев за додатна сред.'!G53+Projekat!G53+Sheet2!G53 -> 0 | H53: =+Programska_aktivnost!H53+Sheet1!H53+'Захтев за додатна сред.'!H53+Projekat!H53+Sheet2!H53 -> 0 | I53: =+Programska_aktivnost!I53+Sheet1!I53+'Захтев за додатна сред.'!I53+Projekat!I53+Sheet2!I53 -> 0 | J53: =+Programska_aktivnost!J53+Sheet1!J53+'Захтев за додатна сред.'!J53+Projekat!J53+Sheet2!J53 -> 0 | K53: =+Programska_aktivnost!K53+Sheet1!K53+'Захтев за додатна сред.'!K53+Projekat!K53+Sheet2!K53 -> 0 | L53: =+Programska_aktivnost!L53+Sheet1!L53+'Захтев за додатна сред.'!L53+Projekat!L53+Sheet2!L53 -> 0 | M53: =+Programska_aktivnost!M53+Sheet1!M53+'Захтев за додатна сред.'!M53+Projekat!M53+Sheet2!M53 -> 0 | N53: =SUM(N54) -> 0 | O53: =SUM(O54) -> 0 | Y53: 0
A54: 7 | B54: 321300 | C54: Нераспоређени вишак прихода и примања или дефицит из ранијих година | D54: =+Programska_aktivnost!D54+Sheet1!D54+'Захтев за додатна сред.'!D54+Projekat!D54+Sheet2!D54 -> 0 | E54: =+Programska_aktivnost!E54+Sheet1!E54+'Захтев за додатна сред.'!E54+Projekat!E54+Sheet2!E54 -> 0 | F54: =+Programska_aktivnost!F54+Sheet1!F54+'Захтев за додатна сред.'!F54+Projekat!F54+Sheet2!F54 -> 0 | G54: =+Programska_aktivnost!G54+Sheet1!G54+'Захтев за додатна сред.'!G54+Projekat!G54+Sheet2!G54 -> 0 | H54: =+Programska_aktivnost!H54+Sheet1!H54+'Захтев за додатна сред.'!H54+Projekat!H54+Sheet2!H54 -> 0 | I54: =+Programska_aktivnost!I54+Sheet1!I54+'Захтев за додатна сред.'!I54+Projekat!I54+Sheet2!I54 -> 0 | J54: =+Programska_aktivnost!J54+Sheet1!J54+'Захтев за додатна сред.'!J54+Projekat!J54+Sheet2!J54 -> 0 | K54: =+Programska_aktivnost!K54+Sheet1!K54+'Захтев за додатна сред.'!K54+Projekat!K54+Sheet2!K54 -> 0 | L54: =+Programska_aktivnost!L54+Sheet1!L54+'Захтев за додатна сред.'!L54+Projekat!L54+Sheet2!L54 -> 0 | M54: =+Programska_aktivnost!M54+Sheet1!M54+'Захтев за додатна сред.'!M54+Projekat!M54+Sheet2!M54 -> 0 | N54: =SUM(H54,J54,L54) -> 0 | O54: =SUM(I54,K54,M54) -> 0 | Y54: 0
A55: =A54+1 -> 8 | B55: 700000 | C55: ТЕКУЋИ ПРИХОДИ (9 + 32 + 44 + 69 + 74 +78) | D55: =+Programska_aktivnost!D55+Sheet1!D55+'Захтев за додатна сред.'!D55+Projekat!D55+Sheet2!D55 -> 151754000 | E55: =+Programska_aktivnost!E55+Sheet1!E55+'Захтев за додатна сред.'!E55+Projekat!E55+Sheet2!E55 -> 12343000 | F55: =+Programska_aktivnost!F55+Sheet1!F55+'Захтев за додатна сред.'!F55+Projekat!F55+Sheet2!F55 -> 170977000 | G55: =+Programska_aktivnost!G55+Sheet1!G55+'Захтев за додатна сред.'!G55+Projekat!G55+Sheet2!G55 -> 12368000 | H55: =+Programska_aktivnost!H55+Sheet1!H55+'Захтев за додатна сред.'!H55+Projekat!H55+Sheet2!H55 -> 202171000 | I55: =+Programska_aktivnost!I55+Sheet1!I55+'Захтев за додатна сред.'!I55+Projekat!I55+Sheet2!I55 -> 2600000 | J55: =+Programska_aktivnost!J55+Sheet1!J55+'Захтев за додатна сред.'!J55+Projekat!J55+Sheet2!J55 -> 180321000 | K55: =+Programska_aktivnost!K55+Sheet1!K55+'Захтев за додатна сред.'!K55+Projekat!K55+Sheet2!K55 -> 2800000 | L55: =+Programska_aktivnost!L55+Sheet1!L55+'Захтев за додатна сред.'!L55+Projekat!L55+Sheet2!L55 -> 186833000 | M55: =+Programska_aktivnost!M55+Sheet1!M55+'Захтев за додатна сред.'!M55+Projekat!M55+Sheet2!M55 -> 2900000 | N55: =N56+N79+N91+N116+N121+N125 -> 569325000 | O55: =O56+O79+O91+O116+O121+O125 -> 8300000 | Y55: =SUM(D55:O55) -> 1502692000
A56: =A55+1 -> 9 | B56: 710000 | C56: ПОРЕЗИ (10 + 14 + 16 + 23 + 29) | D56: =+Programska_aktivnost!D56+Sheet1!D56+'Захтев за додатна сред.'!D56+Projekat!D56+Sheet2!D56 -> 0 | E56: =+Programska_aktivnost!E56+Sheet1!E56+'Захтев за додатна сред.'!E56+Projekat!E56+Sheet2!E56 -> 0 | F56: =+Programska_aktivnost!F56+Sheet1!F56+'Захтев за додатна сред.'!F56+Projekat!F56+Sheet2!F56 -> 0 | G56: =+Programska_aktivnost!G56+Sheet1!G56+'Захтев за додатна сред.'!G56+Projekat!G56+Sheet2!G56 -> 0 | H56: =+Programska_aktivnost!H56+Sheet1!H56+'Захтев за додатна сред.'!H56+Projekat!H56+Sheet2!H56 -> 0 | I56: =+Programska_aktivnost!I56+Sheet1!I56+'Захтев за додатна сред.'!I56+Projekat!I56+Sheet2!I56 -> 0 | J56: =+Programska_aktivnost!J56+Sheet1!J56+'Захтев за додатна сред.'!J56+Projekat!J56+Sheet2!J56 -> 0 | K56: =+Programska_aktivnost!K56+Sheet1!K56+'Захтев за додатна сред.'!K56+Projekat!K56+Sheet2!K56 -> 0 | L56: =+Programska_aktivnost!L56+Sheet1!L56+'Захтев за додатна сред.'!L56+Projekat!L56+Sheet2!L56 -> 0 | M56: =+Programska_aktivnost!M56+Sheet1!M56+'Захтев за додатна сред.'!M56+Projekat!M56+Sheet2!M56 -> 0 | N56: =N57+N61+N63+N70+N76 -> 0 | O56: =O57+O61+O63+O70+O76 -> 0 | Y56: =SUM(D56:O56) -> 0
A57: 10 | B57: 711000 | C57: ПОРЕЗ НА ДОХОДАК, ДОБИТ И КАПИТАЛНЕ ДОБИТКЕ (од 11 до 13) | D57: =+Programska_aktivnost!D57+Sheet1!D57+'Захтев за додатна сред.'!D57+Projekat!D57+Sheet2!D57 -> 0 | E57: =+Programska_aktivnost!E57+Sheet1!E57+'Захтев за додатна сред.'!E57+Projekat!E57+Sheet2!E57 -> 0 | F57: =+Programska_aktivnost!F57+Sheet1!F57+'Захтев за додатна сред.'!F57+Projekat!F57+Sheet2!F57 -> 0 | G57: =+Programska_aktivnost!G57+Sheet1!G57+'Захтев за додатна сред.'!G57+Projekat!G57+Sheet2!G57 -> 0 | H57: =+Programska_aktivnost!H57+Sheet1!H57+'Захтев за додатна сред.'!H57+Projekat!H57+Sheet2!H57 -> 0 | I57: =+Programska_aktivnost!I57+Sheet1!I57+'Захтев за додатна сред.'!I57+Projekat!I57+Sheet2!I57 -> 0 | J57: =+Programska_aktivnost!J57+Sheet1!J57+'Захтев за додатна сред.'!J57+Projekat!J57+Sheet2!J57 -> 0 | K57: =+Programska_aktivnost!K57+Sheet1!K57+'Захтев за додатна сред.'!K57+Projekat!K57+Sheet2!K57 -> 0 | L57: =+Programska_aktivnost!L57+Sheet1!L57+'Захтев за додатна сред.'!L57+Projekat!L57+Sheet2!L57 -> 0 | M57: =+Programska_aktivnost!M57+Sheet1!M57+'Захтев за додатна сред.'!M57+Projekat!M57+Sheet2!M57 -> 0 | N57: =SUM(H57,J57,L57) -> 0 | O57: 0 | Y57: 0
A58: 11 | B58: 711100 | C58: Порези на доходак и капиталнe добиткe које плаћају физичка лица | D58: =+Programska_aktivnost!D58+Sheet1!D58+'Захтев за додатна сред.'!D58+Projekat!D58+Sheet2!D58 -> 0 | E58: =+Programska_aktivnost!E58+Sheet1!E58+'Захтев за додатна сред.'!E58+Projekat!E58+Sheet2!E58 -> 0 | F58: =+Programska_aktivnost!F58+Sheet1!F58+'Захтев за додатна сред.'!F58+Projekat!F58+Sheet2!F58 -> 0 | G58: =+Programska_aktivnost!G58+Sheet1!G58+'Захтев за додатна сред.'!G58+Projekat!G58+Sheet2!G58 -> 0 | H58: =+Programska_aktivnost!H58+Sheet1!H58+'Захтев за додатна сред.'!H58+Projekat!H58+Sheet2!H58 -> 0 | I58: =+Programska_aktivnost!I58+Sheet1!I58+'Захтев за додатна сред.'!I58+Projekat!I58+Sheet2!I58 -> 0 | J58: =+Programska_aktivnost!J58+Sheet1!J58+'Захтев за додатна сред.'!J58+Projekat!J58+Sheet2!J58 -> 0 | K58: =+Programska_aktivnost!K58+Sheet1!K58+'Захтев за додатна сред.'!K58+Projekat!K58+Sheet2!K58 -> 0 | L58: =+Programska_aktivnost!L58+Sheet1!L58+'Захтев за додатна сред.'!L58+Projekat!L58+Sheet2!L58 -> 0 | M58: =+Programska_aktivnost!M58+Sheet1!M58+'Захтев за додатна сред.'!M58+Projekat!M58+Sheet2!M58 -> 0 | N58: =SUM(H58,J58,L58) -> 0 | O58: =SUM(I58,K58,M58) -> 0 | Y58: 0
A59: 12 | B59: 711200 | C59: Порези на добит и капиталне добитке које плаћају предузећа и друга правна лица | D59: =+Programska_aktivnost!D59+Sheet1!D59+'Захтев за додатна сред.'!D59+Projekat!D59+Sheet2!D59 -> 0 | E59: =+Programska_aktivnost!E59+Sheet1!E59+'Захтев за додатна сред.'!E59+Projekat!E59+Sheet2!E59 -> 0 | F59: =+Programska_aktivnost!F59+Sheet1!F59+'Захтев за додатна сред.'!F59+Projekat!F59+Sheet2!F59 -> 0 | G59: =+Programska_aktivnost!G59+Sheet1!G59+'Захтев за додатна сред.'!G59+Projekat!G59+Sheet2!G59 -> 0 | H59: =+Programska_aktivnost!H59+Sheet1!H59+'Захтев за додатна сред.'!H59+Projekat!H59+Sheet2!H59 -> 0 | I59: =+Programska_aktivnost!I59+Sheet1!I59+'Захтев за додатна сред.'!I59+Projekat!I59+Sheet2!I59 -> 0 | J59: =+Programska_aktivnost!J59+Sheet1!J59+'Захтев за додатна сред.'!J59+Projekat!J59+Sheet2!J59 -> 0 | K59: =+Programska_aktivnost!K59+Sheet1!K59+'Захтев за додатна сред.'!K59+Projekat!K59+Sheet2!K59 -> 0 | L59: =+Programska_aktivnost!L59+Sheet1!L59+'Захтев за додатна сред.'!L59+Projekat!L59+Sheet2!L59 -> 0 | M59: =+Programska_aktivnost!M59+Sheet1!M59+'Захтев за додатна сред.'!M59+Projekat!M59+Sheet2!M59 -> 0 | N59: 0 | O59: =SUM(I59,K59,M59) -> 0 | Y59: 0
A60: 13 | B60: 711300 | C60: Порези на доходак, добит и капиталне добитке који се не могу разврстати између физичких и правних лица | D60: =+Programska_aktivnost!D60+Sheet1!D60+'Захтев за додатна сред.'!D60+Projekat!D60+Sheet2!D60 -> 0 | E60: =+Programska_aktivnost!E60+Sheet1!E60+'Захтев за додатна сред.'!E60+Projekat!E60+Sheet2!E60 -> 0 | F60: =+Programska_aktivnost!F60+Sheet1!F60+'Захтев за додатна сред.'!F60+Projekat!F60+Sheet2!F60 -> 0 | G60: =+Programska_aktivnost!G60+Sheet1!G60+'Захтев за додатна сред.'!G60+Projekat!G60+Sheet2!G60 -> 0 | H60: =+Programska_aktivnost!H60+Sheet1!H60+'Захтев за додатна сред.'!H60+Projekat!H60+Sheet2!H60 -> 0 | I60: =+Programska_aktivnost!I60+Sheet1!I60+'Захтев за додатна сред.'!I60+Projekat!I60+Sheet2!I60 -> 0 | J60: =+Programska_aktivnost!J60+Sheet1!J60+'Захтев за додатна сред.'!J60+Projekat!J60+Sheet2!J60 -> 0 | K60: =+Programska_aktivnost!K60+Sheet1!K60+'Захтев за додатна сред.'!K60+Projekat!K60+Sheet2!K60 -> 0 | L60: =+Programska_aktivnost!L60+Sheet1!L60+'Захтев за додатна сред.'!L60+Projekat!L60+Sheet2!L60 -> 0 | M60: =+Programska_aktivnost!M60+Sheet1!M60+'Захтев за додатна сред.'!M60+Projekat!M60+Sheet2!M60 -> 0 | N60: 0 | O60: 0 | Y60: 0
A61: 14 | B61: 712000 | C61: ПОРЕЗ НА ФОНД ЗАРАДА (15) | D61: =+Programska_aktivnost!D61+Sheet1!D61+'Захтев за додатна сред.'!D61+Projekat!D61+Sheet2!D61 -> 0 | E61: =+Programska_aktivnost!E61+Sheet1!E61+'Захтев за додатна сред.'!E61+Projekat!E61+Sheet2!E61 -> 0 | F61: =+Programska_aktivnost!F61+Sheet1!F61+'Захтев за додатна сред.'!F61+Projekat!F61+Sheet2!F61 -> 0 | G61: =+Programska_aktivnost!G61+Sheet1!G61+'Захтев за додатна сред.'!G61+Projekat!G61+Sheet2!G61 -> 0 | H61: =+Programska_aktivnost!H61+Sheet1!H61+'Захтев за додатна сред.'!H61+Projekat!H61+Sheet2!H61 -> 0 | I61: =+Programska_aktivnost!I61+Sheet1!I61+'Захтев за додатна сред.'!I61+Projekat!I61+Sheet2!I61 -> 0 | J61: =+Programska_aktivnost!J61+Sheet1!J61+'Захтев за додатна сред.'!J61+Projekat!J61+Sheet2!J61 -> 0 | K61: =+Programska_aktivnost!K61+Sheet1!K61+'Захтев за додатна сред.'!K61+Projekat!K61+Sheet2!K61 -> 0 | L61: =+Programska_aktivnost!L61+Sheet1!L61+'Захтев за додатна сред.'!L61+Projekat!L61+Sheet2!L61 -> 0 | M61: =+Programska_aktivnost!M61+Sheet1!M61+'Захтев за додатна сред.'!M61+Projekat!M61+Sheet2!M61 -> 0 | N61: 0 | O61: 0 | Y61: 0
A62: 15 | B62: 712100 | C62: Порез на фонд зарада | D62: =+Programska_aktivnost!D62+Sheet1!D62+'Захтев за додатна сред.'!D62+Projekat!D62+Sheet2!D62 -> 0 | E62: =+Programska_aktivnost!E62+Sheet1!E62+'Захтев за додатна сред.'!E62+Projekat!E62+Sheet2!E62 -> 0 | F62: =+Programska_aktivnost!F62+Sheet1!F62+'Захтев за додатна сред.'!F62+Projekat!F62+Sheet2!F62 -> 0 | G62: =+Programska_aktivnost!G62+Sheet1!G62+'Захтев за додатна сред.'!G62+Projekat!G62+Sheet2!G62 -> 0 | H62: =+Programska_aktivnost!H62+Sheet1!H62+'Захтев за додатна сред.'!H62+Projekat!H62+Sheet2!H62 -> 0 | I62: =+Programska_aktivnost!I62+Sheet1!I62+'Захтев за додатна сред.'!I62+Projekat!I62+Sheet2!I62 -> 0 | J62: =+Programska_aktivnost!J62+Sheet1!J62+'Захтев за додатна сред.'!J62+Projekat!J62+Sheet2!J62 -> 0 | K62: =+Programska_aktivnost!K62+Sheet1!K62+'Захтев за додатна сред.'!K62+Projekat!K62+Sheet2!K62 -> 0 | L62: =+Programska_aktivnost!L62+Sheet1!L62+'Захтев за додатна сред.'!L62+Projekat!L62+Sheet2!L62 -> 0 | M62: =+Programska_aktivnost!M62+Sheet1!M62+'Захтев за додатна сред.'!M62+Projekat!M62+Sheet2!M62 -> 0 | N62: 0 | O62: 0 | Y62: 0
A63: 16 | B63: 713000 | C63: ПОРЕЗ НА ИМОВИНУ (од 17 до 22) | D63: =+Programska_aktivnost!D63+Sheet1!D63+'Захтев за додатна сред.'!D63+Projekat!D63+Sheet2!D63 -> 0 | E63: =+Programska_aktivnost!E63+Sheet1!E63+'Захтев за додатна сред.'!E63+Projekat!E63+Sheet2!E63 -> 0 | F63: =+Programska_aktivnost!F63+Sheet1!F63+'Захтев за додатна сред.'!F63+Projekat!F63+Sheet2!F63 -> 0 | G63: =+Programska_aktivnost!G63+Sheet1!G63+'Захтев за додатна сред.'!G63+Projekat!G63+Sheet2!G63 -> 0 | H63: =+Programska_aktivnost!H63+Sheet1!H63+'Захтев за додатна сред.'!H63+Projekat!H63+Sheet2!H63 -> 0 | I63: =+Programska_aktivnost!I63+Sheet1!I63+'Захтев за додатна сред.'!I63+Projekat!I63+Sheet2!I63 -> 0 | J63: =+Programska_aktivnost!J63+Sheet1!J63+'Захтев за додатна сред.'!J63+Projekat!J63+Sheet2!J63 -> 0 | K63: =+Programska_aktivnost!K63+Sheet1!K63+'Захтев за додатна сред.'!K63+Projekat!K63+Sheet2!K63 -> 0 | L63: =+Programska_aktivnost!L63+Sheet1!L63+'Захтев за додатна сред.'!L63+Projekat!L63+Sheet2!L63 -> 0 | M63: =+Programska_aktivnost!M63+Sheet1!M63+'Захтев за додатна сред.'!M63+Projekat!M63+Sheet2!M63 -> 0 | N63: 0 | O63: 0 | Y63: 0
A64: 17 | B64: 713100 | C64: Периодични порези на непокретности | D64: =+Programska_aktivnost!D64+Sheet1!D64+'Захтев за додатна сред.'!D64+Projekat!D64+Sheet2!D64 -> 0 | E64: =+Programska_aktivnost!E64+Sheet1!E64+'Захтев за додатна сред.'!E64+Projekat!E64+Sheet2!E64 -> 0 | F64: =+Programska_aktivnost!F64+Sheet1!F64+'Захтев за додатна сред.'!F64+Projekat!F64+Sheet2!F64 -> 0 | G64: =+Programska_aktivnost!G64+Sheet1!G64+'Захтев за додатна сред.'!G64+Projekat!G64+Sheet2!G64 -> 0 | H64: =+Programska_aktivnost!H64+Sheet1!H64+'Захтев за додатна сред.'!H64+Projekat!H64+Sheet2!H64 -> 0 | I64: =+Programska_aktivnost!I64+Sheet1!I64+'Захтев за додатна сред.'!I64+Projekat!I64+Sheet2!I64 -> 0 | J64: =+Programska_aktivnost!J64+Sheet1!J64+'Захтев за додатна сред.'!J64+Projekat!J64+Sheet2!J64 -> 0 | K64: =+Programska_aktivnost!K64+Sheet1!K64+'Захтев за додатна сред.'!K64+Projekat!K64+Sheet2!K64 -> 0 | L64: =+Programska_aktivnost!L64+Sheet1!L64+'Захтев за додатна сред.'!L64+Projekat!L64+Sheet2!L64 -> 0 | M64: =+Programska_aktivnost!M64+Sheet1!M64+'Захтев за додатна сред.'!M64+Projekat!M64+Sheet2!M64 -> 0 | N64: 0 | O64: 0 | Y64: 0
A65: 18 | B65: 713200 | C65: Периодични порези на нето имовину | D65: =+Programska_aktivnost!D65+Sheet1!D65+'Захтев за додатна сред.'!D65+Projekat!D65+Sheet2!D65 -> 0 | E65: =+Programska_aktivnost!E65+Sheet1!E65+'Захтев за додатна сред.'!E65+Projekat!E65+Sheet2!E65 -> 0 | F65: =+Programska_aktivnost!F65+Sheet1!F65+'Захтев за додатна сред.'!F65+Projekat!F65+Sheet2!F65 -> 0 | G65: =+Programska_aktivnost!G65+Sheet1!G65+'Захтев за додатна сред.'!G65+Projekat!G65+Sheet2!G65 -> 0 | H65: =+Programska_aktivnost!H65+Sheet1!H65+'Захтев за додатна сред.'!H65+Projekat!H65+Sheet2!H65 -> 0 | I65: =+Programska_aktivnost!I65+Sheet1!I65+'Захтев за додатна сред.'!I65+Projekat!I65+Sheet2!I65 -> 0 | J65: =+Programska_aktivnost!J65+Sheet1!J65+'Захтев за додатна сред.'!J65+Projekat!J65+Sheet2!J65 -> 0 | K65: =+Programska_aktivnost!K65+Sheet1!K65+'Захтев за додатна сред.'!K65+Projekat!K65+Sheet2!K65 -> 0 | L65: =+Programska_aktivnost!L65+Sheet1!L65+'Захтев за додатна сред.'!L65+Projekat!L65+Sheet2!L65 -> 0 | M65: =+Programska_aktivnost!M65+Sheet1!M65+'Захтев за додатна сред.'!M65+Projekat!M65+Sheet2!M65 -> 0 | N65: 0 | O65: 0 | Y65: 0
A66: 19 | B66: 713300 | C66: Порези на заоставштину, наслеђе и поклон | D66: =+Programska_aktivnost!D66+Sheet1!D66+'Захтев за додатна сред.'!D66+Projekat!D66+Sheet2!D66 -> 0 | E66: =+Programska_aktivnost!E66+Sheet1!E66+'Захтев за додатна сред.'!E66+Projekat!E66+Sheet2!E66 -> 0 | F66: =+Programska_aktivnost!F66+Sheet1!F66+'Захтев за додатна сред.'!F66+Projekat!F66+Sheet2!F66 -> 0 | G66: =+Programska_aktivnost!G66+Sheet1!G66+'Захтев за додатна сред.'!G66+Projekat!G66+Sheet2!G66 -> 0 | H66: =+Programska_aktivnost!H66+Sheet1!H66+'Захтев за додатна сред.'!H66+Projekat!H66+Sheet2!H66 -> 0 | I66: =+Programska_aktivnost!I66+Sheet1!I66+'Захтев за додатна сред.'!I66+Projekat!I66+Sheet2!I66 -> 0 | J66: =+Programska_aktivnost!J66+Sheet1!J66+'Захтев за додатна сред.'!J66+Projekat!J66+Sheet2!J66 -> 0 | K66: =+Programska_aktivnost!K66+Sheet1!K66+'Захтев за додатна сред.'!K66+Projekat!K66+Sheet2!K66 -> 0 | L66: =+Programska_aktivnost!L66+Sheet1!L66+'Захтев за додатна сред.'!L66+Projekat!L66+Sheet2!L66 -> 0 | M66: =+Programska_aktivnost!M66+Sheet1!M66+'Захтев за додатна сред.'!M66+Projekat!M66+Sheet2!M66 -> 0 | N66: 0 | O66: 0 | Y66: 0
A67: 20 | B67: 713400 | C67: Порези на финансијске и капиталне трансакције | D67: =+Programska_aktivnost!D67+Sheet1!D67+'Захтев за додатна сред.'!D67+Projekat!D67+Sheet2!D67 -> 0 | E67: =+Programska_aktivnost!E67+Sheet1!E67+'Захтев за додатна сред.'!E67+Projekat!E67+Sheet2!E67 -> 0 | F67: =+Programska_aktivnost!F67+Sheet1!F67+'Захтев за додатна сред.'!F67+Projekat!F67+Sheet2!F67 -> 0 | G67: =+Programska_aktivnost!G67+Sheet1!G67+'Захтев за додатна сред.'!G67+Projekat!G67+Sheet2!G67 -> 0 | H67: =+Programska_aktivnost!H67+Sheet1!H67+'Захтев за додатна сред.'!H67+Projekat!H67+Sheet2!H67 -> 0 | I67: =+Programska_aktivnost!I67+Sheet1!I67+'Захтев за додатна сред.'!I67+Projekat!I67+Sheet2!I67 -> 0 | J67: =+Programska_aktivnost!J67+Sheet1!J67+'Захтев за додатна сред.'!J67+Projekat!J67+Sheet2!J67 -> 0 | K67: =+Programska_aktivnost!K67+Sheet1!K67+'Захтев за додатна сред.'!K67+Projekat!K67+Sheet2!K67 -> 0 | L67: =+Programska_aktivnost!L67+Sheet1!L67+'Захтев за додатна сред.'!L67+Projekat!L67+Sheet2!L67 -> 0 | M67: =+Programska_aktivnost!M67+Sheet1!M67+'Захтев за додатна сред.'!M67+Projekat!M67+Sheet2!M67 -> 0 | N67: 0 | O67: 0 | Y67: 0
A68: 21 | B68: 713500 | C68: Други једнократни порези на имовину | D68: =+Programska_aktivnost!D68+Sheet1!D68+'Захтев за додатна сред.'!D68+Projekat!D68+Sheet2!D68 -> 0 | E68: =+Programska_aktivnost!E68+Sheet1!E68+'Захтев за додатна сред.'!E68+Projekat!E68+Sheet2!E68 -> 0 | F68: =+Programska_aktivnost!F68+Sheet1!F68+'Захтев за додатна сред.'!F68+Projekat!F68+Sheet2!F68 -> 0 | G68: =+Programska_aktivnost!G68+Sheet1!G68+'Захтев за додатна сред.'!G68+Projekat!G68+Sheet2!G68 -> 0 | H68: =+Programska_aktivnost!H68+Sheet1!H68+'Захтев за додатна сред.'!H68+Projekat!H68+Sheet2!H68 -> 0 | I68: =+Programska_aktivnost!I68+Sheet1!I68+'Захтев за додатна сред.'!I68+Projekat!I68+Sheet2!I68 -> 0 | J68: =+Programska_aktivnost!J68+Sheet1!J68+'Захтев за додатна сред.'!J68+Projekat!J68+Sheet2!J68 -> 0 | K68: =+Programska_aktivnost!K68+Sheet1!K68+'Захтев за додатна сред.'!K68+Projekat!K68+Sheet2!K68 -> 0 | L68: =+Programska_aktivnost!L68+Sheet1!L68+'Захтев за додатна сред.'!L68+Projekat!L68+Sheet2!L68 -> 0 | M68: =+Programska_aktivnost!M68+Sheet1!M68+'Захтев за додатна сред.'!M68+Projekat!M68+Sheet2!M68 -> 0 | N68: 0 | O68: 0 | Y68: 0
A69: 22 | B69: 713600 | C69: Други периодични порези на имовину | D69: =+Programska_aktivnost!D69+Sheet1!D69+'Захтев за додатна сред.'!D69+Projekat!D69+Sheet2!D69 -> 0 | E69: =+Programska_aktivnost!E69+Sheet1!E69+'Захтев за додатна сред.'!E69+Projekat!E69+Sheet2!E69 -> 0 | F69: =+Programska_aktivnost!F69+Sheet1!F69+'Захтев за додатна сред.'!F69+Projekat!F69+Sheet2!F69 -> 0 | G69: =+Programska_aktivnost!G69+Sheet1!G69+'Захтев за додатна сред.'!G69+Projekat!G69+Sheet2!G69 -> 0 | H69: =+Programska_aktivnost!H69+Sheet1!H69+'Захтев за додатна сред.'!H69+Projekat!H69+Sheet2!H69 -> 0 | I69: =+Programska_aktivnost!I69+Sheet1!I69+'Захтев за додатна сред.'!I69+Projekat!I69+Sheet2!I69 -> 0 | J69: =+Programska_aktivnost!J69+Sheet1!J69+'Захтев за додатна сред.'!J69+Projekat!J69+Sheet2!J69 -> 0 | K69: =+Programska_aktivnost!K69+Sheet1!K69+'Захтев за додатна сред.'!K69+Projekat!K69+Sheet2!K69 -> 0 | L69: =+Programska_aktivnost!L69+Sheet1!L69+'Захтев за додатна сред.'!L69+Projekat!L69+Sheet2!L69 -> 0 | M69: =+Programska_aktivnost!M69+Sheet1!M69+'Захтев за додатна сред.'!M69+Projekat!M69+Sheet2!M69 -> 0 | N69: 0 | O69: 0 | Y69: 0
A70: 23 | B70: 714000 | C70: ПОРЕЗ НА ДОБРА И УСЛУГЕ (од 24 до 28) | D70: =+Programska_aktivnost!D70+Sheet1!D70+'Захтев за додатна сред.'!D70+Projekat!D70+Sheet2!D70 -> 0 | E70: =+Programska_aktivnost!E70+Sheet1!E70+'Захтев за додатна сред.'!E70+Projekat!E70+Sheet2!E70 -> 0 | F70: =+Programska_aktivnost!F70+Sheet1!F70+'Захтев за додатна сред.'!F70+Projekat!F70+Sheet2!F70 -> 0 | G70: =+Programska_aktivnost!G70+Sheet1!G70+'Захтев за додатна сред.'!G70+Projekat!G70+Sheet2!G70 -> 0 | H70: =+Programska_aktivnost!H70+Sheet1!H70+'Захтев за додатна сред.'!H70+Projekat!H70+Sheet2!H70 -> 0 | I70: =+Programska_aktivnost!I70+Sheet1!I70+'Захтев за додатна сред.'!I70+Projekat!I70+Sheet2!I70 -> 0 | J70: =+Programska_aktivnost!J70+Sheet1!J70+'Захтев за додатна сред.'!J70+Projekat!J70+Sheet2!J70 -> 0 | K70: =+Programska_aktivnost!K70+Sheet1!K70+'Захтев за додатна сред.'!K70+Projekat!K70+Sheet2!K70 -> 0 | L70: =+Programska_aktivnost!L70+Sheet1!L70+'Захтев за додатна сред.'!L70+Projekat!L70+Sheet2!L70 -> 0 | M70: =+Programska_aktivnost!M70+Sheet1!M70+'Захтев за додатна сред.'!M70+Projekat!M70+Sheet2!M70 -> 0 | N70: 0 | O70: 0 | Y70: 0
A71: 24 | B71: 714100 | C71: Општи порези на добра и услуге | D71: =+Programska_aktivnost!D71+Sheet1!D71+'Захтев за додатна сред.'!D71+Projekat!D71+Sheet2!D71 -> 0 | E71: =+Programska_aktivnost!E71+Sheet1!E71+'Захтев за додатна сред.'!E71+Projekat!E71+Sheet2!E71 -> 0 | F71: =+Programska_aktivnost!F71+Sheet1!F71+'Захтев за додатна сред.'!F71+Projekat!F71+Sheet2!F71 -> 0 | G71: =+Programska_aktivnost!G71+Sheet1!G71+'Захтев за додатна сред.'!G71+Projekat!G71+Sheet2!G71 -> 0 | H71: =+Programska_aktivnost!H71+Sheet1!H71+'Захтев за додатна сред.'!H71+Projekat!H71+Sheet2!H71 -> 0 | I71: =+Programska_aktivnost!I71+Sheet1!I71+'Захтев за додатна сред.'!I71+Projekat!I71+Sheet2!I71 -> 0 | J71: =+Programska_aktivnost!J71+Sheet1!J71+'Захтев за додатна сред.'!J71+Projekat!J71+Sheet2!J71 -> 0 | K71: =+Programska_aktivnost!K71+Sheet1!K71+'Захтев за додатна сред.'!K71+Projekat!K71+Sheet2!K71 -> 0 | L71: =+Programska_aktivnost!L71+Sheet1!L71+'Захтев за додатна сред.'!L71+Projekat!L71+Sheet2!L71 -> 0 | M71: =+Programska_aktivnost!M71+Sheet1!M71+'Захтев за додатна сред.'!M71+Projekat!M71+Sheet2!M71 -> 0 | N71: 0 | O71: 0 | Y71: 0
A72: 25 | B72: 714300 | C72: Добит фискалних монопола | D72: =+Programska_aktivnost!D72+Sheet1!D72+'Захтев за додатна сред.'!D72+Projekat!D72+Sheet2!D72 -> 0 | E72: =+Programska_aktivnost!E72+Sheet1!E72+'Захтев за додатна сред.'!E72+Projekat!E72+Sheet2!E72 -> 0 | F72: =+Programska_aktivnost!F72+Sheet1!F72+'Захтев за додатна сред.'!F72+Projekat!F72+Sheet2!F72 -> 0 | G72: =+Programska_aktivnost!G72+Sheet1!G72+'Захтев за додатна сред.'!G72+Projekat!G72+Sheet2!G72 -> 0 | H72: =+Programska_aktivnost!H72+Sheet1!H72+'Захтев за додатна сред.'!H72+Projekat!H72+Sheet2!H72 -> 0 | I72: =+Programska_aktivnost!I72+Sheet1!I72+'Захтев за додатна сред.'!I72+Projekat!I72+Sheet2!I72 -> 0 | J72: =+Programska_aktivnost!J72+Sheet1!J72+'Захтев за додатна сред.'!J72+Projekat!J72+Sheet2!J72 -> 0 | K72: =+Programska_aktivnost!K72+Sheet1!K72+'Захтев за додатна сред.'!K72+Projekat!K72+Sheet2!K72 -> 0 | L72: =+Programska_aktivnost!L72+Sheet1!L72+'Захтев за додатна сред.'!L72+Projekat!L72+Sheet2!L72 -> 0 | M72: =+Programska_aktivnost!M72+Sheet1!M72+'Захтев за додатна сред.'!M72+Projekat!M72+Sheet2!M72 -> 0 | N72: 0 | O72: 0 | Y72: 0
A73: 26 | B73: 714400 | C73: Порези на појединачне услуге | D73: =+Programska_aktivnost!D73+Sheet1!D73+'Захтев за додатна сред.'!D73+Projekat!D73+Sheet2!D73 -> 0 | E73: =+Programska_aktivnost!E73+Sheet1!E73+'Захтев за додатна сред.'!E73+Projekat!E73+Sheet2!E73 -> 0 | F73: =+Programska_aktivnost!F73+Sheet1!F73+'Захтев за додатна сред.'!F73+Projekat!F73+Sheet2!F73 -> 0 | G73: =+Programska_aktivnost!G73+Sheet1!G73+'Захтев за додатна сред.'!G73+Projekat!G73+Sheet2!G73 -> 0 | H73: =+Programska_aktivnost!H73+Sheet1!H73+'Захтев за додатна сред.'!H73+Projekat!H73+Sheet2!H73 -> 0 | I73: =+Programska_aktivnost!I73+Sheet1!I73+'Захтев за додатна сред.'!I73+Projekat!I73+Sheet2!I73 -> 0 | J73: =+Programska_aktivnost!J73+Sheet1!J73+'Захтев за додатна сред.'!J73+Projekat!J73+Sheet2!J73 -> 0 | K73: =+Programska_aktivnost!K73+Sheet1!K73+'Захтев за додатна сред.'!K73+Projekat!K73+Sheet2!K73 -> 0 | L73: =+Programska_aktivnost!L73+Sheet1!L73+'Захтев за додатна сред.'!L73+Projekat!L73+Sheet2!L73 -> 0 | M73: =+Programska_aktivnost!M73+Sheet1!M73+'Захтев за додатна сред.'!M73+Projekat!M73+Sheet2!M73 -> 0 | N73: 0 | O73: 0 | Y73: 0
A74: 27 | B74: 714500 | C74: Порези, таксе и накнаде на употребу добара, на дозволу да се добра употребљавају или делатности обављају | D74: =+Programska_aktivnost!D74+Sheet1!D74+'Захтев за додатна сред.'!D74+Projekat!D74+Sheet2!D74 -> 0 | E74: =+Programska_aktivnost!E74+Sheet1!E74+'Захтев за додатна сред.'!E74+Projekat!E74+Sheet2!E74 -> 0 | F74: =+Programska_aktivnost!F74+Sheet1!F74+'Захтев за додатна сред.'!F74+Projekat!F74+Sheet2!F74 -> 0 | G74: =+Programska_aktivnost!G74+Sheet1!G74+'Захтев за додатна сред.'!G74+Projekat!G74+Sheet2!G74 -> 0 | H74: =+Programska_aktivnost!H74+Sheet1!H74+'Захтев за додатна сред.'!H74+Projekat!H74+Sheet2!H74 -> 0 | I74: =+Programska_aktivnost!I74+Sheet1!I74+'Захтев за додатна сред.'!I74+Projekat!I74+Sheet2!I74 -> 0 | J74: =+Programska_aktivnost!J74+Sheet1!J74+'Захтев за додатна сред.'!J74+Projekat!J74+Sheet2!J74 -> 0 | K74: =+Programska_aktivnost!K74+Sheet1!K74+'Захтев за додатна сред.'!K74+Projekat!K74+Sheet2!K74 -> 0 | L74: =+Programska_aktivnost!L74+Sheet1!L74+'Захтев за додатна сред.'!L74+Projekat!L74+Sheet2!L74 -> 0 | M74: =+Programska_aktivnost!M74+Sheet1!M74+'Захтев за додатна сред.'!M74+Projekat!M74+Sheet2!M74 -> 0 | N74: 0 | O74: 0 | Y74: 0
A75: 28 | B75: 714600 | C75: Други порези на добра и услуге | D75: =+Programska_aktivnost!D75+Sheet1!D75+'Захтев за додатна сред.'!D75+Projekat!D75+Sheet2!D75 -> 0 | E75: =+Programska_aktivnost!E75+Sheet1!E75+'Захтев за додатна сред.'!E75+Projekat!E75+Sheet2!E75 -> 0 | F75: =+Programska_aktivnost!F75+Sheet1!F75+'Захтев за додатна сред.'!F75+Projekat!F75+Sheet2!F75 -> 0 | G75: =+Programska_aktivnost!G75+Sheet1!G75+'Захтев за додатна сред.'!G75+Projekat!G75+Sheet2!G75 -> 0 | H75: =+Programska_aktivnost!H75+Sheet1!H75+'Захтев за додатна сред.'!H75+Projekat!H75+Sheet2!H75 -> 0 | I75: =+Programska_aktivnost!I75+Sheet1!I75+'Захтев за додатна сред.'!I75+Projekat!I75+Sheet2!I75 -> 0 | J75: =+Programska_aktivnost!J75+Sheet1!J75+'Захтев за додатна сред.'!J75+Projekat!J75+Sheet2!J75 -> 0 | K75: =+Programska_aktivnost!K75+Sheet1!K75+'Захтев за додатна сред.'!K75+Projekat!K75+Sheet2!K75 -> 0 | L75: =+Programska_aktivnost!L75+Sheet1!L75+'Захтев за додатна сред.'!L75+Projekat!L75+Sheet2!L75 -> 0 | M75: =+Programska_aktivnost!M75+Sheet1!M75+'Захтев за додатна сред.'!M75+Projekat!M75+Sheet2!M75 -> 0 | N75: 0 | O75: 0 | Y75: 0
A76: 29 | B76: 716000 | C76: ДРУГИ ПОРЕЗИ (30 + 31) | D76: =+Programska_aktivnost!D76+Sheet1!D76+'Захтев за додатна сред.'!D76+Projekat!D76+Sheet2!D76 -> 0 | E76: =+Programska_aktivnost!E76+Sheet1!E76+'Захтев за додатна сред.'!E76+Projekat!E76+Sheet2!E76 -> 0 | F76: =+Programska_aktivnost!F76+Sheet1!F76+'Захтев за додатна сред.'!F76+Projekat!F76+Sheet2!F76 -> 0 | G76: =+Programska_aktivnost!G76+Sheet1!G76+'Захтев за додатна сред.'!G76+Projekat!G76+Sheet2!G76 -> 0 | H76: =+Programska_aktivnost!H76+Sheet1!H76+'Захтев за додатна сред.'!H76+Projekat!H76+Sheet2!H76 -> 0 | I76: =+Programska_aktivnost!I76+Sheet1!I76+'Захтев за додатна сред.'!I76+Projekat!I76+Sheet2!I76 -> 0 | J76: =+Programska_aktivnost!J76+Sheet1!J76+'Захтев за додатна сред.'!J76+Projekat!J76+Sheet2!J76 -> 0 | K76: =+Programska_aktivnost!K76+Sheet1!K76+'Захтев за додатна сред.'!K76+Projekat!K76+Sheet2!K76 -> 0 | L76: =+Programska_aktivnost!L76+Sheet1!L76+'Захтев за додатна сред.'!L76+Projekat!L76+Sheet2!L76 -> 0 | M76: =+Programska_aktivnost!M76+Sheet1!M76+'Захтев за додатна сред.'!M76+Projekat!M76+Sheet2!M76 -> 0 | N76: 0 | O76: 0 | Y76: 0
A77: 30 | B77: 716100 | C77: Други порези које искључиво плаћају предузећа, односно предузетници | D77: =+Programska_aktivnost!D77+Sheet1!D77+'Захтев за додатна сред.'!D77+Projekat!D77+Sheet2!D77 -> 0 | E77: =+Programska_aktivnost!E77+Sheet1!E77+'Захтев за додатна сред.'!E77+Projekat!E77+Sheet2!E77 -> 0 | F77: =+Programska_aktivnost!F77+Sheet1!F77+'Захтев за додатна сред.'!F77+Projekat!F77+Sheet2!F77 -> 0 | G77: =+Programska_aktivnost!G77+Sheet1!G77+'Захтев за додатна сред.'!G77+Projekat!G77+Sheet2!G77 -> 0 | H77: =+Programska_aktivnost!H77+Sheet1!H77+'Захтев за додатна сред.'!H77+Projekat!H77+Sheet2!H77 -> 0 | I77: =+Programska_aktivnost!I77+Sheet1!I77+'Захтев за додатна сред.'!I77+Projekat!I77+Sheet2!I77 -> 0 | J77: =+Programska_aktivnost!J77+Sheet1!J77+'Захтев за додатна сред.'!J77+Projekat!J77+Sheet2!J77 -> 0 | K77: =+Programska_aktivnost!K77+Sheet1!K77+'Захтев за додатна сред.'!K77+Projekat!K77+Sheet2!K77 -> 0 | L77: =+Programska_aktivnost!L77+Sheet1!L77+'Захтев за додатна сред.'!L77+Projekat!L77+Sheet2!L77 -> 0 | M77: =+Programska_aktivnost!M77+Sheet1!M77+'Захтев за додатна сред.'!M77+Projekat!M77+Sheet2!M77 -> 0 | N77: 0 | O77: 0 | Y77: 0
A78: 31 | B78: 716200 | C78: Други порези које плаћају остала лица или који се не могу идентификовати | D78: =+Programska_aktivnost!D78+Sheet1!D78+'Захтев за додатна сред.'!D78+Projekat!D78+Sheet2!D78 -> 0 | E78: =+Programska_aktivnost!E78+Sheet1!E78+'Захтев за додатна сред.'!E78+Projekat!E78+Sheet2!E78 -> 0 | F78: =+Programska_aktivnost!F78+Sheet1!F78+'Захтев за додатна сред.'!F78+Projekat!F78+Sheet2!F78 -> 0 | G78: =+Programska_aktivnost!G78+Sheet1!G78+'Захтев за додатна сред.'!G78+Projekat!G78+Sheet2!G78 -> 0 | H78: =+Programska_aktivnost!H78+Sheet1!H78+'Захтев за додатна сред.'!H78+Projekat!H78+Sheet2!H78 -> 0 | I78: =+Programska_aktivnost!I78+Sheet1!I78+'Захтев за додатна сред.'!I78+Projekat!I78+Sheet2!I78 -> 0 | J78: =+Programska_aktivnost!J78+Sheet1!J78+'Захтев за додатна сред.'!J78+Projekat!J78+Sheet2!J78 -> 0 | K78: =+Programska_aktivnost!K78+Sheet1!K78+'Захтев за додатна сред.'!K78+Projekat!K78+Sheet2!K78 -> 0 | L78: =+Programska_aktivnost!L78+Sheet1!L78+'Захтев за додатна сред.'!L78+Projekat!L78+Sheet2!L78 -> 0 | M78: =+Programska_aktivnost!M78+Sheet1!M78+'Захтев за додатна сред.'!M78+Projekat!M78+Sheet2!M78 -> 0 | N78: 0 | O78: 0 | Y78: 0
A79: 32 | B79: 730000 | C79: ДОНАЦИЈЕ, ПОМОЋИ И ТРАНСФЕРИ (33 + 36 + 41) | D79: =+Programska_aktivnost!D79+Sheet1!D79+'Захтев за додатна сред.'!D79+Projekat!D79+Sheet2!D79 -> 0 | E79: =+Programska_aktivnost!E79+Sheet1!E79+'Захтев за додатна сред.'!E79+Projekat!E79+Sheet2!E79 -> 11580000 | F79: =+Programska_aktivnost!F79+Sheet1!F79+'Захтев за додатна сред.'!F79+Projekat!F79+Sheet2!F79 -> 0 | G79: =+Programska_aktivnost!G79+Sheet1!G79+'Захтев за додатна сред.'!G79+Projekat!G79+Sheet2!G79 -> 11700000 | H79: =+Programska_aktivnost!H79+Sheet1!H79+'Захтев за додатна сред.'!H79+Projekat!H79+Sheet2!H79 -> 0 | I79: =+Programska_aktivnost!I79+Sheet1!I79+'Захтев за додатна сред.'!I79+Projekat!I79+Sheet2!I79 -> 2600000 | J79: =+Programska_aktivnost!J79+Sheet1!J79+'Захтев за додатна сред.'!J79+Projekat!J79+Sheet2!J79 -> 0 | K79: =+Programska_aktivnost!K79+Sheet1!K79+'Захтев за додатна сред.'!K79+Projekat!K79+Sheet2!K79 -> 2800000 | L79: =+Programska_aktivnost!L79+Sheet1!L79+'Захтев за додатна сред.'!L79+Projekat!L79+Sheet2!L79 -> 0 | M79: =+Programska_aktivnost!M79+Sheet1!M79+'Захтев за додатна сред.'!M79+Projekat!M79+Sheet2!M79 -> 2900000 | N79: 0 | O79: 8300000 | Y79: 39880000
A80: 33 | B80: 731000 | C80: ДОНАЦИЈЕ ОД ИНОСТРАНИХ ДРЖАВА (34 + 35) | D80: =+Programska_aktivnost!D80+Sheet1!D80+'Захтев за додатна сред.'!D80+Projekat!D80+Sheet2!D80 -> 0 | E80: =+Programska_aktivnost!E80+Sheet1!E80+'Захтев за додатна сред.'!E80+Projekat!E80+Sheet2!E80 -> 0 | F80: =+Programska_aktivnost!F80+Sheet1!F80+'Захтев за додатна сред.'!F80+Projekat!F80+Sheet2!F80 -> 0 | G80: =+Programska_aktivnost!G80+Sheet1!G80+'Захтев за додатна сред.'!G80+Projekat!G80+Sheet2!G80 -> 0 | H80: =+Programska_aktivnost!H80+Sheet1!H80+'Захтев за додатна сред.'!H80+Projekat!H80+Sheet2!H80 -> 0 | I80: =+Programska_aktivnost!I80+Sheet1!I80+'Захтев за додатна сред.'!I80+Projekat!I80+Sheet2!I80 -> 0 | J80: =+Programska_aktivnost!J80+Sheet1!J80+'Захтев за додатна сред.'!J80+Projekat!J80+Sheet2!J80 -> 0 | K80: =+Programska_aktivnost!K80+Sheet1!K80+'Захтев за додатна сред.'!K80+Projekat!K80+Sheet2!K80 -> 0 | L80: =+Programska_aktivnost!L80+Sheet1!L80+'Захтев за додатна сред.'!L80+Projekat!L80+Sheet2!L80 -> 0 | M80: =+Programska_aktivnost!M80+Sheet1!M80+'Захтев за додатна сред.'!M80+Projekat!M80+Sheet2!M80 -> 0 | N80: 0 | O80: 0 | Y80: 0
A81: 34 | B81: 731100 | C81: Текуће донације од иностраних држава | D81: =+Programska_aktivnost!D81+Sheet1!D81+'Захтев за додатна сред.'!D81+Projekat!D81+Sheet2!D81 -> 0 | E81: =+Programska_aktivnost!E81+Sheet1!E81+'Захтев за додатна сред.'!E81+Projekat!E81+Sheet2!E81 -> 0 | F81: =+Programska_aktivnost!F81+Sheet1!F81+'Захтев за додатна сред.'!F81+Projekat!F81+Sheet2!F81 -> 0 | G81: =+Programska_aktivnost!G81+Sheet1!G81+'Захтев за додатна сред.'!G81+Projekat!G81+Sheet2!G81 -> 0 | H81: =+Programska_aktivnost!H81+Sheet1!H81+'Захтев за додатна сред.'!H81+Projekat!H81+Sheet2!H81 -> 0 | I81: =+Programska_aktivnost!I81+Sheet1!I81+'Захтев за додатна сред.'!I81+Projekat!I81+Sheet2!I81 -> 0 | J81: =+Programska_aktivnost!J81+Sheet1!J81+'Захтев за додатна сред.'!J81+Projekat!J81+Sheet2!J81 -> 0 | K81: =+Programska_aktivnost!K81+Sheet1!K81+'Захтев за додатна сред.'!K81+Projekat!K81+Sheet2!K81 -> 0 | L81: =+Programska_aktivnost!L81+Sheet1!L81+'Захтев за додатна сред.'!L81+Projekat!L81+Sheet2!L81 -> 0 | M81: =+Programska_aktivnost!M81+Sheet1!M81+'Захтев за додатна сред.'!M81+Projekat!M81+Sheet2!M81 -> 0 | N81: 0 | O81: 0 | Y81: 0
A82: 35 | B82: 731200 | C82: Капиталне донације од иностраних држава | D82: =+Programska_aktivnost!D82+Sheet1!D82+'Захтев за додатна сред.'!D82+Projekat!D82+Sheet2!D82 -> 0 | E82: =+Programska_aktivnost!E82+Sheet1!E82+'Захтев за додатна сред.'!E82+Projekat!E82+Sheet2!E82 -> 0 | F82: =+Programska_aktivnost!F82+Sheet1!F82+'Захтев за додатна сред.'!F82+Projekat!F82+Sheet2!F82 -> 0 | G82: =+Programska_aktivnost!G82+Sheet1!G82+'Захтев за додатна сред.'!G82+Projekat!G82+Sheet2!G82 -> 0 | H82: =+Programska_aktivnost!H82+Sheet1!H82+'Захтев за додатна сред.'!H82+Projekat!H82+Sheet2!H82 -> 0 | I82: =+Programska_aktivnost!I82+Sheet1!I82+'Захтев за додатна сред.'!I82+Projekat!I82+Sheet2!I82 -> 0 | J82: =+Programska_aktivnost!J82+Sheet1!J82+'Захтев за додатна сред.'!J82+Projekat!J82+Sheet2!J82 -> 0 | K82: =+Programska_aktivnost!K82+Sheet1!K82+'Захтев за додатна сред.'!K82+Projekat!K82+Sheet2!K82 -> 0 | L82: =+Programska_aktivnost!L82+Sheet1!L82+'Захтев за додатна сред.'!L82+Projekat!L82+Sheet2!L82 -> 0 | M82: =+Programska_aktivnost!M82+Sheet1!M82+'Захтев за додатна сред.'!M82+Projekat!M82+Sheet2!M82 -> 0 | N82: 0 | O82: 0 | Y82: 0
A83: 36 | B83: 732000 | C83: ДОНАЦИЈЕ И ПОМОЋИ ОД МЕЂУНАРОДНИХ ОРГАНИЗАЦИЈА (од 37 до 40) | D83: =+Programska_aktivnost!D83+Sheet1!D83+'Захтев за додатна сред.'!D83+Projekat!D83+Sheet2!D83 -> 0 | E83: =+Programska_aktivnost!E83+Sheet1!E83+'Захтев за додатна сред.'!E83+Projekat!E83+Sheet2!E83 -> 0 | F83: =+Programska_aktivnost!F83+Sheet1!F83+'Захтев за додатна сред.'!F83+Projekat!F83+Sheet2!F83 -> 0 | G83: =+Programska_aktivnost!G83+Sheet1!G83+'Захтев за додатна сред.'!G83+Projekat!G83+Sheet2!G83 -> 0 | H83: =+Programska_aktivnost!H83+Sheet1!H83+'Захтев за додатна сред.'!H83+Projekat!H83+Sheet2!H83 -> 0 | I83: =+Programska_aktivnost!I83+Sheet1!I83+'Захтев за додатна сред.'!I83+Projekat!I83+Sheet2!I83 -> 0 | J83: =+Programska_aktivnost!J83+Sheet1!J83+'Захтев за додатна сред.'!J83+Projekat!J83+Sheet2!J83 -> 0 | K83: =+Programska_aktivnost!K83+Sheet1!K83+'Захтев за додатна сред.'!K83+Projekat!K83+Sheet2!K83 -> 0 | L83: =+Programska_aktivnost!L83+Sheet1!L83+'Захтев за додатна сред.'!L83+Projekat!L83+Sheet2!L83 -> 0 | M83: =+Programska_aktivnost!M83+Sheet1!M83+'Захтев за додатна сред.'!M83+Projekat!M83+Sheet2!M83 -> 0 | N83: 0 | O83: 0 | Y83: 0
A84: 37 | B84: 732100 | C84: Текуће донације од међународних организација | D84: =+Programska_aktivnost!D84+Sheet1!D84+'Захтев за додатна сред.'!D84+Projekat!D84+Sheet2!D84 -> 0 | E84: =+Programska_aktivnost!E84+Sheet1!E84+'Захтев за додатна сред.'!E84+Projekat!E84+Sheet2!E84 -> 0 | F84: =+Programska_aktivnost!F84+Sheet1!F84+'Захтев за додатна сред.'!F84+Projekat!F84+Sheet2!F84 -> 0 | G84: =+Programska_aktivnost!G84+Sheet1!G84+'Захтев за додатна сред.'!G84+Projekat!G84+Sheet2!G84 -> 0 | H84: =+Programska_aktivnost!H84+Sheet1!H84+'Захтев за додатна сред.'!H84+Projekat!H84+Sheet2!H84 -> 0 | I84: =+Programska_aktivnost!I84+Sheet1!I84+'Захтев за додатна сред.'!I84+Projekat!I84+Sheet2!I84 -> 0 | J84: =+Programska_aktivnost!J84+Sheet1!J84+'Захтев за додатна сред.'!J84+Projekat!J84+Sheet2!J84 -> 0 | K84: =+Programska_aktivnost!K84+Sheet1!K84+'Захтев за додатна сред.'!K84+Projekat!K84+Sheet2!K84 -> 0 | L84: =+Programska_aktivnost!L84+Sheet1!L84+'Захтев за додатна сред.'!L84+Projekat!L84+Sheet2!L84 -> 0 | M84: =+Programska_aktivnost!M84+Sheet1!M84+'Захтев за додатна сред.'!M84+Projekat!M84+Sheet2!M84 -> 0 | N84: 0 | O84: 0 | Y84: 0
A85: 38 | B85: 732200 | C85: Капиталне донације од међународних организација | D85: =+Programska_aktivnost!D85+Sheet1!D85+'Захтев за додатна сред.'!D85+Projekat!D85+Sheet2!D85 -> 0 | E85: =+Programska_aktivnost!E85+Sheet1!E85+'Захтев за додатна сред.'!E85+Projekat!E85+Sheet2!E85 -> 0 | F85: =+Programska_aktivnost!F85+Sheet1!F85+'Захтев за додатна сред.'!F85+Projekat!F85+Sheet2!F85 -> 0 | G85: =+Programska_aktivnost!G85+Sheet1!G85+'Захтев за додатна сред.'!G85+Projekat!G85+Sheet2!G85 -> 0 | H85: =+Programska_aktivnost!H85+Sheet1!H85+'Захтев за додатна сред.'!H85+Projekat!H85+Sheet2!H85 -> 0 | I85: =+Programska_aktivnost!I85+Sheet1!I85+'Захтев за додатна сред.'!I85+Projekat!I85+Sheet2!I85 -> 0 | J85: =+Programska_aktivnost!J85+Sheet1!J85+'Захтев за додатна сред.'!J85+Projekat!J85+Sheet2!J85 -> 0 | K85: =+Programska_aktivnost!K85+Sheet1!K85+'Захтев за додатна сред.'!K85+Projekat!K85+Sheet2!K85 -> 0 | L85: =+Programska_aktivnost!L85+Sheet1!L85+'Захтев за додатна сред.'!L85+Projekat!L85+Sheet2!L85 -> 0 | M85: =+Programska_aktivnost!M85+Sheet1!M85+'Захтев за додатна сред.'!M85+Projekat!M85+Sheet2!M85 -> 0 | N85: 0 | O85: 0 | Y85: 0
A86: 39 | B86: 732300 | C86: Текуће помоћи од ЕУ | D86: =+Programska_aktivnost!D86+Sheet1!D86+'Захтев за додатна сред.'!D86+Projekat!D86+Sheet2!D86 -> 0 | E86: =+Programska_aktivnost!E86+Sheet1!E86+'Захтев за додатна сред.'!E86+Projekat!E86+Sheet2!E86 -> 0 | F86: =+Programska_aktivnost!F86+Sheet1!F86+'Захтев за додатна сред.'!F86+Projekat!F86+Sheet2!F86 -> 0 | G86: =+Programska_aktivnost!G86+Sheet1!G86+'Захтев за додатна сред.'!G86+Projekat!G86+Sheet2!G86 -> 0 | H86: =+Programska_aktivnost!H86+Sheet1!H86+'Захтев за додатна сред.'!H86+Projekat!H86+Sheet2!H86 -> 0 | I86: =+Programska_aktivnost!I86+Sheet1!I86+'Захтев за додатна сред.'!I86+Projekat!I86+Sheet2!I86 -> 0 | J86: =+Programska_aktivnost!J86+Sheet1!J86+'Захтев за додатна сред.'!J86+Projekat!J86+Sheet2!J86 -> 0 | K86: =+Programska_aktivnost!K86+Sheet1!K86+'Захтев за додатна сред.'!K86+Projekat!K86+Sheet2!K86 -> 0 | L86: =+Programska_aktivnost!L86+Sheet1!L86+'Захтев за додатна сред.'!L86+Projekat!L86+Sheet2!L86 -> 0 | M86: =+Programska_aktivnost!M86+Sheet1!M86+'Захтев за додатна сред.'!M86+Projekat!M86+Sheet2!M86 -> 0 | N86: 0 | O86: 0 | Y86: 0
A87: 40 | B87: 732400 | C87: Капиталне помоћи од ЕУ | D87: =+Programska_aktivnost!D87+Sheet1!D87+'Захтев за додатна сред.'!D87+Projekat!D87+Sheet2!D87 -> 0 | E87: =+Programska_aktivnost!E87+Sheet1!E87+'Захтев за додатна сред.'!E87+Projekat!E87+Sheet2!E87 -> 0 | F87: =+Programska_aktivnost!F87+Sheet1!F87+'Захтев за додатна сред.'!F87+Projekat!F87+Sheet2!F87 -> 0 | G87: =+Programska_aktivnost!G87+Sheet1!G87+'Захтев за додатна сред.'!G87+Projekat!G87+Sheet2!G87 -> 0 | H87: =+Programska_aktivnost!H87+Sheet1!H87+'Захтев за додатна сред.'!H87+Projekat!H87+Sheet2!H87 -> 0 | I87: =+Programska_aktivnost!I87+Sheet1!I87+'Захтев за додатна сред.'!I87+Projekat!I87+Sheet2!I87 -> 0 | J87: =+Programska_aktivnost!J87+Sheet1!J87+'Захтев за додатна сред.'!J87+Projekat!J87+Sheet2!J87 -> 0 | K87: =+Programska_aktivnost!K87+Sheet1!K87+'Захтев за додатна сред.'!K87+Projekat!K87+Sheet2!K87 -> 0 | L87: =+Programska_aktivnost!L87+Sheet1!L87+'Захтев за додатна сред.'!L87+Projekat!L87+Sheet2!L87 -> 0 | M87: =+Programska_aktivnost!M87+Sheet1!M87+'Захтев за додатна сред.'!M87+Projekat!M87+Sheet2!M87 -> 0 | N87: 0 | O87: 0 | Y87: 0
A88: 41 | B88: 733000 | C88: ТРАНСФЕРИ ОД ДРУГИХ НИВОА ВЛАСТИ (42 + 43) | D88: =+Programska_aktivnost!D88+Sheet1!D88+'Захтев за додатна сред.'!D88+Projekat!D88+Sheet2!D88 -> 0 | E88: =+Programska_aktivnost!E88+Sheet1!E88+'Захтев за додатна сред.'!E88+Projekat!E88+Sheet2!E88 -> 11580000 | F88: =+Programska_aktivnost!F88+Sheet1!F88+'Захтев за додатна сред.'!F88+Projekat!F88+Sheet2!F88 -> 0 | G88: =+Programska_aktivnost!G88+Sheet1!G88+'Захтев за додатна сред.'!G88+Projekat!G88+Sheet2!G88 -> 11700000 | H88: =+Programska_aktivnost!H88+Sheet1!H88+'Захтев за додатна сред.'!H88+Projekat!H88+Sheet2!H88 -> 0 | I88: =+Programska_aktivnost!I88+Sheet1!I88+'Захтев за додатна сред.'!I88+Projekat!I88+Sheet2!I88 -> 2600000 | J88: =+Programska_aktivnost!J88+Sheet1!J88+'Захтев за додатна сред.'!J88+Projekat!J88+Sheet2!J88 -> 0 | K88: =+Programska_aktivnost!K88+Sheet1!K88+'Захтев за додатна сред.'!K88+Projekat!K88+Sheet2!K88 -> 2800000 | L88: =+Programska_aktivnost!L88+Sheet1!L88+'Захтев за додатна сред.'!L88+Projekat!L88+Sheet2!L88 -> 0 | M88: =+Programska_aktivnost!M88+Sheet1!M88+'Захтев за додатна сред.'!M88+Projekat!M88+Sheet2!M88 -> 2900000 | N88: =SUM(H88,J88,L88) -> 0 | O88: 8300000 | Y88: 39880000
A89: 42 | B89: 733100 | C89: Текући трансфери од других нивоа власти | D89: =+Programska_aktivnost!D89+Sheet1!D89+'Захтев за додатна сред.'!D89+Projekat!D89+Sheet2!D89 -> 0 | E89: =+Programska_aktivnost!E89+Sheet1!E89+'Захтев за додатна сред.'!E89+Projekat!E89+Sheet2!E89 -> 11580000 | F89: =+Programska_aktivnost!F89+Sheet1!F89+'Захтев за додатна сред.'!F89+Projekat!F89+Sheet2!F89 -> 0 | G89: =+Programska_aktivnost!G89+Sheet1!G89+'Захтев за додатна сред.'!G89+Projekat!G89+Sheet2!G89 -> 11700000 | H89: =+Programska_aktivnost!H89+Sheet1!H89+'Захтев за додатна сред.'!H89+Projekat!H89+Sheet2!H89 -> 0 | I89: =+Programska_aktivnost!I89+Sheet1!I89+'Захтев за додатна сред.'!I89+Projekat!I89+Sheet2!I89 -> 2600000 | J89: =+Programska_aktivnost!J89+Sheet1!J89+'Захтев за додатна сред.'!J89+Projekat!J89+Sheet2!J89 -> 0 | K89: =+Programska_aktivnost!K89+Sheet1!K89+'Захтев за додатна сред.'!K89+Projekat!K89+Sheet2!K89 -> 2800000 | L89: =+Programska_aktivnost!L89+Sheet1!L89+'Захтев за додатна сред.'!L89+Projekat!L89+Sheet2!L89 -> 0 | M89: =+Programska_aktivnost!M89+Sheet1!M89+'Захтев за додатна сред.'!M89+Projekat!M89+Sheet2!M89 -> 2900000 | N89: 0 | O89: 8300000 | Y89: 39880000
A90: 43 | B90: 733200 | C90: Капитални трансфери од других нивоа власти | D90: =+Programska_aktivnost!D90+Sheet1!D90+'Захтев за додатна сред.'!D90+Projekat!D90+Sheet2!D90 -> 0 | E90: =+Programska_aktivnost!E90+Sheet1!E90+'Захтев за додатна сред.'!E90+Projekat!E90+Sheet2!E90 -> 0 | F90: =+Programska_aktivnost!F90+Sheet1!F90+'Захтев за додатна сред.'!F90+Projekat!F90+Sheet2!F90 -> 0 | G90: =+Programska_aktivnost!G90+Sheet1!G90+'Захтев за додатна сред.'!G90+Projekat!G90+Sheet2!G90 -> 0 | H90: =+Programska_aktivnost!H90+Sheet1!H90+'Захтев за додатна сред.'!H90+Projekat!H90+Sheet2!H90 -> 0 | I90: =+Programska_aktivnost!I90+Sheet1!I90+'Захтев за додатна сред.'!I90+Projekat!I90+Sheet2!I90 -> 0 | J90: =+Programska_aktivnost!J90+Sheet1!J90+'Захтев за додатна сред.'!J90+Projekat!J90+Sheet2!J90 -> 0 | K90: =+Programska_aktivnost!K90+Sheet1!K90+'Захтев за додатна сред.'!K90+Projekat!K90+Sheet2!K90 -> 0 | L90: =+Programska_aktivnost!L90+Sheet1!L90+'Захтев за додатна сред.'!L90+Projekat!L90+Sheet2!L90 -> 0 | M90: =+Programska_aktivnost!M90+Sheet1!M90+'Захтев за додатна сред.'!M90+Projekat!M90+Sheet2!M90 -> 0 | N90: 0 | O90: 0 | Y90: 0
A91: 44 | B91: 740000 | C91: ДРУГИ ПРИХОДИ (45 + 52 + 57 + 64 + 67) | D91: =+Programska_aktivnost!D91+Sheet1!D91+'Захтев за додатна сред.'!D91+Projekat!D91+Sheet2!D91 -> 0 | E91: =+Programska_aktivnost!E91+Sheet1!E91+'Захтев за додатна сред.'!E91+Projekat!E91+Sheet2!E91 -> 0 | F91: =+Programska_aktivnost!F91+Sheet1!F91+'Захтев за додатна сред.'!F91+Projekat!F91+Sheet2!F91 -> 0 | G91: =+Programska_aktivnost!G91+Sheet1!G91+'Захтев за додатна сред.'!G91+Projekat!G91+Sheet2!G91 -> 0 | H91: =+Programska_aktivnost!H91+Sheet1!H91+'Захтев за додатна сред.'!H91+Projekat!H91+Sheet2!H91 -> 0 | I91: =+Programska_aktivnost!I91+Sheet1!I91+'Захтев за додатна сред.'!I91+Projekat!I91+Sheet2!I91 -> 0 | J91: =+Programska_aktivnost!J91+Sheet1!J91+'Захтев за додатна сред.'!J91+Projekat!J91+Sheet2!J91 -> 0 | K91: =+Programska_aktivnost!K91+Sheet1!K91+'Захтев за додатна сред.'!K91+Projekat!K91+Sheet2!K91 -> 0 | L91: =+Programska_aktivnost!L91+Sheet1!L91+'Захтев за додатна сред.'!L91+Projekat!L91+Sheet2!L91 -> 0 | M91: =+Programska_aktivnost!M91+Sheet1!M91+'Захтев за додатна сред.'!M91+Projekat!M91+Sheet2!M91 -> 0 | N91: 0 | O91: 0 | Y91: 0
A92: 45 | B92: 741000 | C92: ПРИХОДИ ОД ИМОВИНЕ (од 46 до 51) | D92: =+Programska_aktivnost!D92+Sheet1!D92+'Захтев за додатна сред.'!D92+Projekat!D92+Sheet2!D92 -> 0 | E92: =+Programska_aktivnost!E92+Sheet1!E92+'Захтев за додатна сред.'!E92+Projekat!E92+Sheet2!E92 -> 0 | F92: =+Programska_aktivnost!F92+Sheet1!F92+'Захтев за додатна сред.'!F92+Projekat!F92+Sheet2!F92 -> 0 | G92: =+Programska_aktivnost!G92+Sheet1!G92+'Захтев за додатна сред.'!G92+Projekat!G92+Sheet2!G92 -> 0 | H92: =+Programska_aktivnost!H92+Sheet1!H92+'Захтев за додатна сред.'!H92+Projekat!H92+Sheet2!H92 -> 0 | I92: =+Programska_aktivnost!I92+Sheet1!I92+'Захтев за додатна сред.'!I92+Projekat!I92+Sheet2!I92 -> 0 | J92: =+Programska_aktivnost!J92+Sheet1!J92+'Захтев за додатна сред.'!J92+Projekat!J92+Sheet2!J92 -> 0 | K92: =+Programska_aktivnost!K92+Sheet1!K92+'Захтев за додатна сред.'!K92+Projekat!K92+Sheet2!K92 -> 0 | L92: =+Programska_aktivnost!L92+Sheet1!L92+'Захтев за додатна сред.'!L92+Projekat!L92+Sheet2!L92 -> 0 | M92: =+Programska_aktivnost!M92+Sheet1!M92+'Захтев за додатна сред.'!M92+Projekat!M92+Sheet2!M92 -> 0 | N92: 0 | O92: 0 | Y92: 0
A93: 46 | B93: 741100 | C93: Камате | D93: =+Programska_aktivnost!D93+Sheet1!D93+'Захтев за додатна сред.'!D93+Projekat!D93+Sheet2!D93 -> 0 | E93: =+Programska_aktivnost!E93+Sheet1!E93+'Захтев за додатна сред.'!E93+Projekat!E93+Sheet2!E93 -> 0 | F93: =+Programska_aktivnost!F93+Sheet1!F93+'Захтев за додатна сред.'!F93+Projekat!F93+Sheet2!F93 -> 0 | G93: =+Programska_aktivnost!G93+Sheet1!G93+'Захтев за додатна сред.'!G93+Projekat!G93+Sheet2!G93 -> 0 | H93: =+Programska_aktivnost!H93+Sheet1!H93+'Захтев за додатна сред.'!H93+Projekat!H93+Sheet2!H93 -> 0 | I93: =+Programska_aktivnost!I93+Sheet1!I93+'Захтев за додатна сред.'!I93+Projekat!I93+Sheet2!I93 -> 0 | J93: =+Programska_aktivnost!J93+Sheet1!J93+'Захтев за додатна сред.'!J93+Projekat!J93+Sheet2!J93 -> 0 | K93: =+Programska_aktivnost!K93+Sheet1!K93+'Захтев за додатна сред.'!K93+Projekat!K93+Sheet2!K93 -> 0 | L93: =+Programska_aktivnost!L93+Sheet1!L93+'Захтев за додатна сред.'!L93+Projekat!L93+Sheet2!L93 -> 0 | M93: =+Programska_aktivnost!M93+Sheet1!M93+'Захтев за додатна сред.'!M93+Projekat!M93+Sheet2!M93 -> 0 | N93: 0 | O93: 0 | Y93: 0
A94: 47 | B94: 741200 | C94: Дивиденде | D94: =+Programska_aktivnost!D94+Sheet1!D94+'Захтев за додатна сред.'!D94+Projekat!D94+Sheet2!D94 -> 0 | E94: =+Programska_aktivnost!E94+Sheet1!E94+'Захтев за додатна сред.'!E94+Projekat!E94+Sheet2!E94 -> 0 | F94: =+Programska_aktivnost!F94+Sheet1!F94+'Захтев за додатна сред.'!F94+Projekat!F94+Sheet2!F94 -> 0 | G94: =+Programska_aktivnost!G94+Sheet1!G94+'Захтев за додатна сред.'!G94+Projekat!G94+Sheet2!G94 -> 0 | H94: =+Programska_aktivnost!H94+Sheet1!H94+'Захтев за додатна сред.'!H94+Projekat!H94+Sheet2!H94 -> 0 | I94: =+Programska_aktivnost!I94+Sheet1!I94+'Захтев за додатна сред.'!I94+Projekat!I94+Sheet2!I94 -> 0 | J94: =+Programska_aktivnost!J94+Sheet1!J94+'Захтев за додатна сред.'!J94+Projekat!J94+Sheet2!J94 -> 0 | K94: =+Programska_aktivnost!K94+Sheet1!K94+'Захтев за додатна сред.'!K94+Projekat!K94+Sheet2!K94 -> 0 | L94: =+Programska_aktivnost!L94+Sheet1!L94+'Захтев за додатна сред.'!L94+Projekat!L94+Sheet2!L94 -> 0 | M94: =+Programska_aktivnost!M94+Sheet1!M94+'Захтев за додатна сред.'!M94+Projekat!M94+Sheet2!M94 -> 0 | N94: 0 | O94: 0 | Y94: 0
A95: 48 | B95: 741300 | C95: Повлачење прихода од квази корпорација | D95: =+Programska_aktivnost!D95+Sheet1!D95+'Захтев за додатна сред.'!D95+Projekat!D95+Sheet2!D95 -> 0 | E95: =+Programska_aktivnost!E95+Sheet1!E95+'Захтев за додатна сред.'!E95+Projekat!E95+Sheet2!E95 -> 0 | F95: =+Programska_aktivnost!F95+Sheet1!F95+'Захтев за додатна сред.'!F95+Projekat!F95+Sheet2!F95 -> 0 | G95: =+Programska_aktivnost!G95+Sheet1!G95+'Захтев за додатна сред.'!G95+Projekat!G95+Sheet2!G95 -> 0 | H95: =+Programska_aktivnost!H95+Sheet1!H95+'Захтев за додатна сред.'!H95+Projekat!H95+Sheet2!H95 -> 0 | I95: =+Programska_aktivnost!I95+Sheet1!I95+'Захтев за додатна сред.'!I95+Projekat!I95+Sheet2!I95 -> 0 | J95: =+Programska_aktivnost!J95+Sheet1!J95+'Захтев за додатна сред.'!J95+Projekat!J95+Sheet2!J95 -> 0 | K95: =+Programska_aktivnost!K95+Sheet1!K95+'Захтев за додатна сред.'!K95+Projekat!K95+Sheet2!K95 -> 0 | L95: =+Programska_aktivnost!L95+Sheet1!L95+'Захтев за додатна сред.'!L95+Projekat!L95+Sheet2!L95 -> 0 | M95: =+Programska_aktivnost!M95+Sheet1!M95+'Захтев за додатна сред.'!M95+Projekat!M95+Sheet2!M95 -> 0 | N95: 0 | O95: 0 | Y95: 0
A96: 49 | B96: 741400 | C96: Приход од имовине који припада имаоцима полиса осигурања | D96: =+Programska_aktivnost!D96+Sheet1!D96+'Захтев за додатна сред.'!D96+Projekat!D96+Sheet2!D96 -> 0 | E96: =+Programska_aktivnost!E96+Sheet1!E96+'Захтев за додатна сред.'!E96+Projekat!E96+Sheet2!E96 -> 0 | F96: =+Programska_aktivnost!F96+Sheet1!F96+'Захтев за додатна сред.'!F96+Projekat!F96+Sheet2!F96 -> 0 | G96: =+Programska_aktivnost!G96+Sheet1!G96+'Захтев за додатна сред.'!G96+Projekat!G96+Sheet2!G96 -> 0 | H96: =+Programska_aktivnost!H96+Sheet1!H96+'Захтев за додатна сред.'!H96+Projekat!H96+Sheet2!H96 -> 0 | I96: =+Programska_aktivnost!I96+Sheet1!I96+'Захтев за додатна сред.'!I96+Projekat!I96+Sheet2!I96 -> 0 | J96: =+Programska_aktivnost!J96+Sheet1!J96+'Захтев за додатна сред.'!J96+Projekat!J96+Sheet2!J96 -> 0 | K96: =+Programska_aktivnost!K96+Sheet1!K96+'Захтев за додатна сред.'!K96+Projekat!K96+Sheet2!K96 -> 0 | L96: =+Programska_aktivnost!L96+Sheet1!L96+'Захтев за додатна сред.'!L96+Projekat!L96+Sheet2!L96 -> 0 | M96: =+Programska_aktivnost!M96+Sheet1!M96+'Захтев за додатна сред.'!M96+Projekat!M96+Sheet2!M96 -> 0 | N96: 0 | O96: 0 | Y96: 0
A97: 50 | B97: 741500 | C97: Закуп непроизведене имовине | D97: =+Programska_aktivnost!D97+Sheet1!D97+'Захтев за додатна сред.'!D97+Projekat!D97+Sheet2!D97 -> 0 | E97: =+Programska_aktivnost!E97+Sheet1!E97+'Захтев за додатна сред.'!E97+Projekat!E97+Sheet2!E97 -> 0 | F97: =+Programska_aktivnost!F97+Sheet1!F97+'Захтев за додатна сред.'!F97+Projekat!F97+Sheet2!F97 -> 0 | G97: =+Programska_aktivnost!G97+Sheet1!G97+'Захтев за додатна сред.'!G97+Projekat!G97+Sheet2!G97 -> 0 | H97: =+Programska_aktivnost!H97+Sheet1!H97+'Захтев за додатна сред.'!H97+Projekat!H97+Sheet2!H97 -> 0 | I97: =+Programska_aktivnost!I97+Sheet1!I97+'Захтев за додатна сред.'!I97+Projekat!I97+Sheet2!I97 -> 0 | J97: =+Programska_aktivnost!J97+Sheet1!J97+'Захтев за додатна сред.'!J97+Projekat!J97+Sheet2!J97 -> 0 | K97: =+Programska_aktivnost!K97+Sheet1!K97+'Захтев за додатна сред.'!K97+Projekat!K97+Sheet2!K97 -> 0 | L97: =+Programska_aktivnost!L97+Sheet1!L97+'Захтев за додатна сред.'!L97+Projekat!L97+Sheet2!L97 -> 0 | M97: =+Programska_aktivnost!M97+Sheet1!M97+'Захтев за додатна сред.'!M97+Projekat!M97+Sheet2!M97 -> 0 | N97: 0 | O97: 0 | Y97: 0
A98: 51 | B98: 741600 | C98: Финансијске промене на финансијским лизинзима | D98: =+Programska_aktivnost!D98+Sheet1!D98+'Захтев за додатна сред.'!D98+Projekat!D98+Sheet2!D98 -> 0 | E98: =+Programska_aktivnost!E98+Sheet1!E98+'Захтев за додатна сред.'!E98+Projekat!E98+Sheet2!E98 -> 0 | F98: =+Programska_aktivnost!F98+Sheet1!F98+'Захтев за додатна сред.'!F98+Projekat!F98+Sheet2!F98 -> 0 | G98: =+Programska_aktivnost!G98+Sheet1!G98+'Захтев за додатна сред.'!G98+Projekat!G98+Sheet2!G98 -> 0 | H98: =+Programska_aktivnost!H98+Sheet1!H98+'Захтев за додатна сред.'!H98+Projekat!H98+Sheet2!H98 -> 0 | I98: =+Programska_aktivnost!I98+Sheet1!I98+'Захтев за додатна сред.'!I98+Projekat!I98+Sheet2!I98 -> 0 | J98: =+Programska_aktivnost!J98+Sheet1!J98+'Захтев за додатна сред.'!J98+Projekat!J98+Sheet2!J98 -> 0 | K98: =+Programska_aktivnost!K98+Sheet1!K98+'Захтев за додатна сред.'!K98+Projekat!K98+Sheet2!K98 -> 0 | L98: =+Programska_aktivnost!L98+Sheet1!L98+'Захтев за додатна сред.'!L98+Projekat!L98+Sheet2!L98 -> 0 | M98: =+Programska_aktivnost!M98+Sheet1!M98+'Захтев за додатна сред.'!M98+Projekat!M98+Sheet2!M98 -> 0 | N98: 0 | O98: 0 | Y98: 0
A99: 52 | B99: 742000 | C99: ПРИХОДИ ОД ПРОДАЈЕ ДОБАРА И УСЛУГА (од 53 до 56) | D99: =+Programska_aktivnost!D99+Sheet1!D99+'Захтев за додатна сред.'!D99+Projekat!D99+Sheet2!D99 -> 0 | E99: =+Programska_aktivnost!E99+Sheet1!E99+'Захтев за додатна сред.'!E99+Projekat!E99+Sheet2!E99 -> 0 | F99: =+Programska_aktivnost!F99+Sheet1!F99+'Захтев за додатна сред.'!F99+Projekat!F99+Sheet2!F99 -> 0 | G99: =+Programska_aktivnost!G99+Sheet1!G99+'Захтев за додатна сред.'!G99+Projekat!G99+Sheet2!G99 -> 0 | H99: =+Programska_aktivnost!H99+Sheet1!H99+'Захтев за додатна сред.'!H99+Projekat!H99+Sheet2!H99 -> 0 | I99: =+Programska_aktivnost!I99+Sheet1!I99+'Захтев за додатна сред.'!I99+Projekat!I99+Sheet2!I99 -> 0 | J99: =+Programska_aktivnost!J99+Sheet1!J99+'Захтев за додатна сред.'!J99+Projekat!J99+Sheet2!J99 -> 0 | K99: =+Programska_aktivnost!K99+Sheet1!K99+'Захтев за додатна сред.'!K99+Projekat!K99+Sheet2!K99 -> 0 | L99: =+Programska_aktivnost!L99+Sheet1!L99+'Захтев за додатна сред.'!L99+Projekat!L99+Sheet2!L99 -> 0 | M99: =+Programska_aktivnost!M99+Sheet1!M99+'Захтев за додатна сред.'!M99+Projekat!M99+Sheet2!M99 -> 0 | N99: 0 | O99: 0 | Y99: 0
A100: 53 | B100: 742100 | C100: Приходи од продаје добара и услуга или закупа од стране тржишних организација | D100: =+Programska_aktivnost!D100+Sheet1!D100+'Захтев за додатна сред.'!D100+Projekat!D100+Sheet2!D100 -> 0 | E100: =+Programska_aktivnost!E100+Sheet1!E100+'Захтев за додатна сред.'!E100+Projekat!E100+Sheet2!E100 -> 0 | F100: =+Programska_aktivnost!F100+Sheet1!F100+'Захтев за додатна сред.'!F100+Projekat!F100+Sheet2!F100 -> 0 | G100: =+Programska_aktivnost!G100+Sheet1!G100+'Захтев за додатна сред.'!G100+Projekat!G100+Sheet2!G100 -> 0 | H100: =+Programska_aktivnost!H100+Sheet1!H100+'Захтев за додатна сред.'!H100+Projekat!H100+Sheet2!H100 -> 0 | I100: =+Programska_aktivnost!I100+Sheet1!I100+'Захтев за додатна сред.'!I100+Projekat!I100+Sheet2!I100 -> 0 | J100: =+Programska_aktivnost!J100+Sheet1!J100+'Захтев за додатна сред.'!J100+Projekat!J100+Sheet2!J100 -> 0 | K100: =+Programska_aktivnost!K100+Sheet1!K100+'Захтев за додатна сред.'!K100+Projekat!K100+Sheet2!K100 -> 0 | L100: =+Programska_aktivnost!L100+Sheet1!L100+'Захтев за додатна сред.'!L100+Projekat!L100+Sheet2!L100 -> 0 | M100: =+Programska_aktivnost!M100+Sheet1!M100+'Захтев за додатна сред.'!M100+Projekat!M100+Sheet2!M100 -> 0 | N100: 0 | O100: 0 | Y100: 0
A101: 54 | B101: 742200 | C101: Таксе и накнаде | D101: =+Programska_aktivnost!D101+Sheet1!D101+'Захтев за додатна сред.'!D101+Projekat!D101+Sheet2!D101 -> 0 | E101: =+Programska_aktivnost!E101+Sheet1!E101+'Захтев за додатна сред.'!E101+Projekat!E101+Sheet2!E101 -> 0 | F101: =+Programska_aktivnost!F101+Sheet1!F101+'Захтев за додатна сред.'!F101+Projekat!F101+Sheet2!F101 -> 0 | G101: =+Programska_aktivnost!G101+Sheet1!G101+'Захтев за додатна сред.'!G101+Projekat!G101+Sheet2!G101 -> 0 | H101: =+Programska_aktivnost!H101+Sheet1!H101+'Захтев за додатна сред.'!H101+Projekat!H101+Sheet2!H101 -> 0 | I101: =+Programska_aktivnost!I101+Sheet1!I101+'Захтев за додатна сред.'!I101+Projekat!I101+Sheet2!I101 -> 0 | J101: =+Programska_aktivnost!J101+Sheet1!J101+'Захтев за додатна сред.'!J101+Projekat!J101+Sheet2!J101 -> 0 | K101: =+Programska_aktivnost!K101+Sheet1!K101+'Захтев за додатна сред.'!K101+Projekat!K101+Sheet2!K101 -> 0 | L101: =+Programska_aktivnost!L101+Sheet1!L101+'Захтев за додатна сред.'!L101+Projekat!L101+Sheet2!L101 -> 0 | M101: =+Programska_aktivnost!M101+Sheet1!M101+'Захтев за додатна сред.'!M101+Projekat!M101+Sheet2!M101 -> 0 | N101: 0 | O101: 0 | Y101: 0
A102: 55 | B102: 742300 | C102: Споредне продаје добара и услуга које врше државне нетржишне јединице | D102: =+Programska_aktivnost!D102+Sheet1!D102+'Захтев за додатна сред.'!D102+Projekat!D102+Sheet2!D102 -> 0 | E102: =+Programska_aktivnost!E102+Sheet1!E102+'Захтев за додатна сред.'!E102+Projekat!E102+Sheet2!E102 -> 0 | F102: =+Programska_aktivnost!F102+Sheet1!F102+'Захтев за додатна сред.'!F102+Projekat!F102+Sheet2!F102 -> 0 | G102: =+Programska_aktivnost!G102+Sheet1!G102+'Захтев за додатна сред.'!G102+Projekat!G102+Sheet2!G102 -> 0 | H102: =+Programska_aktivnost!H102+Sheet1!H102+'Захтев за додатна сред.'!H102+Projekat!H102+Sheet2!H102 -> 0 | I102: =+Programska_aktivnost!I102+Sheet1!I102+'Захтев за додатна сред.'!I102+Projekat!I102+Sheet2!I102 -> 0 | J102: =+Programska_aktivnost!J102+Sheet1!J102+'Захтев за додатна сред.'!J102+Projekat!J102+Sheet2!J102 -> 0 | K102: =+Programska_aktivnost!K102+Sheet1!K102+'Захтев за додатна сред.'!K102+Projekat!K102+Sheet2!K102 -> 0 | L102: =+Programska_aktivnost!L102+Sheet1!L102+'Захтев за додатна сред.'!L102+Projekat!L102+Sheet2!L102 -> 0 | M102: =+Programska_aktivnost!M102+Sheet1!M102+'Захтев за додатна сред.'!M102+Projekat!M102+Sheet2!M102 -> 0 | N102: 0 | O102: 0 | Y102: 0
A103: 56 | B103: 742400 | C103: Импутиране продаје добара и услуга | D103: =+Programska_aktivnost!D103+Sheet1!D103+'Захтев за додатна сред.'!D103+Projekat!D103+Sheet2!D103 -> 0 | E103: =+Programska_aktivnost!E103+Sheet1!E103+'Захтев за додатна сред.'!E103+Projekat!E103+Sheet2!E103 -> 0 | F103: =+Programska_aktivnost!F103+Sheet1!F103+'Захтев за додатна сред.'!F103+Projekat!F103+Sheet2!F103 -> 0 | G103: =+Programska_aktivnost!G103+Sheet1!G103+'Захтев за додатна сред.'!G103+Projekat!G103+Sheet2!G103 -> 0 | H103: =+Programska_aktivnost!H103+Sheet1!H103+'Захтев за додатна сред.'!H103+Projekat!H103+Sheet2!H103 -> 0 | I103: =+Programska_aktivnost!I103+Sheet1!I103+'Захтев за додатна сред.'!I103+Projekat!I103+Sheet2!I103 -> 0 | J103: =+Programska_aktivnost!J103+Sheet1!J103+'Захтев за додатна сред.'!J103+Projekat!J103+Sheet2!J103 -> 0 | K103: =+Programska_aktivnost!K103+Sheet1!K103+'Захтев за додатна сред.'!K103+Projekat!K103+Sheet2!K103 -> 0 | L103: =+Programska_aktivnost!L103+Sheet1!L103+'Захтев за додатна сред.'!L103+Projekat!L103+Sheet2!L103 -> 0 | M103: =+Programska_aktivnost!M103+Sheet1!M103+'Захтев за додатна сред.'!M103+Projekat!M103+Sheet2!M103 -> 0 | N103: 0 | O103: 0 | Y103: 0
A104: 57 | B104: 743000 | C104: НОВЧАНЕ КАЗНЕ И ОДУЗЕТА ИМОВИНСКА КОРИСТ (од 58 до 63) | D104: =+Programska_aktivnost!D104+Sheet1!D104+'Захтев за додатна сред.'!D104+Projekat!D104+Sheet2!D104 -> 0 | E104: =+Programska_aktivnost!E104+Sheet1!E104+'Захтев за додатна сред.'!E104+Projekat!E104+Sheet2!E104 -> 0 | F104: =+Programska_aktivnost!F104+Sheet1!F104+'Захтев за додатна сред.'!F104+Projekat!F104+Sheet2!F104 -> 0 | G104: =+Programska_aktivnost!G104+Sheet1!G104+'Захтев за додатна сред.'!G104+Projekat!G104+Sheet2!G104 -> 0 | H104: =+Programska_aktivnost!H104+Sheet1!H104+'Захтев за додатна сред.'!H104+Projekat!H104+Sheet2!H104 -> 0 | I104: =+Programska_aktivnost!I104+Sheet1!I104+'Захтев за додатна сред.'!I104+Projekat!I104+Sheet2!I104 -> 0 | J104: =+Programska_aktivnost!J104+Sheet1!J104+'Захтев за додатна сред.'!J104+Projekat!J104+Sheet2!J104 -> 0 | K104: =+Programska_aktivnost!K104+Sheet1!K104+'Захтев за додатна сред.'!K104+Projekat!K104+Sheet2!K104 -> 0 | L104: =+Programska_aktivnost!L104+Sheet1!L104+'Захтев за додатна сред.'!L104+Projekat!L104+Sheet2!L104 -> 0 | M104: =+Programska_aktivnost!M104+Sheet1!M104+'Захтев за додатна сред.'!M104+Projekat!M104+Sheet2!M104 -> 0 | N104: 0 | O104: 0 | Y104: 0
A105: 58 | B105: 743100 | C105: Приходи од новчаних казни за кривична дела | D105: =+Programska_aktivnost!D105+Sheet1!D105+'Захтев за додатна сред.'!D105+Projekat!D105+Sheet2!D105 -> 0 | E105: =+Programska_aktivnost!E105+Sheet1!E105+'Захтев за додатна сред.'!E105+Projekat!E105+Sheet2!E105 -> 0 | F105: =+Programska_aktivnost!F105+Sheet1!F105+'Захтев за додатна сред.'!F105+Projekat!F105+Sheet2!F105 -> 0 | G105: =+Programska_aktivnost!G105+Sheet1!G105+'Захтев за додатна сред.'!G105+Projekat!G105+Sheet2!G105 -> 0 | H105: =+Programska_aktivnost!H105+Sheet1!H105+'Захтев за додатна сред.'!H105+Projekat!H105+Sheet2!H105 -> 0 | I105: =+Programska_aktivnost!I105+Sheet1!I105+'Захтев за додатна сред.'!I105+Projekat!I105+Sheet2!I105 -> 0 | J105: =+Programska_aktivnost!J105+Sheet1!J105+'Захтев за додатна сред.'!J105+Projekat!J105+Sheet2!J105 -> 0 | K105: =+Programska_aktivnost!K105+Sheet1!K105+'Захтев за додатна сред.'!K105+Projekat!K105+Sheet2!K105 -> 0 | L105: =+Programska_aktivnost!L105+Sheet1!L105+'Захтев за додатна сред.'!L105+Projekat!L105+Sheet2!L105 -> 0 | M105: =+Programska_aktivnost!M105+Sheet1!M105+'Захтев за додатна сред.'!M105+Projekat!M105+Sheet2!M105 -> 0 | N105: 0 | O105: 0 | Y105: 0
A106: 59 | B106: 743200 | C106: Приходи од новчаних казни за привредне преступе | D106: =+Programska_aktivnost!D106+Sheet1!D106+'Захтев за додатна сред.'!D106+Projekat!D106+Sheet2!D106 -> 0 | E106: =+Programska_aktivnost!E106+Sheet1!E106+'Захтев за додатна сред.'!E106+Projekat!E106+Sheet2!E106 -> 0 | F106: =+Programska_aktivnost!F106+Sheet1!F106+'Захтев за додатна сред.'!F106+Projekat!F106+Sheet2!F106 -> 0 | G106: =+Programska_aktivnost!G106+Sheet1!G106+'Захтев за додатна сред.'!G106+Projekat!G106+Sheet2!G106 -> 0 | H106: =+Programska_aktivnost!H106+Sheet1!H106+'Захтев за додатна сред.'!H106+Projekat!H106+Sheet2!H106 -> 0 | I106: =+Programska_aktivnost!I106+Sheet1!I106+'Захтев за додатна сред.'!I106+Projekat!I106+Sheet2!I106 -> 0 | J106: =+Programska_aktivnost!J106+Sheet1!J106+'Захтев за додатна сред.'!J106+Projekat!J106+Sheet2!J106 -> 0 | K106: =+Programska_aktivnost!K106+Sheet1!K106+'Захтев за додатна сред.'!K106+Projekat!K106+Sheet2!K106 -> 0 | L106: =+Programska_aktivnost!L106+Sheet1!L106+'Захтев за додатна сред.'!L106+Projekat!L106+Sheet2!L106 -> 0 | M106: =+Programska_aktivnost!M106+Sheet1!M106+'Захтев за додатна сред.'!M106+Projekat!M106+Sheet2!M106 -> 0 | N106: 0 | O106: 0 | Y106: 0
A107: 60 | B107: 743300 | C107: Приходи од новчаних казни за прекршаје | D107: =+Programska_aktivnost!D107+Sheet1!D107+'Захтев за додатна сред.'!D107+Projekat!D107+Sheet2!D107 -> 0 | E107: =+Programska_aktivnost!E107+Sheet1!E107+'Захтев за додатна сред.'!E107+Projekat!E107+Sheet2!E107 -> 0 | F107: =+Programska_aktivnost!F107+Sheet1!F107+'Захтев за додатна сред.'!F107+Projekat!F107+Sheet2!F107 -> 0 | G107: =+Programska_aktivnost!G107+Sheet1!G107+'Захтев за додатна сред.'!G107+Projekat!G107+Sheet2!G107 -> 0 | H107: =+Programska_aktivnost!H107+Sheet1!H107+'Захтев за додатна сред.'!H107+Projekat!H107+Sheet2!H107 -> 0 | I107: =+Programska_aktivnost!I107+Sheet1!I107+'Захтев за додатна сред.'!I107+Projekat!I107+Sheet2!I107 -> 0 | J107: =+Programska_aktivnost!J107+Sheet1!J107+'Захтев за додатна сред.'!J107+Projekat!J107+Sheet2!J107 -> 0 | K107: =+Programska_aktivnost!K107+Sheet1!K107+'Захтев за додатна сред.'!K107+Projekat!K107+Sheet2!K107 -> 0 | L107: =+Programska_aktivnost!L107+Sheet1!L107+'Захтев за додатна сред.'!L107+Projekat!L107+Sheet2!L107 -> 0 | M107: =+Programska_aktivnost!M107+Sheet1!M107+'Захтев за додатна сред.'!M107+Projekat!M107+Sheet2!M107 -> 0 | N107: 0 | O107: 0 | Y107: 0
A108: 61 | B108: 743400 | C108: Приходи од пенала | D108: =+Programska_aktivnost!D108+Sheet1!D108+'Захтев за додатна сред.'!D108+Projekat!D108+Sheet2!D108 -> 0 | E108: =+Programska_aktivnost!E108+Sheet1!E108+'Захтев за додатна сред.'!E108+Projekat!E108+Sheet2!E108 -> 0 | F108: =+Programska_aktivnost!F108+Sheet1!F108+'Захтев за додатна сред.'!F108+Projekat!F108+Sheet2!F108 -> 0 | G108: =+Programska_aktivnost!G108+Sheet1!G108+'Захтев за додатна сред.'!G108+Projekat!G108+Sheet2!G108 -> 0 | H108: =+Programska_aktivnost!H108+Sheet1!H108+'Захтев за додатна сред.'!H108+Projekat!H108+Sheet2!H108 -> 0 | I108: =+Programska_aktivnost!I108+Sheet1!I108+'Захтев за додатна сред.'!I108+Projekat!I108+Sheet2!I108 -> 0 | J108: =+Programska_aktivnost!J108+Sheet1!J108+'Захтев за додатна сред.'!J108+Projekat!J108+Sheet2!J108 -> 0 | K108: =+Programska_aktivnost!K108+Sheet1!K108+'Захтев за додатна сред.'!K108+Projekat!K108+Sheet2!K108 -> 0 | L108: =+Programska_aktivnost!L108+Sheet1!L108+'Захтев за додатна сред.'!L108+Projekat!L108+Sheet2!L108 -> 0 | M108: =+Programska_aktivnost!M108+Sheet1!M108+'Захтев за додатна сред.'!M108+Projekat!M108+Sheet2!M108 -> 0 | N108: 0 | O108: 0 | Y108: 0
A109: 62 | B109: 743500 | C109: Приходи од одузете имовинске користи | D109: =+Programska_aktivnost!D109+Sheet1!D109+'Захтев за додатна сред.'!D109+Projekat!D109+Sheet2!D109 -> 0 | E109: =+Programska_aktivnost!E109+Sheet1!E109+'Захтев за додатна сред.'!E109+Projekat!E109+Sheet2!E109 -> 0 | F109: =+Programska_aktivnost!F109+Sheet1!F109+'Захтев за додатна сред.'!F109+Projekat!F109+Sheet2!F109 -> 0 | G109: =+Programska_aktivnost!G109+Sheet1!G109+'Захтев за додатна сред.'!G109+Projekat!G109+Sheet2!G109 -> 0 | H109: =+Programska_aktivnost!H109+Sheet1!H109+'Захтев за додатна сред.'!H109+Projekat!H109+Sheet2!H109 -> 0 | I109: =+Programska_aktivnost!I109+Sheet1!I109+'Захтев за додатна сред.'!I109+Projekat!I109+Sheet2!I109 -> 0 | J109: =+Programska_aktivnost!J109+Sheet1!J109+'Захтев за додатна сред.'!J109+Projekat!J109+Sheet2!J109 -> 0 | K109: =+Programska_aktivnost!K109+Sheet1!K109+'Захтев за додатна сред.'!K109+Projekat!K109+Sheet2!K109 -> 0 | L109: =+Programska_aktivnost!L109+Sheet1!L109+'Захтев за додатна сред.'!L109+Projekat!L109+Sheet2!L109 -> 0 | M109: =+Programska_aktivnost!M109+Sheet1!M109+'Захтев за додатна сред.'!M109+Projekat!M109+Sheet2!M109 -> 0 | N109: 0 | O109: 0 | Y109: 0
A110: 63 | B110: 743900 | C110: Остале новчане казне, пенали и приходи од одузете имовинске користи | D110: =+Programska_aktivnost!D110+Sheet1!D110+'Захтев за додатна сред.'!D110+Projekat!D110+Sheet2!D110 -> 0 | E110: =+Programska_aktivnost!E110+Sheet1!E110+'Захтев за додатна сред.'!E110+Projekat!E110+Sheet2!E110 -> 0 | F110: =+Programska_aktivnost!F110+Sheet1!F110+'Захтев за додатна сред.'!F110+Projekat!F110+Sheet2!F110 -> 0 | G110: =+Programska_aktivnost!G110+Sheet1!G110+'Захтев за додатна сред.'!G110+Projekat!G110+Sheet2!G110 -> 0 | H110: =+Programska_aktivnost!H110+Sheet1!H110+'Захтев за додатна сред.'!H110+Projekat!H110+Sheet2!H110 -> 0 | I110: =+Programska_aktivnost!I110+Sheet1!I110+'Захтев за додатна сред.'!I110+Projekat!I110+Sheet2!I110 -> 0 | J110: =+Programska_aktivnost!J110+Sheet1!J110+'Захтев за додатна сред.'!J110+Projekat!J110+Sheet2!J110 -> 0 | K110: =+Programska_aktivnost!K110+Sheet1!K110+'Захтев за додатна сред.'!K110+Projekat!K110+Sheet2!K110 -> 0 | L110: =+Programska_aktivnost!L110+Sheet1!L110+'Захтев за додатна сред.'!L110+Projekat!L110+Sheet2!L110 -> 0 | M110: =+Programska_aktivnost!M110+Sheet1!M110+'Захтев за додатна сред.'!M110+Projekat!M110+Sheet2!M110 -> 0 | N110: 0 | O110: 0 | Y110: 0
A111: 64 | B111: 744000 | C111: ДОБРОВОЉНИ ТРАНСФЕРИ ОД ФИЗИЧКИХ И ПРАВНИХ ЛИЦА (65 + 66) | D111: =+Programska_aktivnost!D111+Sheet1!D111+'Захтев за додатна сред.'!D111+Projekat!D111+Sheet2!D111 -> 0 | E111: =+Programska_aktivnost!E111+Sheet1!E111+'Захтев за додатна сред.'!E111+Projekat!E111+Sheet2!E111 -> 0 | F111: =+Programska_aktivnost!F111+Sheet1!F111+'Захтев за додатна сред.'!F111+Projekat!F111+Sheet2!F111 -> 0 | G111: =+Programska_aktivnost!G111+Sheet1!G111+'Захтев за додатна сред.'!G111+Projekat!G111+Sheet2!G111 -> 0 | H111: =+Programska_aktivnost!H111+Sheet1!H111+'Захтев за додатна сред.'!H111+Projekat!H111+Sheet2!H111 -> 0 | I111: =+Programska_aktivnost!I111+Sheet1!I111+'Захтев за додатна сред.'!I111+Projekat!I111+Sheet2!I111 -> 0 | J111: =+Programska_aktivnost!J111+Sheet1!J111+'Захтев за додатна сред.'!J111+Projekat!J111+Sheet2!J111 -> 0 | K111: =+Programska_aktivnost!K111+Sheet1!K111+'Захтев за додатна сред.'!K111+Projekat!K111+Sheet2!K111 -> 0 | L111: =+Programska_aktivnost!L111+Sheet1!L111+'Захтев за додатна сред.'!L111+Projekat!L111+Sheet2!L111 -> 0 | M111: =+Programska_aktivnost!M111+Sheet1!M111+'Захтев за додатна сред.'!M111+Projekat!M111+Sheet2!M111 -> 0 | N111: 0 | O111: 0 | Y111: 0
A112: 65 | B112: 744100 | C112: Текући добровољни трансфери од физичких и правних лица | D112: =+Programska_aktivnost!D112+Sheet1!D112+'Захтев за додатна сред.'!D112+Projekat!D112+Sheet2!D112 -> 0 | E112: =+Programska_aktivnost!E112+Sheet1!E112+'Захтев за додатна сред.'!E112+Projekat!E112+Sheet2!E112 -> 0 | F112: =+Programska_aktivnost!F112+Sheet1!F112+'Захтев за додатна сред.'!F112+Projekat!F112+Sheet2!F112 -> 0 | G112: =+Programska_aktivnost!G112+Sheet1!G112+'Захтев за додатна сред.'!G112+Projekat!G112+Sheet2!G112 -> 0 | H112: =+Programska_aktivnost!H112+Sheet1!H112+'Захтев за додатна сред.'!H112+Projekat!H112+Sheet2!H112 -> 0 | I112: =+Programska_aktivnost!I112+Sheet1!I112+'Захтев за додатна сред.'!I112+Projekat!I112+Sheet2!I112 -> 0 | J112: =+Programska_aktivnost!J112+Sheet1!J112+'Захтев за додатна сред.'!J112+Projekat!J112+Sheet2!J112 -> 0 | K112: =+Programska_aktivnost!K112+Sheet1!K112+'Захтев за додатна сред.'!K112+Projekat!K112+Sheet2!K112 -> 0 | L112: =+Programska_aktivnost!L112+Sheet1!L112+'Захтев за додатна сред.'!L112+Projekat!L112+Sheet2!L112 -> 0 | M112: =+Programska_aktivnost!M112+Sheet1!M112+'Захтев за додатна сред.'!M112+Projekat!M112+Sheet2!M112 -> 0 | N112: 0 | O112: 0 | Y112: 0
A113: 66 | B113: 744200 | C113: Капитални добровољни трансфери од физичких и правних лица | D113: =+Programska_aktivnost!D113+Sheet1!D113+'Захтев за додатна сред.'!D113+Projekat!D113+Sheet2!D113 -> 0 | E113: =+Programska_aktivnost!E113+Sheet1!E113+'Захтев за додатна сред.'!E113+Projekat!E113+Sheet2!E113 -> 0 | F113: =+Programska_aktivnost!F113+Sheet1!F113+'Захтев за додатна сред.'!F113+Projekat!F113+Sheet2!F113 -> 0 | G113: =+Programska_aktivnost!G113+Sheet1!G113+'Захтев за додатна сред.'!G113+Projekat!G113+Sheet2!G113 -> 0 | H113: =+Programska_aktivnost!H113+Sheet1!H113+'Захтев за додатна сред.'!H113+Projekat!H113+Sheet2!H113 -> 0 | I113: =+Programska_aktivnost!I113+Sheet1!I113+'Захтев за додатна сред.'!I113+Projekat!I113+Sheet2!I113 -> 0 | J113: =+Programska_aktivnost!J113+Sheet1!J113+'Захтев за додатна сред.'!J113+Projekat!J113+Sheet2!J113 -> 0 | K113: =+Programska_aktivnost!K113+Sheet1!K113+'Захтев за додатна сред.'!K113+Projekat!K113+Sheet2!K113 -> 0 | L113: =+Programska_aktivnost!L113+Sheet1!L113+'Захтев за додатна сред.'!L113+Projekat!L113+Sheet2!L113 -> 0 | M113: =+Programska_aktivnost!M113+Sheet1!M113+'Захтев за додатна сред.'!M113+Projekat!M113+Sheet2!M113 -> 0 | N113: 0 | O113: 0 | Y113: 0
A114: 67 | B114: 745000 | C114: МЕШОВИТИ И НЕОДРЕЂЕНИ ПРИХОДИ (68) | D114: =+Programska_aktivnost!D114+Sheet1!D114+'Захтев за додатна сред.'!D114+Projekat!D114+Sheet2!D114 -> 0 | E114: =+Programska_aktivnost!E114+Sheet1!E114+'Захтев за додатна сред.'!E114+Projekat!E114+Sheet2!E114 -> 0 | F114: =+Programska_aktivnost!F114+Sheet1!F114+'Захтев за додатна сред.'!F114+Projekat!F114+Sheet2!F114 -> 0 | G114: =+Programska_aktivnost!G114+Sheet1!G114+'Захтев за додатна сред.'!G114+Projekat!G114+Sheet2!G114 -> 0 | H114: =+Programska_aktivnost!H114+Sheet1!H114+'Захтев за додатна сред.'!H114+Projekat!H114+Sheet2!H114 -> 0 | I114: =+Programska_aktivnost!I114+Sheet1!I114+'Захтев за додатна сред.'!I114+Projekat!I114+Sheet2!I114 -> 0 | J114: =+Programska_aktivnost!J114+Sheet1!J114+'Захтев за додатна сред.'!J114+Projekat!J114+Sheet2!J114 -> 0 | K114: =+Programska_aktivnost!K114+Sheet1!K114+'Захтев за додатна сред.'!K114+Projekat!K114+Sheet2!K114 -> 0 | L114: =+Programska_aktivnost!L114+Sheet1!L114+'Захтев за додатна сред.'!L114+Projekat!L114+Sheet2!L114 -> 0 | M114: =+Programska_aktivnost!M114+Sheet1!M114+'Захтев за додатна сред.'!M114+Projekat!M114+Sheet2!M114 -> 0 | N114: 0 | O114: 0 | Y114: 0
A115: 68 | B115: 745100 | C115: Мешовити и неодређени приходи | D115: =+Programska_aktivnost!D115+Sheet1!D115+'Захтев за додатна сред.'!D115+Projekat!D115+Sheet2!D115 -> 0 | E115: =+Programska_aktivnost!E115+Sheet1!E115+'Захтев за додатна сред.'!E115+Projekat!E115+Sheet2!E115 -> 0 | F115: =+Programska_aktivnost!F115+Sheet1!F115+'Захтев за додатна сред.'!F115+Projekat!F115+Sheet2!F115 -> 0 | G115: =+Programska_aktivnost!G115+Sheet1!G115+'Захтев за додатна сред.'!G115+Projekat!G115+Sheet2!G115 -> 0 | H115: =+Programska_aktivnost!H115+Sheet1!H115+'Захтев за додатна сред.'!H115+Projekat!H115+Sheet2!H115 -> 0 | I115: =+Programska_aktivnost!I115+Sheet1!I115+'Захтев за додатна сред.'!I115+Projekat!I115+Sheet2!I115 -> 0 | J115: =+Programska_aktivnost!J115+Sheet1!J115+'Захтев за додатна сред.'!J115+Projekat!J115+Sheet2!J115 -> 0 | K115: =+Programska_aktivnost!K115+Sheet1!K115+'Захтев за додатна сред.'!K115+Projekat!K115+Sheet2!K115 -> 0 | L115: =+Programska_aktivnost!L115+Sheet1!L115+'Захтев за додатна сред.'!L115+Projekat!L115+Sheet2!L115 -> 0 | M115: =+Programska_aktivnost!M115+Sheet1!M115+'Захтев за додатна сред.'!M115+Projekat!M115+Sheet2!M115 -> 0 | N115: 0 | O115: 0 | Y115: 0
A116: 69 | B116: 770000 | C116: МЕМОРАНДУМСКЕ СТАВКЕ ЗА РЕФУНДАЦИЈУ РАСХОДА (70 + 72) | D116: =+Programska_aktivnost!D116+Sheet1!D116+'Захтев за додатна сред.'!D116+Projekat!D116+Sheet2!D116 -> 0 | E116: =+Programska_aktivnost!E116+Sheet1!E116+'Захтев за додатна сред.'!E116+Projekat!E116+Sheet2!E116 -> 763000 | F116: =+Programska_aktivnost!F116+Sheet1!F116+'Захтев за додатна сред.'!F116+Projekat!F116+Sheet2!F116 -> 0 | G116: =+Programska_aktivnost!G116+Sheet1!G116+'Захтев за додатна сред.'!G116+Projekat!G116+Sheet2!G116 -> 668000 | H116: =+Programska_aktivnost!H116+Sheet1!H116+'Захтев за додатна сред.'!H116+Projekat!H116+Sheet2!H116 -> 0 | I116: =+Programska_aktivnost!I116+Sheet1!I116+'Захтев за додатна сред.'!I116+Projekat!I116+Sheet2!I116 -> 0 | J116: =+Programska_aktivnost!J116+Sheet1!J116+'Захтев за додатна сред.'!J116+Projekat!J116+Sheet2!J116 -> 0 | K116: =+Programska_aktivnost!K116+Sheet1!K116+'Захтев за додатна сред.'!K116+Projekat!K116+Sheet2!K116 -> 0 | L116: =+Programska_aktivnost!L116+Sheet1!L116+'Захтев за додатна сред.'!L116+Projekat!L116+Sheet2!L116 -> 0 | M116: =+Programska_aktivnost!M116+Sheet1!M116+'Захтев за додатна сред.'!M116+Projekat!M116+Sheet2!M116 -> 0 | N116: 0 | O116: 0 | Y116: 1431000
A117: 70 | B117: 771000 | C117: МЕМОРАНДУМСКЕ СТАВКЕ ЗА РЕФУНДАЦИЈУ РАСХОДА (71) | D117: =+Programska_aktivnost!D117+Sheet1!D117+'Захтев за додатна сред.'!D117+Projekat!D117+Sheet2!D117 -> 0 | E117: =+Programska_aktivnost!E117+Sheet1!E117+'Захтев за додатна сред.'!E117+Projekat!E117+Sheet2!E117 -> 0 | F117: =+Programska_aktivnost!F117+Sheet1!F117+'Захтев за додатна сред.'!F117+Projekat!F117+Sheet2!F117 -> 0 | G117: =+Programska_aktivnost!G117+Sheet1!G117+'Захтев за додатна сред.'!G117+Projekat!G117+Sheet2!G117 -> 0 | H117: =+Programska_aktivnost!H117+Sheet1!H117+'Захтев за додатна сред.'!H117+Projekat!H117+Sheet2!H117 -> 0 | I117: =+Programska_aktivnost!I117+Sheet1!I117+'Захтев за додатна сред.'!I117+Projekat!I117+Sheet2!I117 -> 0 | J117: =+Programska_aktivnost!J117+Sheet1!J117+'Захтев за додатна сред.'!J117+Projekat!J117+Sheet2!J117 -> 0 | K117: =+Programska_aktivnost!K117+Sheet1!K117+'Захтев за додатна сред.'!K117+Projekat!K117+Sheet2!K117 -> 0 | L117: =+Programska_aktivnost!L117+Sheet1!L117+'Захтев за додатна сред.'!L117+Projekat!L117+Sheet2!L117 -> 0 | M117: =+Programska_aktivnost!M117+Sheet1!M117+'Захтев за додатна сред.'!M117+Projekat!M117+Sheet2!M117 -> 0 | N117: 0 | O117: 0 | Y117: 0
A118: 71 | B118: 771100 | C118: Меморандумске ставке за рефундацију расхода | D118: =+Programska_aktivnost!D118+Sheet1!D118+'Захтев за додатна сред.'!D118+Projekat!D118+Sheet2!D118 -> 0 | E118: =+Programska_aktivnost!E118+Sheet1!E118+'Захтев за додатна сред.'!E118+Projekat!E118+Sheet2!E118 -> 0 | F118: =+Programska_aktivnost!F118+Sheet1!F118+'Захтев за додатна сред.'!F118+Projekat!F118+Sheet2!F118 -> 0 | G118: =+Programska_aktivnost!G118+Sheet1!G118+'Захтев за додатна сред.'!G118+Projekat!G118+Sheet2!G118 -> 0 | H118: =+Programska_aktivnost!H118+Sheet1!H118+'Захтев за додатна сред.'!H118+Projekat!H118+Sheet2!H118 -> 0 | I118: =+Programska_aktivnost!I118+Sheet1!I118+'Захтев за додатна сред.'!I118+Projekat!I118+Sheet2!I118 -> 0 | J118: =+Programska_aktivnost!J118+Sheet1!J118+'Захтев за додатна сред.'!J118+Projekat!J118+Sheet2!J118 -> 0 | K118: =+Programska_aktivnost!K118+Sheet1!K118+'Захтев за додатна сред.'!K118+Projekat!K118+Sheet2!K118 -> 0 | L118: =+Programska_aktivnost!L118+Sheet1!L118+'Захтев за додатна сред.'!L118+Projekat!L118+Sheet2!L118 -> 0 | M118: =+Programska_aktivnost!M118+Sheet1!M118+'Захтев за додатна сред.'!M118+Projekat!M118+Sheet2!M118 -> 0 | N118: 0 | O118: 0 | Y118: 0
A119: 72 | B119: 772000 | C119: МЕМОРАНДУМСКЕ СТАВКЕ ЗА РЕФУНДАЦИЈУ РАСХОДА ИЗ ПРЕТХОДНЕ ГОДИНЕ (73) | D119: =+Programska_aktivnost!D119+Sheet1!D119+'Захтев за додатна сред.'!D119+Projekat!D119+Sheet2!D119 -> 0 | E119: =+Programska_aktivnost!E119+Sheet1!E119+'Захтев за додатна сред.'!E119+Projekat!E119+Sheet2!E119 -> 763000 | F119: =+Programska_aktivnost!F119+Sheet1!F119+'Захтев за додатна сред.'!F119+Projekat!F119+Sheet2!F119 -> 0 | G119: =+Programska_aktivnost!G119+Sheet1!G119+'Захтев за додатна сред.'!G119+Projekat!G119+Sheet2!G119 -> 668000 | H119: =+Programska_aktivnost!H119+Sheet1!H119+'Захтев за додатна сред.'!H119+Projekat!H119+Sheet2!H119 -> 0 | I119: =+Programska_aktivnost!I119+Sheet1!I119+'Захтев за додатна сред.'!I119+Projekat!I119+Sheet2!I119 -> 0 | J119: =+Programska_aktivnost!J119+Sheet1!J119+'Захтев за додатна сред.'!J119+Projekat!J119+Sheet2!J119 -> 0 | K119: =+Programska_aktivnost!K119+Sheet1!K119+'Захтев за додатна сред.'!K119+Projekat!K119+Sheet2!K119 -> 0 | L119: =+Programska_aktivnost!L119+Sheet1!L119+'Захтев за додатна сред.'!L119+Projekat!L119+Sheet2!L119 -> 0 | M119: =+Programska_aktivnost!M119+Sheet1!M119+'Захтев за додатна сред.'!M119+Projekat!M119+Sheet2!M119 -> 0 | N119: 0 | O119: 0 | Y119: 1431000
A120: =A119+1 -> 73 | B120: 772100 | C120: Меморандумске ставке за рефундацију расхода из претходне године | D120: =+Programska_aktivnost!D120+Sheet1!D120+'Захтев за додатна сред.'!D120+Projekat!D120+Sheet2!D120 -> 0 | E120: =+Programska_aktivnost!E120+Sheet1!E120+'Захтев за додатна сред.'!E120+Projekat!E120+Sheet2!E120 -> 763000 | F120: =+Programska_aktivnost!F120+Sheet1!F120+'Захтев за додатна сред.'!F120+Projekat!F120+Sheet2!F120 -> 0 | G120: =+Programska_aktivnost!G120+Sheet1!G120+'Захтев за додатна сред.'!G120+Projekat!G120+Sheet2!G120 -> 668000 | H120: =+Programska_aktivnost!H120+Sheet1!H120+'Захтев за додатна сред.'!H120+Projekat!H120+Sheet2!H120 -> 0 | I120: =+Programska_aktivnost!I120+Sheet1!I120+'Захтев за додатна сред.'!I120+Projekat!I120+Sheet2!I120 -> 0 | J120: =+Programska_aktivnost!J120+Sheet1!J120+'Захтев за додатна сред.'!J120+Projekat!J120+Sheet2!J120 -> 0 | K120: =+Programska_aktivnost!K120+Sheet1!K120+'Захтев за додатна сред.'!K120+Projekat!K120+Sheet2!K120 -> 0 | L120: =+Programska_aktivnost!L120+Sheet1!L120+'Захтев за додатна сред.'!L120+Projekat!L120+Sheet2!L120 -> 0 | M120: =+Programska_aktivnost!M120+Sheet1!M120+'Захтев за додатна сред.'!M120+Projekat!M120+Sheet2!M120 -> 0 | N120: 0 | O120: 0 | Y120: =SUM(D120:O120) -> 1431000
A121: 74 | B121: 780000 | C121: ТРАНСФЕРИ ИЗМЕЂУ БУЏЕТСКИХ КОРИСНИКА НА ИСТОМ НИВОУ (75) | D121: =+Programska_aktivnost!D121+Sheet1!D121+'Захтев за додатна сред.'!D121+Projekat!D121+Sheet2!D121 -> 0 | E121: =+Programska_aktivnost!E121+Sheet1!E121+'Захтев за додатна сред.'!E121+Projekat!E121+Sheet2!E121 -> 0 | F121: =+Programska_aktivnost!F121+Sheet1!F121+'Захтев за додатна сред.'!F121+Projekat!F121+Sheet2!F121 -> 0 | G121: =+Programska_aktivnost!G121+Sheet1!G121+'Захтев за додатна сред.'!G121+Projekat!G121+Sheet2!G121 -> 0 | H121: =+Programska_aktivnost!H121+Sheet1!H121+'Захтев за додатна сред.'!H121+Projekat!H121+Sheet2!H121 -> 0 | I121: =+Programska_aktivnost!I121+Sheet1!I121+'Захтев за додатна сред.'!I121+Projekat!I121+Sheet2!I121 -> 0 | J121: =+Programska_aktivnost!J121+Sheet1!J121+'Захтев за додатна сред.'!J121+Projekat!J121+Sheet2!J121 -> 0 | K121: =+Programska_aktivnost!K121+Sheet1!K121+'Захтев за додатна сред.'!K121+Projekat!K121+Sheet2!K121 -> 0 | L121: =+Programska_aktivnost!L121+Sheet1!L121+'Захтев за додатна сред.'!L121+Projekat!L121+Sheet2!L121 -> 0 | M121: =+Programska_aktivnost!M121+Sheet1!M121+'Захтев за додатна сред.'!M121+Projekat!M121+Sheet2!M121 -> 0 | N121: 0 | O121: 0 | Y121: 0
A122: 75 | B122: 781000 | C122: ТРАНСФЕРИ ИЗМЕЂУ БУЏЕТСКИХ КОРИСНИКА НА ИСТОМ НИВОУ (76 + 77) | D122: =+Programska_aktivnost!D122+Sheet1!D122+'Захтев за додатна сред.'!D122+Projekat!D122+Sheet2!D122 -> 0 | E122: =+Programska_aktivnost!E122+Sheet1!E122+'Захтев за додатна сред.'!E122+Projekat!E122+Sheet2!E122 -> 0 | F122: =+Programska_aktivnost!F122+Sheet1!F122+'Захтев за додатна сред.'!F122+Projekat!F122+Sheet2!F122 -> 0 | G122: =+Programska_aktivnost!G122+Sheet1!G122+'Захтев за додатна сред.'!G122+Projekat!G122+Sheet2!G122 -> 0 | H122: =+Programska_aktivnost!H122+Sheet1!H122+'Захтев за додатна сред.'!H122+Projekat!H122+Sheet2!H122 -> 0 | I122: =+Programska_aktivnost!I122+Sheet1!I122+'Захтев за додатна сред.'!I122+Projekat!I122+Sheet2!I122 -> 0 | J122: =+Programska_aktivnost!J122+Sheet1!J122+'Захтев за додатна сред.'!J122+Projekat!J122+Sheet2!J122 -> 0 | K122: =+Programska_aktivnost!K122+Sheet1!K122+'Захтев за додатна сред.'!K122+Projekat!K122+Sheet2!K122 -> 0 | L122: =+Programska_aktivnost!L122+Sheet1!L122+'Захтев за додатна сред.'!L122+Projekat!L122+Sheet2!L122 -> 0 | M122: =+Programska_aktivnost!M122+Sheet1!M122+'Захтев за додатна сред.'!M122+Projekat!M122+Sheet2!M122 -> 0 | N122: 0 | O122: 0 | Y122: 0
A123: 76 | B123: 781100 | C123: Трансфери између буџетских корисника на истом нивоу | D123: =+Programska_aktivnost!D123+Sheet1!D123+'Захтев за додатна сред.'!D123+Projekat!D123+Sheet2!D123 -> 0 | E123: =+Programska_aktivnost!E123+Sheet1!E123+'Захтев за додатна сред.'!E123+Projekat!E123+Sheet2!E123 -> 0 | F123: =+Programska_aktivnost!F123+Sheet1!F123+'Захтев за додатна сред.'!F123+Projekat!F123+Sheet2!F123 -> 0 | G123: =+Programska_aktivnost!G123+Sheet1!G123+'Захтев за додатна сред.'!G123+Projekat!G123+Sheet2!G123 -> 0 | H123: =+Programska_aktivnost!H123+Sheet1!H123+'Захтев за додатна сред.'!H123+Projekat!H123+Sheet2!H123 -> 0 | I123: =+Programska_aktivnost!I123+Sheet1!I123+'Захтев за додатна сред.'!I123+Projekat!I123+Sheet2!I123 -> 0 | J123: =+Programska_aktivnost!J123+Sheet1!J123+'Захтев за додатна сред.'!J123+Projekat!J123+Sheet2!J123 -> 0 | K123: =+Programska_aktivnost!K123+Sheet1!K123+'Захтев за додатна сред.'!K123+Projekat!K123+Sheet2!K123 -> 0 | L123: =+Programska_aktivnost!L123+Sheet1!L123+'Захтев за додатна сред.'!L123+Projekat!L123+Sheet2!L123 -> 0 | M123: =+Programska_aktivnost!M123+Sheet1!M123+'Захтев за додатна сред.'!M123+Projekat!M123+Sheet2!M123 -> 0 | N123: 0 | O123: 0 | Y123: 0
A124: 77 | B124: 781300 | C124: Трансфери између организација обавезног социјалног осигурања | D124: =+Programska_aktivnost!D124+Sheet1!D124+'Захтев за додатна сред.'!D124+Projekat!D124+Sheet2!D124 -> 0 | E124: =+Programska_aktivnost!E124+Sheet1!E124+'Захтев за додатна сред.'!E124+Projekat!E124+Sheet2!E124 -> 0 | F124: =+Programska_aktivnost!F124+Sheet1!F124+'Захтев за додатна сред.'!F124+Projekat!F124+Sheet2!F124 -> 0 | G124: =+Programska_aktivnost!G124+Sheet1!G124+'Захтев за додатна сред.'!G124+Projekat!G124+Sheet2!G124 -> 0 | H124: =+Programska_aktivnost!H124+Sheet1!H124+'Захтев за додатна сред.'!H124+Projekat!H124+Sheet2!H124 -> 0 | I124: =+Programska_aktivnost!I124+Sheet1!I124+'Захтев за додатна сред.'!I124+Projekat!I124+Sheet2!I124 -> 0 | J124: =+Programska_aktivnost!J124+Sheet1!J124+'Захтев за додатна сред.'!J124+Projekat!J124+Sheet2!J124 -> 0 | K124: =+Programska_aktivnost!K124+Sheet1!K124+'Захтев за додатна сред.'!K124+Projekat!K124+Sheet2!K124 -> 0 | L124: =+Programska_aktivnost!L124+Sheet1!L124+'Захтев за додатна сред.'!L124+Projekat!L124+Sheet2!L124 -> 0 | M124: =+Programska_aktivnost!M124+Sheet1!M124+'Захтев за додатна сред.'!M124+Projekat!M124+Sheet2!M124 -> 0 | N124: 0 | O124: 0 | Y124: 0
A125: 78 | B125: 790000 | C125: ПРИХОДИ ИЗ БУЏЕТА (79) | D125: =+Programska_aktivnost!D125+Sheet1!D125+'Захтев за додатна сред.'!D125+Projekat!D125+Sheet2!D125 -> 151754000 | E125: =+Programska_aktivnost!E125+Sheet1!E125+'Захтев за додатна сред.'!E125+Projekat!E125+Sheet2!E125 -> 0 | F125: =+Programska_aktivnost!F125+Sheet1!F125+'Захтев за додатна сред.'!F125+Projekat!F125+Sheet2!F125 -> 170977000 | G125: =+Programska_aktivnost!G125+Sheet1!G125+'Захтев за додатна сред.'!G125+Projekat!G125+Sheet2!G125 -> 0 | H125: =+Programska_aktivnost!H125+Sheet1!H125+'Захтев за додатна сред.'!H125+Projekat!H125+Sheet2!H125 -> 202171000 | I125: =+Programska_aktivnost!I125+Sheet1!I125+'Захтев за додатна сред.'!I125+Projekat!I125+Sheet2!I125 -> 0 | J125: =+Programska_aktivnost!J125+Sheet1!J125+'Захтев за додатна сред.'!J125+Projekat!J125+Sheet2!J125 -> 180321000 | K125: =+Programska_aktivnost!K125+Sheet1!K125+'Захтев за додатна сред.'!K125+Projekat!K125+Sheet2!K125 -> 0 | L125: =+Programska_aktivnost!L125+Sheet1!L125+'Захтев за додатна сред.'!L125+Projekat!L125+Sheet2!L125 -> 186833000 | M125: =+Programska_aktivnost!M125+Sheet1!M125+'Захтев за додатна сред.'!M125+Projekat!M125+Sheet2!M125 -> 0 | N125: 569325000 | O125: 0 | Y125: 1461381000
A126: 79 | B126: 791000 | C126: ПРИХОДИ ИЗ БУЏЕТА (80) | D126: =+Programska_aktivnost!D126+Sheet1!D126+'Захтев за додатна сред.'!D126+Projekat!D126+Sheet2!D126 -> 151754000 | E126: =+Programska_aktivnost!E126+Sheet1!E126+'Захтев за додатна сред.'!E126+Projekat!E126+Sheet2!E126 -> 0 | F126: =+Programska_aktivnost!F126+Sheet1!F126+'Захтев за додатна сред.'!F126+Projekat!F126+Sheet2!F126 -> 170977000 | G126: =+Programska_aktivnost!G126+Sheet1!G126+'Захтев за додатна сред.'!G126+Projekat!G126+Sheet2!G126 -> 0 | H126: =+Programska_aktivnost!H126+Sheet1!H126+'Захтев за додатна сред.'!H126+Projekat!H126+Sheet2!H126 -> 202171000 | I126: =+Programska_aktivnost!I126+Sheet1!I126+'Захтев за додатна сред.'!I126+Projekat!I126+Sheet2!I126 -> 0 | J126: =+Programska_aktivnost!J126+Sheet1!J126+'Захтев за додатна сред.'!J126+Projekat!J126+Sheet2!J126 -> 180321000 | K126: =+Programska_aktivnost!K126+Sheet1!K126+'Захтев за додатна сред.'!K126+Projekat!K126+Sheet2!K126 -> 0 | L126: =+Programska_aktivnost!L126+Sheet1!L126+'Захтев за додатна сред.'!L126+Projekat!L126+Sheet2!L126 -> 186833000 | M126: =+Programska_aktivnost!M126+Sheet1!M126+'Захтев за додатна сред.'!M126+Projekat!M126+Sheet2!M126 -> 0 | N126: 569325000 | O126: 0 | Y126: 1461381000
A127: 80 | B127: 791100 | C127: Приходи из буџета | D127: =+Programska_aktivnost!D127+Sheet1!D127+'Захтев за додатна сред.'!D127+Projekat!D127+Sheet2!D127 -> 151754000 | E127: =+Programska_aktivnost!E127+Sheet1!E127+'Захтев за додатна сред.'!E127+Projekat!E127+Sheet2!E127 -> 0 | F127: =+Programska_aktivnost!F127+Sheet1!F127+'Захтев за додатна сред.'!F127+Projekat!F127+Sheet2!F127 -> 170977000 | G127: =+Programska_aktivnost!G127+Sheet1!G127+'Захтев за додатна сред.'!G127+Projekat!G127+Sheet2!G127 -> 0 | H127: =+Programska_aktivnost!H127+Sheet1!H127+'Захтев за додатна сред.'!H127+Projekat!H127+Sheet2!H127 -> 202171000 | I127: =+Programska_aktivnost!I127+Sheet1!I127+'Захтев за додатна сред.'!I127+Projekat!I127+Sheet2!I127 -> 0 | J127: =+Programska_aktivnost!J127+Sheet1!J127+'Захтев за додатна сред.'!J127+Projekat!J127+Sheet2!J127 -> 180321000 | K127: =+Programska_aktivnost!K127+Sheet1!K127+'Захтев за додатна сред.'!K127+Projekat!K127+Sheet2!K127 -> 0 | L127: =+Programska_aktivnost!L127+Sheet1!L127+'Захтев за додатна сред.'!L127+Projekat!L127+Sheet2!L127 -> 186833000 | M127: =+Programska_aktivnost!M127+Sheet1!M127+'Захтев за додатна сред.'!M127+Projekat!M127+Sheet2!M127 -> 0 | N127: =SUM(H127,J127,L127) -> 569325000 | O127: 0 | Y127: 1461381000
A128: 81 | B128: 800000 | C128: ПРИМАЊА ОД ПРОДАЈЕ НЕФИНАНСИЈСКЕ ИМОВИНЕ (82 + 89 + 96 + 99) | D128: =+Programska_aktivnost!D128+Sheet1!D128+'Захтев за додатна сред.'!D128+Projekat!D128+Sheet2!D128 -> 0 | E128: =+Programska_aktivnost!E128+Sheet1!E128+'Захтев за додатна сред.'!E128+Projekat!E128+Sheet2!E128 -> 0 | F128: =+Programska_aktivnost!F128+Sheet1!F128+'Захтев за додатна сред.'!F128+Projekat!F128+Sheet2!F128 -> 0 | G128: =+Programska_aktivnost!G128+Sheet1!G128+'Захтев за додатна сред.'!G128+Projekat!G128+Sheet2!G128 -> 0 | H128: =+Programska_aktivnost!H128+Sheet1!H128+'Захтев за додатна сред.'!H128+Projekat!H128+Sheet2!H128 -> 0 | I128: =+Programska_aktivnost!I128+Sheet1!I128+'Захтев за додатна сред.'!I128+Projekat!I128+Sheet2!I128 -> 0 | J128: =+Programska_aktivnost!J128+Sheet1!J128+'Захтев за додатна сред.'!J128+Projekat!J128+Sheet2!J128 -> 0 | K128: =+Programska_aktivnost!K128+Sheet1!K128+'Захтев за додатна сред.'!K128+Projekat!K128+Sheet2!K128 -> 0 | L128: =+Programska_aktivnost!L128+Sheet1!L128+'Захтев за додатна сред.'!L128+Projekat!L128+Sheet2!L128 -> 0 | M128: =+Programska_aktivnost!M128+Sheet1!M128+'Захтев за додатна сред.'!M128+Projekat!M128+Sheet2!M128 -> 0 | N128: 0 | O128: 0 | Y128: 0
A129: 82 | B129: 810000 | C129: ПРИМАЊА ОД ПРОДАЈЕ ОСНОВНИХ СРЕДСТАВА (83 + 85 + 87) | D129: =+Programska_aktivnost!D129+Sheet1!D129+'Захтев за додатна сред.'!D129+Projekat!D129+Sheet2!D129 -> 0 | E129: =+Programska_aktivnost!E129+Sheet1!E129+'Захтев за додатна сред.'!E129+Projekat!E129+Sheet2!E129 -> 0 | F129: =+Programska_aktivnost!F129+Sheet1!F129+'Захтев за додатна сред.'!F129+Projekat!F129+Sheet2!F129 -> 0 | G129: =+Programska_aktivnost!G129+Sheet1!G129+'Захтев за додатна сред.'!G129+Projekat!G129+Sheet2!G129 -> 0 | H129: =+Programska_aktivnost!H129+Sheet1!H129+'Захтев за додатна сред.'!H129+Projekat!H129+Sheet2!H129 -> 0 | I129: =+Programska_aktivnost!I129+Sheet1!I129+'Захтев за додатна сред.'!I129+Projekat!I129+Sheet2!I129 -> 0 | J129: =+Programska_aktivnost!J129+Sheet1!J129+'Захтев за додатна сред.'!J129+Projekat!J129+Sheet2!J129 -> 0 | K129: =+Programska_aktivnost!K129+Sheet1!K129+'Захтев за додатна сред.'!K129+Projekat!K129+Sheet2!K129 -> 0 | L129: =+Programska_aktivnost!L129+Sheet1!L129+'Захтев за додатна сред.'!L129+Projekat!L129+Sheet2!L129 -> 0 | M129: =+Programska_aktivnost!M129+Sheet1!M129+'Захтев за додатна сред.'!M129+Projekat!M129+Sheet2!M129 -> 0 | N129: 0 | O129: 0 | Y129: 0
A130: 83 | B130: 811000 | C130: ПРИМАЊА ОД ПРОДАЈЕ НЕПОКРЕТНОСТИ (84) | D130: =+Programska_aktivnost!D130+Sheet1!D130+'Захтев за додатна сред.'!D130+Projekat!D130+Sheet2!D130 -> 0 | E130: =+Programska_aktivnost!E130+Sheet1!E130+'Захтев за додатна сред.'!E130+Projekat!E130+Sheet2!E130 -> 0 | F130: =+Programska_aktivnost!F130+Sheet1!F130+'Захтев за додатна сред.'!F130+Projekat!F130+Sheet2!F130 -> 0 | G130: =+Programska_aktivnost!G130+Sheet1!G130+'Захтев за додатна сред.'!G130+Projekat!G130+Sheet2!G130 -> 0 | H130: =+Programska_aktivnost!H130+Sheet1!H130+'Захтев за додатна сред.'!H130+Projekat!H130+Sheet2!H130 -> 0 | I130: =+Programska_aktivnost!I130+Sheet1!I130+'Захтев за додатна сред.'!I130+Projekat!I130+Sheet2!I130 -> 0 | J130: =+Programska_aktivnost!J130+Sheet1!J130+'Захтев за додатна сред.'!J130+Projekat!J130+Sheet2!J130 -> 0 | K130: =+Programska_aktivnost!K130+Sheet1!K130+'Захтев за додатна сред.'!K130+Projekat!K130+Sheet2!K130 -> 0 | L130: =+Programska_aktivnost!L130+Sheet1!L130+'Захтев за додатна сред.'!L130+Projekat!L130+Sheet2!L130 -> 0 | M130: =+Programska_aktivnost!M130+Sheet1!M130+'Захтев за додатна сред.'!M130+Projekat!M130+Sheet2!M130 -> 0 | N130: 0 | O130: 0 | Y130: 0
A131: 84 | B131: 811100 | C131: Примања од продаје непокретности | D131: =+Programska_aktivnost!D131+Sheet1!D131+'Захтев за додатна сред.'!D131+Projekat!D131+Sheet2!D131 -> 0 | E131: =+Programska_aktivnost!E131+Sheet1!E131+'Захтев за додатна сред.'!E131+Projekat!E131+Sheet2!E131 -> 0 | F131: =+Programska_aktivnost!F131+Sheet1!F131+'Захтев за додатна сред.'!F131+Projekat!F131+Sheet2!F131 -> 0 | G131: =+Programska_aktivnost!G131+Sheet1!G131+'Захтев за додатна сред.'!G131+Projekat!G131+Sheet2!G131 -> 0 | H131: =+Programska_aktivnost!H131+Sheet1!H131+'Захтев за додатна сред.'!H131+Projekat!H131+Sheet2!H131 -> 0 | I131: =+Programska_aktivnost!I131+Sheet1!I131+'Захтев за додатна сред.'!I131+Projekat!I131+Sheet2!I131 -> 0 | J131: =+Programska_aktivnost!J131+Sheet1!J131+'Захтев за додатна сред.'!J131+Projekat!J131+Sheet2!J131 -> 0 | K131: =+Programska_aktivnost!K131+Sheet1!K131+'Захтев за додатна сред.'!K131+Projekat!K131+Sheet2!K131 -> 0 | L131: =+Programska_aktivnost!L131+Sheet1!L131+'Захтев за додатна сред.'!L131+Projekat!L131+Sheet2!L131 -> 0 | M131: =+Programska_aktivnost!M131+Sheet1!M131+'Захтев за додатна сред.'!M131+Projekat!M131+Sheet2!M131 -> 0 | N131: 0 | O131: 0 | Y131: 0
A132: 85 | B132: 812000 | C132: ПРИМАЊА ОД ПРОДАЈЕ ПОКРЕТНЕ ИМОВИНЕ (86) | D132: =+Programska_aktivnost!D132+Sheet1!D132+'Захтев за додатна сред.'!D132+Projekat!D132+Sheet2!D132 -> 0 | E132: =+Programska_aktivnost!E132+Sheet1!E132+'Захтев за додатна сред.'!E132+Projekat!E132+Sheet2!E132 -> 0 | F132: =+Programska_aktivnost!F132+Sheet1!F132+'Захтев за додатна сред.'!F132+Projekat!F132+Sheet2!F132 -> 0 | G132: =+Programska_aktivnost!G132+Sheet1!G132+'Захтев за додатна сред.'!G132+Projekat!G132+Sheet2!G132 -> 0 | H132: =+Programska_aktivnost!H132+Sheet1!H132+'Захтев за додатна сред.'!H132+Projekat!H132+Sheet2!H132 -> 0 | I132: =+Programska_aktivnost!I132+Sheet1!I132+'Захтев за додатна сред.'!I132+Projekat!I132+Sheet2!I132 -> 0 | J132: =+Programska_aktivnost!J132+Sheet1!J132+'Захтев за додатна сред.'!J132+Projekat!J132+Sheet2!J132 -> 0 | K132: =+Programska_aktivnost!K132+Sheet1!K132+'Захтев за додатна сред.'!K132+Projekat!K132+Sheet2!K132 -> 0 | L132: =+Programska_aktivnost!L132+Sheet1!L132+'Захтев за додатна сред.'!L132+Projekat!L132+Sheet2!L132 -> 0 | M132: =+Programska_aktivnost!M132+Sheet1!M132+'Захтев за додатна сред.'!M132+Projekat!M132+Sheet2!M132 -> 0 | N132: 0 | O132: 0 | Y132: 0
A133: 86 | B133: 812100 | C133: Примања од продаје покретне имовине | D133: =+Programska_aktivnost!D133+Sheet1!D133+'Захтев за додатна сред.'!D133+Projekat!D133+Sheet2!D133 -> 0 | E133: =+Programska_aktivnost!E133+Sheet1!E133+'Захтев за додатна сред.'!E133+Projekat!E133+Sheet2!E133 -> 0 | F133: =+Programska_aktivnost!F133+Sheet1!F133+'Захтев за додатна сред.'!F133+Projekat!F133+Sheet2!F133 -> 0 | G133: =+Programska_aktivnost!G133+Sheet1!G133+'Захтев за додатна сред.'!G133+Projekat!G133+Sheet2!G133 -> 0 | H133: =+Programska_aktivnost!H133+Sheet1!H133+'Захтев за додатна сред.'!H133+Projekat!H133+Sheet2!H133 -> 0 | I133: =+Programska_aktivnost!I133+Sheet1!I133+'Захтев за додатна сред.'!I133+Projekat!I133+Sheet2!I133 -> 0 | J133: =+Programska_aktivnost!J133+Sheet1!J133+'Захтев за додатна сред.'!J133+Projekat!J133+Sheet2!J133 -> 0 | K133: =+Programska_aktivnost!K133+Sheet1!K133+'Захтев за додатна сред.'!K133+Projekat!K133+Sheet2!K133 -> 0 | L133: =+Programska_aktivnost!L133+Sheet1!L133+'Захтев за додатна сред.'!L133+Projekat!L133+Sheet2!L133 -> 0 | M133: =+Programska_aktivnost!M133+Sheet1!M133+'Захтев за додатна сред.'!M133+Projekat!M133+Sheet2!M133 -> 0 | N133: 0 | O133: 0 | Y133: 0
A134: 87 | B134: 813000 | C134: ПРИМАЊА ОД ПРОДАЈЕ ОСТАЛИХ ОСНОВНИХ СРЕДСТАВА (88) | D134: =+Programska_aktivnost!D134+Sheet1!D134+'Захтев за додатна сред.'!D134+Projekat!D134+Sheet2!D134 -> 0 | E134: =+Programska_aktivnost!E134+Sheet1!E134+'Захтев за додатна сред.'!E134+Projekat!E134+Sheet2!E134 -> 0 | F134: =+Programska_aktivnost!F134+Sheet1!F134+'Захтев за додатна сред.'!F134+Projekat!F134+Sheet2!F134 -> 0 | G134: =+Programska_aktivnost!G134+Sheet1!G134+'Захтев за додатна сред.'!G134+Projekat!G134+Sheet2!G134 -> 0 | H134: =+Programska_aktivnost!H134+Sheet1!H134+'Захтев за додатна сред.'!H134+Projekat!H134+Sheet2!H134 -> 0 | I134: =+Programska_aktivnost!I134+Sheet1!I134+'Захтев за додатна сред.'!I134+Projekat!I134+Sheet2!I134 -> 0 | J134: =+Programska_aktivnost!J134+Sheet1!J134+'Захтев за додатна сред.'!J134+Projekat!J134+Sheet2!J134 -> 0 | K134: =+Programska_aktivnost!K134+Sheet1!K134+'Захтев за додатна сред.'!K134+Projekat!K134+Sheet2!K134 -> 0 | L134: =+Programska_aktivnost!L134+Sheet1!L134+'Захтев за додатна сред.'!L134+Projekat!L134+Sheet2!L134 -> 0 | M134: =+Programska_aktivnost!M134+Sheet1!M134+'Захтев за додатна сред.'!M134+Projekat!M134+Sheet2!M134 -> 0 | N134: 0 | O134: 0 | Y134: 0
A135: 88 | B135: 813100 | C135: Примања од продаје осталих основних средстава | D135: =+Programska_aktivnost!D135+Sheet1!D135+'Захтев за додатна сред.'!D135+Projekat!D135+Sheet2!D135 -> 0 | E135: =+Programska_aktivnost!E135+Sheet1!E135+'Захтев за додатна сред.'!E135+Projekat!E135+Sheet2!E135 -> 0 | F135: =+Programska_aktivnost!F135+Sheet1!F135+'Захтев за додатна сред.'!F135+Projekat!F135+Sheet2!F135 -> 0 | G135: =+Programska_aktivnost!G135+Sheet1!G135+'Захтев за додатна сред.'!G135+Projekat!G135+Sheet2!G135 -> 0 | H135: =+Programska_aktivnost!H135+Sheet1!H135+'Захтев за додатна сред.'!H135+Projekat!H135+Sheet2!H135 -> 0 | I135: =+Programska_aktivnost!I135+Sheet1!I135+'Захтев за додатна сред.'!I135+Projekat!I135+Sheet2!I135 -> 0 | J135: =+Programska_aktivnost!J135+Sheet1!J135+'Захтев за додатна сред.'!J135+Projekat!J135+Sheet2!J135 -> 0 | K135: =+Programska_aktivnost!K135+Sheet1!K135+'Захтев за додатна сред.'!K135+Projekat!K135+Sheet2!K135 -> 0 | L135: =+Programska_aktivnost!L135+Sheet1!L135+'Захтев за додатна сред.'!L135+Projekat!L135+Sheet2!L135 -> 0 | M135: =+Programska_aktivnost!M135+Sheet1!M135+'Захтев за додатна сред.'!M135+Projekat!M135+Sheet2!M135 -> 0 | N135: 0 | O135: 0 | Y135: 0
A136: 89 | B136: 820000 | C136: ПРИМАЊА ОД ПРОДАЈЕ ЗАЛИХА (90 + 92 + 94) | D136: =+Programska_aktivnost!D136+Sheet1!D136+'Захтев за додатна сред.'!D136+Projekat!D136+Sheet2!D136 -> 0 | E136: =+Programska_aktivnost!E136+Sheet1!E136+'Захтев за додатна сред.'!E136+Projekat!E136+Sheet2!E136 -> 0 | F136: =+Programska_aktivnost!F136+Sheet1!F136+'Захтев за додатна сред.'!F136+Projekat!F136+Sheet2!F136 -> 0 | G136: =+Programska_aktivnost!G136+Sheet1!G136+'Захтев за додатна сред.'!G136+Projekat!G136+Sheet2!G136 -> 0 | H136: =+Programska_aktivnost!H136+Sheet1!H136+'Захтев за додатна сред.'!H136+Projekat!H136+Sheet2!H136 -> 0 | I136: =+Programska_aktivnost!I136+Sheet1!I136+'Захтев за додатна сред.'!I136+Projekat!I136+Sheet2!I136 -> 0 | J136: =+Programska_aktivnost!J136+Sheet1!J136+'Захтев за додатна сред.'!J136+Projekat!J136+Sheet2!J136 -> 0 | K136: =+Programska_aktivnost!K136+Sheet1!K136+'Захтев за додатна сред.'!K136+Projekat!K136+Sheet2!K136 -> 0 | L136: =+Programska_aktivnost!L136+Sheet1!L136+'Захтев за додатна сред.'!L136+Projekat!L136+Sheet2!L136 -> 0 | M136: =+Programska_aktivnost!M136+Sheet1!M136+'Захтев за додатна сред.'!M136+Projekat!M136+Sheet2!M136 -> 0 | N136: 0 | O136: 0 | Y136: 0
A137: 90 | B137: 821000 | C137: ПРИМАЊА ОД ПРОДАЈЕ РОБНИХ РЕЗЕРВИ (91) | D137: =+Programska_aktivnost!D137+Sheet1!D137+'Захтев за додатна сред.'!D137+Projekat!D137+Sheet2!D137 -> 0 | E137: =+Programska_aktivnost!E137+Sheet1!E137+'Захтев за додатна сред.'!E137+Projekat!E137+Sheet2!E137 -> 0 | F137: =+Programska_aktivnost!F137+Sheet1!F137+'Захтев за додатна сред.'!F137+Projekat!F137+Sheet2!F137 -> 0 | G137: =+Programska_aktivnost!G137+Sheet1!G137+'Захтев за додатна сред.'!G137+Projekat!G137+Sheet2!G137 -> 0 | H137: =+Programska_aktivnost!H137+Sheet1!H137+'Захтев за додатна сред.'!H137+Projekat!H137+Sheet2!H137 -> 0 | I137: =+Programska_aktivnost!I137+Sheet1!I137+'Захтев за додатна сред.'!I137+Projekat!I137+Sheet2!I137 -> 0 | J137: =+Programska_aktivnost!J137+Sheet1!J137+'Захтев за додатна сред.'!J137+Projekat!J137+Sheet2!J137 -> 0 | K137: =+Programska_aktivnost!K137+Sheet1!K137+'Захтев за додатна сред.'!K137+Projekat!K137+Sheet2!K137 -> 0 | L137: =+Programska_aktivnost!L137+Sheet1!L137+'Захтев за додатна сред.'!L137+Projekat!L137+Sheet2!L137 -> 0 | M137: =+Programska_aktivnost!M137+Sheet1!M137+'Захтев за додатна сред.'!M137+Projekat!M137+Sheet2!M137 -> 0 | N137: 0 | O137: 0 | Y137: 0
A138: 91 | B138: 821100 | C138: Примања од продаје робних резерви | D138: =+Programska_aktivnost!D138+Sheet1!D138+'Захтев за додатна сред.'!D138+Projekat!D138+Sheet2!D138 -> 0 | E138: =+Programska_aktivnost!E138+Sheet1!E138+'Захтев за додатна сред.'!E138+Projekat!E138+Sheet2!E138 -> 0 | F138: =+Programska_aktivnost!F138+Sheet1!F138+'Захтев за додатна сред.'!F138+Projekat!F138+Sheet2!F138 -> 0 | G138: =+Programska_aktivnost!G138+Sheet1!G138+'Захтев за додатна сред.'!G138+Projekat!G138+Sheet2!G138 -> 0 | H138: =+Programska_aktivnost!H138+Sheet1!H138+'Захтев за додатна сред.'!H138+Projekat!H138+Sheet2!H138 -> 0 | I138: =+Programska_aktivnost!I138+Sheet1!I138+'Захтев за додатна сред.'!I138+Projekat!I138+Sheet2!I138 -> 0 | J138: =+Programska_aktivnost!J138+Sheet1!J138+'Захтев за додатна сред.'!J138+Projekat!J138+Sheet2!J138 -> 0 | K138: =+Programska_aktivnost!K138+Sheet1!K138+'Захтев за додатна сред.'!K138+Projekat!K138+Sheet2!K138 -> 0 | L138: =+Programska_aktivnost!L138+Sheet1!L138+'Захтев за додатна сред.'!L138+Projekat!L138+Sheet2!L138 -> 0 | M138: =+Programska_aktivnost!M138+Sheet1!M138+'Захтев за додатна сред.'!M138+Projekat!M138+Sheet2!M138 -> 0 | N138: 0 | O138: 0 | Y138: 0
A139: 92 | B139: 822000 | C139: ПРИМАЊА ОД ПРОДАЈЕ ЗАЛИХА ПРОИЗВОДЊЕ (93) | D139: =+Programska_aktivnost!D139+Sheet1!D139+'Захтев за додатна сред.'!D139+Projekat!D139+Sheet2!D139 -> 0 | E139: =+Programska_aktivnost!E139+Sheet1!E139+'Захтев за додатна сред.'!E139+Projekat!E139+Sheet2!E139 -> 0 | F139: =+Programska_aktivnost!F139+Sheet1!F139+'Захтев за додатна сред.'!F139+Projekat!F139+Sheet2!F139 -> 0 | G139: =+Programska_aktivnost!G139+Sheet1!G139+'Захтев за додатна сред.'!G139+Projekat!G139+Sheet2!G139 -> 0 | H139: =+Programska_aktivnost!H139+Sheet1!H139+'Захтев за додатна сред.'!H139+Projekat!H139+Sheet2!H139 -> 0 | I139: =+Programska_aktivnost!I139+Sheet1!I139+'Захтев за додатна сред.'!I139+Projekat!I139+Sheet2!I139 -> 0 | J139: =+Programska_aktivnost!J139+Sheet1!J139+'Захтев за додатна сред.'!J139+Projekat!J139+Sheet2!J139 -> 0 | K139: =+Programska_aktivnost!K139+Sheet1!K139+'Захтев за додатна сред.'!K139+Projekat!K139+Sheet2!K139 -> 0 | L139: =+Programska_aktivnost!L139+Sheet1!L139+'Захтев за додатна сред.'!L139+Projekat!L139+Sheet2!L139 -> 0 | M139: =+Programska_aktivnost!M139+Sheet1!M139+'Захтев за додатна сред.'!M139+Projekat!M139+Sheet2!M139 -> 0 | N139: 0 | O139: 0 | Y139: 0
A140: 93 | B140: 822100 | C140: Примања од продаје залиха производње | D140: =+Programska_aktivnost!D140+Sheet1!D140+'Захтев за додатна сред.'!D140+Projekat!D140+Sheet2!D140 -> 0 | E140: =+Programska_aktivnost!E140+Sheet1!E140+'Захтев за додатна сред.'!E140+Projekat!E140+Sheet2!E140 -> 0 | F140: =+Programska_aktivnost!F140+Sheet1!F140+'Захтев за додатна сред.'!F140+Projekat!F140+Sheet2!F140 -> 0 | G140: =+Programska_aktivnost!G140+Sheet1!G140+'Захтев за додатна сред.'!G140+Projekat!G140+Sheet2!G140 -> 0 | H140: =+Programska_aktivnost!H140+Sheet1!H140+'Захтев за додатна сред.'!H140+Projekat!H140+Sheet2!H140 -> 0 | I140: =+Programska_aktivnost!I140+Sheet1!I140+'Захтев за додатна сред.'!I140+Projekat!I140+Sheet2!I140 -> 0 | J140: =+Programska_aktivnost!J140+Sheet1!J140+'Захтев за додатна сред.'!J140+Projekat!J140+Sheet2!J140 -> 0 | K140: =+Programska_aktivnost!K140+Sheet1!K140+'Захтев за додатна сред.'!K140+Projekat!K140+Sheet2!K140 -> 0 | L140: =+Programska_aktivnost!L140+Sheet1!L140+'Захтев за додатна сред.'!L140+Projekat!L140+Sheet2!L140 -> 0 | M140: =+Programska_aktivnost!M140+Sheet1!M140+'Захтев за додатна сред.'!M140+Projekat!M140+Sheet2!M140 -> 0 | N140: 0 | O140: 0 | Y140: 0
A141: 94 | B141: 823000 | C141: ПРИМАЊА ОД ПРОДАЈЕ РОБЕ ЗА ДАЉУ ПРОДАЈУ (95) | D141: =+Programska_aktivnost!D141+Sheet1!D141+'Захтев за додатна сред.'!D141+Projekat!D141+Sheet2!D141 -> 0 | E141: =+Programska_aktivnost!E141+Sheet1!E141+'Захтев за додатна сред.'!E141+Projekat!E141+Sheet2!E141 -> 0 | F141: =+Programska_aktivnost!F141+Sheet1!F141+'Захтев за додатна сред.'!F141+Projekat!F141+Sheet2!F141 -> 0 | G141: =+Programska_aktivnost!G141+Sheet1!G141+'Захтев за додатна сред.'!G141+Projekat!G141+Sheet2!G141 -> 0 | H141: =+Programska_aktivnost!H141+Sheet1!H141+'Захтев за додатна сред.'!H141+Projekat!H141+Sheet2!H141 -> 0 | I141: =+Programska_aktivnost!I141+Sheet1!I141+'Захтев за додатна сред.'!I141+Projekat!I141+Sheet2!I141 -> 0 | J141: =+Programska_aktivnost!J141+Sheet1!J141+'Захтев за додатна сред.'!J141+Projekat!J141+Sheet2!J141 -> 0 | K141: =+Programska_aktivnost!K141+Sheet1!K141+'Захтев за додатна сред.'!K141+Projekat!K141+Sheet2!K141 -> 0 | L141: =+Programska_aktivnost!L141+Sheet1!L141+'Захтев за додатна сред.'!L141+Projekat!L141+Sheet2!L141 -> 0 | M141: =+Programska_aktivnost!M141+Sheet1!M141+'Захтев за додатна сред.'!M141+Projekat!M141+Sheet2!M141 -> 0 | N141: 0 | O141: 0 | Y141: 0
A142: 95 | B142: 823100 | C142: Примања од продаје робе за даљу продају | D142: =+Programska_aktivnost!D142+Sheet1!D142+'Захтев за додатна сред.'!D142+Projekat!D142+Sheet2!D142 -> 0 | E142: =+Programska_aktivnost!E142+Sheet1!E142+'Захтев за додатна сред.'!E142+Projekat!E142+Sheet2!E142 -> 0 | F142: =+Programska_aktivnost!F142+Sheet1!F142+'Захтев за додатна сред.'!F142+Projekat!F142+Sheet2!F142 -> 0 | G142: =+Programska_aktivnost!G142+Sheet1!G142+'Захтев за додатна сред.'!G142+Projekat!G142+Sheet2!G142 -> 0 | H142: =+Programska_aktivnost!H142+Sheet1!H142+'Захтев за додатна сред.'!H142+Projekat!H142+Sheet2!H142 -> 0 | I142: =+Programska_aktivnost!I142+Sheet1!I142+'Захтев за додатна сред.'!I142+Projekat!I142+Sheet2!I142 -> 0 | J142: =+Programska_aktivnost!J142+Sheet1!J142+'Захтев за додатна сред.'!J142+Projekat!J142+Sheet2!J142 -> 0 | K142: =+Programska_aktivnost!K142+Sheet1!K142+'Захтев за додатна сред.'!K142+Projekat!K142+Sheet2!K142 -> 0 | L142: =+Programska_aktivnost!L142+Sheet1!L142+'Захтев за додатна сред.'!L142+Projekat!L142+Sheet2!L142 -> 0 | M142: =+Programska_aktivnost!M142+Sheet1!M142+'Захтев за додатна сред.'!M142+Projekat!M142+Sheet2!M142 -> 0 | N142: 0 | O142: 0 | Y142: 0
A143: 96 | B143: 830000 | C143: ПРИМАЊА ОД ПРОДАЈЕ ДРАГОЦЕНОСТИ (97) | D143: =+Programska_aktivnost!D143+Sheet1!D143+'Захтев за додатна сред.'!D143+Projekat!D143+Sheet2!D143 -> 0 | E143: =+Programska_aktivnost!E143+Sheet1!E143+'Захтев за додатна сред.'!E143+Projekat!E143+Sheet2!E143 -> 0 | F143: =+Programska_aktivnost!F143+Sheet1!F143+'Захтев за додатна сред.'!F143+Projekat!F143+Sheet2!F143 -> 0 | G143: =+Programska_aktivnost!G143+Sheet1!G143+'Захтев за додатна сред.'!G143+Projekat!G143+Sheet2!G143 -> 0 | H143: =+Programska_aktivnost!H143+Sheet1!H143+'Захтев за додатна сред.'!H143+Projekat!H143+Sheet2!H143 -> 0 | I143: =+Programska_aktivnost!I143+Sheet1!I143+'Захтев за додатна сред.'!I143+Projekat!I143+Sheet2!I143 -> 0 | J143: =+Programska_aktivnost!J143+Sheet1!J143+'Захтев за додатна сред.'!J143+Projekat!J143+Sheet2!J143 -> 0 | K143: =+Programska_aktivnost!K143+Sheet1!K143+'Захтев за додатна сред.'!K143+Projekat!K143+Sheet2!K143 -> 0 | L143: =+Programska_aktivnost!L143+Sheet1!L143+'Захтев за додатна сред.'!L143+Projekat!L143+Sheet2!L143 -> 0 | M143: =+Programska_aktivnost!M143+Sheet1!M143+'Захтев за додатна сред.'!M143+Projekat!M143+Sheet2!M143 -> 0 | N143: 0 | O143: 0 | Y143: 0
A144: 97 | B144: 831000 | C144: ПРИМАЊА ОД ПРОДАЈЕ ДРАГОЦЕНОСТИ (98) | D144: =+Programska_aktivnost!D144+Sheet1!D144+'Захтев за додатна сред.'!D144+Projekat!D144+Sheet2!D144 -> 0 | E144: =+Programska_aktivnost!E144+Sheet1!E144+'Захтев за додатна сред.'!E144+Projekat!E144+Sheet2!E144 -> 0 | F144: =+Programska_aktivnost!F144+Sheet1!F144+'Захтев за додатна сред.'!F144+Projekat!F144+Sheet2!F144 -> 0 | G144: =+Programska_aktivnost!G144+Sheet1!G144+'Захтев за додатна сред.'!G144+Projekat!G144+Sheet2!G144 -> 0 | H144: =+Programska_aktivnost!H144+Sheet1!H144+'Захтев за додатна сред.'!H144+Projekat!H144+Sheet2!H144 -> 0 | I144: =+Programska_aktivnost!I144+Sheet1!I144+'Захтев за додатна сред.'!I144+Projekat!I144+Sheet2!I144 -> 0 | J144: =+Programska_aktivnost!J144+Sheet1!J144+'Захтев за додатна сред.'!J144+Projekat!J144+Sheet2!J144 -> 0 | K144: =+Programska_aktivnost!K144+Sheet1!K144+'Захтев за додатна сред.'!K144+Projekat!K144+Sheet2!K144 -> 0 | L144: =+Programska_aktivnost!L144+Sheet1!L144+'Захтев за додатна сред.'!L144+Projekat!L144+Sheet2!L144 -> 0 | M144: =+Programska_aktivnost!M144+Sheet1!M144+'Захтев за додатна сред.'!M144+Projekat!M144+Sheet2!M144 -> 0 | N144: 0 | O144: 0 | Y144: 0
A145: 98 | B145: 831100 | C145: Примања од продаје драгоцености | D145: =+Programska_aktivnost!D145+Sheet1!D145+'Захтев за додатна сред.'!D145+Projekat!D145+Sheet2!D145 -> 0 | E145: =+Programska_aktivnost!E145+Sheet1!E145+'Захтев за додатна сред.'!E145+Projekat!E145+Sheet2!E145 -> 0 | F145: =+Programska_aktivnost!F145+Sheet1!F145+'Захтев за додатна сред.'!F145+Projekat!F145+Sheet2!F145 -> 0 | G145: =+Programska_aktivnost!G145+Sheet1!G145+'Захтев за додатна сред.'!G145+Projekat!G145+Sheet2!G145 -> 0 | H145: =+Programska_aktivnost!H145+Sheet1!H145+'Захтев за додатна сред.'!H145+Projekat!H145+Sheet2!H145 -> 0 | I145: =+Programska_aktivnost!I145+Sheet1!I145+'Захтев за додатна сред.'!I145+Projekat!I145+Sheet2!I145 -> 0 | J145: =+Programska_aktivnost!J145+Sheet1!J145+'Захтев за додатна сред.'!J145+Projekat!J145+Sheet2!J145 -> 0 | K145: =+Programska_aktivnost!K145+Sheet1!K145+'Захтев за додатна сред.'!K145+Projekat!K145+Sheet2!K145 -> 0 | L145: =+Programska_aktivnost!L145+Sheet1!L145+'Захтев за додатна сред.'!L145+Projekat!L145+Sheet2!L145 -> 0 | M145: =+Programska_aktivnost!M145+Sheet1!M145+'Захтев за додатна сред.'!M145+Projekat!M145+Sheet2!M145 -> 0 | N145: 0 | O145: 0 | Y145: 0
A146: 99 | B146: 840000 | C146: ПРИМАЊА ОД ПРОДАЈЕ ПРИРОДНЕ ИМОВИНЕ (100 + 102 + 104) | D146: =+Programska_aktivnost!D146+Sheet1!D146+'Захтев за додатна сред.'!D146+Projekat!D146+Sheet2!D146 -> 0 | E146: =+Programska_aktivnost!E146+Sheet1!E146+'Захтев за додатна сред.'!E146+Projekat!E146+Sheet2!E146 -> 0 | F146: =+Programska_aktivnost!F146+Sheet1!F146+'Захтев за додатна сред.'!F146+Projekat!F146+Sheet2!F146 -> 0 | G146: =+Programska_aktivnost!G146+Sheet1!G146+'Захтев за додатна сред.'!G146+Projekat!G146+Sheet2!G146 -> 0 | H146: =+Programska_aktivnost!H146+Sheet1!H146+'Захтев за додатна сред.'!H146+Projekat!H146+Sheet2!H146 -> 0 | I146: =+Programska_aktivnost!I146+Sheet1!I146+'Захтев за додатна сред.'!I146+Projekat!I146+Sheet2!I146 -> 0 | J146: =+Programska_aktivnost!J146+Sheet1!J146+'Захтев за додатна сред.'!J146+Projekat!J146+Sheet2!J146 -> 0 | K146: =+Programska_aktivnost!K146+Sheet1!K146+'Захтев за додатна сред.'!K146+Projekat!K146+Sheet2!K146 -> 0 | L146: =+Programska_aktivnost!L146+Sheet1!L146+'Захтев за додатна сред.'!L146+Projekat!L146+Sheet2!L146 -> 0 | M146: =+Programska_aktivnost!M146+Sheet1!M146+'Захтев за додатна сред.'!M146+Projekat!M146+Sheet2!M146 -> 0 | N146: 0 | O146: 0 | Y146: 0
A147: 100 | B147: 841000 | C147: ПРИМАЊА ОД ПРОДАЈЕ ЗЕМЉИШТА (101) | D147: =+Programska_aktivnost!D147+Sheet1!D147+'Захтев за додатна сред.'!D147+Projekat!D147+Sheet2!D147 -> 0 | E147: =+Programska_aktivnost!E147+Sheet1!E147+'Захтев за додатна сред.'!E147+Projekat!E147+Sheet2!E147 -> 0 | F147: =+Programska_aktivnost!F147+Sheet1!F147+'Захтев за додатна сред.'!F147+Projekat!F147+Sheet2!F147 -> 0 | G147: =+Programska_aktivnost!G147+Sheet1!G147+'Захтев за додатна сред.'!G147+Projekat!G147+Sheet2!G147 -> 0 | H147: =+Programska_aktivnost!H147+Sheet1!H147+'Захтев за додатна сред.'!H147+Projekat!H147+Sheet2!H147 -> 0 | I147: =+Programska_aktivnost!I147+Sheet1!I147+'Захтев за додатна сред.'!I147+Projekat!I147+Sheet2!I147 -> 0 | J147: =+Programska_aktivnost!J147+Sheet1!J147+'Захтев за додатна сред.'!J147+Projekat!J147+Sheet2!J147 -> 0 | K147: =+Programska_aktivnost!K147+Sheet1!K147+'Захтев за додатна сред.'!K147+Projekat!K147+Sheet2!K147 -> 0 | L147: =+Programska_aktivnost!L147+Sheet1!L147+'Захтев за додатна сред.'!L147+Projekat!L147+Sheet2!L147 -> 0 | M147: =+Programska_aktivnost!M147+Sheet1!M147+'Захтев за додатна сред.'!M147+Projekat!M147+Sheet2!M147 -> 0 | N147: 0 | O147: 0 | Y147: 0
A148: 101 | B148: 841100 | C148: Примања од продаје земљишта | D148: =+Programska_aktivnost!D148+Sheet1!D148+'Захтев за додатна сред.'!D148+Projekat!D148+Sheet2!D148 -> 0 | E148: =+Programska_aktivnost!E148+Sheet1!E148+'Захтев за додатна сред.'!E148+Projekat!E148+Sheet2!E148 -> 0 | F148: =+Programska_aktivnost!F148+Sheet1!F148+'Захтев за додатна сред.'!F148+Projekat!F148+Sheet2!F148 -> 0 | G148: =+Programska_aktivnost!G148+Sheet1!G148+'Захтев за додатна сред.'!G148+Projekat!G148+Sheet2!G148 -> 0 | H148: =+Programska_aktivnost!H148+Sheet1!H148+'Захтев за додатна сред.'!H148+Projekat!H148+Sheet2!H148 -> 0 | I148: =+Programska_aktivnost!I148+Sheet1!I148+'Захтев за додатна сред.'!I148+Projekat!I148+Sheet2!I148 -> 0 | J148: =+Programska_aktivnost!J148+Sheet1!J148+'Захтев за додатна сред.'!J148+Projekat!J148+Sheet2!J148 -> 0 | K148: =+Programska_aktivnost!K148+Sheet1!K148+'Захтев за додатна сред.'!K148+Projekat!K148+Sheet2!K148 -> 0 | L148: =+Programska_aktivnost!L148+Sheet1!L148+'Захтев за додатна сред.'!L148+Projekat!L148+Sheet2!L148 -> 0 | M148: =+Programska_aktivnost!M148+Sheet1!M148+'Захтев за додатна сред.'!M148+Projekat!M148+Sheet2!M148 -> 0 | N148: 0 | O148: 0 | Y148: 0
A149: 102 | B149: 842000 | C149: ПРИМАЊА ОД ПРОДАЈЕ ПОДЗЕМНИХ БЛАГА (103) | D149: =+Programska_aktivnost!D149+Sheet1!D149+'Захтев за додатна сред.'!D149+Projekat!D149+Sheet2!D149 -> 0 | E149: =+Programska_aktivnost!E149+Sheet1!E149+'Захтев за додатна сред.'!E149+Projekat!E149+Sheet2!E149 -> 0 | F149: =+Programska_aktivnost!F149+Sheet1!F149+'Захтев за додатна сред.'!F149+Projekat!F149+Sheet2!F149 -> 0 | G149: =+Programska_aktivnost!G149+Sheet1!G149+'Захтев за додатна сред.'!G149+Projekat!G149+Sheet2!G149 -> 0 | H149: =+Programska_aktivnost!H149+Sheet1!H149+'Захтев за додатна сред.'!H149+Projekat!H149+Sheet2!H149 -> 0 | I149: =+Programska_aktivnost!I149+Sheet1!I149+'Захтев за додатна сред.'!I149+Projekat!I149+Sheet2!I149 -> 0 | J149: =+Programska_aktivnost!J149+Sheet1!J149+'Захтев за додатна сред.'!J149+Projekat!J149+Sheet2!J149 -> 0 | K149: =+Programska_aktivnost!K149+Sheet1!K149+'Захтев за додатна сред.'!K149+Projekat!K149+Sheet2!K149 -> 0 | L149: =+Programska_aktivnost!L149+Sheet1!L149+'Захтев за додатна сред.'!L149+Projekat!L149+Sheet2!L149 -> 0 | M149: =+Programska_aktivnost!M149+Sheet1!M149+'Захтев за додатна сред.'!M149+Projekat!M149+Sheet2!M149 -> 0 | N149: 0 | O149: 0 | Y149: 0
A150: 103 | B150: 842100 | C150: Примања од продаје подземних блага | D150: =+Programska_aktivnost!D150+Sheet1!D150+'Захтев за додатна сред.'!D150+Projekat!D150+Sheet2!D150 -> 0 | E150: =+Programska_aktivnost!E150+Sheet1!E150+'Захтев за додатна сред.'!E150+Projekat!E150+Sheet2!E150 -> 0 | F150: =+Programska_aktivnost!F150+Sheet1!F150+'Захтев за додатна сред.'!F150+Projekat!F150+Sheet2!F150 -> 0 | G150: =+Programska_aktivnost!G150+Sheet1!G150+'Захтев за додатна сред.'!G150+Projekat!G150+Sheet2!G150 -> 0 | H150: =+Programska_aktivnost!H150+Sheet1!H150+'Захтев за додатна сред.'!H150+Projekat!H150+Sheet2!H150 -> 0 | I150: =+Programska_aktivnost!I150+Sheet1!I150+'Захтев за додатна сред.'!I150+Projekat!I150+Sheet2!I150 -> 0 | J150: =+Programska_aktivnost!J150+Sheet1!J150+'Захтев за додатна сред.'!J150+Projekat!J150+Sheet2!J150 -> 0 | K150: =+Programska_aktivnost!K150+Sheet1!K150+'Захтев за додатна сред.'!K150+Projekat!K150+Sheet2!K150 -> 0 | L150: =+Programska_aktivnost!L150+Sheet1!L150+'Захтев за додатна сред.'!L150+Projekat!L150+Sheet2!L150 -> 0 | M150: =+Programska_aktivnost!M150+Sheet1!M150+'Захтев за додатна сред.'!M150+Projekat!M150+Sheet2!M150 -> 0 | N150: 0 | O150: 0 | Y150: 0
A151: 104 | B151: 843000 | C151: ПРИМАЊА ОД ПРОДАЈЕ ШУМА И ВОДА (105) | D151: =+Programska_aktivnost!D151+Sheet1!D151+'Захтев за додатна сред.'!D151+Projekat!D151+Sheet2!D151 -> 0 | E151: =+Programska_aktivnost!E151+Sheet1!E151+'Захтев за додатна сред.'!E151+Projekat!E151+Sheet2!E151 -> 0 | F151: =+Programska_aktivnost!F151+Sheet1!F151+'Захтев за додатна сред.'!F151+Projekat!F151+Sheet2!F151 -> 0 | G151: =+Programska_aktivnost!G151+Sheet1!G151+'Захтев за додатна сред.'!G151+Projekat!G151+Sheet2!G151 -> 0 | H151: =+Programska_aktivnost!H151+Sheet1!H151+'Захтев за додатна сред.'!H151+Projekat!H151+Sheet2!H151 -> 0 | I151: =+Programska_aktivnost!I151+Sheet1!I151+'Захтев за додатна сред.'!I151+Projekat!I151+Sheet2!I151 -> 0 | J151: =+Programska_aktivnost!J151+Sheet1!J151+'Захтев за додатна сред.'!J151+Projekat!J151+Sheet2!J151 -> 0 | K151: =+Programska_aktivnost!K151+Sheet1!K151+'Захтев за додатна сред.'!K151+Projekat!K151+Sheet2!K151 -> 0 | L151: =+Programska_aktivnost!L151+Sheet1!L151+'Захтев за додатна сред.'!L151+Projekat!L151+Sheet2!L151 -> 0 | M151: =+Programska_aktivnost!M151+Sheet1!M151+'Захтев за додатна сред.'!M151+Projekat!M151+Sheet2!M151 -> 0 | N151: 0 | O151: 0 | Y151: 0
A152: 105 | B152: 843100 | C152: Примања од продаје шума и вода | D152: =+Programska_aktivnost!D152+Sheet1!D152+'Захтев за додатна сред.'!D152+Projekat!D152+Sheet2!D152 -> 0 | E152: =+Programska_aktivnost!E152+Sheet1!E152+'Захтев за додатна сред.'!E152+Projekat!E152+Sheet2!E152 -> 0 | F152: =+Programska_aktivnost!F152+Sheet1!F152+'Захтев за додатна сред.'!F152+Projekat!F152+Sheet2!F152 -> 0 | G152: =+Programska_aktivnost!G152+Sheet1!G152+'Захтев за додатна сред.'!G152+Projekat!G152+Sheet2!G152 -> 0 | H152: =+Programska_aktivnost!H152+Sheet1!H152+'Захтев за додатна сред.'!H152+Projekat!H152+Sheet2!H152 -> 0 | I152: =+Programska_aktivnost!I152+Sheet1!I152+'Захтев за додатна сред.'!I152+Projekat!I152+Sheet2!I152 -> 0 | J152: =+Programska_aktivnost!J152+Sheet1!J152+'Захтев за додатна сред.'!J152+Projekat!J152+Sheet2!J152 -> 0 | K152: =+Programska_aktivnost!K152+Sheet1!K152+'Захтев за додатна сред.'!K152+Projekat!K152+Sheet2!K152 -> 0 | L152: =+Programska_aktivnost!L152+Sheet1!L152+'Захтев за додатна сред.'!L152+Projekat!L152+Sheet2!L152 -> 0 | M152: =+Programska_aktivnost!M152+Sheet1!M152+'Захтев за додатна сред.'!M152+Projekat!M152+Sheet2!M152 -> 0 | N152: =SUM(H152,J152,L152) -> 0 | O152: 0 | Y152: 0
A153: 106 | B153: 900000 | C153: ПРИМАЊА ОД ЗАДУЖИВАЊА И ПРОДАЈЕ ФИНАНСИЈСКЕ ИМОВИНЕ (107 + 126) | D153: =+Programska_aktivnost!D153+Sheet1!D153+'Захтев за додатна сред.'!D153+Projekat!D153+Sheet2!D153 -> 0 | E153: =+Programska_aktivnost!E153+Sheet1!E153+'Захтев за додатна сред.'!E153+Projekat!E153+Sheet2!E153 -> 0 | F153: =+Programska_aktivnost!F153+Sheet1!F153+'Захтев за додатна сред.'!F153+Projekat!F153+Sheet2!F153 -> 0 | G153: =+Programska_aktivnost!G153+Sheet1!G153+'Захтев за додатна сред.'!G153+Projekat!G153+Sheet2!G153 -> 0 | H153: =+Programska_aktivnost!H153+Sheet1!H153+'Захтев за додатна сред.'!H153+Projekat!H153+Sheet2!H153 -> 0 | I153: =+Programska_aktivnost!I153+Sheet1!I153+'Захтев за додатна сред.'!I153+Projekat!I153+Sheet2!I153 -> 0 | J153: =+Programska_aktivnost!J153+Sheet1!J153+'Захтев за додатна сред.'!J153+Projekat!J153+Sheet2!J153 -> 0 | K153: =+Programska_aktivnost!K153+Sheet1!K153+'Захтев за додатна сред.'!K153+Projekat!K153+Sheet2!K153 -> 0 | L153: =+Programska_aktivnost!L153+Sheet1!L153+'Захтев за додатна сред.'!L153+Projekat!L153+Sheet2!L153 -> 0 | M153: =+Programska_aktivnost!M153+Sheet1!M153+'Захтев за додатна сред.'!M153+Projekat!M153+Sheet2!M153 -> 0 | N153: 0 | O153: 0 | Y153: 0
A154: 107 | B154: 910000 | C154: ПРИМАЊА ОД ЗАДУЖИВАЊА (108+118) | D154: =+Programska_aktivnost!D154+Sheet1!D154+'Захтев за додатна сред.'!D154+Projekat!D154+Sheet2!D154 -> 0 | E154: =+Programska_aktivnost!E154+Sheet1!E154+'Захтев за додатна сред.'!E154+Projekat!E154+Sheet2!E154 -> 0 | F154: =+Programska_aktivnost!F154+Sheet1!F154+'Захтев за додатна сред.'!F154+Projekat!F154+Sheet2!F154 -> 0 | G154: =+Programska_aktivnost!G154+Sheet1!G154+'Захтев за додатна сред.'!G154+Projekat!G154+Sheet2!G154 -> 0 | H154: =+Programska_aktivnost!H154+Sheet1!H154+'Захтев за додатна сред.'!H154+Projekat!H154+Sheet2!H154 -> 0 | I154: =+Programska_aktivnost!I154+Sheet1!I154+'Захтев за додатна сред.'!I154+Projekat!I154+Sheet2!I154 -> 0 | J154: =+Programska_aktivnost!J154+Sheet1!J154+'Захтев за додатна сред.'!J154+Projekat!J154+Sheet2!J154 -> 0 | K154: =+Programska_aktivnost!K154+Sheet1!K154+'Захтев за додатна сред.'!K154+Projekat!K154+Sheet2!K154 -> 0 | L154: =+Programska_aktivnost!L154+Sheet1!L154+'Захтев за додатна сред.'!L154+Projekat!L154+Sheet2!L154 -> 0 | M154: =+Programska_aktivnost!M154+Sheet1!M154+'Захтев за додатна сред.'!M154+Projekat!M154+Sheet2!M154 -> 0 | N154: 0 | O154: 0 | Y154: 0
A155: 108 | B155: 911000 | C155: ПРИМАЊА ОД ДОМАЋИХ ЗАДУЖИВАЊА (од 109 до 117) | D155: =+Programska_aktivnost!D155+Sheet1!D155+'Захтев за додатна сред.'!D155+Projekat!D155+Sheet2!D155 -> 0 | E155: =+Programska_aktivnost!E155+Sheet1!E155+'Захтев за додатна сред.'!E155+Projekat!E155+Sheet2!E155 -> 0 | F155: =+Programska_aktivnost!F155+Sheet1!F155+'Захтев за додатна сред.'!F155+Projekat!F155+Sheet2!F155 -> 0 | G155: =+Programska_aktivnost!G155+Sheet1!G155+'Захтев за додатна сред.'!G155+Projekat!G155+Sheet2!G155 -> 0 | H155: =+Programska_aktivnost!H155+Sheet1!H155+'Захтев за додатна сред.'!H155+Projekat!H155+Sheet2!H155 -> 0 | I155: =+Programska_aktivnost!I155+Sheet1!I155+'Захтев за додатна сред.'!I155+Projekat!I155+Sheet2!I155 -> 0 | J155: =+Programska_aktivnost!J155+Sheet1!J155+'Захтев за додатна сред.'!J155+Projekat!J155+Sheet2!J155 -> 0 | K155: =+Programska_aktivnost!K155+Sheet1!K155+'Захтев за додатна сред.'!K155+Projekat!K155+Sheet2!K155 -> 0 | L155: =+Programska_aktivnost!L155+Sheet1!L155+'Захтев за додатна сред.'!L155+Projekat!L155+Sheet2!L155 -> 0 | M155: =+Programska_aktivnost!M155+Sheet1!M155+'Захтев за додатна сред.'!M155+Projekat!M155+Sheet2!M155 -> 0 | N155: 0 | O155: 0 | Y155: 0
A156: 109 | B156: 911100 | C156: Примања од емитовања домаћих хартија од вредности, изузев акција | D156: =+Programska_aktivnost!D156+Sheet1!D156+'Захтев за додатна сред.'!D156+Projekat!D156+Sheet2!D156 -> 0 | E156: =+Programska_aktivnost!E156+Sheet1!E156+'Захтев за додатна сред.'!E156+Projekat!E156+Sheet2!E156 -> 0 | F156: =+Programska_aktivnost!F156+Sheet1!F156+'Захтев за додатна сред.'!F156+Projekat!F156+Sheet2!F156 -> 0 | G156: =+Programska_aktivnost!G156+Sheet1!G156+'Захтев за додатна сред.'!G156+Projekat!G156+Sheet2!G156 -> 0 | H156: =+Programska_aktivnost!H156+Sheet1!H156+'Захтев за додатна сред.'!H156+Projekat!H156+Sheet2!H156 -> 0 | I156: =+Programska_aktivnost!I156+Sheet1!I156+'Захтев за додатна сред.'!I156+Projekat!I156+Sheet2!I156 -> 0 | J156: =+Programska_aktivnost!J156+Sheet1!J156+'Захтев за додатна сред.'!J156+Projekat!J156+Sheet2!J156 -> 0 | K156: =+Programska_aktivnost!K156+Sheet1!K156+'Захтев за додатна сред.'!K156+Projekat!K156+Sheet2!K156 -> 0 | L156: =+Programska_aktivnost!L156+Sheet1!L156+'Захтев за додатна сред.'!L156+Projekat!L156+Sheet2!L156 -> 0 | M156: =+Programska_aktivnost!M156+Sheet1!M156+'Захтев за додатна сред.'!M156+Projekat!M156+Sheet2!M156 -> 0 | N156: 0 | O156: 0 | Y156: 0
A157: 110 | B157: 911200 | C157: Примања од задуживања од осталих нивоа власти | D157: =+Programska_aktivnost!D157+Sheet1!D157+'Захтев за додатна сред.'!D157+Projekat!D157+Sheet2!D157 -> 0 | E157: =+Programska_aktivnost!E157+Sheet1!E157+'Захтев за додатна сред.'!E157+Projekat!E157+Sheet2!E157 -> 0 | F157: =+Programska_aktivnost!F157+Sheet1!F157+'Захтев за додатна сред.'!F157+Projekat!F157+Sheet2!F157 -> 0 | G157: =+Programska_aktivnost!G157+Sheet1!G157+'Захтев за додатна сред.'!G157+Projekat!G157+Sheet2!G157 -> 0 | H157: =+Programska_aktivnost!H157+Sheet1!H157+'Захтев за додатна сред.'!H157+Projekat!H157+Sheet2!H157 -> 0 | I157: =+Programska_aktivnost!I157+Sheet1!I157+'Захтев за додатна сред.'!I157+Projekat!I157+Sheet2!I157 -> 0 | J157: =+Programska_aktivnost!J157+Sheet1!J157+'Захтев за додатна сред.'!J157+Projekat!J157+Sheet2!J157 -> 0 | K157: =+Programska_aktivnost!K157+Sheet1!K157+'Захтев за додатна сред.'!K157+Projekat!K157+Sheet2!K157 -> 0 | L157: =+Programska_aktivnost!L157+Sheet1!L157+'Захтев за додатна сред.'!L157+Projekat!L157+Sheet2!L157 -> 0 | M157: =+Programska_aktivnost!M157+Sheet1!M157+'Захтев за додатна сред.'!M157+Projekat!M157+Sheet2!M157 -> 0 | N157: 0 | O157: 0 | Y157: 0
A158: 111 | B158: 911300 | C158: Примања од задуживања од јавних финансијских институција у земљи | D158: =+Programska_aktivnost!D158+Sheet1!D158+'Захтев за додатна сред.'!D158+Projekat!D158+Sheet2!D158 -> 0 | E158: =+Programska_aktivnost!E158+Sheet1!E158+'Захтев за додатна сред.'!E158+Projekat!E158+Sheet2!E158 -> 0 | F158: =+Programska_aktivnost!F158+Sheet1!F158+'Захтев за додатна сред.'!F158+Projekat!F158+Sheet2!F158 -> 0 | G158: =+Programska_aktivnost!G158+Sheet1!G158+'Захтев за додатна сред.'!G158+Projekat!G158+Sheet2!G158 -> 0 | H158: =+Programska_aktivnost!H158+Sheet1!H158+'Захтев за додатна сред.'!H158+Projekat!H158+Sheet2!H158 -> 0 | I158: =+Programska_aktivnost!I158+Sheet1!I158+'Захтев за додатна сред.'!I158+Projekat!I158+Sheet2!I158 -> 0 | J158: =+Programska_aktivnost!J158+Sheet1!J158+'Захтев за додатна сред.'!J158+Projekat!J158+Sheet2!J158 -> 0 | K158: =+Programska_aktivnost!K158+Sheet1!K158+'Захтев за додатна сред.'!K158+Projekat!K158+Sheet2!K158 -> 0 | L158: =+Programska_aktivnost!L158+Sheet1!L158+'Захтев за додатна сред.'!L158+Projekat!L158+Sheet2!L158 -> 0 | M158: =+Programska_aktivnost!M158+Sheet1!M158+'Захтев за додатна сред.'!M158+Projekat!M158+Sheet2!M158 -> 0 | N158: 0 | O158: 0 | Y158: 0
A159: 112 | B159: 911400 | C159: Примања од задуживања од пословних банака у земљи | D159: =+Programska_aktivnost!D159+Sheet1!D159+'Захтев за додатна сред.'!D159+Projekat!D159+Sheet2!D159 -> 0 | E159: =+Programska_aktivnost!E159+Sheet1!E159+'Захтев за додатна сред.'!E159+Projekat!E159+Sheet2!E159 -> 0 | F159: =+Programska_aktivnost!F159+Sheet1!F159+'Захтев за додатна сред.'!F159+Projekat!F159+Sheet2!F159 -> 0 | G159: =+Programska_aktivnost!G159+Sheet1!G159+'Захтев за додатна сред.'!G159+Projekat!G159+Sheet2!G159 -> 0 | H159: =+Programska_aktivnost!H159+Sheet1!H159+'Захтев за додатна сред.'!H159+Projekat!H159+Sheet2!H159 -> 0 | I159: =+Programska_aktivnost!I159+Sheet1!I159+'Захтев за додатна сред.'!I159+Projekat!I159+Sheet2!I159 -> 0 | J159: =+Programska_aktivnost!J159+Sheet1!J159+'Захтев за додатна сред.'!J159+Projekat!J159+Sheet2!J159 -> 0 | K159: =+Programska_aktivnost!K159+Sheet1!K159+'Захтев за додатна сред.'!K159+Projekat!K159+Sheet2!K159 -> 0 | L159: =+Programska_aktivnost!L159+Sheet1!L159+'Захтев за додатна сред.'!L159+Projekat!L159+Sheet2!L159 -> 0 | M159: =+Programska_aktivnost!M159+Sheet1!M159+'Захтев за додатна сред.'!M159+Projekat!M159+Sheet2!M159 -> 0 | N159: 0 | O159: 0 | Y159: 0
A160: 113 | B160: 911500 | C160: Примања од задуживања код осталих поверилаца у земљи | D160: =+Programska_aktivnost!D160+Sheet1!D160+'Захтев за додатна сред.'!D160+Projekat!D160+Sheet2!D160 -> 0 | E160: =+Programska_aktivnost!E160+Sheet1!E160+'Захтев за додатна сред.'!E160+Projekat!E160+Sheet2!E160 -> 0 | F160: =+Programska_aktivnost!F160+Sheet1!F160+'Захтев за додатна сред.'!F160+Projekat!F160+Sheet2!F160 -> 0 | G160: =+Programska_aktivnost!G160+Sheet1!G160+'Захтев за додатна сред.'!G160+Projekat!G160+Sheet2!G160 -> 0 | H160: =+Programska_aktivnost!H160+Sheet1!H160+'Захтев за додатна сред.'!H160+Projekat!H160+Sheet2!H160 -> 0 | I160: =+Programska_aktivnost!I160+Sheet1!I160+'Захтев за додатна сред.'!I160+Projekat!I160+Sheet2!I160 -> 0 | J160: =+Programska_aktivnost!J160+Sheet1!J160+'Захтев за додатна сред.'!J160+Projekat!J160+Sheet2!J160 -> 0 | K160: =+Programska_aktivnost!K160+Sheet1!K160+'Захтев за додатна сред.'!K160+Projekat!K160+Sheet2!K160 -> 0 | L160: =+Programska_aktivnost!L160+Sheet1!L160+'Захтев за додатна сред.'!L160+Projekat!L160+Sheet2!L160 -> 0 | M160: =+Programska_aktivnost!M160+Sheet1!M160+'Захтев за додатна сред.'!M160+Projekat!M160+Sheet2!M160 -> 0 | N160: 0 | O160: 0 | Y160: 0
A161: 114 | B161: 911600 | C161: Примања од задуживања од домаћинстава у земљи | D161: =+Programska_aktivnost!D161+Sheet1!D161+'Захтев за додатна сред.'!D161+Projekat!D161+Sheet2!D161 -> 0 | E161: =+Programska_aktivnost!E161+Sheet1!E161+'Захтев за додатна сред.'!E161+Projekat!E161+Sheet2!E161 -> 0 | F161: =+Programska_aktivnost!F161+Sheet1!F161+'Захтев за додатна сред.'!F161+Projekat!F161+Sheet2!F161 -> 0 | G161: =+Programska_aktivnost!G161+Sheet1!G161+'Захтев за додатна сред.'!G161+Projekat!G161+Sheet2!G161 -> 0 | H161: =+Programska_aktivnost!H161+Sheet1!H161+'Захтев за додатна сред.'!H161+Projekat!H161+Sheet2!H161 -> 0 | I161: =+Programska_aktivnost!I161+Sheet1!I161+'Захтев за додатна сред.'!I161+Projekat!I161+Sheet2!I161 -> 0 | J161: =+Programska_aktivnost!J161+Sheet1!J161+'Захтев за додатна сред.'!J161+Projekat!J161+Sheet2!J161 -> 0 | K161: =+Programska_aktivnost!K161+Sheet1!K161+'Захтев за додатна сред.'!K161+Projekat!K161+Sheet2!K161 -> 0 | L161: =+Programska_aktivnost!L161+Sheet1!L161+'Захтев за додатна сред.'!L161+Projekat!L161+Sheet2!L161 -> 0 | M161: =+Programska_aktivnost!M161+Sheet1!M161+'Захтев за додатна сред.'!M161+Projekat!M161+Sheet2!M161 -> 0 | N161: 0 | O161: 0 | Y161: 0
A162: 115 | B162: 911700 | C162: Примања од домаћих финансијских деривата | D162: =+Programska_aktivnost!D162+Sheet1!D162+'Захтев за додатна сред.'!D162+Projekat!D162+Sheet2!D162 -> 0 | E162: =+Programska_aktivnost!E162+Sheet1!E162+'Захтев за додатна сред.'!E162+Projekat!E162+Sheet2!E162 -> 0 | F162: =+Programska_aktivnost!F162+Sheet1!F162+'Захтев за додатна сред.'!F162+Projekat!F162+Sheet2!F162 -> 0 | G162: =+Programska_aktivnost!G162+Sheet1!G162+'Захтев за додатна сред.'!G162+Projekat!G162+Sheet2!G162 -> 0 | H162: =+Programska_aktivnost!H162+Sheet1!H162+'Захтев за додатна сред.'!H162+Projekat!H162+Sheet2!H162 -> 0 | I162: =+Programska_aktivnost!I162+Sheet1!I162+'Захтев за додатна сред.'!I162+Projekat!I162+Sheet2!I162 -> 0 | J162: =+Programska_aktivnost!J162+Sheet1!J162+'Захтев за додатна сред.'!J162+Projekat!J162+Sheet2!J162 -> 0 | K162: =+Programska_aktivnost!K162+Sheet1!K162+'Захтев за додатна сред.'!K162+Projekat!K162+Sheet2!K162 -> 0 | L162: =+Programska_aktivnost!L162+Sheet1!L162+'Захтев за додатна сред.'!L162+Projekat!L162+Sheet2!L162 -> 0 | M162: =+Programska_aktivnost!M162+Sheet1!M162+'Захтев за додатна сред.'!M162+Projekat!M162+Sheet2!M162 -> 0 | N162: 0 | O162: 0 | Y162: 0
A163: 116 | B163: 911800 | C163: Примања од домаћих меница | D163: =+Programska_aktivnost!D163+Sheet1!D163+'Захтев за додатна сред.'!D163+Projekat!D163+Sheet2!D163 -> 0 | E163: =+Programska_aktivnost!E163+Sheet1!E163+'Захтев за додатна сред.'!E163+Projekat!E163+Sheet2!E163 -> 0 | F163: =+Programska_aktivnost!F163+Sheet1!F163+'Захтев за додатна сред.'!F163+Projekat!F163+Sheet2!F163 -> 0 | G163: =+Programska_aktivnost!G163+Sheet1!G163+'Захтев за додатна сред.'!G163+Projekat!G163+Sheet2!G163 -> 0 | H163: =+Programska_aktivnost!H163+Sheet1!H163+'Захтев за додатна сред.'!H163+Projekat!H163+Sheet2!H163 -> 0 | I163: =+Programska_aktivnost!I163+Sheet1!I163+'Захтев за додатна сред.'!I163+Projekat!I163+Sheet2!I163 -> 0 | J163: =+Programska_aktivnost!J163+Sheet1!J163+'Захтев за додатна сред.'!J163+Projekat!J163+Sheet2!J163 -> 0 | K163: =+Programska_aktivnost!K163+Sheet1!K163+'Захтев за додатна сред.'!K163+Projekat!K163+Sheet2!K163 -> 0 | L163: =+Programska_aktivnost!L163+Sheet1!L163+'Захтев за додатна сред.'!L163+Projekat!L163+Sheet2!L163 -> 0 | M163: =+Programska_aktivnost!M163+Sheet1!M163+'Захтев за додатна сред.'!M163+Projekat!M163+Sheet2!M163 -> 0 | N163: 0 | O163: 0 | Y163: 0
A164: 117 | B164: 911900 | C164: Исправка унутрашњег дуга | D164: =+Programska_aktivnost!D164+Sheet1!D164+'Захтев за додатна сред.'!D164+Projekat!D164+Sheet2!D164 -> 0 | E164: =+Programska_aktivnost!E164+Sheet1!E164+'Захтев за додатна сред.'!E164+Projekat!E164+Sheet2!E164 -> 0 | F164: =+Programska_aktivnost!F164+Sheet1!F164+'Захтев за додатна сред.'!F164+Projekat!F164+Sheet2!F164 -> 0 | G164: =+Programska_aktivnost!G164+Sheet1!G164+'Захтев за додатна сред.'!G164+Projekat!G164+Sheet2!G164 -> 0 | H164: =+Programska_aktivnost!H164+Sheet1!H164+'Захтев за додатна сред.'!H164+Projekat!H164+Sheet2!H164 -> 0 | I164: =+Programska_aktivnost!I164+Sheet1!I164+'Захтев за додатна сред.'!I164+Projekat!I164+Sheet2!I164 -> 0 | J164: =+Programska_aktivnost!J164+Sheet1!J164+'Захтев за додатна сред.'!J164+Projekat!J164+Sheet2!J164 -> 0 | K164: =+Programska_aktivnost!K164+Sheet1!K164+'Захтев за додатна сред.'!K164+Projekat!K164+Sheet2!K164 -> 0 | L164: =+Programska_aktivnost!L164+Sheet1!L164+'Захтев за додатна сред.'!L164+Projekat!L164+Sheet2!L164 -> 0 | M164: =+Programska_aktivnost!M164+Sheet1!M164+'Захтев за додатна сред.'!M164+Projekat!M164+Sheet2!M164 -> 0 | N164: 0 | O164: 0 | Y164: 0
A165: 118 | B165: 912000 | C165: ПРИМАЊА ОД ИНОСТРАНОГ ЗАДУЖИВАЊА (од 119 + 125) | D165: =+Programska_aktivnost!D165+Sheet1!D165+'Захтев за додатна сред.'!D165+Projekat!D165+Sheet2!D165 -> 0 | E165: =+Programska_aktivnost!E165+Sheet1!E165+'Захтев за додатна сред.'!E165+Projekat!E165+Sheet2!E165 -> 0 | F165: =+Programska_aktivnost!F165+Sheet1!F165+'Захтев за додатна сред.'!F165+Projekat!F165+Sheet2!F165 -> 0 | G165: =+Programska_aktivnost!G165+Sheet1!G165+'Захтев за додатна сред.'!G165+Projekat!G165+Sheet2!G165 -> 0 | H165: =+Programska_aktivnost!H165+Sheet1!H165+'Захтев за додатна сред.'!H165+Projekat!H165+Sheet2!H165 -> 0 | I165: =+Programska_aktivnost!I165+Sheet1!I165+'Захтев за додатна сред.'!I165+Projekat!I165+Sheet2!I165 -> 0 | J165: =+Programska_aktivnost!J165+Sheet1!J165+'Захтев за додатна сред.'!J165+Projekat!J165+Sheet2!J165 -> 0 | K165: =+Programska_aktivnost!K165+Sheet1!K165+'Захтев за додатна сред.'!K165+Projekat!K165+Sheet2!K165 -> 0 | L165: =+Programska_aktivnost!L165+Sheet1!L165+'Захтев за додатна сред.'!L165+Projekat!L165+Sheet2!L165 -> 0 | M165: =+Programska_aktivnost!M165+Sheet1!M165+'Захтев за додатна сред.'!M165+Projekat!M165+Sheet2!M165 -> 0 | N165: 0 | O165: 0 | Y165: 0
A166: 119 | B166: 912100 | C166: Примања од емитовања хартија од вредности, изузев акција, на иностраном финансијском тржишту | D166: =+Programska_aktivnost!D166+Sheet1!D166+'Захтев за додатна сред.'!D166+Projekat!D166+Sheet2!D166 -> 0 | E166: =+Programska_aktivnost!E166+Sheet1!E166+'Захтев за додатна сред.'!E166+Projekat!E166+Sheet2!E166 -> 0 | F166: =+Programska_aktivnost!F166+Sheet1!F166+'Захтев за додатна сред.'!F166+Projekat!F166+Sheet2!F166 -> 0 | G166: =+Programska_aktivnost!G166+Sheet1!G166+'Захтев за додатна сред.'!G166+Projekat!G166+Sheet2!G166 -> 0 | H166: =+Programska_aktivnost!H166+Sheet1!H166+'Захтев за додатна сред.'!H166+Projekat!H166+Sheet2!H166 -> 0 | I166: =+Programska_aktivnost!I166+Sheet1!I166+'Захтев за додатна сред.'!I166+Projekat!I166+Sheet2!I166 -> 0 | J166: =+Programska_aktivnost!J166+Sheet1!J166+'Захтев за додатна сред.'!J166+Projekat!J166+Sheet2!J166 -> 0 | K166: =+Programska_aktivnost!K166+Sheet1!K166+'Захтев за додатна сред.'!K166+Projekat!K166+Sheet2!K166 -> 0 | L166: =+Programska_aktivnost!L166+Sheet1!L166+'Захтев за додатна сред.'!L166+Projekat!L166+Sheet2!L166 -> 0 | M166: =+Programska_aktivnost!M166+Sheet1!M166+'Захтев за додатна сред.'!M166+Projekat!M166+Sheet2!M166 -> 0 | N166: 0 | O166: 0 | Y166: 0
A167: 120 | B167: 912200 | C167: Примања од задуживања од иностраних држава | D167: =+Programska_aktivnost!D167+Sheet1!D167+'Захтев за додатна сред.'!D167+Projekat!D167+Sheet2!D167 -> 0 | E167: =+Programska_aktivnost!E167+Sheet1!E167+'Захтев за додатна сред.'!E167+Projekat!E167+Sheet2!E167 -> 0 | F167: =+Programska_aktivnost!F167+Sheet1!F167+'Захтев за додатна сред.'!F167+Projekat!F167+Sheet2!F167 -> 0 | G167: =+Programska_aktivnost!G167+Sheet1!G167+'Захтев за додатна сред.'!G167+Projekat!G167+Sheet2!G167 -> 0 | H167: =+Programska_aktivnost!H167+Sheet1!H167+'Захтев за додатна сред.'!H167+Projekat!H167+Sheet2!H167 -> 0 | I167: =+Programska_aktivnost!I167+Sheet1!I167+'Захтев за додатна сред.'!I167+Projekat!I167+Sheet2!I167 -> 0 | J167: =+Programska_aktivnost!J167+Sheet1!J167+'Захтев за додатна сред.'!J167+Projekat!J167+Sheet2!J167 -> 0 | K167: =+Programska_aktivnost!K167+Sheet1!K167+'Захтев за додатна сред.'!K167+Projekat!K167+Sheet2!K167 -> 0 | L167: =+Programska_aktivnost!L167+Sheet1!L167+'Захтев за додатна сред.'!L167+Projekat!L167+Sheet2!L167 -> 0 | M167: =+Programska_aktivnost!M167+Sheet1!M167+'Захтев за додатна сред.'!M167+Projekat!M167+Sheet2!M167 -> 0 | N167: 0 | O167: 0 | Y167: 0
A168: 121 | B168: 912300 | C168: Примања од задуживања од мултилатералних институција | D168: =+Programska_aktivnost!D168+Sheet1!D168+'Захтев за додатна сред.'!D168+Projekat!D168+Sheet2!D168 -> 0 | E168: =+Programska_aktivnost!E168+Sheet1!E168+'Захтев за додатна сред.'!E168+Projekat!E168+Sheet2!E168 -> 0 | F168: =+Programska_aktivnost!F168+Sheet1!F168+'Захтев за додатна сред.'!F168+Projekat!F168+Sheet2!F168 -> 0 | G168: =+Programska_aktivnost!G168+Sheet1!G168+'Захтев за додатна сред.'!G168+Projekat!G168+Sheet2!G168 -> 0 | H168: =+Programska_aktivnost!H168+Sheet1!H168+'Захтев за додатна сред.'!H168+Projekat!H168+Sheet2!H168 -> 0 | I168: =+Programska_aktivnost!I168+Sheet1!I168+'Захтев за додатна сред.'!I168+Projekat!I168+Sheet2!I168 -> 0 | J168: =+Programska_aktivnost!J168+Sheet1!J168+'Захтев за додатна сред.'!J168+Projekat!J168+Sheet2!J168 -> 0 | K168: =+Programska_aktivnost!K168+Sheet1!K168+'Захтев за додатна сред.'!K168+Projekat!K168+Sheet2!K168 -> 0 | L168: =+Programska_aktivnost!L168+Sheet1!L168+'Захтев за додатна сред.'!L168+Projekat!L168+Sheet2!L168 -> 0 | M168: =+Programska_aktivnost!M168+Sheet1!M168+'Захтев за додатна сред.'!M168+Projekat!M168+Sheet2!M168 -> 0 | N168: 0 | O168: 0 | Y168: 0
A169: 122 | B169: 912400 | C169: Примања од задуживања од иностраних пословних банака | D169: =+Programska_aktivnost!D169+Sheet1!D169+'Захтев за додатна сред.'!D169+Projekat!D169+Sheet2!D169 -> 0 | E169: =+Programska_aktivnost!E169+Sheet1!E169+'Захтев за додатна сред.'!E169+Projekat!E169+Sheet2!E169 -> 0 | F169: =+Programska_aktivnost!F169+Sheet1!F169+'Захтев за додатна сред.'!F169+Projekat!F169+Sheet2!F169 -> 0 | G169: =+Programska_aktivnost!G169+Sheet1!G169+'Захтев за додатна сред.'!G169+Projekat!G169+Sheet2!G169 -> 0 | H169: =+Programska_aktivnost!H169+Sheet1!H169+'Захтев за додатна сред.'!H169+Projekat!H169+Sheet2!H169 -> 0 | I169: =+Programska_aktivnost!I169+Sheet1!I169+'Захтев за додатна сред.'!I169+Projekat!I169+Sheet2!I169 -> 0 | J169: =+Programska_aktivnost!J169+Sheet1!J169+'Захтев за додатна сред.'!J169+Projekat!J169+Sheet2!J169 -> 0 | K169: =+Programska_aktivnost!K169+Sheet1!K169+'Захтев за додатна сред.'!K169+Projekat!K169+Sheet2!K169 -> 0 | L169: =+Programska_aktivnost!L169+Sheet1!L169+'Захтев за додатна сред.'!L169+Projekat!L169+Sheet2!L169 -> 0 | M169: =+Programska_aktivnost!M169+Sheet1!M169+'Захтев за додатна сред.'!M169+Projekat!M169+Sheet2!M169 -> 0 | N169: 0 | O169: 0 | Y169: 0
A170: 123 | B170: 912500 | C170: Примања од задуживања од осталих иностраних поверилаца | D170: =+Programska_aktivnost!D170+Sheet1!D170+'Захтев за додатна сред.'!D170+Projekat!D170+Sheet2!D170 -> 0 | E170: =+Programska_aktivnost!E170+Sheet1!E170+'Захтев за додатна сред.'!E170+Projekat!E170+Sheet2!E170 -> 0 | F170: =+Programska_aktivnost!F170+Sheet1!F170+'Захтев за додатна сред.'!F170+Projekat!F170+Sheet2!F170 -> 0 | G170: =+Programska_aktivnost!G170+Sheet1!G170+'Захтев за додатна сред.'!G170+Projekat!G170+Sheet2!G170 -> 0 | H170: =+Programska_aktivnost!H170+Sheet1!H170+'Захтев за додатна сред.'!H170+Projekat!H170+Sheet2!H170 -> 0 | I170: =+Programska_aktivnost!I170+Sheet1!I170+'Захтев за додатна сред.'!I170+Projekat!I170+Sheet2!I170 -> 0 | J170: =+Programska_aktivnost!J170+Sheet1!J170+'Захтев за додатна сред.'!J170+Projekat!J170+Sheet2!J170 -> 0 | K170: =+Programska_aktivnost!K170+Sheet1!K170+'Захтев за додатна сред.'!K170+Projekat!K170+Sheet2!K170 -> 0 | L170: =+Programska_aktivnost!L170+Sheet1!L170+'Захтев за додатна сред.'!L170+Projekat!L170+Sheet2!L170 -> 0 | M170: =+Programska_aktivnost!M170+Sheet1!M170+'Захтев за додатна сред.'!M170+Projekat!M170+Sheet2!M170 -> 0 | N170: 0 | O170: 0 | Y170: 0
A171: 124 | B171: 912600 | C171: Примања од иностраних финансијских деривата | D171: =+Programska_aktivnost!D171+Sheet1!D171+'Захтев за додатна сред.'!D171+Projekat!D171+Sheet2!D171 -> 0 | E171: =+Programska_aktivnost!E171+Sheet1!E171+'Захтев за додатна сред.'!E171+Projekat!E171+Sheet2!E171 -> 0 | F171: =+Programska_aktivnost!F171+Sheet1!F171+'Захтев за додатна сред.'!F171+Projekat!F171+Sheet2!F171 -> 0 | G171: =+Programska_aktivnost!G171+Sheet1!G171+'Захтев за додатна сред.'!G171+Projekat!G171+Sheet2!G171 -> 0 | H171: =+Programska_aktivnost!H171+Sheet1!H171+'Захтев за додатна сред.'!H171+Projekat!H171+Sheet2!H171 -> 0 | I171: =+Programska_aktivnost!I171+Sheet1!I171+'Захтев за додатна сред.'!I171+Projekat!I171+Sheet2!I171 -> 0 | J171: =+Programska_aktivnost!J171+Sheet1!J171+'Захтев за додатна сред.'!J171+Projekat!J171+Sheet2!J171 -> 0 | K171: =+Programska_aktivnost!K171+Sheet1!K171+'Захтев за додатна сред.'!K171+Projekat!K171+Sheet2!K171 -> 0 | L171: =+Programska_aktivnost!L171+Sheet1!L171+'Захтев за додатна сред.'!L171+Projekat!L171+Sheet2!L171 -> 0 | M171: =+Programska_aktivnost!M171+Sheet1!M171+'Захтев за додатна сред.'!M171+Projekat!M171+Sheet2!M171 -> 0 | N171: 0 | O171: 0 | Y171: 0
A172: 125 | B172: 912900 | C172: Исправка спољног дуга | D172: =+Programska_aktivnost!D172+Sheet1!D172+'Захтев за додатна сред.'!D172+Projekat!D172+Sheet2!D172 -> 0 | E172: =+Programska_aktivnost!E172+Sheet1!E172+'Захтев за додатна сред.'!E172+Projekat!E172+Sheet2!E172 -> 0 | F172: =+Programska_aktivnost!F172+Sheet1!F172+'Захтев за додатна сред.'!F172+Projekat!F172+Sheet2!F172 -> 0 | G172: =+Programska_aktivnost!G172+Sheet1!G172+'Захтев за додатна сред.'!G172+Projekat!G172+Sheet2!G172 -> 0 | H172: =+Programska_aktivnost!H172+Sheet1!H172+'Захтев за додатна сред.'!H172+Projekat!H172+Sheet2!H172 -> 0 | I172: =+Programska_aktivnost!I172+Sheet1!I172+'Захтев за додатна сред.'!I172+Projekat!I172+Sheet2!I172 -> 0 | J172: =+Programska_aktivnost!J172+Sheet1!J172+'Захтев за додатна сред.'!J172+Projekat!J172+Sheet2!J172 -> 0 | K172: =+Programska_aktivnost!K172+Sheet1!K172+'Захтев за додатна сред.'!K172+Projekat!K172+Sheet2!K172 -> 0 | L172: =+Programska_aktivnost!L172+Sheet1!L172+'Захтев за додатна сред.'!L172+Projekat!L172+Sheet2!L172 -> 0 | M172: =+Programska_aktivnost!M172+Sheet1!M172+'Захтев за додатна сред.'!M172+Projekat!M172+Sheet2!M172 -> 0 | N172: 0 | O172: 0 | Y172: 0
A173: 126 | B173: 920000 | C173: ПРИМАЊА ОД ПРОДАЈЕ ФИНАНСИЈСКЕ ИМОВИНЕ (127 + 137) | D173: =+Programska_aktivnost!D173+Sheet1!D173+'Захтев за додатна сред.'!D173+Projekat!D173+Sheet2!D173 -> 0 | E173: =+Programska_aktivnost!E173+Sheet1!E173+'Захтев за додатна сред.'!E173+Projekat!E173+Sheet2!E173 -> 0 | F173: =+Programska_aktivnost!F173+Sheet1!F173+'Захтев за додатна сред.'!F173+Projekat!F173+Sheet2!F173 -> 0 | G173: =+Programska_aktivnost!G173+Sheet1!G173+'Захтев за додатна сред.'!G173+Projekat!G173+Sheet2!G173 -> 0 | H173: =+Programska_aktivnost!H173+Sheet1!H173+'Захтев за додатна сред.'!H173+Projekat!H173+Sheet2!H173 -> 0 | I173: =+Programska_aktivnost!I173+Sheet1!I173+'Захтев за додатна сред.'!I173+Projekat!I173+Sheet2!I173 -> 0 | J173: =+Programska_aktivnost!J173+Sheet1!J173+'Захтев за додатна сред.'!J173+Projekat!J173+Sheet2!J173 -> 0 | K173: =+Programska_aktivnost!K173+Sheet1!K173+'Захтев за додатна сред.'!K173+Projekat!K173+Sheet2!K173 -> 0 | L173: =+Programska_aktivnost!L173+Sheet1!L173+'Захтев за додатна сред.'!L173+Projekat!L173+Sheet2!L173 -> 0 | M173: =+Programska_aktivnost!M173+Sheet1!M173+'Захтев за додатна сред.'!M173+Projekat!M173+Sheet2!M173 -> 0 | N173: 0 | O173: 0 | Y173: 0
A174: 127 | B174: 921000 | C174: ПРИМАЊА ОД ПРОДАЈЕ ДОМАЋЕ ФИНАНСИЈСКЕ ИМОВИНЕ (од 128 до 136) | D174: =+Programska_aktivnost!D174+Sheet1!D174+'Захтев за додатна сред.'!D174+Projekat!D174+Sheet2!D174 -> 0 | E174: =+Programska_aktivnost!E174+Sheet1!E174+'Захтев за додатна сред.'!E174+Projekat!E174+Sheet2!E174 -> 0 | F174: =+Programska_aktivnost!F174+Sheet1!F174+'Захтев за додатна сред.'!F174+Projekat!F174+Sheet2!F174 -> 0 | G174: =+Programska_aktivnost!G174+Sheet1!G174+'Захтев за додатна сред.'!G174+Projekat!G174+Sheet2!G174 -> 0 | H174: =+Programska_aktivnost!H174+Sheet1!H174+'Захтев за додатна сред.'!H174+Projekat!H174+Sheet2!H174 -> 0 | I174: =+Programska_aktivnost!I174+Sheet1!I174+'Захтев за додатна сред.'!I174+Projekat!I174+Sheet2!I174 -> 0 | J174: =+Programska_aktivnost!J174+Sheet1!J174+'Захтев за додатна сред.'!J174+Projekat!J174+Sheet2!J174 -> 0 | K174: =+Programska_aktivnost!K174+Sheet1!K174+'Захтев за додатна сред.'!K174+Projekat!K174+Sheet2!K174 -> 0 | L174: =+Programska_aktivnost!L174+Sheet1!L174+'Захтев за додатна сред.'!L174+Projekat!L174+Sheet2!L174 -> 0 | M174: =+Programska_aktivnost!M174+Sheet1!M174+'Захтев за додатна сред.'!M174+Projekat!M174+Sheet2!M174 -> 0 | N174: 0 | O174: 0 | Y174: 0
A175: 128 | B175: 921100 | C175: Примања од продаје домаћих хартија од вредности, изузев акција | D175: =+Programska_aktivnost!D175+Sheet1!D175+'Захтев за додатна сред.'!D175+Projekat!D175+Sheet2!D175 -> 0 | E175: =+Programska_aktivnost!E175+Sheet1!E175+'Захтев за додатна сред.'!E175+Projekat!E175+Sheet2!E175 -> 0 | F175: =+Programska_aktivnost!F175+Sheet1!F175+'Захтев за додатна сред.'!F175+Projekat!F175+Sheet2!F175 -> 0 | G175: =+Programska_aktivnost!G175+Sheet1!G175+'Захтев за додатна сред.'!G175+Projekat!G175+Sheet2!G175 -> 0 | H175: =+Programska_aktivnost!H175+Sheet1!H175+'Захтев за додатна сред.'!H175+Projekat!H175+Sheet2!H175 -> 0 | I175: =+Programska_aktivnost!I175+Sheet1!I175+'Захтев за додатна сред.'!I175+Projekat!I175+Sheet2!I175 -> 0 | J175: =+Programska_aktivnost!J175+Sheet1!J175+'Захтев за додатна сред.'!J175+Projekat!J175+Sheet2!J175 -> 0 | K175: =+Programska_aktivnost!K175+Sheet1!K175+'Захтев за додатна сред.'!K175+Projekat!K175+Sheet2!K175 -> 0 | L175: =+Programska_aktivnost!L175+Sheet1!L175+'Захтев за додатна сред.'!L175+Projekat!L175+Sheet2!L175 -> 0 | M175: =+Programska_aktivnost!M175+Sheet1!M175+'Захтев за додатна сред.'!M175+Projekat!M175+Sheet2!M175 -> 0 | N175: 0 | O175: 0 | Y175: 0
A176: 129 | B176: 921200 | C176: Примања од отплате кредита датих осталим нивоима власти | D176: =+Programska_aktivnost!D176+Sheet1!D176+'Захтев за додатна сред.'!D176+Projekat!D176+Sheet2!D176 -> 0 | E176: =+Programska_aktivnost!E176+Sheet1!E176+'Захтев за додатна сред.'!E176+Projekat!E176+Sheet2!E176 -> 0 | F176: =+Programska_aktivnost!F176+Sheet1!F176+'Захтев за додатна сред.'!F176+Projekat!F176+Sheet2!F176 -> 0 | G176: =+Programska_aktivnost!G176+Sheet1!G176+'Захтев за додатна сред.'!G176+Projekat!G176+Sheet2!G176 -> 0 | H176: =+Programska_aktivnost!H176+Sheet1!H176+'Захтев за додатна сред.'!H176+Projekat!H176+Sheet2!H176 -> 0 | I176: =+Programska_aktivnost!I176+Sheet1!I176+'Захтев за додатна сред.'!I176+Projekat!I176+Sheet2!I176 -> 0 | J176: =+Programska_aktivnost!J176+Sheet1!J176+'Захтев за додатна сред.'!J176+Projekat!J176+Sheet2!J176 -> 0 | K176: =+Programska_aktivnost!K176+Sheet1!K176+'Захтев за додатна сред.'!K176+Projekat!K176+Sheet2!K176 -> 0 | L176: =+Programska_aktivnost!L176+Sheet1!L176+'Захтев за додатна сред.'!L176+Projekat!L176+Sheet2!L176 -> 0 | M176: =+Programska_aktivnost!M176+Sheet1!M176+'Захтев за додатна сред.'!M176+Projekat!M176+Sheet2!M176 -> 0 | N176: 0 | O176: 0 | Y176: 0
A177: 130 | B177: 921300 | C177: Примања од отплате кредита датих домаћим јавним финансијским институцијама | D177: =+Programska_aktivnost!D177+Sheet1!D177+'Захтев за додатна сред.'!D177+Projekat!D177+Sheet2!D177 -> 0 | E177: =+Programska_aktivnost!E177+Sheet1!E177+'Захтев за додатна сред.'!E177+Projekat!E177+Sheet2!E177 -> 0 | F177: =+Programska_aktivnost!F177+Sheet1!F177+'Захтев за додатна сред.'!F177+Projekat!F177+Sheet2!F177 -> 0 | G177: =+Programska_aktivnost!G177+Sheet1!G177+'Захтев за додатна сред.'!G177+Projekat!G177+Sheet2!G177 -> 0 | H177: =+Programska_aktivnost!H177+Sheet1!H177+'Захтев за додатна сред.'!H177+Projekat!H177+Sheet2!H177 -> 0 | I177: =+Programska_aktivnost!I177+Sheet1!I177+'Захтев за додатна сред.'!I177+Projekat!I177+Sheet2!I177 -> 0 | J177: =+Programska_aktivnost!J177+Sheet1!J177+'Захтев за додатна сред.'!J177+Projekat!J177+Sheet2!J177 -> 0 | K177: =+Programska_aktivnost!K177+Sheet1!K177+'Захтев за додатна сред.'!K177+Projekat!K177+Sheet2!K177 -> 0 | L177: =+Programska_aktivnost!L177+Sheet1!L177+'Захтев за додатна сред.'!L177+Projekat!L177+Sheet2!L177 -> 0 | M177: =+Programska_aktivnost!M177+Sheet1!M177+'Захтев за додатна сред.'!M177+Projekat!M177+Sheet2!M177 -> 0 | N177: 0 | O177: 0 | Y177: 0
A178: 131 | B178: 921400 | C178: Примања од отплате кредита домаћим пословним банкама | D178: =+Programska_aktivnost!D178+Sheet1!D178+'Захтев за додатна сред.'!D178+Projekat!D178+Sheet2!D178 -> 0 | E178: =+Programska_aktivnost!E178+Sheet1!E178+'Захтев за додатна сред.'!E178+Projekat!E178+Sheet2!E178 -> 0 | F178: =+Programska_aktivnost!F178+Sheet1!F178+'Захтев за додатна сред.'!F178+Projekat!F178+Sheet2!F178 -> 0 | G178: =+Programska_aktivnost!G178+Sheet1!G178+'Захтев за додатна сред.'!G178+Projekat!G178+Sheet2!G178 -> 0 | H178: =+Programska_aktivnost!H178+Sheet1!H178+'Захтев за додатна сред.'!H178+Projekat!H178+Sheet2!H178 -> 0 | I178: =+Programska_aktivnost!I178+Sheet1!I178+'Захтев за додатна сред.'!I178+Projekat!I178+Sheet2!I178 -> 0 | J178: =+Programska_aktivnost!J178+Sheet1!J178+'Захтев за додатна сред.'!J178+Projekat!J178+Sheet2!J178 -> 0 | K178: =+Programska_aktivnost!K178+Sheet1!K178+'Захтев за додатна сред.'!K178+Projekat!K178+Sheet2!K178 -> 0 | L178: =+Programska_aktivnost!L178+Sheet1!L178+'Захтев за додатна сред.'!L178+Projekat!L178+Sheet2!L178 -> 0 | M178: =+Programska_aktivnost!M178+Sheet1!M178+'Захтев за додатна сред.'!M178+Projekat!M178+Sheet2!M178 -> 0 | N178: 0 | O178: 0 | Y178: 0
A179: 132 | B179: 921500 | C179: Примања од отплате кредита датих домаћим јавним нефинансијским институцијама | D179: =+Programska_aktivnost!D179+Sheet1!D179+'Захтев за додатна сред.'!D179+Projekat!D179+Sheet2!D179 -> 0 | E179: =+Programska_aktivnost!E179+Sheet1!E179+'Захтев за додатна сред.'!E179+Projekat!E179+Sheet2!E179 -> 0 | F179: =+Programska_aktivnost!F179+Sheet1!F179+'Захтев за додатна сред.'!F179+Projekat!F179+Sheet2!F179 -> 0 | G179: =+Programska_aktivnost!G179+Sheet1!G179+'Захтев за додатна сред.'!G179+Projekat!G179+Sheet2!G179 -> 0 | H179: =+Programska_aktivnost!H179+Sheet1!H179+'Захтев за додатна сред.'!H179+Projekat!H179+Sheet2!H179 -> 0 | I179: =+Programska_aktivnost!I179+Sheet1!I179+'Захтев за додатна сред.'!I179+Projekat!I179+Sheet2!I179 -> 0 | J179: =+Programska_aktivnost!J179+Sheet1!J179+'Захтев за додатна сред.'!J179+Projekat!J179+Sheet2!J179 -> 0 | K179: =+Programska_aktivnost!K179+Sheet1!K179+'Захтев за додатна сред.'!K179+Projekat!K179+Sheet2!K179 -> 0 | L179: =+Programska_aktivnost!L179+Sheet1!L179+'Захтев за додатна сред.'!L179+Projekat!L179+Sheet2!L179 -> 0 | M179: =+Programska_aktivnost!M179+Sheet1!M179+'Захтев за додатна сред.'!M179+Projekat!M179+Sheet2!M179 -> 0 | N179: 0 | O179: 0 | Y179: 0
A180: 133 | B180: 921600 | C180: Примања од отплате кредита датих физичким лицима и домаћинствима у земљи | D180: =+Programska_aktivnost!D180+Sheet1!D180+'Захтев за додатна сред.'!D180+Projekat!D180+Sheet2!D180 -> 0 | E180: =+Programska_aktivnost!E180+Sheet1!E180+'Захтев за додатна сред.'!E180+Projekat!E180+Sheet2!E180 -> 0 | F180: =+Programska_aktivnost!F180+Sheet1!F180+'Захтев за додатна сред.'!F180+Projekat!F180+Sheet2!F180 -> 0 | G180: =+Programska_aktivnost!G180+Sheet1!G180+'Захтев за додатна сред.'!G180+Projekat!G180+Sheet2!G180 -> 0 | H180: =+Programska_aktivnost!H180+Sheet1!H180+'Захтев за додатна сред.'!H180+Projekat!H180+Sheet2!H180 -> 0 | I180: =+Programska_aktivnost!I180+Sheet1!I180+'Захтев за додатна сред.'!I180+Projekat!I180+Sheet2!I180 -> 0 | J180: =+Programska_aktivnost!J180+Sheet1!J180+'Захтев за додатна сред.'!J180+Projekat!J180+Sheet2!J180 -> 0 | K180: =+Programska_aktivnost!K180+Sheet1!K180+'Захтев за додатна сред.'!K180+Projekat!K180+Sheet2!K180 -> 0 | L180: =+Programska_aktivnost!L180+Sheet1!L180+'Захтев за додатна сред.'!L180+Projekat!L180+Sheet2!L180 -> 0 | M180: =+Programska_aktivnost!M180+Sheet1!M180+'Захтев за додатна сред.'!M180+Projekat!M180+Sheet2!M180 -> 0 | N180: 0 | O180: 0 | Y180: 0
A181: 134 | B181: 921700 | C181: Примања од отплате кредита датих удружењима грађана у земљи | D181: =+Programska_aktivnost!D181+Sheet1!D181+'Захтев за додатна сред.'!D181+Projekat!D181+Sheet2!D181 -> 0 | E181: =+Programska_aktivnost!E181+Sheet1!E181+'Захтев за додатна сред.'!E181+Projekat!E181+Sheet2!E181 -> 0 | F181: =+Programska_aktivnost!F181+Sheet1!F181+'Захтев за додатна сред.'!F181+Projekat!F181+Sheet2!F181 -> 0 | G181: =+Programska_aktivnost!G181+Sheet1!G181+'Захтев за додатна сред.'!G181+Projekat!G181+Sheet2!G181 -> 0 | H181: =+Programska_aktivnost!H181+Sheet1!H181+'Захтев за додатна сред.'!H181+Projekat!H181+Sheet2!H181 -> 0 | I181: =+Programska_aktivnost!I181+Sheet1!I181+'Захтев за додатна сред.'!I181+Projekat!I181+Sheet2!I181 -> 0 | J181: =+Programska_aktivnost!J181+Sheet1!J181+'Захтев за додатна сред.'!J181+Projekat!J181+Sheet2!J181 -> 0 | K181: =+Programska_aktivnost!K181+Sheet1!K181+'Захтев за додатна сред.'!K181+Projekat!K181+Sheet2!K181 -> 0 | L181: =+Programska_aktivnost!L181+Sheet1!L181+'Захтев за додатна сред.'!L181+Projekat!L181+Sheet2!L181 -> 0 | M181: =+Programska_aktivnost!M181+Sheet1!M181+'Захтев за додатна сред.'!M181+Projekat!M181+Sheet2!M181 -> 0 | N181: 0 | O181: 0 | Y181: 0
A182: 135 | B182: 921800 | C182: Примања од отплате кредита датих нефинансијским приватним предузећима у земљи | D182: =+Programska_aktivnost!D182+Sheet1!D182+'Захтев за додатна сред.'!D182+Projekat!D182+Sheet2!D182 -> 0 | E182: =+Programska_aktivnost!E182+Sheet1!E182+'Захтев за додатна сред.'!E182+Projekat!E182+Sheet2!E182 -> 0 | F182: =+Programska_aktivnost!F182+Sheet1!F182+'Захтев за додатна сред.'!F182+Projekat!F182+Sheet2!F182 -> 0 | G182: =+Programska_aktivnost!G182+Sheet1!G182+'Захтев за додатна сред.'!G182+Projekat!G182+Sheet2!G182 -> 0 | H182: =+Programska_aktivnost!H182+Sheet1!H182+'Захтев за додатна сред.'!H182+Projekat!H182+Sheet2!H182 -> 0 | I182: =+Programska_aktivnost!I182+Sheet1!I182+'Захтев за додатна сред.'!I182+Projekat!I182+Sheet2!I182 -> 0 | J182: =+Programska_aktivnost!J182+Sheet1!J182+'Захтев за додатна сред.'!J182+Projekat!J182+Sheet2!J182 -> 0 | K182: =+Programska_aktivnost!K182+Sheet1!K182+'Захтев за додатна сред.'!K182+Projekat!K182+Sheet2!K182 -> 0 | L182: =+Programska_aktivnost!L182+Sheet1!L182+'Захтев за додатна сред.'!L182+Projekat!L182+Sheet2!L182 -> 0 | M182: =+Programska_aktivnost!M182+Sheet1!M182+'Захтев за додатна сред.'!M182+Projekat!M182+Sheet2!M182 -> 0 | N182: 0 | O182: 0 | Y182: 0
A183: 136 | B183: 921900 | C183: Примања од продаје домаћих акција и осталог капитала | D183: =+Programska_aktivnost!D183+Sheet1!D183+'Захтев за додатна сред.'!D183+Projekat!D183+Sheet2!D183 -> 0 | E183: =+Programska_aktivnost!E183+Sheet1!E183+'Захтев за додатна сред.'!E183+Projekat!E183+Sheet2!E183 -> 0 | F183: =+Programska_aktivnost!F183+Sheet1!F183+'Захтев за додатна сред.'!F183+Projekat!F183+Sheet2!F183 -> 0 | G183: =+Programska_aktivnost!G183+Sheet1!G183+'Захтев за додатна сред.'!G183+Projekat!G183+Sheet2!G183 -> 0 | H183: =+Programska_aktivnost!H183+Sheet1!H183+'Захтев за додатна сред.'!H183+Projekat!H183+Sheet2!H183 -> 0 | I183: =+Programska_aktivnost!I183+Sheet1!I183+'Захтев за додатна сред.'!I183+Projekat!I183+Sheet2!I183 -> 0 | J183: =+Programska_aktivnost!J183+Sheet1!J183+'Захтев за додатна сред.'!J183+Projekat!J183+Sheet2!J183 -> 0 | K183: =+Programska_aktivnost!K183+Sheet1!K183+'Захтев за додатна сред.'!K183+Projekat!K183+Sheet2!K183 -> 0 | L183: =+Programska_aktivnost!L183+Sheet1!L183+'Захтев за додатна сред.'!L183+Projekat!L183+Sheet2!L183 -> 0 | M183: =+Programska_aktivnost!M183+Sheet1!M183+'Захтев за додатна сред.'!M183+Projekat!M183+Sheet2!M183 -> 0 | N183: 0 | O183: 0 | Y183: 0
A184: =A183+1 -> 137 | B184: 922000 | C184: ПРИМАЊА ОД ПРОДАЈЕ СТРАНЕ ФИНАНСИЈСКЕ ИМОВИНЕ (од 138 до 145) | D184: =+Programska_aktivnost!D184+Sheet1!D184+'Захтев за додатна сред.'!D184+Projekat!D184+Sheet2!D184 -> 0 | E184: =+Programska_aktivnost!E184+Sheet1!E184+'Захтев за додатна сред.'!E184+Projekat!E184+Sheet2!E184 -> 0 | F184: =+Programska_aktivnost!F184+Sheet1!F184+'Захтев за додатна сред.'!F184+Projekat!F184+Sheet2!F184 -> 0 | G184: =+Programska_aktivnost!G184+Sheet1!G184+'Захтев за додатна сред.'!G184+Projekat!G184+Sheet2!G184 -> 0 | H184: =+Programska_aktivnost!H184+Sheet1!H184+'Захтев за додатна сред.'!H184+Projekat!H184+Sheet2!H184 -> 0 | I184: =+Programska_aktivnost!I184+Sheet1!I184+'Захтев за додатна сред.'!I184+Projekat!I184+Sheet2!I184 -> 0 | J184: =+Programska_aktivnost!J184+Sheet1!J184+'Захтев за додатна сред.'!J184+Projekat!J184+Sheet2!J184 -> 0 | K184: =+Programska_aktivnost!K184+Sheet1!K184+'Захтев за додатна сред.'!K184+Projekat!K184+Sheet2!K184 -> 0 | L184: =+Programska_aktivnost!L184+Sheet1!L184+'Захтев за додатна сред.'!L184+Projekat!L184+Sheet2!L184 -> 0 | M184: =+Programska_aktivnost!M184+Sheet1!M184+'Захтев за додатна сред.'!M184+Projekat!M184+Sheet2!M184 -> 0 | N184: 0 | O184: 0 | Y184: =SUM(D184:O184) -> 0
A185: 138 | B185: 922100 | C185: Примања од продаје страних хартија од вредности, изузев акција | D185: =+Programska_aktivnost!D185+Sheet1!D185+'Захтев за додатна сред.'!D185+Projekat!D185+Sheet2!D185 -> 0 | E185: =+Programska_aktivnost!E185+Sheet1!E185+'Захтев за додатна сред.'!E185+Projekat!E185+Sheet2!E185 -> 0 | F185: =+Programska_aktivnost!F185+Sheet1!F185+'Захтев за додатна сред.'!F185+Projekat!F185+Sheet2!F185 -> 0 | G185: =+Programska_aktivnost!G185+Sheet1!G185+'Захтев за додатна сред.'!G185+Projekat!G185+Sheet2!G185 -> 0 | H185: =+Programska_aktivnost!H185+Sheet1!H185+'Захтев за додатна сред.'!H185+Projekat!H185+Sheet2!H185 -> 0 | I185: =+Programska_aktivnost!I185+Sheet1!I185+'Захтев за додатна сред.'!I185+Projekat!I185+Sheet2!I185 -> 0 | J185: =+Programska_aktivnost!J185+Sheet1!J185+'Захтев за додатна сред.'!J185+Projekat!J185+Sheet2!J185 -> 0 | K185: =+Programska_aktivnost!K185+Sheet1!K185+'Захтев за додатна сред.'!K185+Projekat!K185+Sheet2!K185 -> 0 | L185: =+Programska_aktivnost!L185+Sheet1!L185+'Захтев за додатна сред.'!L185+Projekat!L185+Sheet2!L185 -> 0 | M185: =+Programska_aktivnost!M185+Sheet1!M185+'Захтев за додатна сред.'!M185+Projekat!M185+Sheet2!M185 -> 0 | N185: 0 | O185: 0 | Y185: 0
A186: 139 | B186: 922200 | C186: Примања од отплате кредита датих страним владама | D186: =+Programska_aktivnost!D186+Sheet1!D186+'Захтев за додатна сред.'!D186+Projekat!D186+Sheet2!D186 -> 0 | E186: =+Programska_aktivnost!E186+Sheet1!E186+'Захтев за додатна сред.'!E186+Projekat!E186+Sheet2!E186 -> 0 | F186: =+Programska_aktivnost!F186+Sheet1!F186+'Захтев за додатна сред.'!F186+Projekat!F186+Sheet2!F186 -> 0 | G186: =+Programska_aktivnost!G186+Sheet1!G186+'Захтев за додатна сред.'!G186+Projekat!G186+Sheet2!G186 -> 0 | H186: =+Programska_aktivnost!H186+Sheet1!H186+'Захтев за додатна сред.'!H186+Projekat!H186+Sheet2!H186 -> 0 | I186: =+Programska_aktivnost!I186+Sheet1!I186+'Захтев за додатна сред.'!I186+Projekat!I186+Sheet2!I186 -> 0 | J186: =+Programska_aktivnost!J186+Sheet1!J186+'Захтев за додатна сред.'!J186+Projekat!J186+Sheet2!J186 -> 0 | K186: =+Programska_aktivnost!K186+Sheet1!K186+'Захтев за додатна сред.'!K186+Projekat!K186+Sheet2!K186 -> 0 | L186: =+Programska_aktivnost!L186+Sheet1!L186+'Захтев за додатна сред.'!L186+Projekat!L186+Sheet2!L186 -> 0 | M186: =+Programska_aktivnost!M186+Sheet1!M186+'Захтев за додатна сред.'!M186+Projekat!M186+Sheet2!M186 -> 0 | N186: 0 | O186: 0 | Y186: 0
A187: 140 | B187: 922300 | C187: Примања од отплате кредита датих међународним организацијама | D187: =+Programska_aktivnost!D187+Sheet1!D187+'Захтев за додатна сред.'!D187+Projekat!D187+Sheet2!D187 -> 0 | E187: =+Programska_aktivnost!E187+Sheet1!E187+'Захтев за додатна сред.'!E187+Projekat!E187+Sheet2!E187 -> 0 | F187: =+Programska_aktivnost!F187+Sheet1!F187+'Захтев за додатна сред.'!F187+Projekat!F187+Sheet2!F187 -> 0 | G187: =+Programska_aktivnost!G187+Sheet1!G187+'Захтев за додатна сред.'!G187+Projekat!G187+Sheet2!G187 -> 0 | H187: =+Programska_aktivnost!H187+Sheet1!H187+'Захтев за додатна сред.'!H187+Projekat!H187+Sheet2!H187 -> 0 | I187: =+Programska_aktivnost!I187+Sheet1!I187+'Захтев за додатна сред.'!I187+Projekat!I187+Sheet2!I187 -> 0 | J187: =+Programska_aktivnost!J187+Sheet1!J187+'Захтев за додатна сред.'!J187+Projekat!J187+Sheet2!J187 -> 0 | K187: =+Programska_aktivnost!K187+Sheet1!K187+'Захтев за додатна сред.'!K187+Projekat!K187+Sheet2!K187 -> 0 | L187: =+Programska_aktivnost!L187+Sheet1!L187+'Захтев за додатна сред.'!L187+Projekat!L187+Sheet2!L187 -> 0 | M187: =+Programska_aktivnost!M187+Sheet1!M187+'Захтев за додатна сред.'!M187+Projekat!M187+Sheet2!M187 -> 0 | N187: 0 | O187: 0 | Y187: 0
A188: 141 | B188: 922400 | C188: Примања од отплате кредита датих страним пословним банкама | D188: =+Programska_aktivnost!D188+Sheet1!D188+'Захтев за додатна сред.'!D188+Projekat!D188+Sheet2!D188 -> 0 | E188: =+Programska_aktivnost!E188+Sheet1!E188+'Захтев за додатна сред.'!E188+Projekat!E188+Sheet2!E188 -> 0 | F188: =+Programska_aktivnost!F188+Sheet1!F188+'Захтев за додатна сред.'!F188+Projekat!F188+Sheet2!F188 -> 0 | G188: =+Programska_aktivnost!G188+Sheet1!G188+'Захтев за додатна сред.'!G188+Projekat!G188+Sheet2!G188 -> 0 | H188: =+Programska_aktivnost!H188+Sheet1!H188+'Захтев за додатна сред.'!H188+Projekat!H188+Sheet2!H188 -> 0 | I188: =+Programska_aktivnost!I188+Sheet1!I188+'Захтев за додатна сред.'!I188+Projekat!I188+Sheet2!I188 -> 0 | J188: =+Programska_aktivnost!J188+Sheet1!J188+'Захтев за додатна сред.'!J188+Projekat!J188+Sheet2!J188 -> 0 | K188: =+Programska_aktivnost!K188+Sheet1!K188+'Захтев за додатна сред.'!K188+Projekat!K188+Sheet2!K188 -> 0 | L188: =+Programska_aktivnost!L188+Sheet1!L188+'Захтев за додатна сред.'!L188+Projekat!L188+Sheet2!L188 -> 0 | M188: =+Programska_aktivnost!M188+Sheet1!M188+'Захтев за додатна сред.'!M188+Projekat!M188+Sheet2!M188 -> 0 | N188: 0 | O188: 0 | Y188: 0
A189: 142 | B189: 922500 | C189: Примања од отплате кредита датих страним нефинансијским институцијама | D189: =+Programska_aktivnost!D189+Sheet1!D189+'Захтев за додатна сред.'!D189+Projekat!D189+Sheet2!D189 -> 0 | E189: =+Programska_aktivnost!E189+Sheet1!E189+'Захтев за додатна сред.'!E189+Projekat!E189+Sheet2!E189 -> 0 | F189: =+Programska_aktivnost!F189+Sheet1!F189+'Захтев за додатна сред.'!F189+Projekat!F189+Sheet2!F189 -> 0 | G189: =+Programska_aktivnost!G189+Sheet1!G189+'Захтев за додатна сред.'!G189+Projekat!G189+Sheet2!G189 -> 0 | H189: =+Programska_aktivnost!H189+Sheet1!H189+'Захтев за додатна сред.'!H189+Projekat!H189+Sheet2!H189 -> 0 | I189: =+Programska_aktivnost!I189+Sheet1!I189+'Захтев за додатна сред.'!I189+Projekat!I189+Sheet2!I189 -> 0 | J189: =+Programska_aktivnost!J189+Sheet1!J189+'Захтев за додатна сред.'!J189+Projekat!J189+Sheet2!J189 -> 0 | K189: =+Programska_aktivnost!K189+Sheet1!K189+'Захтев за додатна сред.'!K189+Projekat!K189+Sheet2!K189 -> 0 | L189: =+Programska_aktivnost!L189+Sheet1!L189+'Захтев за додатна сред.'!L189+Projekat!L189+Sheet2!L189 -> 0 | M189: =+Programska_aktivnost!M189+Sheet1!M189+'Захтев за додатна сред.'!M189+Projekat!M189+Sheet2!M189 -> 0 | N189: 0 | O189: 0 | Y189: 0
A190: 143 | B190: 922600 | C190: Примања од отплате кредита датих страним невладиним организацијама | D190: =+Programska_aktivnost!D190+Sheet1!D190+'Захтев за додатна сред.'!D190+Projekat!D190+Sheet2!D190 -> 0 | E190: =+Programska_aktivnost!E190+Sheet1!E190+'Захтев за додатна сред.'!E190+Projekat!E190+Sheet2!E190 -> 0 | F190: =+Programska_aktivnost!F190+Sheet1!F190+'Захтев за додатна сред.'!F190+Projekat!F190+Sheet2!F190 -> 0 | G190: =+Programska_aktivnost!G190+Sheet1!G190+'Захтев за додатна сред.'!G190+Projekat!G190+Sheet2!G190 -> 0 | H190: =+Programska_aktivnost!H190+Sheet1!H190+'Захтев за додатна сред.'!H190+Projekat!H190+Sheet2!H190 -> 0 | I190: =+Programska_aktivnost!I190+Sheet1!I190+'Захтев за додатна сред.'!I190+Projekat!I190+Sheet2!I190 -> 0 | J190: =+Programska_aktivnost!J190+Sheet1!J190+'Захтев за додатна сред.'!J190+Projekat!J190+Sheet2!J190 -> 0 | K190: =+Programska_aktivnost!K190+Sheet1!K190+'Захтев за додатна сред.'!K190+Projekat!K190+Sheet2!K190 -> 0 | L190: =+Programska_aktivnost!L190+Sheet1!L190+'Захтев за додатна сред.'!L190+Projekat!L190+Sheet2!L190 -> 0 | M190: =+Programska_aktivnost!M190+Sheet1!M190+'Захтев за додатна сред.'!M190+Projekat!M190+Sheet2!M190 -> 0 | N190: 0 | O190: 0 | Y190: 0
A191: 144 | B191: 922700 | C191: Примања од продаје страних акција и осталог капитала | D191: =+Programska_aktivnost!D191+Sheet1!D191+'Захтев за додатна сред.'!D191+Projekat!D191+Sheet2!D191 -> 0 | E191: =+Programska_aktivnost!E191+Sheet1!E191+'Захтев за додатна сред.'!E191+Projekat!E191+Sheet2!E191 -> 0 | F191: =+Programska_aktivnost!F191+Sheet1!F191+'Захтев за додатна сред.'!F191+Projekat!F191+Sheet2!F191 -> 0 | G191: =+Programska_aktivnost!G191+Sheet1!G191+'Захтев за додатна сред.'!G191+Projekat!G191+Sheet2!G191 -> 0 | H191: =+Programska_aktivnost!H191+Sheet1!H191+'Захтев за додатна сред.'!H191+Projekat!H191+Sheet2!H191 -> 0 | I191: =+Programska_aktivnost!I191+Sheet1!I191+'Захтев за додатна сред.'!I191+Projekat!I191+Sheet2!I191 -> 0 | J191: =+Programska_aktivnost!J191+Sheet1!J191+'Захтев за додатна сред.'!J191+Projekat!J191+Sheet2!J191 -> 0 | K191: =+Programska_aktivnost!K191+Sheet1!K191+'Захтев за додатна сред.'!K191+Projekat!K191+Sheet2!K191 -> 0 | L191: =+Programska_aktivnost!L191+Sheet1!L191+'Захтев за додатна сред.'!L191+Projekat!L191+Sheet2!L191 -> 0 | M191: =+Programska_aktivnost!M191+Sheet1!M191+'Захтев за додатна сред.'!M191+Projekat!M191+Sheet2!M191 -> 0 | N191: 0 | O191: 0 | Y191: 0
A192: 145 | B192: 922800 | C192: Примања од продаје стране валуте | D192: =+Programska_aktivnost!D192+Sheet1!D192+'Захтев за додатна сред.'!D192+Projekat!D192+Sheet2!D192 -> 0 | E192: =+Programska_aktivnost!E192+Sheet1!E192+'Захтев за додатна сред.'!E192+Projekat!E192+Sheet2!E192 -> 0 | F192: =+Programska_aktivnost!F192+Sheet1!F192+'Захтев за додатна сред.'!F192+Projekat!F192+Sheet2!F192 -> 0 | G192: =+Programska_aktivnost!G192+Sheet1!G192+'Захтев за додатна сред.'!G192+Projekat!G192+Sheet2!G192 -> 0 | H192: =+Programska_aktivnost!H192+Sheet1!H192+'Захтев за додатна сред.'!H192+Projekat!H192+Sheet2!H192 -> 0 | I192: =+Programska_aktivnost!I192+Sheet1!I192+'Захтев за додатна сред.'!I192+Projekat!I192+Sheet2!I192 -> 0 | J192: =+Programska_aktivnost!J192+Sheet1!J192+'Захтев за додатна сред.'!J192+Projekat!J192+Sheet2!J192 -> 0 | K192: =+Programska_aktivnost!K192+Sheet1!K192+'Захтев за додатна сред.'!K192+Projekat!K192+Sheet2!K192 -> 0 | L192: =+Programska_aktivnost!L192+Sheet1!L192+'Захтев за додатна сред.'!L192+Projekat!L192+Sheet2!L192 -> 0 | M192: =+Programska_aktivnost!M192+Sheet1!M192+'Захтев за додатна сред.'!M192+Projekat!M192+Sheet2!M192 -> 0 | N192: 0 | O192: 0 | Y192: 0
A193: 146 | C193: УКУПНИ ПРИХОДИ, ПРИМАЊА И ПРЕНЕТА СРЕДСТВА ИЗ ПРЕТХОДНЕ ГОДИНЕ (1 + 8 + 81 + 106) | D193: =+Programska_aktivnost!D193+Sheet1!D193+'Захтев за додатна сред.'!D193+Projekat!D193+Sheet2!D193 -> 151754000 | E193: =+Programska_aktivnost!E193+Sheet1!E193+'Захтев за додатна сред.'!E193+Projekat!E193+Sheet2!E193 -> 12343000 | F193: =+Programska_aktivnost!F193+Sheet1!F193+'Захтев за додатна сред.'!F193+Projekat!F193+Sheet2!F193 -> 170977000 | G193: =+Programska_aktivnost!G193+Sheet1!G193+'Захтев за додатна сред.'!G193+Projekat!G193+Sheet2!G193 -> 12368000 | H193: =+Programska_aktivnost!H193+Sheet1!H193+'Захтев за додатна сред.'!H193+Projekat!H193+Sheet2!H193 -> 202171000 | I193: =+Programska_aktivnost!I193+Sheet1!I193+'Захтев за додатна сред.'!I193+Projekat!I193+Sheet2!I193 -> 2600000 | J193: =+Programska_aktivnost!J193+Sheet1!J193+'Захтев за додатна сред.'!J193+Projekat!J193+Sheet2!J193 -> 180321000 | K193: =+Programska_aktivnost!K193+Sheet1!K193+'Захтев за додатна сред.'!K193+Projekat!K193+Sheet2!K193 -> 2800000 | L193: =+Programska_aktivnost!L193+Sheet1!L193+'Захтев за додатна сред.'!L193+Projekat!L193+Sheet2!L193 -> 186833000 | M193: =+Programska_aktivnost!M193+Sheet1!M193+'Захтев за додатна сред.'!M193+Projekat!M193+Sheet2!M193 -> 2900000 | N193: =N55+N128+N153+N48 -> 569325000 | O193: =O55+O128+O153+O48 -> 8300000 | Y193: 1
A194: 147 | B194: 400000 | C194: ТЕКУЋИ РАСХОДИ (148+166+211+226+250+263+279+294) | D194: =+Programska_aktivnost!D194+Sheet1!D194+'Захтев за додатна сред.'!D194+Projekat!D194+Sheet2!D194 -> 150800000 | E194: =+Programska_aktivnost!E194+Sheet1!E194+'Захтев за додатна сред.'!E194+Projekat!E194+Sheet2!E194 -> 12343000 | F194: =+Programska_aktivnost!F194+Sheet1!F194+'Захтев за додатна сред.'!F194+Projekat!F194+Sheet2!F194 -> 168277000 | G194: =+Programska_aktivnost!G194+Sheet1!G194+'Захтев за додатна сред.'!G194+Projekat!G194+Sheet2!G194 -> 12368000 | H194: =+Programska_aktivnost!H194+Sheet1!H194+'Захтев за додатна сред.'!H194+Projekat!H194+Sheet2!H194 -> 196812000 | I194: =+Programska_aktivnost!I194+Sheet1!I194+'Захтев за додатна сред.'!I194+Projekat!I194+Sheet2!I194 -> 2600000 | J194: =+Programska_aktivnost!J194+Sheet1!J194+'Захтев за додатна сред.'!J194+Projekat!J194+Sheet2!J194 -> 178821000 | K194: =+Programska_aktivnost!K194+Sheet1!K194+'Захтев за додатна сред.'!K194+Projekat!K194+Sheet2!K194 -> 2800000 | L194: =+Programska_aktivnost!L194+Sheet1!L194+'Захтев за додатна сред.'!L194+Projekat!L194+Sheet2!L194 -> 179315000 | M194: =+Programska_aktivnost!M194+Sheet1!M194+'Захтев за додатна сред.'!M194+Projekat!M194+Sheet2!M194 -> 2900000 | N194: 554948000 | O194: 8300000 | Y194: 1470284000
A195: 148 | B195: 410000 | C195: РАСХОДИ ЗА ЗАПОСЛЕНЕ (149+151+155+157+162+164) | D195: =+Programska_aktivnost!D195+Sheet1!D195+'Захтев за додатна сред.'!D195+Projekat!D195+Sheet2!D195 -> 110901000 | E195: =+Programska_aktivnost!E195+Sheet1!E195+'Захтев за додатна сред.'!E195+Projekat!E195+Sheet2!E195 -> 763000 | F195: =+Programska_aktivnost!F195+Sheet1!F195+'Захтев за додатна сред.'!F195+Projekat!F195+Sheet2!F195 -> 124434000 | G195: =+Programska_aktivnost!G195+Sheet1!G195+'Захтев за додатна сред.'!G195+Projekat!G195+Sheet2!G195 -> 668000 | H195: =+Programska_aktivnost!H195+Sheet1!H195+'Захтев за додатна сред.'!H195+Projekat!H195+Sheet2!H195 -> 150122000 | I195: =+Programska_aktivnost!I195+Sheet1!I195+'Захтев за додатна сред.'!I195+Projekat!I195+Sheet2!I195 -> 0 | J195: =+Programska_aktivnost!J195+Sheet1!J195+'Захтев за додатна сред.'!J195+Projekat!J195+Sheet2!J195 -> 139200000 | K195: =+Programska_aktivnost!K195+Sheet1!K195+'Захтев за додатна сред.'!K195+Projekat!K195+Sheet2!K195 -> 0 | L195: =+Programska_aktivnost!L195+Sheet1!L195+'Захтев за додатна сред.'!L195+Projekat!L195+Sheet2!L195 -> 150100000 | M195: =+Programska_aktivnost!M195+Sheet1!M195+'Захтев за додатна сред.'!M195+Projekat!M195+Sheet2!M195 -> 0 | N195: =N196+N198+N202+N204+N209+N211 -> 439422000 | O195: =O196+O198+O202+O204+O209+O211 -> 0 | Y195: 1115610000
A196: 149 | B196: 411000 | C196: ПЛАТЕ, ДОДАЦИ И НАКНАДЕ ЗАПОСЛЕНИХ (ЗАРАДЕ) (150) | D196: =+Programska_aktivnost!D196+Sheet1!D196+'Захтев за додатна сред.'!D196+Projekat!D196+Sheet2!D196 -> 91407000 | E196: =+Programska_aktivnost!E196+Sheet1!E196+'Захтев за додатна сред.'!E196+Projekat!E196+Sheet2!E196 -> 0 | F196: =+Programska_aktivnost!F196+Sheet1!F196+'Захтев за додатна сред.'!F196+Projekat!F196+Sheet2!F196 -> 99170000 | G196: =+Programska_aktivnost!G196+Sheet1!G196+'Захтев за додатна сред.'!G196+Projekat!G196+Sheet2!G196 -> 0 | H196: =+Programska_aktivnost!H196+Sheet1!H196+'Захтев за додатна сред.'!H196+Projekat!H196+Sheet2!H196 -> 120220000 | I196: =+Programska_aktivnost!I196+Sheet1!I196+'Захтев за додатна сред.'!I196+Projekat!I196+Sheet2!I196 -> 0 | J196: =+Programska_aktivnost!J196+Sheet1!J196+'Захтев за додатна сред.'!J196+Projekat!J196+Sheet2!J196 -> 111600000 | K196: =+Programska_aktivnost!K196+Sheet1!K196+'Захтев за додатна сред.'!K196+Projekat!K196+Sheet2!K196 -> 0 | L196: =+Programska_aktivnost!L196+Sheet1!L196+'Захтев за додатна сред.'!L196+Projekat!L196+Sheet2!L196 -> 120700000 | M196: =+Programska_aktivnost!M196+Sheet1!M196+'Захтев за додатна сред.'!M196+Projekat!M196+Sheet2!M196 -> 0 | N196: 352520000 | O196: 0 | Y196: 895617000
A197: 150 | B197: 411100 | C197: Плате, додаци и накнаде запослених | D197: =+Programska_aktivnost!D197+Sheet1!D197+'Захтев за додатна сред.'!D197+Projekat!D197+Sheet2!D197 -> 91407000 | E197: =+Programska_aktivnost!E197+Sheet1!E197+'Захтев за додатна сред.'!E197+Projekat!E197+Sheet2!E197 -> 0 | F197: =+Programska_aktivnost!F197+Sheet1!F197+'Захтев за додатна сред.'!F197+Projekat!F197+Sheet2!F197 -> 99170000 | G197: =+Programska_aktivnost!G197+Sheet1!G197+'Захтев за додатна сред.'!G197+Projekat!G197+Sheet2!G197 -> 0 | H197: =+Programska_aktivnost!H197+Sheet1!H197+'Захтев за додатна сред.'!H197+Projekat!H197+Sheet2!H197 -> 120220000 | I197: =+Programska_aktivnost!I197+Sheet1!I197+'Захтев за додатна сред.'!I197+Projekat!I197+Sheet2!I197 -> 0 | J197: =+Programska_aktivnost!J197+Sheet1!J197+'Захтев за додатна сред.'!J197+Projekat!J197+Sheet2!J197 -> 111600000 | K197: =+Programska_aktivnost!K197+Sheet1!K197+'Захтев за додатна сред.'!K197+Projekat!K197+Sheet2!K197 -> 0 | L197: =+Programska_aktivnost!L197+Sheet1!L197+'Захтев за додатна сред.'!L197+Projekat!L197+Sheet2!L197 -> 120700000 | M197: =+Programska_aktivnost!M197+Sheet1!M197+'Захтев за додатна сред.'!M197+Projekat!M197+Sheet2!M197 -> 0 | N197: 352520000 | O197: 0 | Y197: 895617000
A198: 151 | B198: 412000 | C198: СОЦИЈАЛНИ ДОПРИНОСИ НА ТЕРЕТ ПОСЛОДАВЦА (од 152 до 154) | D198: =+Programska_aktivnost!D198+Sheet1!D198+'Захтев за додатна сред.'!D198+Projekat!D198+Sheet2!D198 -> 16397000 | E198: =+Programska_aktivnost!E198+Sheet1!E198+'Захтев за додатна сред.'!E198+Projekat!E198+Sheet2!E198 -> 0 | F198: =+Programska_aktivnost!F198+Sheet1!F198+'Захтев за додатна сред.'!F198+Projekat!F198+Sheet2!F198 -> 17514000 | G198: =+Programska_aktivnost!G198+Sheet1!G198+'Захтев за додатна сред.'!G198+Projekat!G198+Sheet2!G198 -> 0 | H198: =+Programska_aktivnost!H198+Sheet1!H198+'Захтев за додатна сред.'!H198+Projekat!H198+Sheet2!H198 -> 20622000 | I198: =+Programska_aktivnost!I198+Sheet1!I198+'Захтев за додатна сред.'!I198+Projekat!I198+Sheet2!I198 -> 0 | J198: =+Programska_aktivnost!J198+Sheet1!J198+'Захтев за додатна сред.'!J198+Projekat!J198+Sheet2!J198 -> 19100000 | K198: =+Programska_aktivnost!K198+Sheet1!K198+'Захтев за додатна сред.'!K198+Projekat!K198+Sheet2!K198 -> 0 | L198: =+Programska_aktivnost!L198+Sheet1!L198+'Захтев за додатна сред.'!L198+Projekat!L198+Sheet2!L198 -> 20600000 | M198: =+Programska_aktivnost!M198+Sheet1!M198+'Захтев за додатна сред.'!M198+Projekat!M198+Sheet2!M198 -> 0 | N198: 60322000 | O198: 0 | Y198: 154555000
A199: 152 | B199: 412100 | C199: Допринос за пензијско и инвалидско осигурање | D199: =+Programska_aktivnost!D199+Sheet1!D199+'Захтев за додатна сред.'!D199+Projekat!D199+Sheet2!D199 -> 10957000 | E199: =+Programska_aktivnost!E199+Sheet1!E199+'Захтев за додатна сред.'!E199+Projekat!E199+Sheet2!E199 -> 0 | F199: =+Programska_aktivnost!F199+Sheet1!F199+'Захтев за додатна сред.'!F199+Projekat!F199+Sheet2!F199 -> 11900000 | G199: =+Programska_aktivnost!G199+Sheet1!G199+'Захтев за додатна сред.'!G199+Projekat!G199+Sheet2!G199 -> 0 | H199: =+Programska_aktivnost!H199+Sheet1!H199+'Захтев за додатна сред.'!H199+Projekat!H199+Sheet2!H199 -> 14500000 | I199: =+Programska_aktivnost!I199+Sheet1!I199+'Захтев за додатна сред.'!I199+Projekat!I199+Sheet2!I199 -> 0 | J199: =+Programska_aktivnost!J199+Sheet1!J199+'Захтев за додатна сред.'!J199+Projekat!J199+Sheet2!J199 -> 13000000 | K199: =+Programska_aktivnost!K199+Sheet1!K199+'Захтев за додатна сред.'!K199+Projekat!K199+Sheet2!K199 -> 0 | L199: =+Programska_aktivnost!L199+Sheet1!L199+'Захтев за додатна сред.'!L199+Projekat!L199+Sheet2!L199 -> 14400000 | M199: =+Programska_aktivnost!M199+Sheet1!M199+'Захтев за додатна сред.'!M199+Projekat!M199+Sheet2!M199 -> 0 | N199: 41900000 | O199: 0 | Y199: 106657000
A200: 153 | B200: 412200 | C200: Допринос за здравствено осигурање | D200: =+Programska_aktivnost!D200+Sheet1!D200+'Захтев за додатна сред.'!D200+Projekat!D200+Sheet2!D200 -> 4750000 | E200: =+Programska_aktivnost!E200+Sheet1!E200+'Захтев за додатна сред.'!E200+Projekat!E200+Sheet2!E200 -> 0 | F200: =+Programska_aktivnost!F200+Sheet1!F200+'Захтев за додатна сред.'!F200+Projekat!F200+Sheet2!F200 -> 5614000 | G200: =+Programska_aktivnost!G200+Sheet1!G200+'Захтев за додатна сред.'!G200+Projekat!G200+Sheet2!G200 -> 0 | H200: =+Programska_aktivnost!H200+Sheet1!H200+'Захтев за додатна сред.'!H200+Projekat!H200+Sheet2!H200 -> 6122000 | I200: =+Programska_aktivnost!I200+Sheet1!I200+'Захтев за додатна сред.'!I200+Projekat!I200+Sheet2!I200 -> 0 | J200: =+Programska_aktivnost!J200+Sheet1!J200+'Захтев за додатна сред.'!J200+Projekat!J200+Sheet2!J200 -> 6100000 | K200: =+Programska_aktivnost!K200+Sheet1!K200+'Захтев за додатна сред.'!K200+Projekat!K200+Sheet2!K200 -> 0 | L200: =+Programska_aktivnost!L200+Sheet1!L200+'Захтев за додатна сред.'!L200+Projekat!L200+Sheet2!L200 -> 6200000 | M200: =+Programska_aktivnost!M200+Sheet1!M200+'Захтев за додатна сред.'!M200+Projekat!M200+Sheet2!M200 -> 0 | N200: 18422000 | O200: 0 | Y200: 47208000
A201: 154 | B201: 412300 | C201: Допринос за незапосленост | D201: =+Programska_aktivnost!D201+Sheet1!D201+'Захтев за додатна сред.'!D201+Projekat!D201+Sheet2!D201 -> 690000 | E201: =+Programska_aktivnost!E201+Sheet1!E201+'Захтев за додатна сред.'!E201+Projekat!E201+Sheet2!E201 -> 0 | F201: =+Programska_aktivnost!F201+Sheet1!F201+'Захтев за додатна сред.'!F201+Projekat!F201+Sheet2!F201 -> 0 | G201: =+Programska_aktivnost!G201+Sheet1!G201+'Захтев за додатна сред.'!G201+Projekat!G201+Sheet2!G201 -> 0 | H201: =+Programska_aktivnost!H201+Sheet1!H201+'Захтев за додатна сред.'!H201+Projekat!H201+Sheet2!H201 -> 0 | I201: =+Programska_aktivnost!I201+Sheet1!I201+'Захтев за додатна сред.'!I201+Projekat!I201+Sheet2!I201 -> 0 | J201: =+Programska_aktivnost!J201+Sheet1!J201+'Захтев за додатна сред.'!J201+Projekat!J201+Sheet2!J201 -> 0 | K201: =+Programska_aktivnost!K201+Sheet1!K201+'Захтев за додатна сред.'!K201+Projekat!K201+Sheet2!K201 -> 0 | L201: =+Programska_aktivnost!L201+Sheet1!L201+'Захтев за додатна сред.'!L201+Projekat!L201+Sheet2!L201 -> 0 | M201: =+Programska_aktivnost!M201+Sheet1!M201+'Захтев за додатна сред.'!M201+Projekat!M201+Sheet2!M201 -> 0 | N201: 0 | O201: 0 | Y201: 690000
A202: 155 | B202: 413000 | C202: НАКНАДЕ У НАТУРИ (156) | D202: =+Programska_aktivnost!D202+Sheet1!D202+'Захтев за додатна сред.'!D202+Projekat!D202+Sheet2!D202 -> 237000 | E202: =+Programska_aktivnost!E202+Sheet1!E202+'Захтев за додатна сред.'!E202+Projekat!E202+Sheet2!E202 -> 0 | F202: =+Programska_aktivnost!F202+Sheet1!F202+'Захтев за додатна сред.'!F202+Projekat!F202+Sheet2!F202 -> 0 | G202: =+Programska_aktivnost!G202+Sheet1!G202+'Захтев за додатна сред.'!G202+Projekat!G202+Sheet2!G202 -> 0 | H202: =+Programska_aktivnost!H202+Sheet1!H202+'Захтев за додатна сред.'!H202+Projekat!H202+Sheet2!H202 -> 0 | I202: =+Programska_aktivnost!I202+Sheet1!I202+'Захтев за додатна сред.'!I202+Projekat!I202+Sheet2!I202 -> 0 | J202: =+Programska_aktivnost!J202+Sheet1!J202+'Захтев за додатна сред.'!J202+Projekat!J202+Sheet2!J202 -> 0 | K202: =+Programska_aktivnost!K202+Sheet1!K202+'Захтев за додатна сред.'!K202+Projekat!K202+Sheet2!K202 -> 0 | L202: =+Programska_aktivnost!L202+Sheet1!L202+'Захтев за додатна сред.'!L202+Projekat!L202+Sheet2!L202 -> 0 | M202: =+Programska_aktivnost!M202+Sheet1!M202+'Захтев за додатна сред.'!M202+Projekat!M202+Sheet2!M202 -> 0 | N202: 0 | O202: 0 | Y202: 237000
A203: 156 | B203: 413100 | C203: Накнаде у натури | D203: =+Programska_aktivnost!D203+Sheet1!D203+'Захтев за додатна сред.'!D203+Projekat!D203+Sheet2!D203 -> 237000 | E203: =+Programska_aktivnost!E203+Sheet1!E203+'Захтев за додатна сред.'!E203+Projekat!E203+Sheet2!E203 -> 0 | F203: =+Programska_aktivnost!F203+Sheet1!F203+'Захтев за додатна сред.'!F203+Projekat!F203+Sheet2!F203 -> 0 | G203: =+Programska_aktivnost!G203+Sheet1!G203+'Захтев за додатна сред.'!G203+Projekat!G203+Sheet2!G203 -> 0 | H203: =+Programska_aktivnost!H203+Sheet1!H203+'Захтев за додатна сред.'!H203+Projekat!H203+Sheet2!H203 -> 0 | I203: =+Programska_aktivnost!I203+Sheet1!I203+'Захтев за додатна сред.'!I203+Projekat!I203+Sheet2!I203 -> 0 | J203: =+Programska_aktivnost!J203+Sheet1!J203+'Захтев за додатна сред.'!J203+Projekat!J203+Sheet2!J203 -> 0 | K203: =+Programska_aktivnost!K203+Sheet1!K203+'Захтев за додатна сред.'!K203+Projekat!K203+Sheet2!K203 -> 0 | L203: =+Programska_aktivnost!L203+Sheet1!L203+'Захтев за додатна сред.'!L203+Projekat!L203+Sheet2!L203 -> 0 | M203: =+Programska_aktivnost!M203+Sheet1!M203+'Захтев за додатна сред.'!M203+Projekat!M203+Sheet2!M203 -> 0 | N203: 0 | O203: 0 | Y203: 237000
A204: 157 | B204: 414000 | C204: СОЦИЈАЛНА ДАВАЊА ЗАПОСЛЕНИМА (од 158 до 161) | D204: =+Programska_aktivnost!D204+Sheet1!D204+'Захтев за додатна сред.'!D204+Projekat!D204+Sheet2!D204 -> 0 | E204: =+Programska_aktivnost!E204+Sheet1!E204+'Захтев за додатна сред.'!E204+Projekat!E204+Sheet2!E204 -> 763000 | F204: =+Programska_aktivnost!F204+Sheet1!F204+'Захтев за додатна сред.'!F204+Projekat!F204+Sheet2!F204 -> 1000000 | G204: =+Programska_aktivnost!G204+Sheet1!G204+'Захтев за додатна сред.'!G204+Projekat!G204+Sheet2!G204 -> 668000 | H204: =+Programska_aktivnost!H204+Sheet1!H204+'Захтев за додатна сред.'!H204+Projekat!H204+Sheet2!H204 -> 880000 | I204: =+Programska_aktivnost!I204+Sheet1!I204+'Захтев за додатна сред.'!I204+Projekat!I204+Sheet2!I204 -> 0 | J204: =+Programska_aktivnost!J204+Sheet1!J204+'Захтев за додатна сред.'!J204+Projekat!J204+Sheet2!J204 -> 900000 | K204: =+Programska_aktivnost!K204+Sheet1!K204+'Захтев за додатна сред.'!K204+Projekat!K204+Sheet2!K204 -> 0 | L204: =+Programska_aktivnost!L204+Sheet1!L204+'Захтев за додатна сред.'!L204+Projekat!L204+Sheet2!L204 -> 1000000 | M204: =+Programska_aktivnost!M204+Sheet1!M204+'Захтев за додатна сред.'!M204+Projekat!M204+Sheet2!M204 -> 0 | N204: 2780000 | O204: 0 | Y204: 7991000
A205: 158 | B205: 414100 | C205: Исплата накнада за време одсуствовања с посла на терет фондова | D205: =+Programska_aktivnost!D205+Sheet1!D205+'Захтев за додатна сред.'!D205+Projekat!D205+Sheet2!D205 -> 0 | E205: =+Programska_aktivnost!E205+Sheet1!E205+'Захтев за додатна сред.'!E205+Projekat!E205+Sheet2!E205 -> 763000 | F205: =+Programska_aktivnost!F205+Sheet1!F205+'Захтев за додатна сред.'!F205+Projekat!F205+Sheet2!F205 -> 0 | G205: =+Programska_aktivnost!G205+Sheet1!G205+'Захтев за додатна сред.'!G205+Projekat!G205+Sheet2!G205 -> 668000 | H205: =+Programska_aktivnost!H205+Sheet1!H205+'Захтев за додатна сред.'!H205+Projekat!H205+Sheet2!H205 -> 0 | I205: =+Programska_aktivnost!I205+Sheet1!I205+'Захтев за додатна сред.'!I205+Projekat!I205+Sheet2!I205 -> 0 | J205: =+Programska_aktivnost!J205+Sheet1!J205+'Захтев за додатна сред.'!J205+Projekat!J205+Sheet2!J205 -> 0 | K205: =+Programska_aktivnost!K205+Sheet1!K205+'Захтев за додатна сред.'!K205+Projekat!K205+Sheet2!K205 -> 0 | L205: =+Programska_aktivnost!L205+Sheet1!L205+'Захтев за додатна сред.'!L205+Projekat!L205+Sheet2!L205 -> 0 | M205: =+Programska_aktivnost!M205+Sheet1!M205+'Захтев за додатна сред.'!M205+Projekat!M205+Sheet2!M205 -> 0 | N205: 0 | O205: 0 | Y205: 1431000
A206: 159 | B206: 414200 | C206: Расходи за образовање деце запослених | D206: =+Programska_aktivnost!D206+Sheet1!D206+'Захтев за додатна сред.'!D206+Projekat!D206+Sheet2!D206 -> 0 | E206: =+Programska_aktivnost!E206+Sheet1!E206+'Захтев за додатна сред.'!E206+Projekat!E206+Sheet2!E206 -> 0 | F206: =+Programska_aktivnost!F206+Sheet1!F206+'Захтев за додатна сред.'!F206+Projekat!F206+Sheet2!F206 -> 0 | G206: =+Programska_aktivnost!G206+Sheet1!G206+'Захтев за додатна сред.'!G206+Projekat!G206+Sheet2!G206 -> 0 | H206: =+Programska_aktivnost!H206+Sheet1!H206+'Захтев за додатна сред.'!H206+Projekat!H206+Sheet2!H206 -> 0 | I206: =+Programska_aktivnost!I206+Sheet1!I206+'Захтев за додатна сред.'!I206+Projekat!I206+Sheet2!I206 -> 0 | J206: =+Programska_aktivnost!J206+Sheet1!J206+'Захтев за додатна сред.'!J206+Projekat!J206+Sheet2!J206 -> 0 | K206: =+Programska_aktivnost!K206+Sheet1!K206+'Захтев за додатна сред.'!K206+Projekat!K206+Sheet2!K206 -> 0 | L206: =+Programska_aktivnost!L206+Sheet1!L206+'Захтев за додатна сред.'!L206+Projekat!L206+Sheet2!L206 -> 0 | M206: =+Programska_aktivnost!M206+Sheet1!M206+'Захтев за додатна сред.'!M206+Projekat!M206+Sheet2!M206 -> 0 | N206: 0 | O206: 0 | Y206: 0
A207: 160 | B207: 414300 | C207: Отпремнине и помоћи | D207: =+Programska_aktivnost!D207+Sheet1!D207+'Захтев за додатна сред.'!D207+Projekat!D207+Sheet2!D207 -> 0 | E207: =+Programska_aktivnost!E207+Sheet1!E207+'Захтев за додатна сред.'!E207+Projekat!E207+Sheet2!E207 -> 0 | F207: =+Programska_aktivnost!F207+Sheet1!F207+'Захтев за додатна сред.'!F207+Projekat!F207+Sheet2!F207 -> 500000 | G207: =+Programska_aktivnost!G207+Sheet1!G207+'Захтев за додатна сред.'!G207+Projekat!G207+Sheet2!G207 -> 0 | H207: =+Programska_aktivnost!H207+Sheet1!H207+'Захтев за додатна сред.'!H207+Projekat!H207+Sheet2!H207 -> 380000 | I207: =+Programska_aktivnost!I207+Sheet1!I207+'Захтев за додатна сред.'!I207+Projekat!I207+Sheet2!I207 -> 0 | J207: =+Programska_aktivnost!J207+Sheet1!J207+'Захтев за додатна сред.'!J207+Projekat!J207+Sheet2!J207 -> 400000 | K207: =+Programska_aktivnost!K207+Sheet1!K207+'Захтев за додатна сред.'!K207+Projekat!K207+Sheet2!K207 -> 0 | L207: =+Programska_aktivnost!L207+Sheet1!L207+'Захтев за додатна сред.'!L207+Projekat!L207+Sheet2!L207 -> 0 | M207: =+Programska_aktivnost!M207+Sheet1!M207+'Захтев за додатна сред.'!M207+Projekat!M207+Sheet2!M207 -> 0 | N207: 780000 | O207: 0 | Y207: 2060000
A208: 161 | B208: 414400 | C208: Помоћ у медицинском лечењу запосленог или чланова уже породице и друге помоћи запосленом | D208: =+Programska_aktivnost!D208+Sheet1!D208+'Захтев за додатна сред.'!D208+Projekat!D208+Sheet2!D208 -> 0 | E208: =+Programska_aktivnost!E208+Sheet1!E208+'Захтев за додатна сред.'!E208+Projekat!E208+Sheet2!E208 -> 0 | F208: =+Programska_aktivnost!F208+Sheet1!F208+'Захтев за додатна сред.'!F208+Projekat!F208+Sheet2!F208 -> 500000 | G208: =+Programska_aktivnost!G208+Sheet1!G208+'Захтев за додатна сред.'!G208+Projekat!G208+Sheet2!G208 -> 0 | H208: =+Programska_aktivnost!H208+Sheet1!H208+'Захтев за додатна сред.'!H208+Projekat!H208+Sheet2!H208 -> 500000 | I208: =+Programska_aktivnost!I208+Sheet1!I208+'Захтев за додатна сред.'!I208+Projekat!I208+Sheet2!I208 -> 0 | J208: =+Programska_aktivnost!J208+Sheet1!J208+'Захтев за додатна сред.'!J208+Projekat!J208+Sheet2!J208 -> 500000 | K208: =+Programska_aktivnost!K208+Sheet1!K208+'Захтев за додатна сред.'!K208+Projekat!K208+Sheet2!K208 -> 0 | L208: =+Programska_aktivnost!L208+Sheet1!L208+'Захтев за додатна сред.'!L208+Projekat!L208+Sheet2!L208 -> 1000000 | M208: =+Programska_aktivnost!M208+Sheet1!M208+'Захтев за додатна сред.'!M208+Projekat!M208+Sheet2!M208 -> 0 | N208: 2000000 | O208: 0 | Y208: 4500000
A209: 162 | B209: 415000 | C209: НАКНАДА ТРОШКОВА ЗА ЗАПОСЛЕНЕ (163) | D209: =+Programska_aktivnost!D209+Sheet1!D209+'Захтев за додатна сред.'!D209+Projekat!D209+Sheet2!D209 -> 1471000 | E209: =+Programska_aktivnost!E209+Sheet1!E209+'Захтев за додатна сред.'!E209+Projekat!E209+Sheet2!E209 -> 0 | F209: =+Programska_aktivnost!F209+Sheet1!F209+'Захтев за додатна сред.'!F209+Projekat!F209+Sheet2!F209 -> 5050000 | G209: =+Programska_aktivnost!G209+Sheet1!G209+'Захтев за додатна сред.'!G209+Projekat!G209+Sheet2!G209 -> 0 | H209: =+Programska_aktivnost!H209+Sheet1!H209+'Захтев за додатна сред.'!H209+Projekat!H209+Sheet2!H209 -> 6000000 | I209: =+Programska_aktivnost!I209+Sheet1!I209+'Захтев за додатна сред.'!I209+Projekat!I209+Sheet2!I209 -> 0 | J209: =+Programska_aktivnost!J209+Sheet1!J209+'Захтев за додатна сред.'!J209+Projekat!J209+Sheet2!J209 -> 6600000 | K209: =+Programska_aktivnost!K209+Sheet1!K209+'Захтев за додатна сред.'!K209+Projekat!K209+Sheet2!K209 -> 0 | L209: =+Programska_aktivnost!L209+Sheet1!L209+'Захтев за додатна сред.'!L209+Projekat!L209+Sheet2!L209 -> 6800000 | M209: =+Programska_aktivnost!M209+Sheet1!M209+'Захтев за додатна сред.'!M209+Projekat!M209+Sheet2!M209 -> 0 | N209: 19400000 | O209: 0 | Y209: 45321000
A210: 163 | B210: 415100 | C210: Накнаде трошкова за запослене | D210: =+Programska_aktivnost!D210+Sheet1!D210+'Захтев за додатна сред.'!D210+Projekat!D210+Sheet2!D210 -> 1471000 | E210: =+Programska_aktivnost!E210+Sheet1!E210+'Захтев за додатна сред.'!E210+Projekat!E210+Sheet2!E210 -> 0 | F210: =+Programska_aktivnost!F210+Sheet1!F210+'Захтев за додатна сред.'!F210+Projekat!F210+Sheet2!F210 -> 5050000 | G210: =+Programska_aktivnost!G210+Sheet1!G210+'Захтев за додатна сред.'!G210+Projekat!G210+Sheet2!G210 -> 0 | H210: =+Programska_aktivnost!H210+Sheet1!H210+'Захтев за додатна сред.'!H210+Projekat!H210+Sheet2!H210 -> 6000000 | I210: =+Programska_aktivnost!I210+Sheet1!I210+'Захтев за додатна сред.'!I210+Projekat!I210+Sheet2!I210 -> 0 | J210: =+Programska_aktivnost!J210+Sheet1!J210+'Захтев за додатна сред.'!J210+Projekat!J210+Sheet2!J210 -> 6600000 | K210: =+Programska_aktivnost!K210+Sheet1!K210+'Захтев за додатна сред.'!K210+Projekat!K210+Sheet2!K210 -> 0 | L210: =+Programska_aktivnost!L210+Sheet1!L210+'Захтев за додатна сред.'!L210+Projekat!L210+Sheet2!L210 -> 6800000 | M210: =+Programska_aktivnost!M210+Sheet1!M210+'Захтев за додатна сред.'!M210+Projekat!M210+Sheet2!M210 -> 0 | N210: 19400000 | O210: 0 | Y210: 45321000
A211: 164 | B211: 416000 | C211: НАГРАДЕ ЗАПОСЛЕНИМА И ОСТАЛИ ПОСЕБНИ РАСХОДИ (165) | D211: =+Programska_aktivnost!D211+Sheet1!D211+'Захтев за додатна сред.'!D211+Projekat!D211+Sheet2!D211 -> 1389000 | E211: =+Programska_aktivnost!E211+Sheet1!E211+'Захтев за додатна сред.'!E211+Projekat!E211+Sheet2!E211 -> 0 | F211: =+Programska_aktivnost!F211+Sheet1!F211+'Захтев за додатна сред.'!F211+Projekat!F211+Sheet2!F211 -> 1700000 | G211: =+Programska_aktivnost!G211+Sheet1!G211+'Захтев за додатна сред.'!G211+Projekat!G211+Sheet2!G211 -> 0 | H211: =+Programska_aktivnost!H211+Sheet1!H211+'Захтев за додатна сред.'!H211+Projekat!H211+Sheet2!H211 -> 2400000 | I211: =+Programska_aktivnost!I211+Sheet1!I211+'Захтев за додатна сред.'!I211+Projekat!I211+Sheet2!I211 -> 0 | J211: =+Programska_aktivnost!J211+Sheet1!J211+'Захтев за додатна сред.'!J211+Projekat!J211+Sheet2!J211 -> 1000000 | K211: =+Programska_aktivnost!K211+Sheet1!K211+'Захтев за додатна сред.'!K211+Projekat!K211+Sheet2!K211 -> 0 | L211: =+Programska_aktivnost!L211+Sheet1!L211+'Захтев за додатна сред.'!L211+Projekat!L211+Sheet2!L211 -> 1000000 | M211: =+Programska_aktivnost!M211+Sheet1!M211+'Захтев за додатна сред.'!M211+Projekat!M211+Sheet2!M211 -> 0 | N211: 4400000 | O211: 0 | Y211: 11889000
A212: 165 | B212: 416100 | C212: Награде запосленима и остали посебни расходи | D212: =+Programska_aktivnost!D212+Sheet1!D212+'Захтев за додатна сред.'!D212+Projekat!D212+Sheet2!D212 -> 1389000 | E212: =+Programska_aktivnost!E212+Sheet1!E212+'Захтев за додатна сред.'!E212+Projekat!E212+Sheet2!E212 -> 0 | F212: =+Programska_aktivnost!F212+Sheet1!F212+'Захтев за додатна сред.'!F212+Projekat!F212+Sheet2!F212 -> 1700000 | G212: =+Programska_aktivnost!G212+Sheet1!G212+'Захтев за додатна сред.'!G212+Projekat!G212+Sheet2!G212 -> 0 | H212: =+Programska_aktivnost!H212+Sheet1!H212+'Захтев за додатна сред.'!H212+Projekat!H212+Sheet2!H212 -> 2400000 | I212: =+Programska_aktivnost!I212+Sheet1!I212+'Захтев за додатна сред.'!I212+Projekat!I212+Sheet2!I212 -> 0 | J212: =+Programska_aktivnost!J212+Sheet1!J212+'Захтев за додатна сред.'!J212+Projekat!J212+Sheet2!J212 -> 1000000 | K212: =+Programska_aktivnost!K212+Sheet1!K212+'Захтев за додатна сред.'!K212+Projekat!K212+Sheet2!K212 -> 0 | L212: =+Programska_aktivnost!L212+Sheet1!L212+'Захтев за додатна сред.'!L212+Projekat!L212+Sheet2!L212 -> 1000000 | M212: =+Programska_aktivnost!M212+Sheet1!M212+'Захтев за додатна сред.'!M212+Projekat!M212+Sheet2!M212 -> 0 | N212: 4400000 | O212: 0 | Y212: 11889000
A213: 166 | B213: 420000 | C213: КОРИШЋЕЊЕ УСЛУГА И РОБА (167 + 175 + 181 + 190 + 198 + 201) | D213: =+Programska_aktivnost!D213+Sheet1!D213+'Захтев за додатна сред.'!D213+Projekat!D213+Sheet2!D213 -> 28534000 | E213: =+Programska_aktivnost!E213+Sheet1!E213+'Захтев за додатна сред.'!E213+Projekat!E213+Sheet2!E213 -> 11580000 | F213: =+Programska_aktivnost!F213+Sheet1!F213+'Захтев за додатна сред.'!F213+Projekat!F213+Sheet2!F213 -> 27277000 | G213: =+Programska_aktivnost!G213+Sheet1!G213+'Захтев за додатна сред.'!G213+Projekat!G213+Sheet2!G213 -> 11700000 | H213: =+Programska_aktivnost!H213+Sheet1!H213+'Захтев за додатна сред.'!H213+Projekat!H213+Sheet2!H213 -> 38915000 | I213: =+Programska_aktivnost!I213+Sheet1!I213+'Захтев за додатна сред.'!I213+Projekat!I213+Sheet2!I213 -> 2580000 | J213: =+Programska_aktivnost!J213+Sheet1!J213+'Захтев за додатна сред.'!J213+Projekat!J213+Sheet2!J213 -> 39521000 | K213: =+Programska_aktivnost!K213+Sheet1!K213+'Захтев за додатна сред.'!K213+Projekat!K213+Sheet2!K213 -> 2780000 | L213: =+Programska_aktivnost!L213+Sheet1!L213+'Захтев за додатна сред.'!L213+Projekat!L213+Sheet2!L213 -> 29095000 | M213: =+Programska_aktivnost!M213+Sheet1!M213+'Захтев за додатна сред.'!M213+Projekat!M213+Sheet2!M213 -> 2880000 | N213: =SUM(H213,J213,L213) -> 107531000 | O213: 8240000 | Y213: 310633000
... 319 more rows

Sheet Programska_aktivnost
A1: Обрасци за припрему програмског буџета | Y1: 0 | AC1: остали корисници јавних средстава | AJ1: 2. ПРОГРАМСКА АКТИВНОСТ | AM1: =IF(A2=AJ1,""," - захтев за додатна средства") ->  | AN1: Директни буџетски корисник локалне власти
A2: 2. ПРОГРАМСКА АКТИВНОСТ | AJ2: 2. ПРОГРАМСКА АКТИВНОСТ - ЗАХТЕВ ЗА ДОДАТНА СРЕДСТВА | AN2: Индиректни буџетски корисник локалне власти
V3: =VLOOKUP($D$4,Uputstvo!$C$38:$D$54,2,FALSE) -> п8 | Z3: Вредност у базној години (2016) | AB3: Очекивана вредност у 2017. години | AD3: Вредност у 2018. години | AF3: Вредност у 2019. години | AH3: Вредност у 2020. години | AJ3: Укупно (2018-2020) | AN3: Корисник буџетских средстава на другом нивоу власти
A4: Програм коме припада: | D4: =IF(Program!$D$4="","",Program!$D$4) -> Програм 8. Предшколско васпитање и образовање | V4: =VLOOKUP($D$5,Uputstvo!$B$137:$C$208,2,FALSE) -> ПА_29 | Z4: Буџетска средства | AA4: Средства из осталих извора | AB4: Буџетска средства | AC4: Средства из осталих извора | AD4: Буџетска средства | AE4: Средства из осталих извора | AF4: Буџетска средства | AG4: Средства из осталих извора | AH4: Буџетска средства | AI4: Средства из осталих извора | AJ4: Буџетска средства | AK4: Средства из осталих извора
A5: Шифра и назив: | D5: 2001-0001 Функционисање и остваривање предшколског васпитања и образовања | V5: =VLOOKUP($B$16,Uputstvo!$B$221:$C$317,2,FALSE) -> ПАЦ_46 | Y5: =$C$474&AM1&" ("&$D$7&")" -> 2001-0001 Функционисање и остваривање предшколског васпитања и образовања (ПРЕДШКОЛСКА УСТАНОВА "БАМБИ") | Z5: =D452 -> 151754000 | AA5: =E452 -> 12343000 | AB5: 170977000 | AC5: 12368000 | AD5: 202171000 | AE5: 2600000 | AF5: 180321000 | AG5: 2800000 | AH5: 186833000 | AI5: 2900000 | AJ5: 569325000 | AK5: 8300000
A6: Функција: | D6: 911 - Предшколско образовање | V6: =VLOOKUP($B$22,Uputstvo!$B$221:$C$317,2,FALSE) -> ПАЦ_47 | AB6: Вредност у базној години (2016) | AD6: Очекивана вредност у 2017. години | AF6: Вредност у 2018. години | AH6: Вредност у 2019. години | AJ6: Вредност у 2020. години | AL6: Укупно (2018-2020)
A7: Назив организационе јединице/Буџетски корисник: | D7: ПРЕДШКОЛСКА УСТАНОВА "БАМБИ" | V7: =VLOOKUP($B$28,Uputstvo!$B$221:$C$317,2,FALSE) ->  | AB7: Буџетска средства | AC7: Средства из осталих извора | AD7: Буџетска средства | AE7: Средства из осталих извора | AF7: Буџетска средства | AG7: Средства из осталих извора | AH7: Буџетска средства | AI7: Средства из осталих извора | AJ7: Буџетска средства | AK7: Средства из осталих извора | AL7: Буџетска средства | AM7: Средства из осталих извора
A8: Сврхa: | D8: Омогућавање обухвата предшколске деце у вртићима | V8: =VLOOKUP($B$34,Uputstvo!$B$221:$C$317,2,FALSE) ->  | Z8: Kontrole | AA8: p/r | AB8: =D193-D452 -> 0 | AC8: =E193-E452 -> 0 | AD8: 0 | AE8: 0 | AF8: 0 | AG8: 0 | AH8: 0 | AI8: 0 | AJ8: 0 | AK8: 0 | AL8: =N193-N452 -> 0 | AM8: =O193-O452 -> 0
A9: Основ: | D9: Стратегија одрживог развоја Општине Кула 2009-2019, Закон о буџетском систему ,Закон о основама система образовања и васпитања,Статут ПУ "Бамби", План и програм рада ПУ „Бамби“ за 2018.2019. годину, Закон о локалној самоуправи | V9: =VLOOKUP($B$40,Uputstvo!$B$221:$C$317,2,FALSE) ->  | AA9: p+r/i | AB9: =D452+E452-D474 -> 0 | AC9: =F452+G452-F474 -> 0 | AD9: =H452+I452-H474 -> 0 | AE9: =J452+K452-J474 -> 0 | AF9: =L452+M452-L474 -> 0 | AG9: =N452+O452-N474 -> 0
A10: Опис: | D10: Предшколска установа обавља делатност којом се обезбеђује васпитање и образовање, исхрана, нега,превентивно-здравствена заштита и социјална заштита деце предшколског узраста у складу са Законом. | AA10: приходи из буџета | AB10: =D127-D457 -> 0 | AC10: =F127-F457 -> 0 | AD10: =H127-H457 -> 0 | AE10: =J127-J457 -> 0 | AF10: =L127-L457 -> 0 | AG10: =N127-N457 -> 0
A11: Мере и поглавље преговора о приступању ЕУ: | AA11: transferi | AB11: =D123-$D$458 -> 0 | AC11: =F123-$F$458 -> 0 | AD11: =H123-$H$458 -> 0 | AE11: =J123-$J$458 -> 0 | AF11: =L123-$L$458 -> 0 | AG11: =N123-$N$458 -> 0
A12: Одговорно лице за спровођење прог. aктивности: | D12: директор Снежана Булатовић | Z12: 733000 | AA12: =SUM(D88:M88) -> 31580000
Z13: 781111 | AA13: =D123+F123+H123+J123+L123+N123 -> 0
B14: Циљ* | D14: Индикатори** | Z14: 791111 | AA14: =D127+F127+H127+J127+L127+N127 -> 1461381000
D15: Назив индикатора | G15: Вредност у базној години (2018) | H15: Очекивана вредност у 2019. години | I15: Циљана вредност у 2020. години | J15: Циљана вредност у 2021. години | K15: Циљана вредност у 2022. години | L15: Извор верификације
A16: 1 | B16: Обезбеђени адекватни услови за Васпитно-образовни рад са децом уз повећан обухват | D16: Просечан број деце у групи (јасле, предшколски, припремни предшколски програм/ппп) | G16: 22 | H16: 22 | I16: 20 | J16: 20 | K16: 20 | L16: Годишњи план рада, Годишњи извештај о реализацији плана рада
D17: Просечан број деце по васпитачу/васпитачици (јасле, предшколски, припремни предшколски програм) | G17: 15 | H17: 15 | I17: 14 | J17: 14 | K17: 14 | L17: Годишњи план рада, Годишњи извештај о реализацији плана рада
D18: Процент деце ослобођене од пуне цене услуге у односу на укупан број деце | G18: 20 | H18: 20 | I18: 20 | J18: 20 | K18: 20 | L18: Годишњи план рада, Годишњи извештај о реализацији плана рада
B20: Циљ | D20: Индикатори
D21: Назив индикатора | G21: Вредност у базној години (2018) | H21: Очекивана вредност у 2019. години | I21: Циљана вредност у 2020. години | J21: Циљана вредност у 2021. години | K21: Циљана вредност у 2022. години | L21: Извор верификације
A22: 2 | B22: Унапређење квалитета предшколског образовања и васпитања | D22: Број посебних и специјалних програма у објекту предшколске установе | G22: 1 | H22: 1 | I22: 2 | J22: 3 | K22: 4 | L22: Годишњи план рада,Годишњи извештај о реализацији плана рада,Предшколски програм
D23: Проценат стручних радника који су добили најмање 24 бода за стручно усавршавање кроз учешће на семинарима на годишњем нивоу у односу на укупан број стручних сарадника | G23: 50 | H23: 100 | I23: 100 | J23: 100 | K23: 100 | L23: Годишњи план рада,Годишњи извештај о реализацији плана рада
D24: Број објеката у којима су извршена инвестициона улагања на годишњем нивоу, у односу на укупан број објеката ПУ | G24: 0 | H24: 1 | I24: 2 | J24: 3 | K24: 4 | L24: годишњи план рада,Годишњи извештај о реализацији плана рада
B26: Циљ | D26: Индикатори
D27: Назив индикатора | G27: Вредност у базној години (2018) | H27: Очекивана вредност у 2019. години | I27: Циљана вредност у 2020. години | J27: Циљана вредност у 2021. години | K27: Циљана вредност у 2022. години | L27: Извор верификације
A28: 3
B32: Циљ | D32: Индикатори
D33: Назив индикатора | G33: Вредност у базној години (2018) | H33: Очекивана вредност у 2019. години | I33: Циљана вредност у 2020. години | J33: Циљана вредност у 2021. години | K33: Циљана вредност у 2022. години | L33: Извор верификације
A34: 4
B38: Циљ | D38: Индикатори
D39: Назив индикатора | G39: Вредност у базној години (2018) | H39: Очекивана вредност у 2019. години | I39: Циљана вредност у 2020. години | J39: Циљана вредност у 2021. години | K39: Циљана вредност у 2022. години | L39: Извор верификације
A40: 5
A44: ПЛАНИРАНА СРЕДСТВА ЗА ПРОГРАМСКУ АКТИВНОСТ
A45: Рбр. | B45: Конто | C45: ОПИС | D45: Вредност у базној години (2018) | F45: Очекивана вредност у 2019. години | H45: Вредност у 2020. години | J45: Вредност у 2021. години | L45: Вредност у 2022. години | N45: Укупно (2020-2022) | Y45: 1
D46: Приходи из буџета | E46: Приходи из осталих извора | F46: Приходи из буџета | G46: Приходи из осталих извора | H46: Приходи из буџета | I46: Приходи из осталих извора | J46: Приходи из буџета | K46: Приходи из осталих извора | L46: Приходи из буџета | M46: Приходи из осталих извора | N46: Приходи из буџета | O46: Приходи из осталих извора | Y46: 1
A47: 1 | B47: 2 | C47: 3 | D47: 4 | E47: 5 | F47: 6 | G47: 7 | H47: 8 | I47: 9 | J47: 10 | K47: 11 | L47: 12 | M47: 13 | N47: 14=(8+10+12) | O47: 15=(9+11+13) | Y47: 1
A48: 1 | B48: 300000 | C48: КАПИТАЛ, УТВРЂИВАЊЕ РЕЗУЛТАТА ПОСЛОВАЊА И ВАНБИЛАНСНА ЕВИДЕНЦИЈА (2 + 5) | D48: =SUM(D49,D52) -> 0 | E48: =SUM(E49,E52) -> 0 | F48: 0 | G48: 0 | H48: 0 | I48: 0 | J48: 0 | K48: 0 | L48: 0 | M48: 0 | N48: 0 | O48: 0 | Y48: =SUM(D48:O48) -> 0
A49: 2 | B49: 310000 | C49: КАПИТАЛ (3) | D49: =SUM(D50) -> 0 | E49: =SUM(E50) -> 0 | F49: =SUM(F50) -> 0 | G49: 0 | H49: 0 | I49: 0 | J49: 0 | K49: 0 | L49: 0 | M49: 0 | N49: 0 | O49: 0 | Y49: 0
A50: 3 | B50: 311000 | C50: КАПИТАЛ (4) | D50: =SUM(D51) -> 0 | E50: =SUM(E51) -> 0 | F50: 0 | G50: 0 | H50: 0 | I50: 0 | J50: 0 | K50: 0 | L50: 0 | M50: 0 | N50: =SUM(N51) -> 0 | O50: 0 | Y50: 0
A51: 4 | B51: 311700 | C51: Пренета неутрошена средства из ранијих година | N51: =SUM(H51,J51,L51) -> 0 | O51: =SUM(I51,K51,M51) -> 0 | Y51: =SUM(D51:O51) -> 0
A52: 5 | B52: 320000 | C52: УТВРЂИВАЊЕ РЕЗУЛТАТА ПОСЛОВАЊА (6) | D52: =SUM(D53) -> 0 | E52: =SUM(E53) -> 0 | F52: 0 | G52: 0 | H52: 0 | I52: 0 | J52: 0 | K52: 0 | L52: 0 | M52: 0 | N52: 0 | O52: 0 | Y52: 0
A53: 6 | B53: 321000 | C53: УТВРЂИВАЊЕ РЕЗУЛТАТА ПОСЛОВАЊА (7) | D53: =SUM(D54) -> 0 | E53: 0 | F53: 0 | G53: 0 | H53: 0 | I53: 0 | J53: 0 | K53: 0 | L53: 0 | M53: 0 | N53: 0 | O53: 0 | Y53: 0
A54: 7 | B54: 321300 | C54: Нераспоређени вишак прихода и примања или дефицит из ранијих година | N54: =SUM(H54,J54,L54) -> 0 | O54: =SUM(I54,K54,M54) -> 0 | Y54: 0
A55: =A54+1 -> 8 | B55: 700000 | C55: ТЕКУЋИ ПРИХОДИ (9 + 32 + 44 + 69 + 74 +78) | D55: =D56+D79+D91+D116+D121+D125 -> 151754000 | E55: =E56+E79+E91+E116+E121+E125 -> 12343000 | F55: 170977000 | G55: 12368000 | H55: 202171000 | I55: 2600000 | J55: 180321000 | K55: 2800000 | L55: 186833000 | M55: 2900000 | N55: =N56+N79+N91+N116+N121+N125 -> 569325000 | O55: 8300000 | Y55: =SUM(D55:O55) -> 1502692000
A56: =A55+1 -> 9 | B56: 710000 | C56: ПОРЕЗИ (10 + 14 + 16 + 23 + 29) | D56: =D57+D61+D63+D70+D76 -> 0 | E56: =E57+E61+E63+E70+E76 -> 0 | F56: 0 | G56: 0 | H56: 0 | I56: 0 | J56: 0 | K56: 0 | L56: 0 | M56: 0 | N56: 0 | O56: 0 | Y56: =SUM(D56:O56) -> 0
A57: 10 | B57: 711000 | C57: ПОРЕЗ НА ДОХОДАК, ДОБИТ И КАПИТАЛНЕ ДОБИТКЕ (од 11 до 13) | D57: =SUM(D58:D60) -> 0 | E57: =SUM(E58:E60) -> 0 | F57: 0 | G57: 0 | H57: 0 | I57: 0 | J57: 0 | K57: 0 | L57: 0 | M57: 0 | N57: =SUM(H57,J57,L57) -> 0 | O57: 0 | Y57: 0
A58: 11 | B58: 711100 | C58: Порези на доходак и капиталнe добиткe које плаћају физичка лица | N58: 0 | O58: 0 | Y58: 0
A59: 12 | B59: 711200 | C59: Порези на добит и капиталне добитке које плаћају предузећа и друга правна лица | N59: 0 | O59: 0 | Y59: 0
A60: 13 | B60: 711300 | C60: Порези на доходак, добит и капиталне добитке који се не могу разврстати између физичких и правних лица | N60: 0 | O60: 0 | Y60: 0
A61: 14 | B61: 712000 | C61: ПОРЕЗ НА ФОНД ЗАРАДА (15) | D61: =SUM(D62) -> 0 | E61: 0 | F61: 0 | G61: 0 | H61: 0 | I61: 0 | J61: 0 | K61: 0 | L61: 0 | M61: 0 | N61: 0 | O61: 0 | Y61: 0
A62: 15 | B62: 712100 | C62: Порез на фонд зарада | N62: 0 | O62: 0 | Y62: 0
A63: 16 | B63: 713000 | C63: ПОРЕЗ НА ИМОВИНУ (од 17 до 22) | D63: =SUM(D64:D69) -> 0 | E63: 0 | F63: 0 | G63: 0 | H63: 0 | I63: 0 | J63: 0 | K63: 0 | L63: 0 | M63: 0 | N63: 0 | O63: 0 | Y63: 0
A64: 17 | B64: 713100 | C64: Периодични порези на непокретности | N64: 0 | O64: 0 | Y64: 0
A65: 18 | B65: 713200 | C65: Периодични порези на нето имовину | N65: 0 | O65: 0 | Y65: 0
A66: 19 | B66: 713300 | C66: Порези на заоставштину, наслеђе и поклон | N66: 0 | O66: 0 | Y66: 0
A67: 20 | B67: 713400 | C67: Порези на финансијске и капиталне трансакције | N67: 0 | O67: 0 | Y67: 0
A68: 21 | B68: 713500 | C68: Други једнократни порези на имовину | N68: 0 | O68: 0 | Y68: 0
A69: 22 | B69: 713600 | C69: Други периодични порези на имовину | N69: 0 | O69: 0 | Y69: 0
A70: 23 | B70: 714000 | C70: ПОРЕЗ НА ДОБРА И УСЛУГЕ (од 24 до 28) | D70: =SUM(D71:D75) -> 0 | E70: 0 | F70: 0 | G70: 0 | H70: 0 | I70: 0 | J70: 0 | K70: 0 | L70: 0 | M70: 0 | N70: 0 | O70: 0 | Y70: 0
A71: 24 | B71: 714100 | C71: Општи порези на добра и услуге | N71: 0 | O71: 0 | Y71: 0
A72: 25 | B72: 714300 | C72: Добит фискалних монопола | N72: 0 | O72: 0 | Y72: 0
A73: 26 | B73: 714400 | C73: Порези на појединачне услуге | N73: 0 | O73: 0 | Y73: 0
A74: 27 | B74: 714500 | C74: Порези, таксе и накнаде на употребу добара, на дозволу да се добра употребљавају или делатности обављају | N74: 0 | O74: 0 | Y74: 0
A75: 28 | B75: 714600 | C75: Други порези на добра и услуге | N75: 0 | O75: 0 | Y75: 0
A76: 29 | B76: 716000 | C76: ДРУГИ ПОРЕЗИ (30 + 31) | D76: =SUM(D77:D78) -> 0 | E76: 0 | F76: 0 | G76: 0 | H76: 0 | I76: 0 | J76: 0 | K76: 0 | L76: 0 | M76: 0 | N76: 0 | O76: 0 | Y76: 0
A77: 30 | B77: 716100 | C77: Други порези које искључиво плаћају предузећа, односно предузетници | N77: 0 | O77: 0 | Y77: 0
A78: 31 | B78: 716200 | C78: Други порези које плаћају остала лица или који се не могу идентификовати | N78: 0 | O78: 0 | Y78: 0
A79: 32 | B79: 730000 | C79: ДОНАЦИЈЕ, ПОМОЋИ И ТРАНСФЕРИ (33 + 36 + 41) | D79: =D80+D83+D88 -> 0 | E79: =E80+E83+E88 -> 11580000 | F79: 0 | G79: 11700000 | H79: 0 | I79: 2600000 | J79: 0 | K79: 2800000 | L79: 0 | M79: 2900000 | N79: 0 | O79: 8300000 | Y79: 39880000
A80: 33 | B80: 731000 | C80: ДОНАЦИЈЕ ОД ИНОСТРАНИХ ДРЖАВА (34 + 35) | D80: =SUM(D81:D82) -> 0 | E80: 0 | F80: 0 | G80: 0 | H80: 0 | I80: 0 | J80: 0 | K80: 0 | L80: 0 | M80: 0 | N80: 0 | O80: 0 | Y80: 0
A81: 34 | B81: 731100 | C81: Текуће донације од иностраних држава | N81: 0 | O81: 0 | Y81: 0
A82: 35 | B82: 731200 | C82: Капиталне донације од иностраних држава | N82: 0 | O82: 0 | Y82: 0
A83: 36 | B83: 732000 | C83: ДОНАЦИЈЕ И ПОМОЋИ ОД МЕЂУНАРОДНИХ ОРГАНИЗАЦИЈА (од 37 до 40) | D83: =SUM(D84:D87) -> 0 | E83: =SUM(E84:E87) -> 0 | F83: 0 | G83: 0 | H83: 0 | I83: 0 | J83: 0 | K83: 0 | L83: 0 | M83: 0 | N83: 0 | O83: 0 | Y83: 0
A84: 37 | B84: 732100 | C84: Текуће донације од међународних организација | N84: 0 | O84: 0 | Y84: 0
A85: 38 | B85: 732200 | C85: Капиталне донације од међународних организација | N85: 0 | O85: 0 | Y85: 0
A86: 39 | B86: 732300 | C86: Текуће помоћи од ЕУ | N86: 0 | O86: 0 | Y86: 0
A87: 40 | B87: 732400 | C87: Капиталне помоћи од ЕУ | N87: 0 | O87: 0 | Y87: 0
A88: 41 | B88: 733000 | C88: ТРАНСФЕРИ ОД ДРУГИХ НИВОА ВЛАСТИ (42 + 43) | D88: =SUM(D89:D90) -> 0 | E88: 11580000 | F88: 0 | G88: 11700000 | H88: 0 | I88: 2600000 | J88: 0 | K88: 2800000 | L88: 0 | M88: 2900000 | N88: =SUM(H88,J88,L88) -> 0 | O88: 8300000 | Y88: 39880000
A89: 42 | B89: 733100 | C89: Текући трансфери од других нивоа власти | E89: 11580000 | G89: 11700000 | I89: 2600000 | K89: 2800000 | M89: 2900000 | N89: =SUM(H89,J89,L89) -> 0 | O89: 8300000 | Y89: 39880000
A90: 43 | B90: 733200 | C90: Капитални трансфери од других нивоа власти | N90: 0 | O90: 0 | Y90: 0
A91: 44 | B91: 740000 | C91: ДРУГИ ПРИХОДИ (45 + 52 + 57 + 64 + 67) | D91: =D92+D99+D104+D111+D114 -> 0 | E91: =E92+E99+E104+E111+E114 -> 0 | F91: 0 | G91: 0 | H91: 0 | I91: 0 | J91: 0 | K91: 0 | L91: 0 | M91: 0 | N91: 0 | O91: 0 | Y91: 0
A92: 45 | B92: 741000 | C92: ПРИХОДИ ОД ИМОВИНЕ (од 46 до 51) | D92: =SUM(D93:D98) -> 0 | E92: =SUM(E93:E98) -> 0 | F92: 0 | G92: 0 | H92: 0 | I92: 0 | J92: 0 | K92: 0 | L92: 0 | M92: 0 | N92: 0 | O92: 0 | Y92: 0
A93: 46 | B93: 741100 | C93: Камате | N93: 0 | O93: 0 | Y93: 0
A94: 47 | B94: 741200 | C94: Дивиденде | N94: 0 | O94: 0 | Y94: 0
A95: 48 | B95: 741300 | C95: Повлачење прихода од квази корпорација | N95: 0 | O95: 0 | Y95: 0
A96: 49 | B96: 741400 | C96: Приход од имовине који припада имаоцима полиса осигурања | N96: 0 | O96: 0 | Y96: 0
A97: 50 | B97: 741500 | C97: Закуп непроизведене имовине | N97: 0 | O97: 0 | Y97: 0
A98: 51 | B98: 741600 | C98: Финансијске промене на финансијским лизинзима | N98: 0 | O98: 0 | Y98: 0
A99: 52 | B99: 742000 | C99: ПРИХОДИ ОД ПРОДАЈЕ ДОБАРА И УСЛУГА (од 53 до 56) | D99: =SUM(D100:D103) -> 0 | E99: 0 | F99: 0 | G99: 0 | H99: 0 | I99: 0 | J99: 0 | K99: 0 | L99: 0 | M99: 0 | N99: 0 | O99: 0 | Y99: 0
A100: 53 | B100: 742100 | C100: Приходи од продаје добара и услуга или закупа од стране тржишних организација | N100: 0 | O100: 0 | Y100: 0
A101: 54 | B101: 742200 | C101: Таксе и накнаде | N101: 0 | O101: 0 | Y101: 0
A102: 55 | B102: 742300 | C102: Споредне продаје добара и услуга које врше државне нетржишне јединице | N102: 0 | O102: 0 | Y102: 0
A103: 56 | B103: 742400 | C103: Импутиране продаје добара и услуга | N103: 0 | O103: 0 | Y103: 0
A104: 57 | B104: 743000 | C104: НОВЧАНЕ КАЗНЕ И ОДУЗЕТА ИМОВИНСКА КОРИСТ (од 58 до 63) | D104: =SUM(D105:D110) -> 0 | E104: 0 | F104: 0 | G104: 0 | H104: 0 | I104: 0 | J104: 0 | K104: 0 | L104: 0 | M104: 0 | N104: 0 | O104: 0 | Y104: 0
A105: 58 | B105: 743100 | C105: Приходи од новчаних казни за кривична дела | N105: 0 | O105: 0 | Y105: 0
A106: 59 | B106: 743200 | C106: Приходи од новчаних казни за привредне преступе | N106: 0 | O106: 0 | Y106: 0
A107: 60 | B107: 743300 | C107: Приходи од новчаних казни за прекршаје | N107: 0 | O107: 0 | Y107: 0
A108: 61 | B108: 743400 | C108: Приходи од пенала | N108: 0 | O108: 0 | Y108: 0
A109: 62 | B109: 743500 | C109: Приходи од одузете имовинске користи | N109: 0 | O109: 0 | Y109: 0
A110: 63 | B110: 743900 | C110: Остале новчане казне, пенали и приходи од одузете имовинске користи | N110: 0 | O110: 0 | Y110: 0
A111: 64 | B111: 744000 | C111: ДОБРОВОЉНИ ТРАНСФЕРИ ОД ФИЗИЧКИХ И ПРАВНИХ ЛИЦА (65 + 66) | D111: =SUM(D112:D113) -> 0 | E111: 0 | F111: 0 | G111: 0 | H111: 0 | I111: 0 | J111: 0 | K111: 0 | L111: 0 | M111: 0 | N111: 0 | O111: 0 | Y111: 0
A112: 65 | B112: 744100 | C112: Текући добровољни трансфери од физичких и правних лица | N112: 0 | O112: 0 | Y112: 0
A113: 66 | B113: 744200 | C113: Капитални добровољни трансфери од физичких и правних лица | N113: 0 | O113: 0 | Y113: 0
A114: 67 | B114: 745000 | C114: МЕШОВИТИ И НЕОДРЕЂЕНИ ПРИХОДИ (68) | D114: =D115 -> 0 | E114: =E115 -> 0 | F114: 0 | G114: 0 | H114: 0 | I114: 0 | J114: 0 | K114: 0 | L114: 0 | M114: 0 | N114: 0 | O114: 0 | Y114: 0
A115: 68 | B115: 745100 | C115: Мешовити и неодређени приходи | N115: 0 | O115: 0 | Y115: 0
A116: 69 | B116: 770000 | C116: МЕМОРАНДУМСКЕ СТАВКЕ ЗА РЕФУНДАЦИЈУ РАСХОДА (70 + 72) | D116: =D117+D119 -> 0 | E116: 763000 | F116: 0 | G116: 668000 | H116: 0 | I116: 0 | J116: 0 | K116: 0 | L116: 0 | M116: 0 | N116: 0 | O116: 0 | Y116: 1431000
A117: 70 | B117: 771000 | C117: МЕМОРАНДУМСКЕ СТАВКЕ ЗА РЕФУНДАЦИЈУ РАСХОДА (71) | D117: =D118 -> 0 | E117: =E118 -> 0 | F117: 0 | G117: 0 | H117: 0 | I117: 0 | J117: 0 | K117: 0 | L117: 0 | M117: 0 | N117: 0 | O117: 0 | Y117: 0
A118: 71 | B118: 771100 | C118: Меморандумске ставке за рефундацију расхода | N118: 0 | O118: 0 | Y118: 0
A119: 72 | B119: 772000 | C119: МЕМОРАНДУМСКЕ СТАВКЕ ЗА РЕФУНДАЦИЈУ РАСХОДА ИЗ ПРЕТХОДНЕ ГОДИНЕ (73) | D119: =D120 -> 0 | E119: =E120 -> 763000 | F119: 0 | G119: 668000 | H119: 0 | I119: 0 | J119: 0 | K119: 0 | L119: 0 | M119: 0 | N119: 0 | O119: 0 | Y119: 1431000
A120: =A119+1 -> 73 | B120: 772100 | C120: Меморандумске ставке за рефундацију расхода из претходне године | E120: 763000 | G120: 668000 | N120: 0 | O120: 0 | Y120: =SUM(D120:O120) -> 1431000
A121: 74 | B121: 780000 | C121: ТРАНСФЕРИ ИЗМЕЂУ БУЏЕТСКИХ КОРИСНИКА НА ИСТОМ НИВОУ (75) | D121: =D122 -> 0 | E121: 0 | F121: 0 | G121: 0 | H121: 0 | I121: 0 | J121: 0 | K121: 0 | L121: 0 | M121: 0 | N121: 0 | O121: 0 | Y121: 0
A122: 75 | B122: 781000 | C122: ТРАНСФЕРИ ИЗМЕЂУ БУЏЕТСКИХ КОРИСНИКА НА ИСТОМ НИВОУ (76 + 77) | D122: =SUM(D123:D124) -> 0 | E122: 0 | F122: 0 | G122: 0 | H122: 0 | I122: 0 | J122: 0 | K122: 0 | L122: 0 | M122: 0 | N122: 0 | O122: 0 | Y122: 0
A123: 76 | B123: 781100 | C123: Трансфери између буџетских корисника на истом нивоу | N123: =SUM(H123,J123,L123) -> 0 | O123: =SUM(I123,K123,M123) -> 0 | Y123: 0
A124: 77 | B124: 781300 | C124: Трансфери између организација обавезног социјалног осигурања | N124: 0 | O124: 0 | Y124: 0
A125: 78 | B125: 790000 | C125: ПРИХОДИ ИЗ БУЏЕТА (79) | D125: =D126 -> 151754000 | E125: 0 | F125: 170977000 | G125: 0 | H125: 202171000 | I125: 0 | J125: 180321000 | K125: 0 | L125: 186833000 | M125: 0 | N125: 569325000 | O125: 0 | Y125: 1461381000
A126: 79 | B126: 791000 | C126: ПРИХОДИ ИЗ БУЏЕТА (80) | D126: =D127 -> 151754000 | E126: 0 | F126: 170977000 | G126: 0 | H126: 202171000 | I126: 0 | J126: 180321000 | K126: 0 | L126: 186833000 | M126: 0 | N126: 569325000 | O126: 0 | Y126: 1461381000
A127: 80 | B127: 791100 | C127: Приходи из буџета | D127: 151754000 | F127: 170977000 | H127: 202171000 | J127: 180321000 | L127: 186833000 | N127: 569325000 | O127: 0 | Y127: 1461381000
A128: 81 | B128: 800000 | C128: ПРИМАЊА ОД ПРОДАЈЕ НЕФИНАНСИЈСКЕ ИМОВИНЕ (82 + 89 + 96 + 99) | D128: =D129+D136+D143+D146 -> 0 | E128: =E129+E136+E143+E146 -> 0 | F128: 0 | G128: 0 | H128: 0 | I128: 0 | J128: 0 | K128: 0 | L128: 0 | M128: 0 | N128: 0 | O128: 0 | Y128: 0
A129: 82 | B129: 810000 | C129: ПРИМАЊА ОД ПРОДАЈЕ ОСНОВНИХ СРЕДСТАВА (83 + 85 + 87) | D129: =D130+D132+D134 -> 0 | E129: =E130+E132+E134 -> 0 | F129: 0 | G129: 0 | H129: 0 | I129: 0 | J129: 0 | K129: 0 | L129: 0 | M129: 0 | N129: 0 | O129: 0 | Y129: 0
A130: 83 | B130: 811000 | C130: ПРИМАЊА ОД ПРОДАЈЕ НЕПОКРЕТНОСТИ (84) | D130: =D131 -> 0 | E130: =E131 -> 0 | F130: 0 | G130: 0 | H130: 0 | I130: 0 | J130: 0 | K130: 0 | L130: 0 | M130: 0 | N130: 0 | O130: 0 | Y130: 0
A131: 84 | B131: 811100 | C131: Примања од продаје непокретности | N131: 0 | O131: 0 | Y131: 0
A132: 85 | B132: 812000 | C132: ПРИМАЊА ОД ПРОДАЈЕ ПОКРЕТНЕ ИМОВИНЕ (86) | D132: =D133 -> 0 | E132: 0 | F132: 0 | G132: 0 | H132: 0 | I132: 0 | J132: 0 | K132: 0 | L132: 0 | M132: 0 | N132: 0 | O132: 0 | Y132: 0
A133: 86 | B133: 812100 | C133: Примања од продаје покретне имовине | N133: 0 | O133: 0 | Y133: 0
A134: 87 | B134: 813000 | C134: ПРИМАЊА ОД ПРОДАЈЕ ОСТАЛИХ ОСНОВНИХ СРЕДСТАВА (88) | D134: =D135 -> 0 | E134: 0 | F134: 0 | G134: 0 | H134: 0 | I134: 0 | J134: 0 | K134: 0 | L134: 0 | M134: 0 | N134: 0 | O134: 0 | Y134: 0
A135: 88 | B135: 813100 | C135: Примања од продаје осталих основних средстава | N135: 0 | O135: 0 | Y135: 0
A136: 89 | B136: 820000 | C136: ПРИМАЊА ОД ПРОДАЈЕ ЗАЛИХА (90 + 92 + 94) | D136: =D137+D139+D141 -> 0 | E136: 0 | F136: 0 | G136: 0 | H136: 0 | I136: 0 | J136: 0 | K136: 0 | L136: 0 | M136: 0 | N136: 0 | O136: 0 | Y136: 0
A137: 90 | B137: 821000 | C137: ПРИМАЊА ОД ПРОДАЈЕ РОБНИХ РЕЗЕРВИ (91) | D137: =D138 -> 0 | E137: 0 | F137: 0 | G137: 0 | H137: 0 | I137: 0 | J137: 0 | K137: 0 | L137: 0 | M137: 0 | N137: 0 | O137: 0 | Y137: 0
A138: 91 | B138: 821100 | C138: Примања од продаје робних резерви | N138: 0 | O138: 0 | Y138: 0
A139: 92 | B139: 822000 | C139: ПРИМАЊА ОД ПРОДАЈЕ ЗАЛИХА ПРОИЗВОДЊЕ (93) | D139: =D140 -> 0 | E139: 0 | F139: 0 | G139: 0 | H139: 0 | I139: 0 | J139: 0 | K139: 0 | L139: 0 | M139: 0 | N139: 0 | O139: 0 | Y139: 0
A140: 93 | B140: 822100 | C140: Примања од продаје залиха производње | N140: 0 | O140: 0 | Y140: 0
A141: 94 | B141: 823000 | C141: ПРИМАЊА ОД ПРОДАЈЕ РОБЕ ЗА ДАЉУ ПРОДАЈУ (95) | D141: =D142 -> 0 | E141: 0 | F141: 0 | G141: 0 | H141: 0 | I141: 0 | J141: 0 | K141: 0 | L141: 0 | M141: 0 | N141: 0 | O141: 0 | Y141: 0
A142: 95 | B142: 823100 | C142: Примања од продаје робе за даљу продају | N142: 0 | O142: 0 | Y142: 0
A143: 96 | B143: 830000 | C143: ПРИМАЊА ОД ПРОДАЈЕ ДРАГОЦЕНОСТИ (97) | D143: =D144 -> 0 | E143: 0 | F143: 0 | G143: 0 | H143: 0 | I143: 0 | J143: 0 | K143: 0 | L143: 0 | M143: 0 | N143: 0 | O143: 0 | Y143: 0
A144: 97 | B144: 831000 | C144: ПРИМАЊА ОД ПРОДАЈЕ ДРАГОЦЕНОСТИ (98) | D144: 0 | E144: 0 | F144: 0 | G144: 0 | H144: 0 | I144: 0 | J144: 0 | K144: 0 | L144: 0 | M144: 0 | N144: 0 | O144: 0 | Y144: 0
A145: 98 | B145: 831100 | C145: Примања од продаје драгоцености | N145: 0 | O145: 0 | Y145: 0
A146: 99 | B146: 840000 | C146: ПРИМАЊА ОД ПРОДАЈЕ ПРИРОДНЕ ИМОВИНЕ (100 + 102 + 104) | D146: =D147+D149+D151 -> 0 | E146: 0 | F146: 0 | G146: 0 | H146: 0 | I146: 0 | J146: 0 | K146: 0 | L146: 0 | M146: 0 | N146: 0 | O146: 0 | Y146: 0
A147: 100 | B147: 841000 | C147: ПРИМАЊА ОД ПРОДАЈЕ ЗЕМЉИШТА (101) | D147: =D148 -> 0 | E147: 0 | F147: 0 | G147: 0 | H147: 0 | I147: 0 | J147: 0 | K147: 0 | L147: 0 | M147: 0 | N147: 0 | O147: 0 | Y147: 0
A148: 101 | B148: 841100 | C148: Примања од продаје земљишта | N148: 0 | O148: 0 | Y148: 0
A149: 102 | B149: 842000 | C149: ПРИМАЊА ОД ПРОДАЈЕ ПОДЗЕМНИХ БЛАГА (103) | D149: =D150 -> 0 | E149: 0 | F149: 0 | G149: 0 | H149: 0 | I149: 0 | J149: 0 | K149: 0 | L149: 0 | M149: 0 | N149: 0 | O149: 0 | Y149: 0
A150: 103 | B150: 842100 | C150: Примања од продаје подземних блага | N150: 0 | O150: 0 | Y150: 0
A151: 104 | B151: 843000 | C151: ПРИМАЊА ОД ПРОДАЈЕ ШУМА И ВОДА (105) | D151: =D152 -> 0 | E151: 0 | F151: 0 | G151: 0 | H151: 0 | I151: 0 | J151: 0 | K151: 0 | L151: 0 | M151: 0 | N151: 0 | O151: 0 | Y151: 0
A152: 105 | B152: 843100 | C152: Примања од продаје шума и вода | N152: =SUM(H152,J152,L152) -> 0 | O152: 0 | Y152: 0
A153: 106 | B153: 900000 | C153: ПРИМАЊА ОД ЗАДУЖИВАЊА И ПРОДАЈЕ ФИНАНСИЈСКЕ ИМОВИНЕ (107 + 126) | D153: =D154+D173 -> 0 | E153: =E154+E173 -> 0 | F153: 0 | G153: 0 | H153: 0 | I153: 0 | J153: 0 | K153: 0 | L153: 0 | M153: 0 | N153: 0 | O153: 0 | Y153: 0
A154: 107 | B154: 910000 | C154: ПРИМАЊА ОД ЗАДУЖИВАЊА (108+118) | D154: =D155+D165 -> 0 | E154: =E155+E165 -> 0 | F154: 0 | G154: 0 | H154: 0 | I154: 0 | J154: 0 | K154: 0 | L154: 0 | M154: 0 | N154: 0 | O154: 0 | Y154: 0
A155: 108 | B155: 911000 | C155: ПРИМАЊА ОД ДОМАЋИХ ЗАДУЖИВАЊА (од 109 до 117) | D155: =SUM(D156:D164) -> 0 | E155: 0 | F155: 0 | G155: 0 | H155: 0 | I155: 0 | J155: 0 | K155: 0 | L155: 0 | M155: 0 | N155: 0 | O155: 0 | Y155: 0
A156: 109 | B156: 911100 | C156: Примања од емитовања домаћих хартија од вредности, изузев акција | N156: 0 | O156: 0 | Y156: 0
A157: 110 | B157: 911200 | C157: Примања од задуживања од осталих нивоа власти | N157: 0 | O157: 0 | Y157: 0
A158: 111 | B158: 911300 | C158: Примања од задуживања од јавних финансијских институција у земљи | N158: 0 | O158: 0 | Y158: 0
A159: 112 | B159: 911400 | C159: Примања од задуживања од пословних банака у земљи | N159: 0 | O159: 0 | Y159: 0
A160: 113 | B160: 911500 | C160: Примања од задуживања код осталих поверилаца у земљи | N160: 0 | O160: 0 | Y160: 0
A161: 114 | B161: 911600 | C161: Примања од задуживања од домаћинстава у земљи | N161: 0 | O161: 0 | Y161: 0
A162: 115 | B162: 911700 | C162: Примања од домаћих финансијских деривата | N162: 0 | O162: 0 | Y162: 0
A163: 116 | B163: 911800 | C163: Примања од домаћих меница | N163: 0 | O163: 0 | Y163: 0
A164: 117 | B164: 911900 | C164: Исправка унутрашњег дуга | N164: 0 | O164: 0 | Y164: 0
A165: 118 | B165: 912000 | C165: ПРИМАЊА ОД ИНОСТРАНОГ ЗАДУЖИВАЊА (од 119 + 125) | D165: =SUM(D166:D172) -> 0 | E165: 0 | F165: 0 | G165: 0 | H165: 0 | I165: 0 | J165: 0 | K165: 0 | L165: 0 | M165: 0 | N165: 0 | O165: 0 | Y165: 0
A166: 119 | B166: 912100 | C166: Примања од емитовања хартија од вредности, изузев акција, на иностраном финансијском тржишту | N166: 0 | O166: 0 | Y166: 0
A167: 120 | B167: 912200 | C167: Примања од задуживања од иностраних држава | N167: 0 | O167: 0 | Y167: 0
A168: 121 | B168: 912300 | C168: Примања од задуживања од мултилатералних институција | N168: 0 | O168: 0 | Y168: 0
A169: 122 | B169: 912400 | C169: Примања од задуживања од иностраних пословних банака | N169: 0 | O169: 0 | Y169: 0
A170: 123 | B170: 912500 | C170: Примања од задуживања од осталих иностраних поверилаца | N170: 0 | O170: 0 | Y170: 0
A171: 124 | B171: 912600 | C171: Примања од иностраних финансијских деривата | N171: 0 | O171: 0 | Y171: 0
A172: 125 | B172: 912900 | C172: Исправка спољног дуга | N172: 0 | O172: 0 | Y172: 0
A173: 126 | B173: 920000 | C173: ПРИМАЊА ОД ПРОДАЈЕ ФИНАНСИЈСКЕ ИМОВИНЕ (127 + 137) | D173: =D174+D184 -> 0 | E173: 0 | F173: 0 | G173: 0 | H173: 0 | I173: 0 | J173: 0 | K173: 0 | L173: 0 | M173: 0 | N173: 0 | O173: 0 | Y173: 0
A174: 127 | B174: 921000 | C174: ПРИМАЊА ОД ПРОДАЈЕ ДОМАЋЕ ФИНАНСИЈСКЕ ИМОВИНЕ (од 128 до 136) | D174: =SUM(D175:D183) -> 0 | E174: 0 | F174: 0 | G174: 0 | H174: 0 | I174: 0 | J174: 0 | K174: 0 | L174: 0 | M174: 0 | N174: 0 | O174: 0 | Y174: 0
A175: 128 | B175: 921100 | C175: Примања од продаје домаћих хартија од вредности, изузев акција | N175: 0 | O175: 0 | Y175: 0
A176: 129 | B176: 921200 | C176: Примања од отплате кредита датих осталим нивоима власти | N176: 0 | O176: 0 | Y176: 0
A177: 130 | B177: 921300 | C177: Примања од отплате кредита датих домаћим јавним финансијским институцијама | N177: 0 | O177: 0 | Y177: 0
A178: 131 | B178: 921400 | C178: Примања од отплате кредита домаћим пословним банкама | N178: 0 | O178: 0 | Y178: 0
A179: 132 | B179: 921500 | C179: Примања од отплате кредита датих домаћим јавним нефинансијским институцијама | N179: 0 | O179: 0 | Y179: 0
A180: 133 | B180: 921600 | C180: Примања од отплате кредита датих физичким лицима и домаћинствима у земљи | N180: 0 | O180: 0 | Y180: 0
A181: 134 | B181: 921700 | C181: Примања од отплате кредита датих удружењима грађана у земљи | N181: 0 | O181: 0 | Y181: 0
A182: 135 | B182: 921800 | C182: Примања од отплате кредита датих нефинансијским приватним предузећима у земљи | N182: 0 | O182: 0 | Y182: 0
A183: 136 | B183: 921900 | C183: Примања од продаје домаћих акција и осталог капитала | N183: 0 | O183: 0 | Y183: 0
A184: =A183+1 -> 137 | B184: 922000 | C184: ПРИМАЊА ОД ПРОДАЈЕ СТРАНЕ ФИНАНСИЈСКЕ ИМОВИНЕ (од 138 до 145) | D184: =SUM(D185:D192) -> 0 | E184: =SUM(E185:E192) -> 0 | F184: 0 | G184: 0 | H184: 0 | I184: 0 | J184: 0 | K184: 0 | L184: 0 | M184: 0 | N184: 0 | O184: 0 | Y184: =SUM(D184:O184) -> 0
A185: 138 | B185: 922100 | C185: Примања од продаје страних хартија од вредности, изузев акција | N185: 0 | O185: 0 | Y185: 0
A186: 139 | B186: 922200 | C186: Примања од отплате кредита датих страним владама | N186: 0 | O186: 0 | Y186: 0
A187: 140 | B187: 922300 | C187: Примања од отплате кредита датих међународним организацијама | N187: 0 | O187: 0 | Y187: 0
A188: 141 | B188: 922400 | C188: Примања од отплате кредита датих страним пословним банкама | N188: 0 | O188: 0 | Y188: 0
A189: 142 | B189: 922500 | C189: Примања од отплате кредита датих страним нефинансијским институцијама | N189: 0 | O189: 0 | Y189: 0
A190: 143 | B190: 922600 | C190: Примања од отплате кредита датих страним невладиним организацијама | N190: 0 | O190: 0 | Y190: 0
A191: 144 | B191: 922700 | C191: Примања од продаје страних акција и осталог капитала | N191: 0 | O191: 0 | Y191: 0
A192: 145 | B192: 922800 | C192: Примања од продаје стране валуте | N192: 0 | O192: 0 | Y192: 0
A193: 146 | C193: УКУПНИ ПРИХОДИ, ПРИМАЊА И ПРЕНЕТА СРЕДСТВА ИЗ ПРЕТХОДНЕ ГОДИНЕ (1 + 8 + 81 + 106) | D193: =D48+D55+D128+D153 -> 151754000 | E193: =E48+E55+E128+E153 -> 12343000 | F193: 170977000 | G193: 12368000 | H193: 202171000 | I193: =I48+I55+I128+I153 -> 2600000 | J193: 180321000 | K193: 2800000 | L193: 186833000 | M193: 2900000 | N193: =SUM(H193,J193,L193) -> 569325000 | O193: =SUM(I193,K193,M193) -> 8300000 | Y193: 1
A194: 147 | B194: 400000 | C194: ТЕКУЋИ РАСХОДИ (148+166+211+226+250+263+279+294) | D194: =D195+D213+D258+D273+D297+D310+D326+D341 -> 150800000 | E194: 12343000 | F194: 168277000 | G194: 12368000 | H194: 196812000 | I194: 2600000 | J194: 178821000 | K194: 2800000 | L194: 179315000 | M194: 2900000 | N194: 554948000 | O194: 8300000 | Y194: 1470284000
A195: 148 | B195: 410000 | C195: РАСХОДИ ЗА ЗАПОСЛЕНЕ (149+151+155+157+162+164) | D195: =D196+D198+D202+D204+D209+D211 -> 110901000 | E195: =E196+E198+E202+E204+E209+E211 -> 763000 | F195: 124434000 | G195: 668000 | H195: 150122000 | I195: 0 | J195: 139200000 | K195: 0 | L195: 150100000 | M195: 0 | N195: 439422000 | O195: 0 | Y195: 1115610000
A196: 149 | B196: 411000 | C196: ПЛАТЕ, ДОДАЦИ И НАКНАДЕ ЗАПОСЛЕНИХ (ЗАРАДЕ) (150) | D196: =D197 -> 91407000 | E196: 0 | F196: 99170000 | G196: 0 | H196: 120220000 | I196: 0 | J196: 111600000 | K196: 0 | L196: 120700000 | M196: 0 | N196: 352520000 | O196: 0 | Y196: 895617000
A197: 150 | B197: 411100 | C197: Плате, додаци и накнаде запослених | D197: 91407000 | F197: 99170000 | H197: 120220000 | J197: 111600000 | L197: 120700000 | N197: 352520000 | O197: 0 | Y197: 895617000
A198: 151 | B198: 412000 | C198: СОЦИЈАЛНИ ДОПРИНОСИ НА ТЕРЕТ ПОСЛОДАВЦА (од 152 до 154) | D198: =SUM(D199:D201) -> 16397000 | E198: 0 | F198: 17514000 | G198: 0 | H198: 20622000 | I198: 0 | J198: 19100000 | K198: 0 | L198: 20600000 | M198: 0 | N198: 60322000 | O198: 0 | Y198: 154555000
A199: 152 | B199: 412100 | C199: Допринос за пензијско и инвалидско осигурање | D199: 10957000 | F199: 11900000 | H199: 14500000 | J199: 13000000 | L199: 14400000 | N199: 41900000 | O199: 0 | Y199: 106657000
A200: 153 | B200: 412200 | C200: Допринос за здравствено осигурање | D200: 4750000 | F200: 5614000 | H200: 6122000 | J200: 6100000 | L200: 6200000 | N200: 18422000 | O200: 0 | Y200: 47208000
A201: 154 | B201: 412300 | C201: Допринос за незапосленост | D201: 690000 | N201: 0 | O201: 0 | Y201: 690000
A202: 155 | B202: 413000 | C202: НАКНАДЕ У НАТУРИ (156) | D202: =D203 -> 237000 | E202: 0 | F202: 0 | G202: 0 | H202: 0 | I202: 0 | J202: 0 | K202: 0 | L202: 0 | M202: 0 | N202: 0 | O202: 0 | Y202: 237000
A203: 156 | B203: 413100 | C203: Накнаде у натури | D203: 237000 | N203: 0 | O203: 0 | Y203: 237000
A204: 157 | B204: 414000 | C204: СОЦИЈАЛНА ДАВАЊА ЗАПОСЛЕНИМА (од 158 до 161) | D204: =SUM(D205:D208) -> 0 | E204: 763000 | F204: 1000000 | G204: 668000 | H204: 880000 | I204: 0 | J204: 900000 | K204: 0 | L204: 1000000 | M204: 0 | N204: 2780000 | O204: 0 | Y204: 7991000
A205: 158 | B205: 414100 | C205: Исплата накнада за време одсуствовања с посла на терет фондова | E205: 763000 | G205: 668000 | N205: 0 | O205: 0 | Y205: 1431000
A206: 159 | B206: 414200 | C206: Расходи за образовање деце запослених | N206: 0 | O206: 0 | Y206: 0
A207: 160 | B207: 414300 | C207: Отпремнине и помоћи | F207: 500000 | H207: 380000 | J207: 400000 | N207: 780000 | O207: 0 | Y207: 2060000
A208: 161 | B208: 414400 | C208: Помоћ у медицинском лечењу запосленог или чланова уже породице и друге помоћи запосленом | F208: 500000 | H208: 500000 | J208: 500000 | L208: 1000000 | N208: 2000000 | O208: 0 | Y208: 4500000
A209: 162 | B209: 415000 | C209: НАКНАДА ТРОШКОВА ЗА ЗАПОСЛЕНЕ (163) | D209: =D210 -> 1471000 | E209: 0 | F209: 5050000 | G209: 0 | H209: 6000000 | I209: 0 | J209: 6600000 | K209: 0 | L209: 6800000 | M209: 0 | N209: 19400000 | O209: 0 | Y209: 45321000
A210: 163 | B210: 415100 | C210: Накнаде трошкова за запослене | D210: 1471000 | F210: 5050000 | H210: 6000000 | J210: 6600000 | L210: 6800000 | N210: 19400000 | O210: 0 | Y210: 45321000
A211: 164 | B211: 416000 | C211: НАГРАДЕ ЗАПОСЛЕНИМА И ОСТАЛИ ПОСЕБНИ РАСХОДИ (165) | D211: =D212 -> 1389000 | E211: 0 | F211: 1700000 | G211: 0 | H211: 2400000 | I211: 0 | J211: 1000000 | K211: 0 | L211: 1000000 | M211: 0 | N211: 4400000 | O211: 0 | Y211: 11889000
... 271 more rows

Sheet Sheet1 (hidden)

Sheet Захтев за додатна сред.
A1: Обрасци за припрему програмског буџета | Y1: 0 | AC1: остали корисници јавних средстава | AJ1: 2. ПРОГРАМСКА АКТИВНОСТ | AM1: =IF(A2=AJ1,""," - захтев за додатна средства") -> - захтев за додатна средства | AN1: Директни буџетски корисник локалне власти
A2: 2. ПРОГРАМСКА АКТИВНОСТ - ЗАХТЕВ ЗА ДОДАТНА СРЕДСТВА | AJ2: 2. ПРОГРАМСКА АКТИВНОСТ - ЗАХТЕВ ЗА ДОДАТНА СРЕДСТВА | AN2: Индиректни буџетски корисник локалне власти
V3: =VLOOKUP($D$4,Uputstvo!$C$38:$D$54,2,FALSE) -> п8 | Z3: Вредност у базној години (2016) | AB3: Очекивана вредност у 2017. години | AD3: Вредност у 2018. години | AF3: Вредност у 2019. години | AH3: Вредност у 2020. години | AJ3: Укупно (2018-2020) | AN3: Корисник буџетских средстава на другом нивоу власти
A4: Програм коме припада: | D4: =IF(Program!$D$4="","",Program!$D$4) -> Програм 8. Предшколско васпитање и образовање | V4: =VLOOKUP($D$5,Uputstvo!$B$137:$C$208,2,FALSE) -> ПА_29 | Z4: Буџетска средства | AA4: Средства из осталих извора | AB4: Буџетска средства | AC4: Средства из осталих извора | AD4: Буџетска средства | AE4: Средства из осталих извора | AF4: Буџетска средства | AG4: Средства из осталих извора | AH4: Буџетска средства | AI4: Средства из осталих извора | AJ4: Буџетска средства | AK4: Средства из осталих извора
A5: Шифра и назив: | D5: 2001-0001 Функционисање и остваривање предшколског васпитања и образовања | V5: =VLOOKUP($B$16,Uputstvo!$B$221:$C$317,2,FALSE) -> ПАЦ_46 | Y5: =$C$474&AM1&" ("&$D$7&")" -> 2001-0001 Функционисање и остваривање предшколског васпитања и образовања - захтев за додатна средства (ПРЕДШКОЛСКА УСТАНОВА "БАМБИ") | Z5: =D452 -> 0 | AA5: =E452 -> 0 | AB5: 0 | AC5: 0 | AD5: 0 | AE5: 0 | AF5: 0 | AG5: 0 | AH5: 0 | AI5: 0 | AJ5: 0 | AK5: 0
A6: Функција: | D6: 911 - Предшколско образовање | V6: =VLOOKUP($B$22,Uputstvo!$B$221:$C$317,2,FALSE) -> ПАЦ_47 | AB6: Вредност у базној години (2016) | AD6: Очекивана вредност у 2017. години | AF6: Вредност у 2018. години | AH6: Вредност у 2019. години | AJ6: Вредност у 2020. години | AL6: Укупно (2018-2020)
A7: Назив организационе јединице/Буџетски корисник: | D7: ПРЕДШКОЛСКА УСТАНОВА "БАМБИ" | V7: =VLOOKUP($B$28,Uputstvo!$B$221:$C$317,2,FALSE) ->  | AB7: Буџетска средства | AC7: Средства из осталих извора | AD7: Буџетска средства | AE7: Средства из осталих извора | AF7: Буџетска средства | AG7: Средства из осталих извора | AH7: Буџетска средства | AI7: Средства из осталих извора | AJ7: Буџетска средства | AK7: Средства из осталих извора | AL7: Буџетска средства | AM7: Средства из осталих извора
A8: Сврхa: | D8: Омогућавање обухвата предшколске деце у вртићима | V8: =VLOOKUP($B$34,Uputstvo!$B$221:$C$317,2,FALSE) ->  | Z8: Kontrole | AA8: p/r | AB8: =D193-D452 -> 0 | AC8: =E193-E452 -> 0 | AD8: 0 | AE8: 0 | AF8: 0 | AG8: 0 | AH8: 0 | AI8: 0 | AJ8: 0 | AK8: 0 | AL8: =N193-N452 -> 0 | AM8: =O193-O452 -> 0
A9: Основ: | D9: Стратегија одрживог развоја Општине Кула 2009-2019, Закон о буџетском систему ,Закон о основама система образовања и васпитања,Статут ПУ "Бамби", План и програм рада ПУ „Бамби“ за 2018.2019. годину, Закон о локалној самоуправи | V9: =VLOOKUP($B$40,Uputstvo!$B$221:$C$317,2,FALSE) ->  | AA9: p+r/i | AB9: =D452+E452-D474 -> 0 | AC9: =F452+G452-F474 -> 0 | AD9: =H452+I452-H474 -> 0 | AE9: =J452+K452-J474 -> 0 | AF9: =L452+M452-L474 -> 0 | AG9: =N452+O452-N474 -> 0
A10: Опис: | D10: Предшколска установа обавља делатност којом се обезбеђује васпитање и образовање, исхрана, нега,превентивно-здравствена заштита и социјална заштита деце предшколског узраста у складу са Законом. | AA10: приходи из буџета | AB10: =D127-D457 -> 0 | AC10: =F127-F457 -> 0 | AD10: =H127-H457 -> 0 | AE10: =J127-J457 -> 0 | AF10: =L127-L457 -> 0 | AG10: =N127-N457 -> 0
A11: Мере и поглавље преговора о приступању ЕУ: | AA11: transferi | AB11: =D123-$D$458 -> 0 | AC11: =F123-$F$458 -> 0 | AD11: =H123-$H$458 -> 0 | AE11: =J123-$J$458 -> 0 | AF11: =L123-$L$458 -> 0 | AG11: =N123-$N$458 -> 0
A12: Одговорно лице за спровођење прог. aктивности: | D12: директор Снежана Булатовић | Z12: 733000 | AA12: =SUM(D88:M88) -> 0
Z13: 781111 | AA13: =D123+F123+H123+J123+L123+N123 -> 0
B14: Циљ* | D14: Индикатори** | Z14: 791111 | AA14: =D127+F127+H127+J127+L127+N127 -> 0
D15: Назив индикатора | G15: Вредност у базној години (2018) | H15: Очекивана вредност у 2019. години | I15: Циљана вредност у 2020. години | J15: Циљана вредност у 2021. години | K15: Циљана вредност у 2022. години | L15: Извор верификације
A16: 1 | B16: Обезбеђени адекватни услови за Васпитно-образовни рад са децом уз повећан обухват | D16: Просечан број деце у групи (јасле, предшколски, припремни предшколски програм/ппп)
D17: Просечан број деце по васпитачу/васпитачици (јасле, предшколски, припремни предшколски програм)
D18: Процент деце ослобођене од пуне цене услуге у односу на укупан број деце
B20: Циљ | D20: Индикатори
D21: Назив индикатора | G21: Вредност у базној години (2018) | H21: Очекивана вредност у 2019. години | I21: Циљана вредност у 2020. години | J21: Циљана вредност у 2021. години | K21: Циљана вредност у 2022. години | L21: Извор верификације
A22: 2 | B22: Унапређење квалитета предшколског образовања и васпитања | D22: Број посебних и специјалних програма у објекту предшколске установе
D23: Проценат стручних сарадника који су добили најмање 24 бода за стручно усавршавање кроз учешће на семинарима на годишњем нивоу у односу на укупан број стручних сарадника
D24: Број објеката у којима су извршена инвестициона улагања на годишњем нивоу, у односу на укупан број објеката ПУ
B26: Циљ | D26: Индикатори
D27: Назив индикатора | G27: Вредност у базној години (2018) | H27: Очекивана вредност у 2019. години | I27: Циљана вредност у 2020. години | J27: Циљана вредност у 2021. години | K27: Циљана вредност у 2022. години | L27: Извор верификације
A28: 3
B32: Циљ | D32: Индикатори
D33: Назив индикатора | G33: Вредност у базној години (2018) | H33: Очекивана вредност у 2019. години | I33: Циљана вредност у 2020. години | J33: Циљана вредност у 2021. години | K33: Циљана вредност у 2022. години | L33: Извор верификације
A34: 4
B38: Циљ | D38: Индикатори
D39: Назив индикатора | G39: Вредност у базној години (2018) | H39: Очекивана вредност у 2019. години | I39: Циљана вредност у 2020. години | J39: Циљана вредност у 2021. години | K39: Циљана вредност у 2022. години | L39: Извор верификације
A40: 5
A44: ПЛАНИРАНА СРЕДСТВА ЗА ПРОГРАМСКУ АКТИВНОСТ
A45: Рбр. | B45: Конто | C45: ОПИС | D45: Вредност у базној години (2018) | F45: Очекивана вредност у 2019. години | H45: Вредност у 2020. години | J45: Вредност у 2021. години | L45: Вредност у 2022. години | N45: Укупно (2020-2022) | Y45: 1
D46: Приходи из буџета | E46: Приходи из осталих извора | F46: Приходи из буџета | G46: Приходи из осталих извора | H46: Приходи из буџета | I46: Приходи из осталих извора | J46: Приходи из буџета | K46: Приходи из осталих извора | L46: Приходи из буџета | M46: Приходи из осталих извора | N46: Приходи из буџета | O46: Приходи из осталих извора | Y46: 1
A47: 1 | B47: 2 | C47: 3 | D47: 4 | E47: 5 | F47: 6 | G47: 7 | H47: 8 | I47: 9 | J47: 10 | K47: 11 | L47: 12 | M47: 13 | N47: 14=(8+10+12) | O47: 15=(9+11+13) | Y47: 1
A48: 1 | B48: 300000 | C48: КАПИТАЛ, УТВРЂИВАЊЕ РЕЗУЛТАТА ПОСЛОВАЊА И ВАНБИЛАНСНА ЕВИДЕНЦИЈА (2 + 5) | D48: =SUM(D49,D52) -> 0 | E48: =SUM(E49,E52) -> 0 | F48: 0 | G48: 0 | H48: 0 | I48: 0 | J48: 0 | K48: 0 | L48: 0 | M48: 0 | N48: 0 | O48: 0 | Y48: =SUM(D48:O48) -> 0
A49: 2 | B49: 310000 | C49: КАПИТАЛ (3) | D49: =SUM(D50) -> 0 | E49: =SUM(E50) -> 0 | F49: =SUM(F50) -> 0 | G49: 0 | H49: 0 | I49: 0 | J49: 0 | K49: 0 | L49: 0 | M49: 0 | N49: 0 | O49: 0 | Y49: 0
A50: 3 | B50: 311000 | C50: КАПИТАЛ (4) | D50: =SUM(D51) -> 0 | E50: =SUM(E51) -> 0 | F50: 0 | G50: 0 | H50: 0 | I50: 0 | J50: 0 | K50: 0 | L50: 0 | M50: 0 | N50: =SUM(N51) -> 0 | O50: 0 | Y50: 0
A51: 4 | B51: 311700 | C51: Пренета неутрошена средства из ранијих година | N51: =SUM(H51,J51,L51) -> 0 | O51: =SUM(I51,K51,M51) -> 0 | Y51: =SUM(D51:O51) -> 0
A52: 5 | B52: 320000 | C52: УТВРЂИВАЊЕ РЕЗУЛТАТА ПОСЛОВАЊА (6) | D52: =SUM(D53) -> 0 | E52: =SUM(E53) -> 0 | F52: 0 | G52: 0 | H52: 0 | I52: 0 | J52: 0 | K52: 0 | L52: 0 | M52: 0 | N52: 0 | O52: 0 | Y52: 0
A53: 6 | B53: 321000 | C53: УТВРЂИВАЊЕ РЕЗУЛТАТА ПОСЛОВАЊА (7) | D53: =SUM(D54) -> 0 | E53: 0 | F53: 0 | G53: 0 | H53: 0 | I53: 0 | J53: 0 | K53: 0 | L53: 0 | M53: 0 | N53: 0 | O53: 0 | Y53: 0
A54: 7 | B54: 321300 | C54: Нераспоређени вишак прихода и примања или дефицит из ранијих година | N54: =SUM(H54,J54,L54) -> 0 | O54: =SUM(I54,K54,M54) -> 0 | Y54: 0
A55: =A54+1 -> 8 | B55: 700000 | C55: ТЕКУЋИ ПРИХОДИ (9 + 32 + 44 + 69 + 74 +78) | D55: =D56+D79+D91+D116+D121+D125 -> 0 | E55: =E56+E79+E91+E116+E121+E125 -> 0 | F55: 0 | G55: 0 | H55: 0 | I55: 0 | J55: 0 | K55: 0 | L55: 0 | M55: 0 | N55: =N56+N79+N91+N116+N121+N125 -> 0 | O55: 0 | Y55: =SUM(D55:O55) -> 0
A56: =A55+1 -> 9 | B56: 710000 | C56: ПОРЕЗИ (10 + 14 + 16 + 23 + 29) | D56: =D57+D61+D63+D70+D76 -> 0 | E56: =E57+E61+E63+E70+E76 -> 0 | F56: 0 | G56: 0 | H56: 0 | I56: 0 | J56: 0 | K56: 0 | L56: 0 | M56: 0 | N56: 0 | O56: 0 | Y56: =SUM(D56:O56) -> 0
A57: 10 | B57: 711000 | C57: ПОРЕЗ НА ДОХОДАК, ДОБИТ И КАПИТАЛНЕ ДОБИТКЕ (од 11 до 13) | D57: =SUM(D58:D60) -> 0 | E57: =SUM(E58:E60) -> 0 | F57: 0 | G57: 0 | H57: 0 | I57: 0 | J57: 0 | K57: 0 | L57: 0 | M57: 0 | N57: =SUM(H57,J57,L57) -> 0 | O57: 0 | Y57: 0
A58: 11 | B58: 711100 | C58: Порези на доходак и капиталнe добиткe које плаћају физичка лица | N58: 0 | O58: 0 | Y58: 0
A59: 12 | B59: 711200 | C59: Порези на добит и капиталне добитке које плаћају предузећа и друга правна лица | N59: 0 | O59: 0 | Y59: 0
A60: 13 | B60: 711300 | C60: Порези на доходак, добит и капиталне добитке који се не могу разврстати између физичких и правних лица | N60: 0 | O60: 0 | Y60: 0
A61: 14 | B61: 712000 | C61: ПОРЕЗ НА ФОНД ЗАРАДА (15) | D61: =SUM(D62) -> 0 | E61: 0 | F61: 0 | G61: 0 | H61: 0 | I61: 0 | J61: 0 | K61: 0 | L61: 0 | M61: 0 | N61: 0 | O61: 0 | Y61: 0
A62: 15 | B62: 712100 | C62: Порез на фонд зарада | N62: 0 | O62: 0 | Y62: 0
A63: 16 | B63: 713000 | C63: ПОРЕЗ НА ИМОВИНУ (од 17 до 22) | D63: =SUM(D64:D69) -> 0 | E63: 0 | F63: 0 | G63: 0 | H63: 0 | I63: 0 | J63: 0 | K63: 0 | L63: 0 | M63: 0 | N63: 0 | O63: 0 | Y63: 0
A64: 17 | B64: 713100 | C64: Периодични порези на непокретности | N64: 0 | O64: 0 | Y64: 0
A65: 18 | B65: 713200 | C65: Периодични порези на нето имовину | N65: 0 | O65: 0 | Y65: 0
A66: 19 | B66: 713300 | C66: Порези на заоставштину, наслеђе и поклон | N66: 0 | O66: 0 | Y66: 0
A67: 20 | B67: 713400 | C67: Порези на финансијске и капиталне трансакције | N67: 0 | O67: 0 | Y67: 0
A68: 21 | B68: 713500 | C68: Други једнократни порези на имовину | N68: 0 | O68: 0 | Y68: 0
A69: 22 | B69: 713600 | C69: Други периодични порези на имовину | N69: 0 | O69: 0 | Y69: 0
A70: 23 | B70: 714000 | C70: ПОРЕЗ НА ДОБРА И УСЛУГЕ (од 24 до 28) | D70: =SUM(D71:D75) -> 0 | E70: 0 | F70: 0 | G70: 0 | H70: 0 | I70: 0 | J70: 0 | K70: 0 | L70: 0 | M70: 0 | N70: 0 | O70: 0 | Y70: 0
A71: 24 | B71: 714100 | C71: Општи порези на добра и услуге | N71: 0 | O71: 0 | Y71: 0
A72: 25 | B72: 714300 | C72: Добит фискалних монопола | N72: 0 | O72: 0 | Y72: 0
A73: 26 | B73: 714400 | C73: Порези на појединачне услуге | N73: 0 | O73: 0 | Y73: 0
A74: 27 | B74: 714500 | C74: Порези, таксе и накнаде на употребу добара, на дозволу да се добра употребљавају или делатности обављају | N74: 0 | O74: 0 | Y74: 0
A75: 28 | B75: 714600 | C75: Други порези на добра и услуге | N75: 0 | O75: 0 | Y75: 0
A76: 29 | B76: 716000 | C76: ДРУГИ ПОРЕЗИ (30 + 31) | D76: =SUM(D77:D78) -> 0 | E76: 0 | F76: 0 | G76: 0 | H76: 0 | I76: 0 | J76: 0 | K76: 0 | L76: 0 | M76: 0 | N76: 0 | O76: 0 | Y76: 0
A77: 30 | B77: 716100 | C77: Други порези које искључиво плаћају предузећа, односно предузетници | N77: 0 | O77: 0 | Y77: 0
A78: 31 | B78: 716200 | C78: Други порези које плаћају остала лица или који се не могу идентификовати | N78: 0 | O78: 0 | Y78: 0
A79: 32 | B79: 730000 | C79: ДОНАЦИЈЕ, ПОМОЋИ И ТРАНСФЕРИ (33 + 36 + 41) | D79: =D80+D83+D88 -> 0 | E79: =E80+E83+E88 -> 0 | F79: 0 | G79: 0 | H79: 0 | I79: 0 | J79: 0 | K79: 0 | L79: 0 | M79: 0 | N79: 0 | O79: 0 | Y79: 0
A80: 33 | B80: 731000 | C80: ДОНАЦИЈЕ ОД ИНОСТРАНИХ ДРЖАВА (34 + 35) | D80: =SUM(D81:D82) -> 0 | E80: 0 | F80: 0 | G80: 0 | H80: 0 | I80: 0 | J80: 0 | K80: 0 | L80: 0 | M80: 0 | N80: 0 | O80: 0 | Y80: 0
A81: 34 | B81: 731100 | C81: Текуће донације од иностраних држава | N81: 0 | O81: 0 | Y81: 0
A82: 35 | B82: 731200 | C82: Капиталне донације од иностраних држава | N82: 0 | O82: 0 | Y82: 0
A83: 36 | B83: 732000 | C83: ДОНАЦИЈЕ И ПОМОЋИ ОД МЕЂУНАРОДНИХ ОРГАНИЗАЦИЈА (од 37 до 40) | D83: =SUM(D84:D87) -> 0 | E83: =SUM(E84:E87) -> 0 | F83: 0 | G83: 0 | H83: 0 | I83: 0 | J83: 0 | K83: 0 | L83: 0 | M83: 0 | N83: 0 | O83: 0 | Y83: 0
A84: 37 | B84: 732100 | C84: Текуће донације од међународних организација | N84: 0 | O84: 0 | Y84: 0
A85: 38 | B85: 732200 | C85: Капиталне донације од међународних организација | N85: 0 | O85: 0 | Y85: 0
A86: 39 | B86: 732300 | C86: Текуће помоћи од ЕУ | N86: 0 | O86: 0 | Y86: 0
A87: 40 | B87: 732400 | C87: Капиталне помоћи од ЕУ | N87: 0 | O87: 0 | Y87: 0
A88: 41 | B88: 733000 | C88: ТРАНСФЕРИ ОД ДРУГИХ НИВОА ВЛАСТИ (42 + 43) | D88: =SUM(D89:D90) -> 0 | E88: 0 | F88: 0 | G88: 0 | H88: 0 | I88: 0 | J88: 0 | K88: 0 | L88: 0 | M88: 0 | N88: =SUM(H88,J88,L88) -> 0 | O88: 0 | Y88: 0
A89: 42 | B89: 733100 | C89: Текући трансфери од других нивоа власти | N89: =SUM(H89,J89,L89) -> 0 | O89: 0 | Y89: 0
A90: 43 | B90: 733200 | C90: Капитални трансфери од других нивоа власти | N90: 0 | O90: 0 | Y90: 0
A91: 44 | B91: 740000 | C91: ДРУГИ ПРИХОДИ (45 + 52 + 57 + 64 + 67) | D91: =D92+D99+D104+D111+D114 -> 0 | E91: =E92+E99+E104+E111+E114 -> 0 | F91: 0 | G91: 0 | H91: 0 | I91: 0 | J91: 0 | K91: 0 | L91: 0 | M91: 0 | N91: 0 | O91: 0 | Y91: 0
A92: 45 | B92: 741000 | C92: ПРИХОДИ ОД ИМОВИНЕ (од 46 до 51) | D92: =SUM(D93:D98) -> 0 | E92: =SUM(E93:E98) -> 0 | F92: 0 | G92: 0 | H92: 0 | I92: 0 | J92: 0 | K92: 0 | L92: 0 | M92: 0 | N92: 0 | O92: 0 | Y92: 0
A93: 46 | B93: 741100 | C93: Камате | N93: 0 | O93: 0 | Y93: 0
A94: 47 | B94: 741200 | C94: Дивиденде | N94: 0 | O94: 0 | Y94: 0
A95: 48 | B95: 741300 | C95: Повлачење прихода од квази корпорација | N95: 0 | O95: 0 | Y95: 0
A96: 49 | B96: 741400 | C96: Приход од имовине који припада имаоцима полиса осигурања | N96: 0 | O96: 0 | Y96: 0
A97: 50 | B97: 741500 | C97: Закуп непроизведене имовине | N97: 0 | O97: 0 | Y97: 0
A98: 51 | B98: 741600 | C98: Финансијске промене на финансијским лизинзима | N98: 0 | O98: 0 | Y98: 0
A99: 52 | B99: 742000 | C99: ПРИХОДИ ОД ПРОДАЈЕ ДОБАРА И УСЛУГА (од 53 до 56) | D99: =SUM(D100:D103) -> 0 | E99: 0 | F99: 0 | G99: 0 | H99: 0 | I99: 0 | J99: 0 | K99: 0 | L99: 0 | M99: 0 | N99: 0 | O99: 0 | Y99: 0
A100: 53 | B100: 742100 | C100: Приходи од продаје добара и услуга или закупа од стране тржишних организација | N100: 0 | O100: 0 | Y100: 0
A101: 54 | B101: 742200 | C101: Таксе и накнаде | N101: 0 | O101: 0 | Y101: 0
A102: 55 | B102: 742300 | C102: Споредне продаје добара и услуга које врше државне нетржишне јединице | N102: 0 | O102: 0 | Y102: 0
A103: 56 | B103: 742400 | C103: Импутиране продаје добара и услуга | N103: 0 | O103: 0 | Y103: 0
A104: 57 | B104: 743000 | C104: НОВЧАНЕ КАЗНЕ И ОДУЗЕТА ИМОВИНСКА КОРИСТ (од 58 до 63) | D104: =SUM(D105:D110) -> 0 | E104: 0 | F104: 0 | G104: 0 | H104: 0 | I104: 0 | J104: 0 | K104: 0 | L104: 0 | M104: 0 | N104: 0 | O104: 0 | Y104: 0
A105: 58 | B105: 743100 | C105: Приходи од новчаних казни за кривична дела | N105: 0 | O105: 0 | Y105: 0
A106: 59 | B106: 743200 | C106: Приходи од новчаних казни за привредне преступе | N106: 0 | O106: 0 | Y106: 0
A107: 60 | B107: 743300 | C107: Приходи од новчаних казни за прекршаје | N107: 0 | O107: 0 | Y107: 0
A108: 61 | B108: 743400 | C108: Приходи од пенала | N108: 0 | O108: 0 | Y108: 0
A109: 62 | B109: 743500 | C109: Приходи од одузете имовинске користи | N109: 0 | O109: 0 | Y109: 0
A110: 63 | B110: 743900 | C110: Остале новчане казне, пенали и приходи од одузете имовинске користи | N110: 0 | O110: 0 | Y110: 0
A111: 64 | B111: 744000 | C111: ДОБРОВОЉНИ ТРАНСФЕРИ ОД ФИЗИЧКИХ И ПРАВНИХ ЛИЦА (65 + 66) | D111: =SUM(D112:D113) -> 0 | E111: 0 | F111: 0 | G111: 0 | H111: 0 | I111: 0 | J111: 0 | K111: 0 | L111: 0 | M111: 0 | N111: 0 | O111: 0 | Y111: 0
A112: 65 | B112: 744100 | C112: Текући добровољни трансфери од физичких и правних лица | N112: 0 | O112: 0 | Y112: 0
A113: 66 | B113: 744200 | C113: Капитални добровољни трансфери од физичких и правних лица | N113: 0 | O113: 0 | Y113: 0
A114: 67 | B114: 745000 | C114: МЕШОВИТИ И НЕОДРЕЂЕНИ ПРИХОДИ (68) | D114: =D115 -> 0 | E114: =E115 -> 0 | F114: 0 | G114: 0 | H114: 0 | I114: 0 | J114: 0 | K114: 0 | L114: 0 | M114: 0 | N114: 0 | O114: 0 | Y114: 0
A115: 68 | B115: 745100 | C115: Мешовити и неодређени приходи | N115: 0 | O115: 0 | Y115: 0
A116: 69 | B116: 770000 | C116: МЕМОРАНДУМСКЕ СТАВКЕ ЗА РЕФУНДАЦИЈУ РАСХОДА (70 + 72) | D116: =D117+D119 -> 0 | E116: 0 | F116: 0 | G116: 0 | H116: 0 | I116: 0 | J116: 0 | K116: 0 | L116: 0 | M116: 0 | N116: 0 | O116: 0 | Y116: 0
A117: 70 | B117: 771000 | C117: МЕМОРАНДУМСКЕ СТАВКЕ ЗА РЕФУНДАЦИЈУ РАСХОДА (71) | D117: =D118 -> 0 | E117: =E118 -> 0 | F117: 0 | G117: 0 | H117: 0 | I117: 0 | J117: 0 | K117: 0 | L117: 0 | M117: 0 | N117: 0 | O117: 0 | Y117: 0
A118: 71 | B118: 771100 | C118: Меморандумске ставке за рефундацију расхода | N118: 0 | O118: 0 | Y118: 0
A119: 72 | B119: 772000 | C119: МЕМОРАНДУМСКЕ СТАВКЕ ЗА РЕФУНДАЦИЈУ РАСХОДА ИЗ ПРЕТХОДНЕ ГОДИНЕ (73) | D119: =D120 -> 0 | E119: =E120 -> 0 | F119: 0 | G119: 0 | H119: 0 | I119: 0 | J119: 0 | K119: 0 | L119: 0 | M119: 0 | N119: 0 | O119: 0 | Y119: 0
A120: =A119+1 -> 73 | B120: 772100 | C120: Меморандумске ставке за рефундацију расхода из претходне године | N120: 0 | O120: 0 | Y120: =SUM(D120:O120) -> 0
A121: 74 | B121: 780000 | C121: ТРАНСФЕРИ ИЗМЕЂУ БУЏЕТСКИХ КОРИСНИКА НА ИСТОМ НИВОУ (75) | D121: =D122 -> 0 | E121: 0 | F121: 0 | G121: 0 | H121: 0 | I121: 0 | J121: 0 | K121: 0 | L121: 0 | M121: 0 | N121: 0 | O121: 0 | Y121: 0
A122: 75 | B122: 781000 | C122: ТРАНСФЕРИ ИЗМЕЂУ БУЏЕТСКИХ КОРИСНИКА НА ИСТОМ НИВОУ (76 + 77) | D122: =SUM(D123:D124) -> 0 | E122: 0 | F122: 0 | G122: 0 | H122: 0 | I122: 0 | J122: 0 | K122: 0 | L122: 0 | M122: 0 | N122: 0 | O122: 0 | Y122: 0
A123: 76 | B123: 781100 | C123: Трансфери између буџетских корисника на истом нивоу | N123: =SUM(H123,J123,L123) -> 0 | O123: =SUM(I123,K123,M123) -> 0 | Y123: 0
A124: 77 | B124: 781300 | C124: Трансфери између организација обавезног социјалног осигурања | N124: 0 | O124: 0 | Y124: 0
A125: 78 | B125: 790000 | C125: ПРИХОДИ ИЗ БУЏЕТА (79) | D125: =D126 -> 0 | E125: 0 | F125: 0 | G125: 0 | H125: 0 | I125: 0 | J125: 0 | K125: 0 | L125: 0 | M125: 0 | N125: 0 | O125: 0 | Y125: 0
A126: 79 | B126: 791000 | C126: ПРИХОДИ ИЗ БУЏЕТА (80) | D126: =D127 -> 0 | E126: 0 | F126: 0 | G126: 0 | H126: 0 | I126: 0 | J126: 0 | K126: 0 | L126: 0 | M126: 0 | N126: 0 | O126: 0 | Y126: 0
A127: 80 | B127: 791100 | C127: Приходи из буџета | N127: 0 | O127: 0 | Y127: 0
A128: 81 | B128: 800000 | C128: ПРИМАЊА ОД ПРОДАЈЕ НЕФИНАНСИЈСКЕ ИМОВИНЕ (82 + 89 + 96 + 99) | D128: =D129+D136+D143+D146 -> 0 | E128: =E129+E136+E143+E146 -> 0 | F128: 0 | G128: 0 | H128: 0 | I128: 0 | J128: 0 | K128: 0 | L128: 0 | M128: 0 | N128: 0 | O128: 0 | Y128: 0
A129: 82 | B129: 810000 | C129: ПРИМАЊА ОД ПРОДАЈЕ ОСНОВНИХ СРЕДСТАВА (83 + 85 + 87) | D129: =D130+D132+D134 -> 0 | E129: =E130+E132+E134 -> 0 | F129: 0 | G129: 0 | H129: 0 | I129: 0 | J129: 0 | K129: 0 | L129: 0 | M129: 0 | N129: 0 | O129: 0 | Y129: 0
A130: 83 | B130: 811000 | C130: ПРИМАЊА ОД ПРОДАЈЕ НЕПОКРЕТНОСТИ (84) | D130: =D131 -> 0 | E130: =E131 -> 0 | F130: 0 | G130: 0 | H130: 0 | I130: 0 | J130: 0 | K130: 0 | L130: 0 | M130: 0 | N130: 0 | O130: 0 | Y130: 0
A131: 84 | B131: 811100 | C131: Примања од продаје непокретности | N131: 0 | O131: 0 | Y131: 0
A132: 85 | B132: 812000 | C132: ПРИМАЊА ОД ПРОДАЈЕ ПОКРЕТНЕ ИМОВИНЕ (86) | D132: =D133 -> 0 | E132: 0 | F132: 0 | G132: 0 | H132: 0 | I132: 0 | J132: 0 | K132: 0 | L132: 0 | M132: 0 | N132: 0 | O132: 0 | Y132: 0
A133: 86 | B133: 812100 | C133: Примања од продаје покретне имовине | N133: 0 | O133: 0 | Y133: 0
A134: 87 | B134: 813000 | C134: ПРИМАЊА ОД ПРОДАЈЕ ОСТАЛИХ ОСНОВНИХ СРЕДСТАВА (88) | D134: =D135 -> 0 | E134: 0 | F134: 0 | G134: 0 | H134: 0 | I134: 0 | J134: 0 | K134: 0 | L134: 0 | M134: 0 | N134: 0 | O134: 0 | Y134: 0
A135: 88 | B135: 813100 | C135: Примања од продаје осталих основних средстава | N135: 0 | O135: 0 | Y135: 0
A136: 89 | B136: 820000 | C136: ПРИМАЊА ОД ПРОДАЈЕ ЗАЛИХА (90 + 92 + 94) | D136: =D137+D139+D141 -> 0 | E136: 0 | F136: 0 | G136: 0 | H136: 0 | I136: 0 | J136: 0 | K136: 0 | L136: 0 | M136: 0 | N136: 0 | O136: 0 | Y136: 0
A137: 90 | B137: 821000 | C137: ПРИМАЊА ОД ПРОДАЈЕ РОБНИХ РЕЗЕРВИ (91) | D137: =D138 -> 0 | E137: 0 | F137: 0 | G137: 0 | H137: 0 | I137: 0 | J137: 0 | K137: 0 | L137: 0 | M137: 0 | N137: 0 | O137: 0 | Y137: 0
A138: 91 | B138: 821100 | C138: Примања од продаје робних резерви | N138: 0 | O138: 0 | Y138: 0
A139: 92 | B139: 822000 | C139: ПРИМАЊА ОД ПРОДАЈЕ ЗАЛИХА ПРОИЗВОДЊЕ (93) | D139: =D140 -> 0 | E139: 0 | F139: 0 | G139: 0 | H139: 0 | I139: 0 | J139: 0 | K139: 0 | L139: 0 | M139: 0 | N139: 0 | O139: 0 | Y139: 0
A140: 93 | B140: 822100 | C140: Примања од продаје залиха производње | N140: 0 | O140: 0 | Y140: 0
A141: 94 | B141: 823000 | C141: ПРИМАЊА ОД ПРОДАЈЕ РОБЕ ЗА ДАЉУ ПРОДАЈУ (95) | D141: =D142 -> 0 | E141: 0 | F141: 0 | G141: 0 | H141: 0 | I141: 0 | J141: 0 | K141: 0 | L141: 0 | M141: 0 | N141: 0 | O141: 0 | Y141: 0
A142: 95 | B142: 823100 | C142: Примања од продаје робе за даљу продају | N142: 0 | O142: 0 | Y142: 0
A143: 96 | B143: 830000 | C143: ПРИМАЊА ОД ПРОДАЈЕ ДРАГОЦЕНОСТИ (97) | D143: =D144 -> 0 | E143: 0 | F143: 0 | G143: 0 | H143: 0 | I143: 0 | J143: 0 | K143: 0 | L143: 0 | M143: 0 | N143: 0 | O143: 0 | Y143: 0
A144: 97 | B144: 831000 | C144: ПРИМАЊА ОД ПРОДАЈЕ ДРАГОЦЕНОСТИ (98) | D144: 0 | E144: 0 | F144: 0 | G144: 0 | H144: 0 | I144: 0 | J144: 0 | K144: 0 | L144: 0 | M144: 0 | N144: 0 | O144: 0 | Y144: 0
A145: 98 | B145: 831100 | C145: Примања од продаје драгоцености | N145: 0 | O145: 0 | Y145: 0
A146: 99 | B146: 840000 | C146: ПРИМАЊА ОД ПРОДАЈЕ ПРИРОДНЕ ИМОВИНЕ (100 + 102 + 104) | D146: =D147+D149+D151 -> 0 | E146: 0 | F146: 0 | G146: 0 | H146: 0 | I146: 0 | J146: 0 | K146: 0 | L146: 0 | M146: 0 | N146: 0 | O146: 0 | Y146: 0
A147: 100 | B147: 841000 | C147: ПРИМАЊА ОД ПРОДАЈЕ ЗЕМЉИШТА (101) | D147: =D148 -> 0 | E147: 0 | F147: 0 | G147: 0 | H147: 0 | I147: 0 | J147: 0 | K147: 0 | L147: 0 | M147: 0 | N147: 0 | O147: 0 | Y147: 0
A148: 101 | B148: 841100 | C148: Примања од продаје земљишта | N148: 0 | O148: 0 | Y148: 0
A149: 102 | B149: 842000 | C149: ПРИМАЊА ОД ПРОДАЈЕ ПОДЗЕМНИХ БЛАГА (103) | D149: =D150 -> 0 | E149: 0 | F149: 0 | G149: 0 | H149: 0 | I149: 0 | J149: 0 | K149: 0 | L149: 0 | M149: 0 | N149: 0 | O149: 0 | Y149: 0
A150: 103 | B150: 842100 | C150: Примања од продаје подземних блага | N150: 0 | O150: 0 | Y150: 0
A151: 104 | B151: 843000 | C151: ПРИМАЊА ОД ПРОДАЈЕ ШУМА И ВОДА (105) | D151: =D152 -> 0 | E151: 0 | F151: 0 | G151: 0 | H151: 0 | I151: 0 | J151: 0 | K151: 0 | L151: 0 | M151: 0 | N151: 0 | O151: 0 | Y151: 0
A152: 105 | B152: 843100 | C152: Примања од продаје шума и вода | N152: =SUM(H152,J152,L152) -> 0 | O152: 0 | Y152: 0
A153: 106 | B153: 900000 | C153: ПРИМАЊА ОД ЗАДУЖИВАЊА И ПРОДАЈЕ ФИНАНСИЈСКЕ ИМОВИНЕ (107 + 126) | D153: =D154+D173 -> 0 | E153: =E154+E173 -> 0 | F153: 0 | G153: 0 | H153: 0 | I153: 0 | J153: 0 | K153: 0 | L153: 0 | M153: 0 | N153: 0 | O153: 0 | Y153: 0
A154: 107 | B154: 910000 | C154: ПРИМАЊА ОД ЗАДУЖИВАЊА (108+118) | D154: =D155+D165 -> 0 | E154: =E155+E165 -> 0 | F154: 0 | G154: 0 | H154: 0 | I154: 0 | J154: 0 | K154: 0 | L154: 0 | M154: 0 | N154: 0 | O154: 0 | Y154: 0
A155: 108 | B155: 911000 | C155: ПРИМАЊА ОД ДОМАЋИХ ЗАДУЖИВАЊА (од 109 до 117) | D155: =SUM(D156:D164) -> 0 | E155: 0 | F155: 0 | G155: 0 | H155: 0 | I155: 0 | J155: 0 | K155: 0 | L155: 0 | M155: 0 | N155: 0 | O155: 0 | Y155: 0
A156: 109 | B156: 911100 | C156: Примања од емитовања домаћих хартија од вредности, изузев акција | N156: 0 | O156: 0 | Y156: 0
A157: 110 | B157: 911200 | C157: Примања од задуживања од осталих нивоа власти | N157: 0 | O157: 0 | Y157: 0
A158: 111 | B158: 911300 | C158: Примања од задуживања од јавних финансијских институција у земљи | N158: 0 | O158: 0 | Y158: 0
A159: 112 | B159: 911400 | C159: Примања од задуживања од пословних банака у земљи | N159: 0 | O159: 0 | Y159: 0
A160: 113 | B160: 911500 | C160: Примања од задуживања код осталих поверилаца у земљи | N160: 0 | O160: 0 | Y160: 0
A161: 114 | B161: 911600 | C161: Примања од задуживања од домаћинстава у земљи | N161: 0 | O161: 0 | Y161: 0
A162: 115 | B162: 911700 | C162: Примања од домаћих финансијских деривата | N162: 0 | O162: 0 | Y162: 0
A163: 116 | B163: 911800 | C163: Примања од домаћих меница | N163: 0 | O163: 0 | Y163: 0
A164: 117 | B164: 911900 | C164: Исправка унутрашњег дуга | N164: 0 | O164: 0 | Y164: 0
A165: 118 | B165: 912000 | C165: ПРИМАЊА ОД ИНОСТРАНОГ ЗАДУЖИВАЊА (од 119 + 125) | D165: =SUM(D166:D172) -> 0 | E165: 0 | F165: 0 | G165: 0 | H165: 0 | I165: 0 | J165: 0 | K165: 0 | L165: 0 | M165: 0 | N165: 0 | O165: 0 | Y165: 0
A166: 119 | B166: 912100 | C166: Примања од емитовања хартија од вредности, изузев акција, на иностраном финансијском тржишту | N166: 0 | O166: 0 | Y166: 0
A167: 120 | B167: 912200 | C167: Примања од задуживања од иностраних држава | N167: 0 | O167: 0 | Y167: 0
A168: 121 | B168: 912300 | C168: Примања од задуживања од мултилатералних институција | N168: 0 | O168: 0 | Y168: 0
A169: 122 | B169: 912400 | C169: Примања од задуживања од иностраних пословних банака | N169: 0 | O169: 0 | Y169: 0
A170: 123 | B170: 912500 | C170: Примања од задуживања од осталих иностраних поверилаца | N170: 0 | O170: 0 | Y170: 0
A171: 124 | B171: 912600 | C171: Примања од иностраних финансијских деривата | N171: 0 | O171: 0 | Y171: 0
A172: 125 | B172: 912900 | C172: Исправка спољног дуга | N172: 0 | O172: 0 | Y172: 0
A173: 126 | B173: 920000 | C173: ПРИМАЊА ОД ПРОДАЈЕ ФИНАНСИЈСКЕ ИМОВИНЕ (127 + 137) | D173: =D174+D184 -> 0 | E173: 0 | F173: 0 | G173: 0 | H173: 0 | I173: 0 | J173: 0 | K173: 0 | L173: 0 | M173: 0 | N173: 0 | O173: 0 | Y173: 0
A174: 127 | B174: 921000 | C174: ПРИМАЊА ОД ПРОДАЈЕ ДОМАЋЕ ФИНАНСИЈСКЕ ИМОВИНЕ (од 128 до 136) | D174: =SUM(D175:D183) -> 0 | E174: 0 | F174: 0 | G174: 0 | H174: 0 | I174: 0 | J174: 0 | K174: 0 | L174: 0 | M174: 0 | N174: 0 | O174: 0 | Y174: 0
A175: 128 | B175: 921100 | C175: Примања од продаје домаћих хартија од вредности, изузев акција | N175: 0 | O175: 0 | Y175: 0
A176: 129 | B176: 921200 | C176: Примања од отплате кредита датих осталим нивоима власти | N176: 0 | O176: 0 | Y176: 0
A177: 130 | B177: 921300 | C177: Примања од отплате кредита датих домаћим јавним финансијским институцијама | N177: 0 | O177: 0 | Y177: 0
A178: 131 | B178: 921400 | C178: Примања од отплате кредита домаћим пословним банкама | N178: 0 | O178: 0 | Y178: 0
A179: 132 | B179: 921500 | C179: Примања од отплате кредита датих домаћим јавним нефинансијским институцијама | N179: 0 | O179: 0 | Y179: 0
A180: 133 | B180: 921600 | C180: Примања од отплате кредита датих физичким лицима и домаћинствима у земљи | N180: 0 | O180: 0 | Y180: 0
A181: 134 | B181: 921700 | C181: Примања од отплате кредита датих удружењима грађана у земљи | N181: 0 | O181: 0 | Y181: 0
A182: 135 | B182: 921800 | C182: Примања од отплате кредита датих нефинансијским приватним предузећима у земљи | N182: 0 | O182: 0 | Y182: 0
A183: 136 | B183: 921900 | C183: Примања од продаје домаћих акција и осталог капитала | N183: 0 | O183: 0 | Y183: 0
A184: =A183+1 -> 137 | B184: 922000 | C184: ПРИМАЊА ОД ПРОДАЈЕ СТРАНЕ ФИНАНСИЈСКЕ ИМОВИНЕ (од 138 до 145) | D184: =SUM(D185:D192) -> 0 | E184: =SUM(E185:E192) -> 0 | F184: 0 | G184: 0 | H184: 0 | I184: 0 | J184: 0 | K184: 0 | L184: 0 | M184: 0 | N184: 0 | O184: 0 | Y184: =SUM(D184:O184) -> 0
A185: 138 | B185: 922100 | C185: Примања од продаје страних хартија од вредности, изузев акција | N185: 0 | O185: 0 | Y185: 0
A186: 139 | B186: 922200 | C186: Примања од отплате кредита датих страним владама | N186: 0 | O186: 0 | Y186: 0
A187: 140 | B187: 922300 | C187: Примања од отплате кредита датих међународним организацијама | N187: 0 | O187: 0 | Y187: 0
A188: 141 | B188: 922400 | C188: Примања од отплате кредита датих страним пословним банкама | N188: 0 | O188: 0 | Y188: 0
A189: 142 | B189: 922500 | C189: Примања од отплате кредита датих страним нефинансијским институцијама | N189: 0 | O189: 0 | Y189: 0
A190: 143 | B190: 922600 | C190: Примања од отплате кредита датих страним невладиним организацијама | N190: 0 | O190: 0 | Y190: 0
A191: 144 | B191: 922700 | C191: Примања од продаје страних акција и осталог капитала | N191: 0 | O191: 0 | Y191: 0
A192: 145 | B192: 922800 | C192: Примања од продаје стране валуте | N192: 0 | O192: 0 | Y192: 0
A193: 146 | C193: УКУПНИ ПРИХОДИ, ПРИМАЊА И ПРЕНЕТА СРЕДСТВА ИЗ ПРЕТХОДНЕ ГОДИНЕ (1 + 8 + 81 + 106) | D193: =D48+D55+D128+D153 -> 0 | E193: =E48+E55+E128+E153 -> 0 | F193: 0 | G193: 0 | H193: 0 | I193: =I48+I55+I128+I153 -> 0 | J193: 0 | K193: 0 | L193: 0 | M193: 0 | N193: =SUM(H193,J193,L193) -> 0 | O193: =SUM(I193,K193,M193) -> 0 | Y193: 1
A194: 147 | B194: 400000 | C194: ТЕКУЋИ РАСХОДИ (148+166+211+226+250+263+279+294) | D194: =D195+D213+D258+D273+D297+D310+D326+D341 -> 0 | E194: 0 | F194: 0 | G194: 0 | H194: 0 | I194: 0 | J194: 0 | K194: 0 | L194: 0 | M194: 0 | N194: 0 | O194: 0 | Y194: 0
A195: 148 | B195: 410000 | C195: РАСХОДИ ЗА ЗАПОСЛЕНЕ (149+151+155+157+162+164) | D195: =D196+D198+D202+D204+D209+D211 -> 0 | E195: =E196+E198+E202+E204+E209+E211 -> 0 | F195: 0 | G195: 0 | H195: 0 | I195: 0 | J195: 0 | K195: 0 | L195: 0 | M195: 0 | N195: 0 | O195: 0 | Y195: 0
A196: 149 | B196: 411000 | C196: ПЛАТЕ, ДОДАЦИ И НАКНАДЕ ЗАПОСЛЕНИХ (ЗАРАДЕ) (150) | D196: =D197 -> 0 | E196: 0 | F196: 0 | G196: 0 | H196: 0 | I196: 0 | J196: 0 | K196: 0 | L196: 0 | M196: 0 | N196: 0 | O196: 0 | Y196: 0
A197: 150 | B197: 411100 | C197: Плате, додаци и накнаде запослених | N197: 0 | O197: 0 | Y197: 0
A198: 151 | B198: 412000 | C198: СОЦИЈАЛНИ ДОПРИНОСИ НА ТЕРЕТ ПОСЛОДАВЦА (од 152 до 154) | D198: =SUM(D199:D201) -> 0 | E198: 0 | F198: 0 | G198: 0 | H198: 0 | I198: 0 | J198: 0 | K198: 0 | L198: 0 | M198: 0 | N198: 0 | O198: 0 | Y198: 0
A199: 152 | B199: 412100 | C199: Допринос за пензијско и инвалидско осигурање | N199: 0 | O199: 0 | Y199: 0
A200: 153 | B200: 412200 | C200: Допринос за здравствено осигурање | N200: 0 | O200: 0 | Y200: 0
A201: 154 | B201: 412300 | C201: Допринос за незапосленост | N201: 0 | O201: 0 | Y201: 0
A202: 155 | B202: 413000 | C202: НАКНАДЕ У НАТУРИ (156) | D202: =D203 -> 0 | E202: 0 | F202: 0 | G202: 0 | H202: 0 | I202: 0 | J202: 0 | K202: 0 | L202: 0 | M202: 0 | N202: 0 | O202: 0 | Y202: 0
A203: 156 | B203: 413100 | C203: Накнаде у натури | N203: 0 | O203: 0 | Y203: 0
A204: 157 | B204: 414000 | C204: СОЦИЈАЛНА ДАВАЊА ЗАПОСЛЕНИМА (од 158 до 161) | D204: =SUM(D205:D208) -> 0 | E204: 0 | F204: 0 | G204: 0 | H204: 0 | I204: 0 | J204: 0 | K204: 0 | L204: 0 | M204: 0 | N204: 0 | O204: 0 | Y204: 0
A205: 158 | B205: 414100 | C205: Исплата накнада за време одсуствовања с посла на терет фондова | N205: 0 | O205: 0 | Y205: 0
A206: 159 | B206: 414200 | C206: Расходи за образовање деце запослених | N206: 0 | O206: 0 | Y206: 0
A207: 160 | B207: 414300 | C207: Отпремнине и помоћи | N207: 0 | O207: 0 | Y207: 0
A208: 161 | B208: 414400 | C208: Помоћ у медицинском лечењу запосленог или чланова уже породице и друге помоћи запосленом | N208: 0 | O208: 0 | Y208: 0
A209: 162 | B209: 415000 | C209: НАКНАДА ТРОШКОВА ЗА ЗАПОСЛЕНЕ (163) | D209: =D210 -> 0 | E209: 0 | F209: 0 | G209: 0 | H209: 0 | I209: 0 | J209: 0 | K209: 0 | L209: 0 | M209: 0 | N209: 0 | O209: 0 | Y209: 0
A210: 163 | B210: 415100 | C210: Накнаде трошкова за запослене | N210: 0 | O210: 0 | Y210: 0
A211: 164 | B211: 416000 | C211: НАГРАДЕ ЗАПОСЛЕНИМА И ОСТАЛИ ПОСЕБНИ РАСХОДИ (165) | D211: =D212 -> 0 | E211: 0 | F211: 0 | G211: 0 | H211: 0 | I211: 0 | J211: 0 | K211: 0 | L211: 0 | M211: 0 | N211: 0 | O211: 0 | Y211: 0
... 271 more rows

Sheet Projekat
A1: Обрасци за припрему програмског буџета | Y1: 0 | AJ1: 3. ПРОЈЕКАТ | AN1: Директни буџетски корисник локалне власти
A2: 3. ПРОЈЕКАТ | AJ2: 3. ПРОЈЕКАТ - ЗАХТЕВ ЗА ДОДАТНА СРЕДСТВА | AM2: =IF(A2=AJ1,""," - захтев за додатна средства") ->  | AN2: Индиректни буџетски корисник локалне власти
Z3: Вредност у базној години (2016) | AB3: Очекивана вредност у 2017. години | AD3: Вредност у 2018. години | AF3: Вредност у 2019. години | AH3: Вредност у 2020. години | AJ3: Укупно (2018-2020) | AN3: Корисник буџетских средстава на другом нивоу власти
A4: Програм коме припада: | D4: =IF(Program!$D$4="","",Program!$D$4) -> Програм 8. Предшколско васпитање и образовање | Z4: Буџетска средства | AA4: Средства из осталих извора | AB4: Буџетска средства | AC4: Средства из осталих извора | AD4: Буџетска средства | AE4: Средства из осталих извора | AF4: Буџетска средства | AG4: Средства из осталих извора | AH4: Буџетска средства | AI4: Средства из осталих извора | AJ4: Буџетска средства | AK4: Средства из осталих извора
A5: Шифра пројекта: | D5: =Program!$D$5 -> 2001 | Y5: =$C$474&AM2&" ("&$D$8&")" -> 2001- () | Z5: =D452 -> 0 | AA5: =E452 -> 0 | AB5: 0 | AC5: 0 | AD5: 0 | AE5: 0 | AF5: 0 | AG5: 0 | AH5: 0 | AI5: 0 | AJ5: 0 | AK5: 0
A6: Назив пројекта:
A7: Функција:
A8: Назив организационе јединице/Буџетски корисник: | Z8: Kontrole | AA8: p/r | AB8: =D193-D452 -> 0 | AC8: =E193-E452 -> 0 | AD8: 0 | AE8: 0 | AF8: 0 | AG8: 0 | AH8: 0 | AI8: 0 | AJ8: 0 | AK8: 0 | AL8: =N193-N452 -> 0 | AM8: =O193-O452 -> 0
A9: Сврха: | AA9: p+r/i | AB9: =D452+E452-D474 -> 0 | AC9: =F452+G452-F474 -> 0 | AD9: =H452+I452-H474 -> 0 | AE9: =J452+K452-J474 -> 0 | AF9: =L452+M452-L474 -> 0 | AG9: =N452+O452-N474 -> 0
A10: Основ: | AA10: приходи из буџета | AB10: =D127-$D$457 -> 0 | AC10: =F127-$F$457 -> 0 | AD10: =H127-$H$457 -> 0 | AE10: =J127-$J$457 -> 0 | AF10: =L127-$L$457 -> 0 | AG10: =N127-$N$457 -> 0
A11: Опис: | AA11: transferi | AB11: =D123-$D$458 -> 0 | AC11: =F123-$F$458 -> 0 | AD11: =H123-$H$458 -> 0 | AE11: =J123-$J$458 -> 0 | AF11: =L123-$L$458 -> 0 | AG11: =N123-$N$458 -> 0
A12: Трајање пројекта:
A13: Ознака за капитални пројекат: | D13: (статус пројектно техничке документације, постоји или не постоји, статус имовинско правних односа, решени или нерешени) | Z13: 781111 | AA13: =D123+F123+H123+J123+L123+N123 -> 0
A14: Ознака да ли је ИПА пројекат: | D14: (бира се ИПА година финансирања и ИПА програм/мере из предефинисане листе коју у базу уноси Министарство финансија | Z14: 791111 | AA14: =D127+F127+H127+J127+L127+N127 -> 0
A15: Мере и поглавље преговора о приступању ЕУ:
A16: Одговорно лице за спровођење пројекта:
B18: Циљ* | D18: Индикатори**
D19: Назив индикатора | G19: Вредност у базној години (2018) | H19: Очекивана вредност у 2019. години | I19: Циљана вредност у 2020. години | J19: Циљана вредност у 2021. години | K19: Циљана вредност у 2022. години | L19: Извор верификације
A20: 1
B24: Циљ | D24: Индикатори
D25: Назив индикатора | G25: Вредност у базној години (2018) | H25: Очекивана вредност у 2019. години | I25: Циљана вредност у 2020. години | J25: Циљана вредност у 2021. години | K25: Циљана вредност у 2022. години | L25: Извор верификације
A26: 2
B30: Циљ | D30: Индикатори
D31: Назив индикатора | G31: Вредност у базној години (2018) | H31: Очекивана вредност у 2019. години | I31: Циљана вредност у 2020. години | J31: Циљана вредност у 2021. години | K31: Циљана вредност у 2022. години | L31: Извор верификације
A32: 3
A44: ПЛАНИРАНА СРЕДСТВА ЗА ПРОЈЕКАТ | Y44: 1
A45: Рбр. | B45: Конто | C45: ОПИС | D45: Вредност у базној години (2018) | F45: Очекивана вредност у 2019. години | H45: Вредност у 2020. години | J45: Вредност у 2021. години | L45: Вредност у 2022. години | N45: Укупно (2020-2022) | Y45: 1
D46: Приходи из буџета | E46: Приходи из осталих извора | F46: Приходи из буџета | G46: Приходи из осталих извора | H46: Приходи из буџета | I46: Приходи из осталих извора | J46: Приходи из буџета | K46: Приходи из осталих извора | L46: Приходи из буџета | M46: Приходи из осталих извора | N46: Приходи из буџета | O46: Приходи из осталих извора | Y46: 1
A47: 1 | B47: 2 | C47: 3 | D47: 4 | E47: 5 | F47: 6 | G47: 7 | H47: 8 | I47: 9 | J47: 10 | K47: 11 | L47: 12 | M47: 13 | N47: 14=(8+10+12) | O47: 15=(9+11+13) | Y47: 1
A48: 1 | B48: 300000 | C48: КАПИТАЛ, УТВРЂИВАЊЕ РЕЗУЛТАТА ПОСЛОВАЊА И ВАНБИЛАНСНА ЕВИДЕНЦИЈА (2 + 5) | D48: =SUM(D49,D52) -> 0 | E48: =SUM(E49,E52) -> 0 | F48: 0 | G48: 0 | H48: 0 | I48: 0 | J48: 0 | K48: 0 | L48: 0 | M48: 0 | N48: 0 | O48: 0 | Y48: =SUM(D48:O48) -> 0
A49: 2 | B49: 310000 | C49: КАПИТАЛ (3) | D49: =SUM(D50) -> 0 | E49: =SUM(E50) -> 0 | F49: 0 | G49: 0 | H49: 0 | I49: 0 | J49: 0 | K49: 0 | L49: 0 | M49: 0 | N49: 0 | O49: 0 | Y49: 0
A50: 3 | B50: 311000 | C50: КАПИТАЛ (4) | D50: =SUM(D51) -> 0 | E50: 0 | F50: 0 | G50: 0 | H50: 0 | I50: 0 | J50: 0 | K50: 0 | L50: 0 | M50: 0 | N50: 0 | O50: 0 | Y50: 0
A51: 4 | B51: 311700 | C51: Пренета неутрошена средства из ранијих година | N51: =SUM(H51,J51,L51) -> 0 | O51: =SUM(I51,K51,M51) -> 0 | Y51: 0
A52: 5 | B52: 320000 | C52: УТВРЂИВАЊЕ РЕЗУЛТАТА ПОСЛОВАЊА (6) | D52: =SUM(D53) -> 0 | E52: =SUM(E53) -> 0 | F52: 0 | G52: 0 | H52: 0 | I52: 0 | J52: 0 | K52: 0 | L52: 0 | M52: 0 | N52: 0 | O52: 0 | Y52: 0
A53: 6 | B53: 321000 | C53: УТВРЂИВАЊЕ РЕЗУЛТАТА ПОСЛОВАЊА (7) | D53: =SUM(D54) -> 0 | E53: 0 | F53: 0 | G53: 0 | H53: 0 | I53: 0 | J53: 0 | K53: 0 | L53: 0 | M53: 0 | N53: 0 | O53: 0 | Y53: 0
A54: 7 | B54: 321300 | C54: Нераспоређени вишак прихода и примања или дефицит из ранијих година | N54: =SUM(H54,J54,L54) -> 0 | O54: =SUM(I54,K54,M54) -> 0 | Y54: 0
A55: =A54+1 -> 8 | B55: 700000 | C55: ТЕКУЋИ ПРИХОДИ (9 + 32 + 44 + 69 + 74 +78) | D55: =D56+D79+D91+D116+D121+D125 -> 0 | E55: =E56+E79+E91+E116+E121+E125 -> 0 | F55: 0 | G55: 0 | H55: 0 | I55: 0 | J55: 0 | K55: 0 | L55: 0 | M55: 0 | N55: =N56+N79+N91+N116+N121+N125 -> 0 | O55: 0 | Y55: =SUM(D55:O55) -> 0
A56: =A55+1 -> 9 | B56: 710000 | C56: ПОРЕЗИ (10 + 14 + 16 + 23 + 29) | D56: =D57+D61+D63+D70+D76 -> 0 | E56: =E57+E61+E63+E70+E76 -> 0 | F56: 0 | G56: 0 | H56: 0 | I56: 0 | J56: 0 | K56: 0 | L56: 0 | M56: 0 | N56: 0 | O56: 0 | Y56: =SUM(D56:O56) -> 0
A57: 10 | B57: 711000 | C57: ПОРЕЗ НА ДОХОДАК, ДОБИТ И КАПИТАЛНЕ ДОБИТКЕ (од 11 до 13) | D57: =SUM(D58:D60) -> 0 | E57: =SUM(E58:E60) -> 0 | F57: 0 | G57: 0 | H57: 0 | I57: 0 | J57: 0 | K57: 0 | L57: 0 | M57: 0 | N57: =SUM(H57,J57,L57) -> 0 | O57: 0 | Y57: 0
A58: 11 | B58: 711100 | C58: Порези на доходак и капиталнe добиткe које плаћају физичка лица | N58: 0 | O58: 0 | Y58: 0
A59: 12 | B59: 711200 | C59: Порези на добит и капиталне добитке које плаћају предузећа и друга правна лица | N59: 0 | O59: 0 | Y59: 0
A60: 13 | B60: 711300 | C60: Порези на доходак, добит и капиталне добитке који се не могу разврстати између физичких и правних лица | N60: 0 | O60: 0 | Y60: 0
A61: 14 | B61: 712000 | C61: ПОРЕЗ НА ФОНД ЗАРАДА (15) | D61: =SUM(D62) -> 0 | E61: 0 | F61: 0 | G61: 0 | H61: 0 | I61: 0 | J61: 0 | K61: 0 | L61: 0 | M61: 0 | N61: 0 | O61: 0 | Y61: 0
A62: 15 | B62: 712100 | C62: Порез на фонд зарада | N62: 0 | O62: 0 | Y62: 0
A63: 16 | B63: 713000 | C63: ПОРЕЗ НА ИМОВИНУ (од 17 до 22) | D63: =SUM(D64:D69) -> 0 | E63: 0 | F63: 0 | G63: 0 | H63: 0 | I63: 0 | J63: 0 | K63: 0 | L63: 0 | M63: 0 | N63: 0 | O63: 0 | Y63: 0
A64: 17 | B64: 713100 | C64: Периодични порези на непокретности | N64: 0 | O64: 0 | Y64: 0
A65: 18 | B65: 713200 | C65: Периодични порези на нето имовину | N65: 0 | O65: 0 | Y65: 0
A66: 19 | B66: 713300 | C66: Порези на заоставштину, наслеђе и поклон | N66: 0 | O66: 0 | Y66: 0
A67: 20 | B67: 713400 | C67: Порези на финансијске и капиталне трансакције | N67: 0 | O67: 0 | Y67: 0
A68: 21 | B68: 713500 | C68: Други једнократни порези на имовину | N68: 0 | O68: 0 | Y68: 0
A69: 22 | B69: 713600 | C69: Други периодични порези на имовину | N69: 0 | O69: 0 | Y69: 0
A70: 23 | B70: 714000 | C70: ПОРЕЗ НА ДОБРА И УСЛУГЕ (од 24 до 28) | D70: =SUM(D71:D75) -> 0 | E70: 0 | F70: 0 | G70: 0 | H70: 0 | I70: 0 | J70: 0 | K70: 0 | L70: 0 | M70: 0 | N70: 0 | O70: 0 | Y70: 0
A71: 24 | B71: 714100 | C71: Општи порези на добра и услуге | N71: 0 | O71: 0 | Y71: 0
A72: 25 | B72: 714300 | C72: Добит фискалних монопола | N72: 0 | O72: 0 | Y72: 0
A73: 26 | B73: 714400 | C73: Порези на појединачне услуге | N73: 0 | O73: 0 | Y73: 0
A74: 27 | B74: 714500 | C74: Порези, таксе и накнаде на употребу добара, на дозволу да се добра употребљавају или делатности обављају | N74: 0 | O74: 0 | Y74: 0
A75: 28 | B75: 714600 | C75: Други порези на добра и услуге | N75: 0 | O75: 0 | Y75: 0
A76: 29 | B76: 716000 | C76: ДРУГИ ПОРЕЗИ (30 + 31) | D76: =SUM(D77:D78) -> 0 | E76: 0 | F76: 0 | G76: 0 | H76: 0 | I76: 0 | J76: 0 | K76: 0 | L76: 0 | M76: 0 | N76: 0 | O76: 0 | Y76: 0
A77: 30 | B77: 716100 | C77: Други порези које искључиво плаћају предузећа, односно предузетници | N77: 0 | O77: 0 | Y77: 0
A78: 31 | B78: 716200 | C78: Други порези које плаћају остала лица или који се не могу идентификовати | N78: 0 | O78: 0 | Y78: 0
A79: 32 | B79: 730000 | C79: ДОНАЦИЈЕ, ПОМОЋИ И ТРАНСФЕРИ (33 + 36 + 41) | D79: =D80+D83+D88 -> 0 | E79: =E80+E83+E88 -> 0 | F79: 0 | G79: 0 | H79: 0 | I79: 0 | J79: 0 | K79: 0 | L79: 0 | M79: 0 | N79: 0 | O79: 0 | Y79: 0
A80: 33 | B80: 731000 | C80: ДОНАЦИЈЕ ОД ИНОСТРАНИХ ДРЖАВА (34 + 35) | D80: =SUM(D81:D82) -> 0 | E80: 0 | F80: 0 | G80: 0 | H80: 0 | I80: 0 | J80: 0 | K80: 0 | L80: 0 | M80: 0 | N80: 0 | O80: 0 | Y80: 0
A81: 34 | B81: 731100 | C81: Текуће донације од иностраних држава | N81: 0 | O81: 0 | Y81: 0
A82: 35 | B82: 731200 | C82: Капиталне донације од иностраних држава | N82: 0 | O82: 0 | Y82: 0
A83: 36 | B83: 732000 | C83: ДОНАЦИЈЕ И ПОМОЋИ ОД МЕЂУНАРОДНИХ ОРГАНИЗАЦИЈА (од 37 до 40) | D83: =SUM(D84:D87) -> 0 | E83: =SUM(E84:E87) -> 0 | F83: 0 | G83: 0 | H83: 0 | I83: 0 | J83: 0 | K83: 0 | L83: 0 | M83: 0 | N83: 0 | O83: 0 | Y83: 0
A84: 37 | B84: 732100 | C84: Текуће донације од међународних организација | N84: 0 | O84: 0 | Y84: 0
A85: 38 | B85: 732200 | C85: Капиталне донације од међународних организација | N85: 0 | O85: 0 | Y85: 0
A86: 39 | B86: 732300 | C86: Текуће помоћи од ЕУ | N86: 0 | O86: 0 | Y86: 0
A87: 40 | B87: 732400 | C87: Капиталне помоћи од ЕУ | N87: 0 | O87: 0 | Y87: 0
A88: 41 | B88: 733000 | C88: ТРАНСФЕРИ ОД ДРУГИХ НИВОА ВЛАСТИ (42 + 43) | D88: =SUM(D89:D90) -> 0 | E88: 0 | F88: 0 | G88: 0 | H88: 0 | I88: 0 | J88: 0 | K88: 0 | L88: 0 | M88: 0 | N88: =SUM(H88,J88,L88) -> 0 | O88: 0 | Y88: 0
A89: 42 | B89: 733100 | C89: Текући трансфери од других нивоа власти | N89: =SUM(H89,J89,L89) -> 0 | O89: 0 | Y89: 0
A90: 43 | B90: 733200 | C90: Капитални трансфери од других нивоа власти | N90: 0 | O90: 0 | Y90: 0
A91: 44 | B91: 740000 | C91: ДРУГИ ПРИХОДИ (45 + 52 + 57 + 64 + 67) | D91: =D92+D99+D104+D111+D114 -> 0 | E91: =E92+E99+E104+E111+E114 -> 0 | F91: 0 | G91: 0 | H91: 0 | I91: 0 | J91: 0 | K91: 0 | L91: 0 | M91: 0 | N91: 0 | O91: 0 | Y91: 0
A92: 45 | B92: 741000 | C92: ПРИХОДИ ОД ИМОВИНЕ (од 46 до 51) | D92: =SUM(D93:D98) -> 0 | E92: =SUM(E93:E98) -> 0 | F92: 0 | G92: 0 | H92: 0 | I92: 0 | J92: 0 | K92: 0 | L92: 0 | M92: 0 | N92: 0 | O92: 0 | Y92: 0
A93: 46 | B93: 741100 | C93: Камате | N93: 0 | O93: 0 | Y93: 0
A94: 47 | B94: 741200 | C94: Дивиденде | N94: 0 | O94: 0 | Y94: 0
A95: 48 | B95: 741300 | C95: Повлачење прихода од квази корпорација | N95: 0 | O95: 0 | Y95: 0
A96: 49 | B96: 741400 | C96: Приход од имовине који припада имаоцима полиса осигурања | N96: 0 | O96: 0 | Y96: 0
A97: 50 | B97: 741500 | C97: Закуп непроизведене имовине | N97: 0 | O97: 0 | Y97: 0
A98: 51 | B98: 741600 | C98: Финансијске промене на финансијским лизинзима | N98: 0 | O98: 0 | Y98: 0
A99: 52 | B99: 742000 | C99: ПРИХОДИ ОД ПРОДАЈЕ ДОБАРА И УСЛУГА (од 53 до 56) | D99: =SUM(D100:D103) -> 0 | E99: 0 | F99: 0 | G99: 0 | H99: 0 | I99: 0 | J99: 0 | K99: 0 | L99: 0 | M99: 0 | N99: 0 | O99: 0 | Y99: 0
A100: 53 | B100: 742100 | C100: Приходи од продаје добара и услуга или закупа од стране тржишних организација | N100: 0 | O100: 0 | Y100: 0
A101: 54 | B101: 742200 | C101: Таксе и накнаде | N101: 0 | O101: 0 | Y101: 0
A102: 55 | B102: 742300 | C102: Споредне продаје добара и услуга које врше државне нетржишне јединице | N102: 0 | O102: 0 | Y102: 0
A103: 56 | B103: 742400 | C103: Импутиране продаје добара и услуга | N103: 0 | O103: 0 | Y103: 0
A104: 57 | B104: 743000 | C104: НОВЧАНЕ КАЗНЕ И ОДУЗЕТА ИМОВИНСКА КОРИСТ (од 58 до 63) | D104: =SUM(D105:D110) -> 0 | E104: 0 | F104: 0 | G104: 0 | H104: 0 | I104: 0 | J104: 0 | K104: 0 | L104: 0 | M104: 0 | N104: 0 | O104: 0 | Y104: 0
A105: 58 | B105: 743100 | C105: Приходи од новчаних казни за кривична дела | N105: 0 | O105: 0 | Y105: 0
A106: 59 | B106: 743200 | C106: Приходи од новчаних казни за привредне преступе | N106: 0 | O106: 0 | Y106: 0
A107: 60 | B107: 743300 | C107: Приходи од новчаних казни за прекршаје | N107: 0 | O107: 0 | Y107: 0
A108: 61 | B108: 743400 | C108: Приходи од пенала | N108: 0 | O108: 0 | Y108: 0
A109: 62 | B109: 743500 | C109: Приходи од одузете имовинске користи | N109: 0 | O109: 0 | Y109: 0
A110: 63 | B110: 743900 | C110: Остале новчане казне, пенали и приходи од одузете имовинске користи | N110: 0 | O110: 0 | Y110: 0
A111: 64 | B111: 744000 | C111: ДОБРОВОЉНИ ТРАНСФЕРИ ОД ФИЗИЧКИХ И ПРАВНИХ ЛИЦА (65 + 66) | D111: =SUM(D112:D113) -> 0 | E111: 0 | F111: 0 | G111: 0 | H111: 0 | I111: 0 | J111: 0 | K111: 0 | L111: 0 | M111: 0 | N111: 0 | O111: 0 | Y111: 0
A112: 65 | B112: 744100 | C112: Текући добровољни трансфери од физичких и правних лица | N112: 0 | O112: 0 | Y112: 0
A113: 66 | B113: 744200 | C113: Капитални добровољни трансфери од физичких и правних лица | N113: 0 | O113: 0 | Y113: 0
A114: 67 | B114: 745000 | C114: МЕШОВИТИ И НЕОДРЕЂЕНИ ПРИХОДИ (68) | D114: =D115 -> 0 | E114: =E115 -> 0 | F114: 0 | G114: 0 | H114: 0 | I114: 0 | J114: 0 | K114: 0 | L114: 0 | M114: 0 | N114: 0 | O114: 0 | Y114: 0
A115: 68 | B115: 745100 | C115: Мешовити и неодређени приходи | N115: 0 | O115: 0 | Y115: 0
A116: 69 | B116: 770000 | C116: МЕМОРАНДУМСКЕ СТАВКЕ ЗА РЕФУНДАЦИЈУ РАСХОДА (70 + 72) | D116: =D117+D119 -> 0 | E116: 0 | F116: 0 | G116: 0 | H116: 0 | I116: 0 | J116: 0 | K116: 0 | L116: 0 | M116: 0 | N116: 0 | O116: 0 | Y116: 0
A117: 70 | B117: 771000 | C117: МЕМОРАНДУМСКЕ СТАВКЕ ЗА РЕФУНДАЦИЈУ РАСХОДА (71) | D117: =D118 -> 0 | E117: =E118 -> 0 | F117: 0 | G117: 0 | H117: 0 | I117: 0 | J117: 0 | K117: 0 | L117: 0 | M117: 0 | N117: 0 | O117: 0 | Y117: 0
A118: 71 | B118: 771100 | C118: Меморандумске ставке за рефундацију расхода | N118: 0 | O118: 0 | Y118: 0
A119: 72 | B119: 772000 | C119: МЕМОРАНДУМСКЕ СТАВКЕ ЗА РЕФУНДАЦИЈУ РАСХОДА ИЗ ПРЕТХОДНЕ ГОДИНЕ (73) | D119: =D120 -> 0 | E119: =E120 -> 0 | F119: 0 | G119: 0 | H119: 0 | I119: 0 | J119: 0 | K119: 0 | L119: 0 | M119: 0 | N119: 0 | O119: 0 | Y119: 0
A120: =A119+1 -> 73 | B120: 772100 | C120: Меморандумске ставке за рефундацију расхода из претходне године | N120: 0 | O120: 0 | Y120: =SUM(D120:O120) -> 0
A121: 74 | B121: 780000 | C121: ТРАНСФЕРИ ИЗМЕЂУ БУЏЕТСКИХ КОРИСНИКА НА ИСТОМ НИВОУ (75) | D121: =D122 -> 0 | E121: 0 | F121: 0 | G121: 0 | H121: 0 | I121: 0 | J121: 0 | K121: 0 | L121: 0 | M121: 0 | N121: 0 | O121: 0 | Y121: 0
A122: 75 | B122: 781000 | C122: ТРАНСФЕРИ ИЗМЕЂУ БУЏЕТСКИХ КОРИСНИКА НА ИСТОМ НИВОУ (76 + 77) | D122: =SUM(D123:D124) -> 0 | E122: 0 | F122: 0 | G122: 0 | H122: 0 | I122: 0 | J122: 0 | K122: 0 | L122: 0 | M122: 0 | N122: 0 | O122: 0 | Y122: 0
A123: 76 | B123: 781100 | C123: Трансфери између буџетских корисника на истом нивоу | N123: 0 | O123: =SUM(I123,K123,M123) -> 0 | Y123: 0
A124: 77 | B124: 781300 | C124: Трансфери између организација обавезног социјалног осигурања | N124: =SUM(H124,J124,L124) -> 0 | O124: =SUM(I124,K124,M124) -> 0 | Y124: 0
A125: 78 | B125: 790000 | C125: ПРИХОДИ ИЗ БУЏЕТА (79) | D125: =D126 -> 0 | E125: 0 | F125: 0 | G125: 0 | H125: 0 | I125: 0 | J125: 0 | K125: 0 | L125: 0 | M125: 0 | N125: 0 | O125: 0 | Y125: 0
A126: 79 | B126: 791000 | C126: ПРИХОДИ ИЗ БУЏЕТА (80) | D126: =D127 -> 0 | E126: 0 | F126: 0 | G126: 0 | H126: 0 | I126: 0 | J126: 0 | K126: 0 | L126: 0 | M126: 0 | N126: 0 | O126: =SUM(I126,K126,M126) -> 0 | Y126: 0
A127: 80 | B127: 791100 | C127: Приходи из буџета | N127: =SUM(H127,J127,L127) -> 0 | O127: =SUM(I127,K127,M127) -> 0 | Y127: 0
A128: 81 | B128: 800000 | C128: ПРИМАЊА ОД ПРОДАЈЕ НЕФИНАНСИЈСКЕ ИМОВИНЕ (82 + 89 + 96 + 99) | D128: =D129+D136+D143+D146 -> 0 | E128: =E129+E136+E143+E146 -> 0 | F128: 0 | G128: 0 | H128: 0 | I128: 0 | J128: 0 | K128: 0 | L128: 0 | M128: 0 | N128: 0 | O128: 0 | Y128: 0
A129: 82 | B129: 810000 | C129: ПРИМАЊА ОД ПРОДАЈЕ ОСНОВНИХ СРЕДСТАВА (83 + 85 + 87) | D129: =D130+D132+D134 -> 0 | E129: =E130+E132+E134 -> 0 | F129: 0 | G129: 0 | H129: 0 | I129: 0 | J129: 0 | K129: 0 | L129: 0 | M129: 0 | N129: 0 | O129: 0 | Y129: 0
A130: 83 | B130: 811000 | C130: ПРИМАЊА ОД ПРОДАЈЕ НЕПОКРЕТНОСТИ (84) | D130: =D131 -> 0 | E130: =E131 -> 0 | F130: 0 | G130: 0 | H130: 0 | I130: 0 | J130: 0 | K130: 0 | L130: 0 | M130: 0 | N130: 0 | O130: 0 | Y130: 0
A131: 84 | B131: 811100 | C131: Примања од продаје непокретности | N131: 0 | O131: 0 | Y131: 0
A132: 85 | B132: 812000 | C132: ПРИМАЊА ОД ПРОДАЈЕ ПОКРЕТНЕ ИМОВИНЕ (86) | D132: =D133 -> 0 | E132: 0 | F132: 0 | G132: 0 | H132: 0 | I132: 0 | J132: 0 | K132: 0 | L132: 0 | M132: 0 | N132: 0 | O132: 0 | Y132: 0
A133: 86 | B133: 812100 | C133: Примања од продаје покретне имовине | N133: 0 | O133: 0 | Y133: 0
A134: 87 | B134: 813000 | C134: ПРИМАЊА ОД ПРОДАЈЕ ОСТАЛИХ ОСНОВНИХ СРЕДСТАВА (88) | D134: =D135 -> 0 | E134: 0 | F134: 0 | G134: 0 | H134: 0 | I134: 0 | J134: 0 | K134: 0 | L134: 0 | M134: 0 | N134: 0 | O134: 0 | Y134: 0
A135: 88 | B135: 813100 | C135: Примања од продаје осталих основних средстава | N135: 0 | O135: 0 | Y135: 0
A136: 89 | B136: 820000 | C136: ПРИМАЊА ОД ПРОДАЈЕ ЗАЛИХА (90 + 92 + 94) | D136: =D137+D139+D141 -> 0 | E136: 0 | F136: 0 | G136: 0 | H136: 0 | I136: 0 | J136: 0 | K136: 0 | L136: 0 | M136: 0 | N136: 0 | O136: 0 | Y136: 0
A137: 90 | B137: 821000 | C137: ПРИМАЊА ОД ПРОДАЈЕ РОБНИХ РЕЗЕРВИ (91) | D137: =D138 -> 0 | E137: 0 | F137: 0 | G137: 0 | H137: 0 | I137: 0 | J137: 0 | K137: 0 | L137: 0 | M137: 0 | N137: 0 | O137: 0 | Y137: 0
A138: 91 | B138: 821100 | C138: Примања од продаје робних резерви | N138: 0 | O138: 0 | Y138: 0
A139: 92 | B139: 822000 | C139: ПРИМАЊА ОД ПРОДАЈЕ ЗАЛИХА ПРОИЗВОДЊЕ (93) | D139: =D140 -> 0 | E139: 0 | F139: 0 | G139: 0 | H139: 0 | I139: 0 | J139: 0 | K139: 0 | L139: 0 | M139: 0 | N139: 0 | O139: 0 | Y139: 0
A140: 93 | B140: 822100 | C140: Примања од продаје залиха производње | N140: 0 | O140: 0 | Y140: 0
A141: 94 | B141: 823000 | C141: ПРИМАЊА ОД ПРОДАЈЕ РОБЕ ЗА ДАЉУ ПРОДАЈУ (95) | D141: =D142 -> 0 | E141: 0 | F141: 0 | G141: 0 | H141: 0 | I141: 0 | J141: 0 | K141: 0 | L141: 0 | M141: 0 | N141: 0 | O141: 0 | Y141: 0
A142: 95 | B142: 823100 | C142: Примања од продаје робе за даљу продају | N142: 0 | O142: 0 | Y142: 0
A143: 96 | B143: 830000 | C143: ПРИМАЊА ОД ПРОДАЈЕ ДРАГОЦЕНОСТИ (97) | D143: =D144 -> 0 | E143: 0 | F143: 0 | G143: 0 | H143: 0 | I143: 0 | J143: 0 | K143: 0 | L143: 0 | M143: 0 | N143: 0 | O143: 0 | Y143: 0
A144: 97 | B144: 831000 | C144: ПРИМАЊА ОД ПРОДАЈЕ ДРАГОЦЕНОСТИ (98) | D144: 0 | E144: 0 | F144: 0 | G144: 0 | H144: 0 | I144: 0 | J144: 0 | K144: 0 | L144: 0 | M144: 0 | N144: 0 | O144: 0 | Y144: 0
A145: 98 | B145: 831100 | C145: Примања од продаје драгоцености | N145: 0 | O145: 0 | Y145: 0
A146: 99 | B146: 840000 | C146: ПРИМАЊА ОД ПРОДАЈЕ ПРИРОДНЕ ИМОВИНЕ (100 + 102 + 104) | D146: =D147+D149+D151 -> 0 | E146: 0 | F146: 0 | G146: 0 | H146: 0 | I146: 0 | J146: 0 | K146: 0 | L146: 0 | M146: 0 | N146: 0 | O146: 0 | Y146: 0
A147: 100 | B147: 841000 | C147: ПРИМАЊА ОД ПРОДАЈЕ ЗЕМЉИШТА (101) | D147: =D148 -> 0 | E147: 0 | F147: 0 | G147: 0 | H147: 0 | I147: 0 | J147: 0 | K147: 0 | L147: 0 | M147: 0 | N147: 0 | O147: 0 | Y147: 0
A148: 101 | B148: 841100 | C148: Примања од продаје земљишта | N148: 0 | O148: 0 | Y148: 0
A149: 102 | B149: 842000 | C149: ПРИМАЊА ОД ПРОДАЈЕ ПОДЗЕМНИХ БЛАГА (103) | D149: =D150 -> 0 | E149: 0 | F149: 0 | G149: 0 | H149: 0 | I149: 0 | J149: 0 | K149: 0 | L149: 0 | M149: 0 | N149: 0 | O149: 0 | Y149: 0
A150: 103 | B150: 842100 | C150: Примања од продаје подземних блага | N150: 0 | O150: 0 | Y150: 0
A151: 104 | B151: 843000 | C151: ПРИМАЊА ОД ПРОДАЈЕ ШУМА И ВОДА (105) | D151: =D152 -> 0 | E151: 0 | F151: 0 | G151: 0 | H151: 0 | I151: 0 | J151: 0 | K151: 0 | L151: 0 | M151: 0 | N151: 0 | O151: 0 | Y151: 0
A152: 105 | B152: 843100 | C152: Примања од продаје шума и вода | N152: =SUM(H152,J152,L152) -> 0 | O152: 0 | Y152: 0
A153: 106 | B153: 900000 | C153: ПРИМАЊА ОД ЗАДУЖИВАЊА И ПРОДАЈЕ ФИНАНСИЈСКЕ ИМОВИНЕ (107 + 126) | D153: =D154+D173 -> 0 | E153: =E154+E173 -> 0 | F153: 0 | G153: 0 | H153: 0 | I153: 0 | J153: 0 | K153: 0 | L153: 0 | M153: 0 | N153: 0 | O153: 0 | Y153: 0
A154: 107 | B154: 910000 | C154: ПРИМАЊА ОД ЗАДУЖИВАЊА (108+118) | D154: =D155+D165 -> 0 | E154: =E155+E165 -> 0 | F154: 0 | G154: 0 | H154: 0 | I154: 0 | J154: 0 | K154: 0 | L154: 0 | M154: 0 | N154: 0 | O154: 0 | Y154: 0
A155: 108 | B155: 911000 | C155: ПРИМАЊА ОД ДОМАЋИХ ЗАДУЖИВАЊА (од 109 до 117) | D155: =SUM(D156:D164) -> 0 | E155: 0 | F155: 0 | G155: 0 | H155: 0 | I155: 0 | J155: 0 | K155: 0 | L155: 0 | M155: 0 | N155: 0 | O155: 0 | Y155: 0
A156: 109 | B156: 911100 | C156: Примања од емитовања домаћих хартија од вредности, изузев акција | N156: 0 | O156: 0 | Y156: 0
A157: 110 | B157: 911200 | C157: Примања од задуживања од осталих нивоа власти | N157: 0 | O157: 0 | Y157: 0
A158: 111 | B158: 911300 | C158: Примања од задуживања од јавних финансијских институција у земљи | N158: 0 | O158: 0 | Y158: 0
A159: 112 | B159: 911400 | C159: Примања од задуживања од пословних банака у земљи | N159: 0 | O159: 0 | Y159: 0
A160: 113 | B160: 911500 | C160: Примања од задуживања код осталих поверилаца у земљи | N160: 0 | O160: 0 | Y160: 0
A161: 114 | B161: 911600 | C161: Примања од задуживања од домаћинстава у земљи | N161: 0 | O161: 0 | Y161: 0
A162: 115 | B162: 911700 | C162: Примања од домаћих финансијских деривата | N162: 0 | O162: 0 | Y162: 0
A163: 116 | B163: 911800 | C163: Примања од домаћих меница | N163: 0 | O163: 0 | Y163: 0
A164: 117 | B164: 911900 | C164: Исправка унутрашњег дуга | N164: 0 | O164: 0 | Y164: 0
A165: 118 | B165: 912000 | C165: ПРИМАЊА ОД ИНОСТРАНОГ ЗАДУЖИВАЊА (од 119 + 125) | D165: =SUM(D166:D172) -> 0 | E165: 0 | F165: 0 | G165: 0 | H165: 0 | I165: 0 | J165: 0 | K165: 0 | L165: 0 | M165: 0 | N165: 0 | O165: 0 | Y165: 0
A166: 119 | B166: 912100 | C166: Примања од емитовања хартија од вредности, изузев акција, на иностраном финансијском тржишту | N166: 0 | O166: 0 | Y166: 0
A167: 120 | B167: 912200 | C167: Примања од задуживања од иностраних држава | N167: 0 | O167: 0 | Y167: 0
A168: 121 | B168: 912300 | C168: Примања од задуживања од мултилатералних институција | N168: 0 | O168: 0 | Y168: 0
A169: 122 | B169: 912400 | C169: Примања од задуживања од иностраних пословних банака | N169: 0 | O169: 0 | Y169: 0
A170: 123 | B170: 912500 | C170: Примања од задуживања од осталих иностраних поверилаца | N170: 0 | O170: 0 | Y170: 0
A171: 124 | B171: 912600 | C171: Примања од иностраних финансијских деривата | N171: 0 | O171: 0 | Y171: 0
A172: 125 | B172: 912900 | C172: Исправка спољног дуга | N172: 0 | O172: 0 | Y172: 0
A173: 126 | B173: 920000 | C173: ПРИМАЊА ОД ПРОДАЈЕ ФИНАНСИЈСКЕ ИМОВИНЕ (127 + 137) | D173: =D174+D184 -> 0 | E173: 0 | F173: 0 | G173: 0 | H173: 0 | I173: 0 | J173: 0 | K173: 0 | L173: 0 | M173: 0 | N173: 0 | O173: 0 | Y173: 0
A174: 127 | B174: 921000 | C174: ПРИМАЊА ОД ПРОДАЈЕ ДОМАЋЕ ФИНАНСИЈСКЕ ИМОВИНЕ (од 128 до 136) | D174: =SUM(D175:D183) -> 0 | E174: 0 | F174: 0 | G174: 0 | H174: 0 | I174: 0 | J174: 0 | K174: 0 | L174: 0 | M174: 0 | N174: 0 | O174: 0 | Y174: 0
A175: 128 | B175: 921100 | C175: Примања од продаје домаћих хартија од вредности, изузев акција | N175: 0 | O175: 0 | Y175: 0
A176: 129 | B176: 921200 | C176: Примања од отплате кредита датих осталим нивоима власти | N176: 0 | O176: 0 | Y176: 0
A177: 130 | B177: 921300 | C177: Примања од отплате кредита датих домаћим јавним финансијским институцијама | N177: 0 | O177: 0 | Y177: 0
A178: 131 | B178: 921400 | C178: Примања од отплате кредита домаћим пословним банкама | N178: 0 | O178: 0 | Y178: 0
A179: 132 | B179: 921500 | C179: Примања од отплате кредита датих домаћим јавним нефинансијским институцијама | N179: 0 | O179: 0 | Y179: 0
A180: 133 | B180: 921600 | C180: Примања од отплате кредита датих физичким лицима и домаћинствима у земљи | N180: 0 | O180: 0 | Y180: 0
A181: 134 | B181: 921700 | C181: Примања од отплате кредита датих удружењима грађана у земљи | N181: 0 | O181: 0 | Y181: 0
A182: 135 | B182: 921800 | C182: Примања од отплате кредита датих нефинансијским приватним предузећима у земљи | N182: 0 | O182: 0 | Y182: 0
A183: 136 | B183: 921900 | C183: Примања од продаје домаћих акција и осталог капитала | N183: 0 | O183: 0 | Y183: 0
A184: =A183+1 -> 137 | B184: 922000 | C184: ПРИМАЊА ОД ПРОДАЈЕ СТРАНЕ ФИНАНСИЈСКЕ ИМОВИНЕ (од 138 до 145) | D184: =SUM(D185:D192) -> 0 | E184: =SUM(E185:E192) -> 0 | F184: 0 | G184: 0 | H184: 0 | I184: 0 | J184: 0 | K184: 0 | L184: 0 | M184: 0 | N184: 0 | O184: 0 | Y184: =SUM(D184:O184) -> 0
A185: 138 | B185: 922100 | C185: Примања од продаје страних хартија од вредности, изузев акција | N185: 0 | O185: 0 | Y185: 0
A186: 139 | B186: 922200 | C186: Примања од отплате кредита датих страним владама | N186: 0 | O186: 0 | Y186: 0
A187: 140 | B187: 922300 | C187: Примања од отплате кредита датих међународним организацијама | N187: 0 | O187: 0 | Y187: 0
A188: 141 | B188: 922400 | C188: Примања од отплате кредита датих страним пословним банкама | N188: 0 | O188: 0 | Y188: 0
A189: 142 | B189: 922500 | C189: Примања од отплате кредита датих страним нефинансијским институцијама | N189: 0 | O189: 0 | Y189: 0
A190: 143 | B190: 922600 | C190: Примања од отплате кредита датих страним невладиним организацијама | N190: 0 | O190: 0 | Y190: 0
A191: 144 | B191: 922700 | C191: Примања од продаје страних акција и осталог капитала | N191: 0 | O191: 0 | Y191: 0
A192: 145 | B192: 922800 | C192: Примања од продаје стране валуте | N192: 0 | O192: 0 | Y192: 0
A193: 146 | C193: УКУПНИ ПРИХОДИ, ПРИМАЊА И ПРЕНЕТА СРЕДСТВА ИЗ ПРЕТХОДНЕ ГОДИНЕ (1 + 8 + 81 + 106) | D193: =D48+D55+D128+D153 -> 0 | E193: =E48+E55+E128+E153 -> 0 | F193: 0 | G193: 0 | H193: 0 | I193: 0 | J193: 0 | K193: 0 | L193: 0 | M193: 0 | N193: =SUM(H193,J193,L193) -> 0 | O193: =SUM(I193,K193,M193) -> 0 | Y193: 1
A194: 147 | B194: 400000 | C194: ТЕКУЋИ РАСХОДИ (148+166+211+226+250+263+279+294) | D194: =D195+D213+D258+D273+D297+D310+D326+D341 -> 0 | E194: 0 | F194: 0 | G194: 0 | H194: 0 | I194: 0 | J194: 0 | K194: 0 | L194: 0 | M194: 0 | N194: 0 | O194: 0 | Y194: 0
A195: 148 | B195: 410000 | C195: РАСХОДИ ЗА ЗАПОСЛЕНЕ (149+151+155+157+162+164) | D195: =D196+D198+D202+D204+D209+D211 -> 0 | E195: =E196+E198+E202+E204+E209+E211 -> 0 | F195: 0 | G195: 0 | H195: 0 | I195: 0 | J195: 0 | K195: 0 | L195: 0 | M195: 0 | N195: 0 | O195: 0 | Y195: 0
A196: 149 | B196: 411000 | C196: ПЛАТЕ, ДОДАЦИ И НАКНАДЕ ЗАПОСЛЕНИХ (ЗАРАДЕ) (150) | D196: =D197 -> 0 | E196: 0 | F196: 0 | G196: 0 | H196: 0 | I196: 0 | J196: 0 | K196: 0 | L196: 0 | M196: 0 | N196: 0 | O196: 0 | Y196: 0
A197: 150 | B197: 411100 | C197: Плате, додаци и накнаде запослених | N197: 0 | O197: 0 | Y197: 0
A198: 151 | B198: 412000 | C198: СОЦИЈАЛНИ ДОПРИНОСИ НА ТЕРЕТ ПОСЛОДАВЦА (од 152 до 154) | D198: =SUM(D199:D201) -> 0 | E198: 0 | F198: 0 | G198: 0 | H198: 0 | I198: 0 | J198: 0 | K198: 0 | L198: 0 | M198: 0 | N198: 0 | O198: 0 | Y198: 0
A199: 152 | B199: 412100 | C199: Допринос за пензијско и инвалидско осигурање | N199: 0 | O199: 0 | Y199: 0
A200: 153 | B200: 412200 | C200: Допринос за здравствено осигурање | N200: 0 | O200: 0 | Y200: 0
A201: 154 | B201: 412300 | C201: Допринос за незапосленост | N201: 0 | O201: 0 | Y201: 0
A202: 155 | B202: 413000 | C202: НАКНАДЕ У НАТУРИ (156) | D202: =D203 -> 0 | E202: 0 | F202: 0 | G202: 0 | H202: 0 | I202: 0 | J202: 0 | K202: 0 | L202: 0 | M202: 0 | N202: 0 | O202: 0 | Y202: 0
A203: 156 | B203: 413100 | C203: Накнаде у натури | N203: 0 | O203: 0 | Y203: 0
A204: 157 | B204: 414000 | C204: СОЦИЈАЛНА ДАВАЊА ЗАПОСЛЕНИМА (од 158 до 161) | D204: =SUM(D205:D208) -> 0 | E204: 0 | F204: 0 | G204: 0 | H204: 0 | I204: 0 | J204: 0 | K204: 0 | L204: 0 | M204: 0 | N204: 0 | O204: 0 | Y204: 0
A205: 158 | B205: 414100 | C205: Исплата накнада за време одсуствовања с посла на терет фондова | N205: 0 | O205: 0 | Y205: 0
A206: 159 | B206: 414200 | C206: Расходи за образовање деце запослених | N206: 0 | O206: 0 | Y206: 0
A207: 160 | B207: 414300 | C207: Отпремнине и помоћи | N207: 0 | O207: 0 | Y207: 0
A208: 161 | B208: 414400 | C208: Помоћ у медицинском лечењу запосленог или чланова уже породице и друге помоћи запосленом | N208: 0 | O208: 0 | Y208: 0
A209: 162 | B209: 415000 | C209: НАКНАДА ТРОШКОВА ЗА ЗАПОСЛЕНЕ (163) | D209: =D210 -> 0 | E209: 0 | F209: 0 | G209: 0 | H209: 0 | I209: 0 | J209: 0 | K209: 0 | L209: 0 | M209: 0 | N209: 0 | O209: 0 | Y209: 0
A210: 163 | B210: 415100 | C210: Накнаде трошкова за запослене | N210: 0 | O210: 0 | Y210: 0
A211: 164 | B211: 416000 | C211: НАГРАДЕ ЗАПОСЛЕНИМА И ОСТАЛИ ПОСЕБНИ РАСХОДИ (165) | D211: =D212 -> 0 | E211: 0 | F211: 0 | G211: 0 | H211: 0 | I211: 0 | J211: 0 | K211: 0 | L211: 0 | M211: 0 | N211: 0 | O211: 0 | Y211: 0
A212: 165 | B212: 416100 | C212: Награде запосленима и остали посебни расходи | N212: 0 | O212: 0 | Y212: 0
A213: 166 | B213: 420000 | C213: КОРИШЋЕЊЕ УСЛУГА И РОБА (167 + 175 + 181 + 190 + 198 + 201) | D213: =D214+D222+D228+D237+D245+D248 -> 0 | E213: 0 | F213: 0 | G213: 0 | H213: 0 | I213: 0 | J213: 0 | K213: 0 | L213: 0 | M213: 0 | N213: =SUM(H213,J213,L213) -> 0 | O213: 0 | Y213: 0
A214: 167 | B214: 421000 | C214: СТАЛНИ ТРОШКОВИ (од 168 до 174) | D214: =SUM(D215:D221) -> 0 | E214: 0 | F214: 0 | G214: 0 | H214: 0 | I214: 0 | J214: 0 | K214: 0 | L214: 0 | M214: 0 | N214: 0 | O214: 0 | Y214: 0
A215: 168 | B215: 421100 | C215: Трошкови платног промета и банкарских услуга | N215: 0 | O215: 0 | Y215: 0
A216: 169 | B216: 421200 | C216: Енергетске услуге | N216: 0 | O216: 0 | Y216: 0
A217: 170 | B217: 421300 | C217: Комуналне услуге | N217: 0 | O217: 0 | Y217: 0
A218: 171 | B218: 421400 | C218: Услуге комуникација | N218: 0 | O218: 0 | Y218: 0
... 264 more rows

Sheet Sheet2 (hidden)

Sheet Uputstvo
B1: Програми | C1: Шифра | D1: Сврха | BS1: ФУНКЦИОНАЛНА КЛАСИФИКАЦИЈА | BV1: КЛАСИФИКАЦИЈА ПО ИЗВОРИМА ФИНАНСИРАЊА | BZ1: ЕКОНОМСКА КЛАСИФИКАЦИЈА - 3 nivo | CL1: 000 | CM1: СОЦИЈАЛНА ЗАШТИТА | CP1: =BS2&" - "&BT2 -> 0 - СОЦИЈАЛНА ЗАШТИТА | CU1: КЛАСИФИКАЦИЈА ПО ИЗВОРИМА ФИНАНСИРАЊА
B2: Програм 1. Становање, урбанизам и просторно планирање | C2: 1101 | D2: Планирање, уређење и коришћење простора у локалној заједници засновано на начелима одрживог развоја, равномерног територијалног развоја и рационалног коришћења земљишта; Подстицање одрживог развоја становања кроз унапређење услова становања грађана и очување и унапређење вредности стамбеног фонда | BS2: 0 | BT2: СОЦИЈАЛНА ЗАШТИТА | BV2: 01 | BW2: Приходи из буџета | BX2: 01 | BZ2: 411 | CA2: Плате, додаци и накнаде запослених (зараде) | CB2: 411 | CL2: 010 | CM2: Болест и инвалидност | CP2: =BS3&" - "&BT3 -> 10 - Болест и инвалидност | CU2: 01 | CV2: Приходи из буџета | CY2: =CU2&" - "&CV2 -> 01 - Приходи из буџета
